Workbook

Sheet User's Guide
D1: Last updated: 1/30/2014
C2: Morocco: Fruit Tree Productivity Project Olive Tree Irrigation and Intensification Activity
B8: ERR Version | C8: Original Activity ERR | D8: Closeout Activity ERR
B9: Date of ERR | C9: 2005-07-06 | D9: 2014-01-30
B10: Amount of MCC funds | C10: $58.42 million | D10: $66.30 million
B11: Project ofcription | C11: The Olive Tree Irrigation and Intensification Project Activity aims at increasing water supply to small and medium farmers and providing training in improved crop husbandry and water management techniques. | D11: The Olive Tree Irrigation and Intensification Project Activity aims at increasing water supply to small and medium farmers and providing training in improved crop husbandry and water management techniques.
B12: Benefit streams included in ERR | C12: Increased water supply, especially during droughts, leading to increased farm productivity | D12: Increased water supply, especially during droughts, leading to increased farm productivity
C13: Technical training and assistance to enhance water management and cultivation skills leading to increased productivity | D13: Technical training and assistance to enhance water management and cultivation skills leading to increased productivity
B14: Costs included in ERR (other than costs borne by MCC) | C14: Minimal maintenance of oases and irrigation by user organizations | D14: Minimal maintenance of oases and irrigation by user organizations
B15: Estimated ERR and time horizon | C15: 17.3% over 25 years | D15: 10.3% over 20 years
B17: Table of Contents
B19: Activity Description
B20: One should read this sheet first, as it offers a summary of the project, a list of components, and states the economic rationale for the project.
B22: ERR & Sensitivity Analysis
B23: This worksheet highlights key assumptions and summarizes how the ERR may change due to varying costs and benefits.
B25: Cost Benefit Summary
B26: This worksheet presents the aggregated costs and benefits from the project activities year-by-year, calculating a combined ERR
B28: Iden_classe
B29: Summary of farm characteristics, used to separate farms into two categories, those where the water deficit is relatively low (DHMax<=55%) and relatively high (DHMax>55%).
B31: Don_classe 1
B32: Data summarizing characteristics of farms with a relatively low water deficit (DHMax <=55%)
B34: BudExp DHMax<55%
B35: Detailed ERR calculation at the farm level for farms with relatively low water deficit
B37: Don_classe 2
B38: Data summarizing characteristics of farms with a relatively high water deficit (DHMax >55%)
B40: BudExp DHMax>55%
B41: Detailed ERR calculation at the farm level for farms with relatively high water deficit
B43: DATA-enq reference
B44: Survey data used for the closeout ERR
B46: Data & Assumptions
B47: Other data and assumptions.
B49: Total Budget
B50: Cost figures from the second out of cycle detailed financial plan, used to pro-rate administrative and M&E costs
B52: Fruit Tree Budget
B53: Detailed cost figures from the second out of cycle detailed financial plan, used for final investment costs.

Sheet Activity Description
B1: Last updated: 1/30/2014
B2: Morocco: Fruit Tree Productivity Project
B3: Olive Tree Irrigation and Intensification Project Activity
B5: Activity Design History
B7: Original Project
B8: Cereal production in Morocco is characterized by low labor intensity and high water intensity, whereby labor is abundant and inexpensive and water is scarce and costly. A comparison of labor inputs used in the production of different crops shows that wheat production more heavily relies on water use than vegetable or olive production, which utilize labor inputs more intensely. The Fruit Tree Productivity Project will thus help farmers move towards more productive market-oriented cultivation of perennial tree crops (olives, almonds, figs, dates) based on sustainable management of soil and water resources and improved links to national and international markets.
B9: The original Activity was designed to support the intensification/rehabilitation of existing olive tree production in small- and medium-sized irrigated perimeters ("PMH"). The primary goal was to increase the efficiency of water-use and other crop practices, such as crop rotation, to enhance the yield and profitability of olive production in the target areas. The activity was originally designed to cover 25,600 ha within perimeters covering 47,000 ha.
B11: Revised Project
B13: As a result of rescoping in the fall of 2010, total acreage increased from 25,600 to 34,000 ha. The overall project design remained the same. However, one result of the rescoping was a reallocation of $21.2 million from the Artisan and Fez Medina Project to the Fruit Tree Productivity Project, to support a "Catalyst Fund" aimed at constructing olive oil processing plants. The costs and benefits of the Catalyst Fund have been built into the three olive-related ERRs.
B15: Closeout
B16: The ERR was updated with all available impact evaluation data (see tab "Data-enq reference") and the latest cost data from the second out of cycle detailed financial plan (see tab "total budget").
B18: Activity Components
B20: 1. Irrigation infrastructure improvements: Upgrading and further development of PMH schemes, including concrete lining of existing earthen canals; construction of diversion weirs, storage basins and pumping stations; works on springs and repair of subsurface drainage canals.
B21: 2. Technical and training assistance: Technical and training assistance on improved crop husbandry techniques for producers, their families and producer associations; support to existing agricultural water users associations ("AUEA") in operations, management and maintenance of irrigation water distribution systems; and the creation of farmer cooperatives and the provision of training and advisory support in business, management, marketing, accounting, organization and access to financial services.
B23: Economic Rationale
B25: The primary focus for the olive tree component of the Fruit Tree Productivity Project is to rehabilitate priority portions of irrigated perimeters, identified through a participatory process with local water users. Investments are small-scale, demand-driven and targeted at traditional irrigated areas developed and maintained by user organizations.
B26: The infrastructure works to be executed in the PMH (small and medium-scale irrigation hydraulics) and oasis schemes involve relatively simple engineering, as existing earth canals will be upgraded with rectangular concrete sections. This approach presents several advantages over conventional trapezoidal sections: more effective water seepage control, no requirement for heavy construction equipment, earth moving, or large scale tree removal. The design used for the construction of diversion weirs and intakes is based on international standards. Some additional measures will be introduced to reduce the risk of damage to the weirs resulting from debris and erosion during flash floods likely in the mountainous environment. Investments in the oasis areas will address design problems identified over three decades of operations— principally silting of some sections of the conveyance canals in the Draa valley passing through the desert and the side erosion of flood canals in the Tifalalet. Due diligence indicates that rehabilitation investments will raise overall system efficiency by an average of about 50%. In addition, analyses of the relationship between water availability and crop yields indicate that even with continued stress during the summer months, conservative yield estimates after canal lining average around 50% higher than without lining.
B27: To help maintain profit streams for farmers while waiting for olive trees to mature, a key part of the agricultural training will be the use of a single area for multiple crops.

Sheet CB_DATA_ (hidden)

Sheet ERR & Sensitivity Analysis
B2: Morocco: Fruit Tree Productivity
B3: Olive Tree Irrigation & Intensification
B5: ERR and sensitivity analysis | G5: Last updated: 1/30/2014
B7: Change the "User Input" cells in the table below to see the effect on the compact's Economic Rate of Return (ERR) and net benefits (see chart below). To reset all values to the default MCC estimates, click the "Reset Parameters" button at right. Be sure to reset all summary parameters to their original values ("MCC Estimate" values) before changing specific parameters.
B9: Parameter type | C9: Description of key parameters | D9: Parameter values
D10: User Input | E10: MCC Estimate | F10: Plausible Range | G10: Values used in ERR computation | I10: All summary parameters set to initial values?
B11: Summary | C11: Actual costs as a percentage of estimated costs | D11: 1 | E11: 1 | F11: 90% - 110% | G11: =IF(D11>=0,D11,0) -> 1 | I11: =IF(D11=E11,IF(D12=E12,"Y","N"),"N") -> Y
B12: Summary | C12: Actual benefits as a percentage of estimated benefits | D12: 1 | E12: 1 | F12: 90% - 110% | G12: =IF(D12>=0,D12,0) -> 1 | I12: =IF(D14=E14,IF(D15=E15,IF(D16=E16,IF(D17=E17,"Y","N"),"N"),"N"),"N") -> Y
B14: Specific | C14: Price of goods as a % of expected price | D14: 1 | E14: 1 | F14: 90 - 110% | G14: =IF($I$11="Y",D14,E14) -> 1 | I14: More Info
B15: Specific | C15: Yield per Ha as a % of expected yield per Ha | D15: 1 | E15: 1 | F15: 90 - 110% | G15: =IF($I$11="Y",D15,E15) -> 1 | I15: Activity Description
I16: User's Guide
I18: Testing Sensitivity of Profitability with variations in maintenance and yield
B19: =IF(I11="N",IF(I12="N","Reminder: Please reset all summary parameters to original values before changing specific parameters. Specific parameters will only be used in ERR computation when all summary parameters are set to initial values.",0),0) -> 0 | J19: Yield
I20: Maintenance | J20: 0.8 | K20: 0.9 | L20: 1 | M20: 1.1 | N20: 1.2
C21: Economic Rate of Return: | D21: ='Cost-Benefit Summary'!C26 -> 0.1028941499 | I21: 0 | J21: 0.03577195208 | K21: 0.06407653667 | L21: 0.1133709924 | M21: 0.1818237423 | N21: 0.2637435979
I22: 0.01 | J22: 0.03075582172 | K22: 0.05994774487 | L22: 0.1103163701 | M22: 0.1796878716 | N22: 0.2622665403
C23: MCC Estimated ERR (as of 7/6/2005): | D23: 0.173 | I23: 0.02 | J23: 0.0255543822 | K23: 0.05571006712 | L23: 0.1072148156 | M23: 0.1775346147 | N23: 0.2607829222
I24: 0.03 | J24: 0.02014797041 | K24: 0.0513552538 | L24: 0.1040642963 | M24: 0.1753636116 | N24: 0.2592926842
C68: Although the above distributional figure was not part of the Investment Memorandum (IM) ERR calculation, it reflects the best information available on parameters as of the IM (7/06/2007)

Sheet Cost-Benefit Summary
B1: =IF('ERR & Sensitivity Analysis'!$I$10="N","Note: Current calculations are based on user input and are not the original MCC estimates.",IF('ERR & Sensitivity Analysis'!$J$14="N","Note: Current calculations are based on user input and are not the original MCC estimates.",0)) -> 0 | G1: Last updated: 1/30/2014
B2: Morocco: Fruit Tree Productivity
B3: Olive Tree Irrigation & Intensification
A5: Combined ERR
A7: =IF('ERR & Sensitivity Analysis'!$I$11="Y",IF('ERR & Sensitivity Analysis'!$I$12="Y","","Note: Current calculations are based on user input and are not the original MCC estimates"),"Note: Current calculations are based on user input and are not the original MCC estimates") -> 
C8: Number exploitants
B9: Déficit Hydrique <=55% | C9: =+'Data&assumptions'!E60 -> 4596.116505 | AB9: =IF('ERR & Sensitivity Analysis'!$I$11="y",IF('ERR & Sensitivity Analysis'!$I$12="y","","Note:Current calculations are based on user input and are not the original MCC estimates"),"Note:Current calculations are based on user input and are not the original MCC estimates") -> 
B10: Déficit Hydrique > 55% | C10: =+'Data&assumptions'!E61 -> 7589.783282
B11: Ensemble | C11: =+C10+C9 -> 12185.89979
A15: Flux Benefits nets | C15: Compact Year
C16: 1 | D16: 2 | E16: 3 | F16: 4 | G16: 5 | H16: 6 | I16: 7 | J16: 8 | K16: 9 | L16: 10 | M16: 11 | N16: 12 | O16: 13 | P16: 14 | Q16: 15 | R16: 16 | S16: 17 | T16: 18 | U16: 19 | V16: 20 | W16: 21 | X16: 22 | Y16: 23 | Z16: 24 | AA16: 25 | AB16: 26 | AC16: 27 | AD16: 28 | AE16: 29 | AF16: 30
B18: Total Costs ($s)
B19: MCC Investment | C19: ='Data&assumptions'!B99*'ERR & Sensitivity Analysis'!$G$11 -> 970743.868 | D19: ='Data&assumptions'!C99*'ERR & Sensitivity Analysis'!$G$11 -> 9569210.486 | E19: ='Data&assumptions'!D99*'ERR & Sensitivity Analysis'!$G$11 -> 18385800.61 | F19: ='Data&assumptions'!E99*'ERR & Sensitivity Analysis'!$G$11 -> 35323881.36 | G19: ='Data&assumptions'!F99*'ERR & Sensitivity Analysis'!$G$11 -> 52234798.08
B20: Farmer costs | C20: ='ERR & Sensitivity Analysis'!$G$11*(('BudExp DHMax<55%'!B229+'BudExp DHMax<55%'!B230-'BudExp DHMax<55%'!B235)*'Cost-Benefit Summary'!$C9+('BudExp DHMax>55%'!B250+'BudExp DHMax>55%'!B251-'BudExp DHMax>55%'!B256)*'Cost-Benefit Summary'!$C10)/8.2 -> 280011.2637 | D20: ='ERR & Sensitivity Analysis'!$G$11*(('BudExp DHMax<55%'!C229+'BudExp DHMax<55%'!C230-'BudExp DHMax<55%'!C235)*'Cost-Benefit Summary'!$C9+('BudExp DHMax>55%'!C250+'BudExp DHMax>55%'!C251-'BudExp DHMax>55%'!C256)*'Cost-Benefit Summary'!$C10)/8.2 -> 530370.1537 | E20: ='ERR & Sensitivity Analysis'!$G$11*(('BudExp DHMax<55%'!D229+'BudExp DHMax<55%'!D230-'BudExp DHMax<55%'!D235)*'Cost-Benefit Summary'!$C9+('BudExp DHMax>55%'!D250+'BudExp DHMax>55%'!D251-'BudExp DHMax>55%'!D256)*'Cost-Benefit Summary'!$C10)/8.2 -> 4663808.236 | F20: ='ERR & Sensitivity Analysis'!$G$11*(('BudExp DHMax<55%'!E229+'BudExp DHMax<55%'!E230-'BudExp DHMax<55%'!E235)*'Cost-Benefit Summary'!$C9+('BudExp DHMax>55%'!E250+'BudExp DHMax>55%'!E251-'BudExp DHMax>55%'!E256)*'Cost-Benefit Summary'!$C10)/8.2 -> 5045653.944 | G20: ='ERR & Sensitivity Analysis'!$G$11*(('BudExp DHMax<55%'!F229+'BudExp DHMax<55%'!F230-'BudExp DHMax<55%'!F235)*'Cost-Benefit Summary'!$C9+('BudExp DHMax>55%'!F250+'BudExp DHMax>55%'!F251-'BudExp DHMax>55%'!F256)*'Cost-Benefit Summary'!$C10)/8.2 -> 5421326.179 | H20: ='ERR & Sensitivity Analysis'!$G$11*(('BudExp DHMax<55%'!G229+'BudExp DHMax<55%'!G230-'BudExp DHMax<55%'!G235)*'Cost-Benefit Summary'!$C9+('BudExp DHMax>55%'!G250+'BudExp DHMax>55%'!G251-'BudExp DHMax>55%'!G256)*'Cost-Benefit Summary'!$C10)/8.2 -> 6352571.171 | I20: ='ERR & Sensitivity Analysis'!$G$11*(('BudExp DHMax<55%'!H229+'BudExp DHMax<55%'!H230-'BudExp DHMax<55%'!H235)*'Cost-Benefit Summary'!$C9+('BudExp DHMax>55%'!H250+'BudExp DHMax>55%'!H251-'BudExp DHMax>55%'!H256)*'Cost-Benefit Summary'!$C10)/8.2 -> 6667537.149 | J20: ='ERR & Sensitivity Analysis'!$G$11*(('BudExp DHMax<55%'!I229+'BudExp DHMax<55%'!I230-'BudExp DHMax<55%'!I235)*'Cost-Benefit Summary'!$C9+('BudExp DHMax>55%'!I250+'BudExp DHMax>55%'!I251-'BudExp DHMax>55%'!I256)*'Cost-Benefit Summary'!$C10)/8.2 -> 7027796.012 | K20: ='ERR & Sensitivity Analysis'!$G$11*(('BudExp DHMax<55%'!J229+'BudExp DHMax<55%'!J230-'BudExp DHMax<55%'!J235)*'Cost-Benefit Summary'!$C9+('BudExp DHMax>55%'!J250+'BudExp DHMax>55%'!J251-'BudExp DHMax>55%'!J256)*'Cost-Benefit Summary'!$C10)/8.2 -> 7266315.235 | L20: ='ERR & Sensitivity Analysis'!$G$11*(('BudExp DHMax<55%'!K229+'BudExp DHMax<55%'!K230-'BudExp DHMax<55%'!K235)*'Cost-Benefit Summary'!$C9+('BudExp DHMax>55%'!K250+'BudExp DHMax>55%'!K251-'BudExp DHMax>55%'!K256)*'Cost-Benefit Summary'!$C10)/8.2 -> 6792175.898 | M20: ='ERR & Sensitivity Analysis'!$G$11*(('BudExp DHMax<55%'!L229+'BudExp DHMax<55%'!L230-'BudExp DHMax<55%'!L235)*'Cost-Benefit Summary'!$C9+('BudExp DHMax>55%'!L250+'BudExp DHMax>55%'!L251-'BudExp DHMax>55%'!L256)*'Cost-Benefit Summary'!$C10)/8.2 -> 6792175.898 | N20: ='ERR & Sensitivity Analysis'!$G$11*(('BudExp DHMax<55%'!M229+'BudExp DHMax<55%'!M230-'BudExp DHMax<55%'!M235)*'Cost-Benefit Summary'!$C9+('BudExp DHMax>55%'!M250+'BudExp DHMax>55%'!M251-'BudExp DHMax>55%'!M256)*'Cost-Benefit Summary'!$C10)/8.2 -> 6792175.898 | O20: ='ERR & Sensitivity Analysis'!$G$11*(('BudExp DHMax<55%'!N229+'BudExp DHMax<55%'!N230-'BudExp DHMax<55%'!N235)*'Cost-Benefit Summary'!$C9+('BudExp DHMax>55%'!N250+'BudExp DHMax>55%'!N251-'BudExp DHMax>55%'!N256)*'Cost-Benefit Summary'!$C10)/8.2 -> 6792175.898 | P20: ='ERR & Sensitivity Analysis'!$G$11*(('BudExp DHMax<55%'!O229+'BudExp DHMax<55%'!O230-'BudExp DHMax<55%'!O235)*'Cost-Benefit Summary'!$C9+('BudExp DHMax>55%'!O250+'BudExp DHMax>55%'!O251-'BudExp DHMax>55%'!O256)*'Cost-Benefit Summary'!$C10)/8.2 -> 6792175.898 | Q20: ='ERR & Sensitivity Analysis'!$G$11*(('BudExp DHMax<55%'!P229+'BudExp DHMax<55%'!P230-'BudExp DHMax<55%'!P235)*'Cost-Benefit Summary'!$C9+('BudExp DHMax>55%'!P250+'BudExp DHMax>55%'!P251-'BudExp DHMax>55%'!P256)*'Cost-Benefit Summary'!$C10)/8.2 -> 6792175.898 | R20: ='ERR & Sensitivity Analysis'!$G$11*(('BudExp DHMax<55%'!Q229+'BudExp DHMax<55%'!Q230-'BudExp DHMax<55%'!Q235)*'Cost-Benefit Summary'!$C9+('BudExp DHMax>55%'!Q250+'BudExp DHMax>55%'!Q251-'BudExp DHMax>55%'!Q256)*'Cost-Benefit Summary'!$C10)/8.2 -> 6792175.898 | S20: ='ERR & Sensitivity Analysis'!$G$11*(('BudExp DHMax<55%'!R229+'BudExp DHMax<55%'!R230-'BudExp DHMax<55%'!R235)*'Cost-Benefit Summary'!$C9+('BudExp DHMax>55%'!R250+'BudExp DHMax>55%'!R251-'BudExp DHMax>55%'!R256)*'Cost-Benefit Summary'!$C10)/8.2 -> 6792175.898 | T20: ='ERR & Sensitivity Analysis'!$G$11*(('BudExp DHMax<55%'!S229+'BudExp DHMax<55%'!S230-'BudExp DHMax<55%'!S235)*'Cost-Benefit Summary'!$C9+('BudExp DHMax>55%'!S250+'BudExp DHMax>55%'!S251-'BudExp DHMax>55%'!S256)*'Cost-Benefit Summary'!$C10)/8.2 -> 6792175.898 | U20: ='ERR & Sensitivity Analysis'!$G$11*(('BudExp DHMax<55%'!T229+'BudExp DHMax<55%'!T230-'BudExp DHMax<55%'!T235)*'Cost-Benefit Summary'!$C9+('BudExp DHMax>55%'!T250+'BudExp DHMax>55%'!T251-'BudExp DHMax>55%'!T256)*'Cost-Benefit Summary'!$C10)/8.2 -> 6792175.898 | V20: ='ERR & Sensitivity Analysis'!$G$11*(('BudExp DHMax<55%'!U229+'BudExp DHMax<55%'!U230-'BudExp DHMax<55%'!U235)*'Cost-Benefit Summary'!$C9+('BudExp DHMax>55%'!U250+'BudExp DHMax>55%'!U251-'BudExp DHMax>55%'!U256)*'Cost-Benefit Summary'!$C10)/8.2 -> 6792175.898 | W20: ='ERR & Sensitivity Analysis'!$G$11*(('BudExp DHMax<55%'!V229+'BudExp DHMax<55%'!V230-'BudExp DHMax<55%'!V235)*'Cost-Benefit Summary'!$C9+('BudExp DHMax>55%'!V250+'BudExp DHMax>55%'!V251-'BudExp DHMax>55%'!V256)*'Cost-Benefit Summary'!$C10)/8.2 -> 6792175.898 | X20: ='ERR & Sensitivity Analysis'!$G$11*(('BudExp DHMax<55%'!W229+'BudExp DHMax<55%'!W230-'BudExp DHMax<55%'!W235)*'Cost-Benefit Summary'!$C9+('BudExp DHMax>55%'!W250+'BudExp DHMax>55%'!W251-'BudExp DHMax>55%'!W256)*'Cost-Benefit Summary'!$C10)/8.2 -> 6792175.898 | Y20: ='ERR & Sensitivity Analysis'!$G$11*(('BudExp DHMax<55%'!X229+'BudExp DHMax<55%'!X230-'BudExp DHMax<55%'!X235)*'Cost-Benefit Summary'!$C9+('BudExp DHMax>55%'!X250+'BudExp DHMax>55%'!X251-'BudExp DHMax>55%'!X256)*'Cost-Benefit Summary'!$C10)/8.2 -> 6792175.898 | Z20: ='ERR & Sensitivity Analysis'!$G$11*(('BudExp DHMax<55%'!Y229+'BudExp DHMax<55%'!Y230-'BudExp DHMax<55%'!Y235)*'Cost-Benefit Summary'!$C9+('BudExp DHMax>55%'!Y250+'BudExp DHMax>55%'!Y251-'BudExp DHMax>55%'!Y256)*'Cost-Benefit Summary'!$C10)/8.2 -> 6792175.898 | AA20: ='ERR & Sensitivity Analysis'!$G$11*(('BudExp DHMax<55%'!Z229+'BudExp DHMax<55%'!Z230-'BudExp DHMax<55%'!Z235)*'Cost-Benefit Summary'!$C9+('BudExp DHMax>55%'!Z250+'BudExp DHMax>55%'!Z251-'BudExp DHMax>55%'!Z256)*'Cost-Benefit Summary'!$C10)/8.2 -> 6792175.898 | AB20: ='ERR & Sensitivity Analysis'!$G$11*(('BudExp DHMax<55%'!AA229+'BudExp DHMax<55%'!AA230-'BudExp DHMax<55%'!AA235)*'Cost-Benefit Summary'!$C9+('BudExp DHMax>55%'!AA250+'BudExp DHMax>55%'!AA251-'BudExp DHMax>55%'!AA256)*'Cost-Benefit Summary'!$C10)/8.2 -> 6792175.898 | AC20: ='ERR & Sensitivity Analysis'!$G$11*(('BudExp DHMax<55%'!AB229+'BudExp DHMax<55%'!AB230-'BudExp DHMax<55%'!AB235)*'Cost-Benefit Summary'!$C9+('BudExp DHMax>55%'!AB250+'BudExp DHMax>55%'!AB251-'BudExp DHMax>55%'!AB256)*'Cost-Benefit Summary'!$C10)/8.2 -> 6792175.898 | AD20: ='ERR & Sensitivity Analysis'!$G$11*(('BudExp DHMax<55%'!AC229+'BudExp DHMax<55%'!AC230-'BudExp DHMax<55%'!AC235)*'Cost-Benefit Summary'!$C9+('BudExp DHMax>55%'!AC250+'BudExp DHMax>55%'!AC251-'BudExp DHMax>55%'!AC256)*'Cost-Benefit Summary'!$C10)/8.2 -> 6792175.898 | AE20: ='ERR & Sensitivity Analysis'!$G$11*(('BudExp DHMax<55%'!AD229+'BudExp DHMax<55%'!AD230-'BudExp DHMax<55%'!AD235)*'Cost-Benefit Summary'!$C9+('BudExp DHMax>55%'!AD250+'BudExp DHMax>55%'!AD251-'BudExp DHMax>55%'!AD256)*'Cost-Benefit Summary'!$C10)/8.2 -> 6792175.898 | AF20: ='ERR & Sensitivity Analysis'!$G$11*(('BudExp DHMax<55%'!AE229+'BudExp DHMax<55%'!AE230-'BudExp DHMax<55%'!AE235)*'Cost-Benefit Summary'!$C9+('BudExp DHMax>55%'!AE250+'BudExp DHMax>55%'!AE251-'BudExp DHMax>55%'!AE256)*'Cost-Benefit Summary'!$C10)/8.2 -> 6792175.898
B22: Total Benefits ($s) | C22: ='ERR & Sensitivity Analysis'!$G12*($C9*('BudExp DHMax<55%'!B226-'BudExp DHMax<55%'!B234)+'Cost-Benefit Summary'!$C10*('BudExp DHMax>55%'!B247-'BudExp DHMax>55%'!B255))/8.2 -> 0 | D22: ='ERR & Sensitivity Analysis'!$G12*($C9*('BudExp DHMax<55%'!C226-'BudExp DHMax<55%'!C234)+'Cost-Benefit Summary'!$C10*('BudExp DHMax>55%'!C247-'BudExp DHMax>55%'!C255))/8.2 -> -486903.1609 | E22: ='ERR & Sensitivity Analysis'!$G12*($C9*('BudExp DHMax<55%'!D226-'BudExp DHMax<55%'!D234)+'Cost-Benefit Summary'!$C10*('BudExp DHMax>55%'!D247-'BudExp DHMax>55%'!D255))/8.2 -> -121860.0969 | F22: ='ERR & Sensitivity Analysis'!$G12*($C9*('BudExp DHMax<55%'!E226-'BudExp DHMax<55%'!E234)+'Cost-Benefit Summary'!$C10*('BudExp DHMax>55%'!E247-'BudExp DHMax>55%'!E255))/8.2 -> 1819472.975 | G22: ='ERR & Sensitivity Analysis'!$G12*($C9*('BudExp DHMax<55%'!F226-'BudExp DHMax<55%'!F234)+'Cost-Benefit Summary'!$C10*('BudExp DHMax>55%'!F247-'BudExp DHMax>55%'!F255))/8.2 -> 8044759.703 | H22: ='ERR & Sensitivity Analysis'!$G12*($C9*('BudExp DHMax<55%'!G226-'BudExp DHMax<55%'!G234)+'Cost-Benefit Summary'!$C10*('BudExp DHMax>55%'!G247-'BudExp DHMax>55%'!G255))/8.2 -> 15837143.45 | I22: ='ERR & Sensitivity Analysis'!$G12*($C9*('BudExp DHMax<55%'!H226-'BudExp DHMax<55%'!H234)+'Cost-Benefit Summary'!$C10*('BudExp DHMax>55%'!H247-'BudExp DHMax>55%'!H255))/8.2 -> 19839576.39 | J22: ='ERR & Sensitivity Analysis'!$G12*($C9*('BudExp DHMax<55%'!I226-'BudExp DHMax<55%'!I234)+'Cost-Benefit Summary'!$C10*('BudExp DHMax>55%'!I247-'BudExp DHMax>55%'!I255))/8.2 -> 21189906.63 | K22: ='ERR & Sensitivity Analysis'!$G12*($C9*('BudExp DHMax<55%'!J226-'BudExp DHMax<55%'!J234)+'Cost-Benefit Summary'!$C10*('BudExp DHMax>55%'!J247-'BudExp DHMax>55%'!J255))/8.2 -> 22344839.47 | L22: ='ERR & Sensitivity Analysis'!$G12*($C9*('BudExp DHMax<55%'!K226-'BudExp DHMax<55%'!K234)+'Cost-Benefit Summary'!$C10*('BudExp DHMax>55%'!K247-'BudExp DHMax>55%'!K255))/8.2 -> 23118878.76 | M22: ='ERR & Sensitivity Analysis'!$G12*($C9*('BudExp DHMax<55%'!L226-'BudExp DHMax<55%'!L234)+'Cost-Benefit Summary'!$C10*('BudExp DHMax>55%'!L247-'BudExp DHMax>55%'!L255))/8.2 -> 29965377.75 | N22: ='ERR & Sensitivity Analysis'!$G12*($C9*('BudExp DHMax<55%'!M226-'BudExp DHMax<55%'!M234)+'Cost-Benefit Summary'!$C10*('BudExp DHMax>55%'!M247-'BudExp DHMax>55%'!M255))/8.2 -> 29965377.75 | O22: ='ERR & Sensitivity Analysis'!$G12*($C9*('BudExp DHMax<55%'!N226-'BudExp DHMax<55%'!N234)+'Cost-Benefit Summary'!$C10*('BudExp DHMax>55%'!N247-'BudExp DHMax>55%'!N255))/8.2 -> 29965377.75 | P22: ='ERR & Sensitivity Analysis'!$G12*($C9*('BudExp DHMax<55%'!O226-'BudExp DHMax<55%'!O234)+'Cost-Benefit Summary'!$C10*('BudExp DHMax>55%'!O247-'BudExp DHMax>55%'!O255))/8.2 -> 29965377.75 | Q22: ='ERR & Sensitivity Analysis'!$G12*($C9*('BudExp DHMax<55%'!P226-'BudExp DHMax<55%'!P234)+'Cost-Benefit Summary'!$C10*('BudExp DHMax>55%'!P247-'BudExp DHMax>55%'!P255))/8.2 -> 29965377.75 | R22: ='ERR & Sensitivity Analysis'!$G12*($C9*('BudExp DHMax<55%'!Q226-'BudExp DHMax<55%'!Q234)+'Cost-Benefit Summary'!$C10*('BudExp DHMax>55%'!Q247-'BudExp DHMax>55%'!Q255))/8.2 -> 29965377.75 | S22: ='ERR & Sensitivity Analysis'!$G12*($C9*('BudExp DHMax<55%'!R226-'BudExp DHMax<55%'!R234)+'Cost-Benefit Summary'!$C10*('BudExp DHMax>55%'!R247-'BudExp DHMax>55%'!R255))/8.2 -> 29965377.75 | T22: ='ERR & Sensitivity Analysis'!$G12*($C9*('BudExp DHMax<55%'!S226-'BudExp DHMax<55%'!S234)+'Cost-Benefit Summary'!$C10*('BudExp DHMax>55%'!S247-'BudExp DHMax>55%'!S255))/8.2 -> 29965377.75 | U22: ='ERR & Sensitivity Analysis'!$G12*($C9*('BudExp DHMax<55%'!T226-'BudExp DHMax<55%'!T234)+'Cost-Benefit Summary'!$C10*('BudExp DHMax>55%'!T247-'BudExp DHMax>55%'!T255))/8.2 -> 29965377.75 | V22: ='ERR & Sensitivity Analysis'!$G12*($C9*('BudExp DHMax<55%'!U226-'BudExp DHMax<55%'!U234)+'Cost-Benefit Summary'!$C10*('BudExp DHMax>55%'!U247-'BudExp DHMax>55%'!U255))/8.2 -> 29965377.75 | W22: ='ERR & Sensitivity Analysis'!$G12*($C9*('BudExp DHMax<55%'!V226-'BudExp DHMax<55%'!V234)+'Cost-Benefit Summary'!$C10*('BudExp DHMax>55%'!V247-'BudExp DHMax>55%'!V255))/8.2 -> 29965377.75 | X22: ='ERR & Sensitivity Analysis'!$G12*($C9*('BudExp DHMax<55%'!W226-'BudExp DHMax<55%'!W234)+'Cost-Benefit Summary'!$C10*('BudExp DHMax>55%'!W247-'BudExp DHMax>55%'!W255))/8.2 -> 29965377.75 | Y22: ='ERR & Sensitivity Analysis'!$G12*($C9*('BudExp DHMax<55%'!X226-'BudExp DHMax<55%'!X234)+'Cost-Benefit Summary'!$C10*('BudExp DHMax>55%'!X247-'BudExp DHMax>55%'!X255))/8.2 -> 29965377.75 | Z22: ='ERR & Sensitivity Analysis'!$G12*($C9*('BudExp DHMax<55%'!Y226-'BudExp DHMax<55%'!Y234)+'Cost-Benefit Summary'!$C10*('BudExp DHMax>55%'!Y247-'BudExp DHMax>55%'!Y255))/8.2 -> 29965377.75 | AA22: ='ERR & Sensitivity Analysis'!$G12*($C9*('BudExp DHMax<55%'!Z226-'BudExp DHMax<55%'!Z234)+'Cost-Benefit Summary'!$C10*('BudExp DHMax>55%'!Z247-'BudExp DHMax>55%'!Z255))/8.2 -> 29965377.75 | AB22: ='ERR & Sensitivity Analysis'!$G12*($C9*('BudExp DHMax<55%'!AA226-'BudExp DHMax<55%'!AA234)+'Cost-Benefit Summary'!$C10*('BudExp DHMax>55%'!AA247-'BudExp DHMax>55%'!AA255))/8.2 -> 29965377.75 | AC22: ='ERR & Sensitivity Analysis'!$G12*($C9*('BudExp DHMax<55%'!AB226-'BudExp DHMax<55%'!AB234)+'Cost-Benefit Summary'!$C10*('BudExp DHMax>55%'!AB247-'BudExp DHMax>55%'!AB255))/8.2 -> 29965377.75 | AD22: ='ERR & Sensitivity Analysis'!$G12*($C9*('BudExp DHMax<55%'!AC226-'BudExp DHMax<55%'!AC234)+'Cost-Benefit Summary'!$C10*('BudExp DHMax>55%'!AC247-'BudExp DHMax>55%'!AC255))/8.2 -> 29965377.75 | AE22: ='ERR & Sensitivity Analysis'!$G12*($C9*('BudExp DHMax<55%'!AD226-'BudExp DHMax<55%'!AD234)+'Cost-Benefit Summary'!$C10*('BudExp DHMax>55%'!AD247-'BudExp DHMax>55%'!AD255))/8.2 -> 29965377.75 | AF22: ='ERR & Sensitivity Analysis'!$G12*($C9*('BudExp DHMax<55%'!AE226-'BudExp DHMax<55%'!AE234)+'Cost-Benefit Summary'!$C10*('BudExp DHMax>55%'!AE247-'BudExp DHMax>55%'!AE255))/8.2 -> 29965377.75
B24: Net Benefits | C24: =C22-C19-C20 -> -1250755.132 | D24: =D22-D19-D20 -> -10586483.8 | E24: -23171468.94 | F24: -38550062.33 | G24: -49611364.56 | H24: 9484572.283 | I24: 13172039.24 | J24: 14162110.62 | K24: 15078524.24 | L24: 16326702.86 | M24: 23173201.85 | N24: 23173201.85 | O24: 23173201.85 | P24: 23173201.85 | Q24: 23173201.85 | R24: 23173201.85 | S24: 23173201.85 | T24: 23173201.85 | U24: 23173201.85 | V24: 23173201.85 | W24: 23173201.85 | X24: 23173201.85 | Y24: 23173201.85 | Z24: 23173201.85 | AA24: 23173201.85 | AB24: 23173201.85 | AC24: 23173201.85 | AD24: 23173201.85 | AE24: 23173201.85 | AF24: 23173201.85
B26: ERR | C26: =IRR(C24:V24) -> 0.1028941499

Sheet Iden_classe
A3: Région | B3: Province | C3: Périmètre | D3: Type | E3: SAU MCA | F3: SAU diagnostic | G3: Number farms | H3: sup oliv | I3: sup palm | J3: AUEA existante | K3: AUEA active | L3: Tranche | M3: Cost project (1000 dh) | N3: CM/Ha | O3: DH Max en Years Avg | P3: Classe | Q3: Zone agro-écologique
A4: Meknes-Tafilalet | B4: Khénifra | C4: Chbouka | D4: PMH | E4: 120 | F4: 160 | G4: 80 | H4: 56 | J4: Adkhsal | K4: crée en juin | L4: 3 | M4: 2548 | N4: 15925 | O4: -10.34 | P4: 1 | Q4: avgne Montagne
A5: Tadla-Azilal | B5: Azilal | C5: Tabounout | D5: PMH | E5: 80 | F5: 91 | G5: 50 | H5: 73 | J5: AUEA | K5: Derniere AG 2006 | L5: 3 | M5: 2420 | N5: 26593.40659 | O5: -8.27 | P5: 1 | Q5: Haute Montagne
A6: Meknes-Tafilalet | B6: Khénifra | C6: Assaka | D6: PMH | E6: 50 | F6: 182 | G6: 140 | H6: 137 | J6: AUEA | K6: dérniere AG 2001 | L6: 2 | M6: 3613 | N6: 19851.64835 | O6: -0.26 | P6: 1 | Q6: avgne Montagne
A7: Tadla-Azilal | B7: Azilal | C7: Tanaghlemt | D7: PMH | E7: 130 | F7: 77 | G7: 76 | H7: 62 | J7: AUEA | K7: en création | L7: 3 | M7: 2585 | N7: 33571.42857 | O7: -0.25 | P7: 1 | Q7: Haute Montagne
A8: Tadla-Azilal | B8: Azilal | C8: Ait Ouishane | D8: PMH | E8: 60 | F8: 134 | G8: 185 | H8: 86 | J8: AUEA | K8: dérniere AG 2006 | L8: 3 | M8: 1635 | N8: 12201.49254 | O8: -0.12 | P8: 1 | Q8: Haute Montagne
A9: Meknes-Tafilalet | B9: ERRACHIDIA | C9: RICH | D9: PMH | E9: 1520 | F9: 1739 | G9: 1085 | H9: 192 | I9: 0 | J9: AUEA+JEMAA | K9: BON | L9: 2 | M9: 29988 | N9: 17244.39333 | O9: 0 | P9: 1 | Q9: Piémont
A10: Tadla-Azilal | B10: Azilal | C10: Askar | D10: PMH | E10: 50 | F10: 184 | G10: 120 | H10: 120 | J10: AUEA | K10: En cours constitution | L10: 3 | M10: 2226 | N10: 12097.82609 | O10: 0.03 | P10: 1 | Q10: Haute Montagne
A11: Taza-AlHoceima-Taounate | B11: Taounate | C11: SKOUR | D11: PMH | E11: 80 | F11: 54 | G11: 80 | H11: 38 | J11: Jemaa | K11: AUEA En cours constitution | L11: 3 | M11: 2093 | N11: 38759.25926 | O11: 0.11 | P11: 1 | Q11: avgne Montagne
A12: Tadla-Azilal | B12: Azilal | C12: Ait Ouaazik | D12: PMH | E12: 80 | F12: 118 | G12: 144 | H12: 94 | J12: AUEA | K12: dérniere AG 2006 | L12: 3 | M12: 1426 | N12: 12084.74576 | O12: 0.15 | P12: 1 | Q12: Haute Montagne
A13: Oriental | B13: FIGUIG | C13: TALSINT | D13: PMH | E13: 520 | F13: 600 | G13: 542 | H13: 270 | I13: 0 | J13: JEMAA | K13: BON | L13: 2 | M13: 13520 | N13: 22533.33333 | O13: 0.25 | P13: 1 | Q13: Piémont
A14: Taza-AlHoceima-Taounate | B14: TAZA | C14: SUIHLA | D14: PMH | E14: 150 | F14: 149 | G14: 200 | H14: 104 | J14: AUEA | K14: En cours reconstitition | L14: 3 | M14: 3710 | N14: 24899.32886 | O14: 0.25 | P14: 1 | Q14: Piémont
A15: Marrakech-Tensift-Al Haouz | B15: ESSAOUIRA | C15: TIYOUT | D15: PMH | E15: 80 | F15: 100 | G15: 110 | H15: 100 | J15: AUEA | K15: DISTRIBUTION EAU ET AMELIORATION QUALITE Oil OLIVE | L15: 3 | M15: 1830 | N15: 18300 | O15: 0.33 | P15: 1 | Q15: Piémont
A16: Taza-AlHoceima-Taounate | B16: Taounate | C16: AIN ABDOUN | D16: PMH | E16: 120 | F16: 40 | G16: 60 | H16: 32 | J16: Jemaa | K16: AUEA En cours constitution | L16: 3 | M16: 1071 | N16: 26775 | O16: 0.33 | P16: 1 | Q16: avgne Montagne
A17: Oriental | B17: Berkan | C17: AGHBAL | D17: PMH | E17: 200 | F17: 140 | G17: 200 | H17: 33 | J17: AUEA | K17: Crée en Février 2009 | L17: 2 | M17: 2160 | N17: 15428.57143 | O17: 0.34 | P17: 1 | Q17: Piémont
A18: Oriental | B18: Taourirte | C18: LAAYAT | D18: PMH | E18: 120 | F18: 80 | G18: 78 | H18: 56 | J18: 2 AUEA | K18: FONCTIONNELLES | L18: 3 | M18: 1950 | N18: 24375 | O18: 0.34 | P18: 1 | Q18: Piémont
A19: Souss Massa Draa | B19: Tata | C19: Tizgui | D19: PMH | E19: 130 | F19: 145 | G19: 297 | H19: 100 | I19: 30 | J19: Jmaa | K19: 0 | L19: 3 | M19: 3277 | N19: 22600 | O19: 0.35 | P19: 1 | Q19: Piémont
A20: Taza-AlHoceima-Taounate | B20: Taza | C20: AIN FENDEL | D20: PMH | E20: 80 | F20: 80 | G20: 135 | H20: 60 | J20: AUEA | K20: FONCTIONNELLE | L20: 2 | M20: 1386 | N20: 17325 | O20: 0.35 | P20: 1 | Q20: Piémont
A21: Oriental | B21: Taourirte | C21: CHORFAT BOURJLINATE | D21: PMH | E21: 120 | F21: 50 | G21: 100 | H21: 33 | J21: AUEA | K21: Crée en 2009 | L21: 3 | M21: 2053 | N21: 41060 | O21: 0.36 | P21: 1 | Q21: Piémont
A22: Tadla-Azilal | B22: Azilal | C22: Ait Chribou | D22: PMH | E22: 110 | F22: 317 | G22: 440 | H22: 254 | J22: 2 AUEA | K22: en fonctionnement | L22: 3 | M22: 3265 | N22: 10299.68454 | O22: 0.36 | P22: 1 | Q22: Haute Montagne
A23: Taza-AlHoceima-Taounate | B23: Taza | C23: LAMLAAB | D23: PMH | E23: 100 | F23: 46 | G23: 37 | H23: 40 | J23: AUEA LAMLAAB | K23: FONCTIONNELLE | L23: 3 | M23: 1524 | N23: 33130.43478 | O23: 0.37 | P23: 1 | Q23: Piémont
A24: Taza-AlHoceima-Taounate | B24: Taounate | C24: TARIA | D24: PMH | E24: 100 | F24: 40 | G24: 115 | H24: 36 | J24: Jemaa | K24: AUEA En cours constitution | L24: 3 | M24: 844 | N24: 21100 | O24: 0.38 | P24: 1 | Q24: avgne Montagne
A25: Taza-AlHoceima-Taounate | B25: Taza | C25: TASTIT | D25: PMH | E25: 80 | F25: 70 | G25: 120 | H25: 36 | J25: AUEA | K25: Dynamique | L25: 3 | M25: 1381 | N25: 19728.57143 | O25: 0.38 | P25: 1 | Q25: Piémont
A26: Taza-AlHoceima-Taounate | B26: Taza | C26: OULED ALI BEN AISSA | D26: PMH | E26: 120 | F26: 100 | G26: 225 | H26: 50 | J26: AUEA | K26: L'AUEA ne représente pas la totalité du périmètre | L26: 3 | M26: 3633 | N26: 36330 | O26: 0.39 | P26: 1 | Q26: Piémont
A27: Meknes-Tafilalet | B27: ERRACHIDIA | C27: TADIGHOUSTE | D27: PMH | E27: 600 | F27: 390 | G27: 765 | H27: 161 | I27: 163 | J27: AUEA+JEMAA | K27: BON | L27: 2 | M27: 11112 | N27: 28492.30769 | O27: 0.4 | P27: 1 | Q27: Piémont
A28: Tadla-Azilal | B28: Azilal | C28: Ait Flalad | D28: PMH | E28: 75 | F28: 167 | G28: 358 | H28: 117 | J28: AUEA | K28: dérniere AG 2006 | L28: 3 | M28: 1774 | N28: 10622.75449 | O28: 0.4 | P28: 1 | Q28: Haute Montagne
A29: Oriental | B29: Taourirte | C29: MESTIGMER & JORF SALSAL | D29: PMH | E29: 320 | F29: 287 | G29: 168 | H29: 205 | J29: 2 AUEA | K29: FONCTIONNELLES | L29: 3 | M29: 4926 | N29: 17163.76307 | O29: 0.41 | P29: 1 | Q29: Piémont
A30: Meknes-Tafilalet | B30: Khénifra | C30: Tiklit | D30: PMH | E30: 120 | F30: 350 | G30: 120 | H30: 228 | J30: AUEA | K30: en reconstitution | L30: 3 | M30: 1969 | N30: 5625.714286 | O30: 0.46 | P30: 1 | Q30: avgne Montagne
A31: Tadla-Azilal | B31: Beni Mellal | C31: Tanogha | D31: PMH | E31: 350 | F31: 300 | G31: 234 | H31: 180 | J31: TANOGHA | K31: Derniere AG 2006 | L31: 2 | M31: 2054 | N31: 6846.666667 | O31: 0.47 | P31: 1 | Q31: Dir
A32: Meknes-Tafilalet | B32: Khénifra | C32: Ouaoumana | D32: PMH | E32: 730 | F32: 800 | G32: 1354 | H32: 640 | J32: Ouaoumana | K32: en fonctionnement | L32: 2 | M32: 12736 | N32: 15920 | O32: 0.48 | P32: 1 | Q32: avgne Montagne
A33: Fes-Boulemane | B33: Sefrou | C33: LOUATA | D33: PMH | E33: 1070 | F33: 690 | G33: 386 | H33: 400 | J33: AUEA | K33: FONCTIONNELLE | L33: 2 | M33: 5820 | N33: 8434.782609 | O33: 0.49 | P33: 1 | Q33: avgne Montagne
A34: Meknes-Tafilalet | B34: ERRACHIDIA | C34: GUERS TIALLALINE | D34: PMH | E34: 820 | F34: 1288 | G34: 708 | H34: 979 | I34: 0 | J34: AUEA+JEMAA | K34: BON | L34: 2 | M34: 25138 | N34: 19517.08075 | O34: 0.5 | P34: 1 | Q34: Piémont
A35: Oriental | B35: Taourirte | C35: OULED SLIMAN & OULED AL MEHDI | D35: PMH | E35: 500 | F35: 500 | G35: 248 | H35: 400 | J35: AUEA "kharouba dar Sliman" | K35: FONCTIONNELLE | L35: 3 | M35: 7947 | N35: 15894 | O35: 0.54 | P35: 1 | Q35: Piémont
A36: Fes-Boulemane | B36: Sefrou | C36: AZZABA | D36: PMH | E36: 300 | F36: 880 | G36: 230 | H36: 651 | J36: AUEA | K36: FONCTIONNELLE | L36: 2 | M36: 8206 | N36: 9325 | O36: 0.55 | P36: 2 | Q36: avgne Montagne
A37: Oriental | B37: Oujda | C37: SIDI MOUSSA | D37: PMH | E37: 375 | F37: 375 | G37: 93 | H37: 150 | J37: AUEA | K37: EN COURS RENOUVELLEMENT | L37: 2 | M37: 4578 | N37: 12208 | O37: 0.55 | P37: 2 | Q37: Piémont
A38: Oriental | B38: Oujda | C38: ZEKKARA | D38: PMH | E38: 135 | F38: 250 | G38: 107 | H38: 160 | J38: AUEA | L38: 2 | M38: 3624 | N38: 14496 | O38: 0.57 | P38: 2 | Q38: Piémont
A39: Oriental | B39: Taourirte | C39: TALOUATE | D39: PMH | E39: 200 | F39: 90 | G39: 69 | H39: 60 | J39: AUEA | K39: FONCTIONNELLE | L39: 3 | M39: 2264 | N39: 25155.55556 | O39: 0.57 | P39: 2 | Q39: Piémont
A40: Oriental | B40: Oujda | C40: BENI HASSAN | D40: PMH | E40: 170 | F40: 260 | G40: 90 | H40: 84 | J40: AUEA | L40: 2 | M40: 3541 | N40: 13619.23077 | O40: 0.59 | P40: 2 | Q40: Piémont
A41: Meknes-Tafilalet | B41: Khénifra | C41: Tagma | D41: PMH | E41: 200 | F41: 150 | G41: 20 | H41: 45 | J41: AUEA Tagma | K41: crée en Avril 2009 | L41: 2 | M41: 3908 | N41: 26053.33333 | O41: 0.6 | P41: 2 | Q41: Haute Montagne
A42: Meknes-Tafilalet | B42: Khénifra | C42: Tanefnit | D42: PMH | E42: 400 | F42: 288 | G42: 120 | H42: 203 | J42: AUEA | K42: en reconstitution | L42: 3 | M42: 4472 | N42: 15527.77778 | O42: 0.63 | P42: 2 | Q42: Haute Montagne
A43: Tadla-Azilal | B43: Beni Mellal | C43: Zouiet cheikh | D43: PMH | E43: 200 | F43: 300 | G43: 300 | H43: 225 | J43: Nasser | K43: Derniere AG 2006 | L43: 2 | M43: 2247 | N43: 7490 | O43: 0.63 | P43: 2 | Q43: Dir
A44: Meknes-Tafilalet | B44: Khénifra | C44: Maamar Beni Khlil | D44: PMH | E44: 300 | F44: 580 | G44: 516 | H44: 331 | J44: AUEA Alkhair ait Ouakka | K44: crée en mars 2009 | L44: 2 | M44: 5162 | N44: 8900 | O44: 0.64 | P44: 2 | Q44: Haute Montagne
A45: Souss Massa Draa | B45: Tata | C45: Timkkit | D45: PMH | E45: 110 | F45: 132 | G45: 110 | H45: 132 | I45: 0 | J45: AUEA | K45: Dominée par la Jmaà | L45: 3 | M45: 2423 | N45: 18356.06061 | O45: 0.7 | P45: 2 | Q45: Piémont
A46: Marrakech-Tensift-Al Haouz | B46: El Haouz | C46: BEN SELLOU | D46: PMH | E46: 1700 | F46: 1550 | G46: 212 | H46: 380 | J46: AUEA | K46: En fonctionnement | L46: 2 | M46: 11363 | N46: 7330.967742 | O46: 0.71 | P46: 2 | Q46: Piémont
A47: Tadla-Azilal | B47: Azilal | C47: Haddada | D47: PMH | E47: 70 | F47: 60 | G47: 46 | H47: 48 | J47: AUEA | K47: dérniere AG 2007 | L47: 3 | M47: 1391 | N47: 23183.33333 | O47: 0.72 | P47: 2 | Q47: Haute Montagne
A48: Tadla-Azilal | B48: Beni Mellal | C48: Foum Anceur | D48: PMH | E48: 400 | F48: 700 | G48: 212 | H48: 420 | J48: AUEA Nasser | K48: En fonctionnement | L48: 2 | M48: 3330 | N48: 4757.142857 | O48: 0.72 | P48: 2 | Q48: Dir
A49: Tadla-Azilal | B49: Beni Mellal | C49: AIT OUIRAH | D49: PMH | E49: 800 | F49: 750 | G49: 254 | H49: 525 | J49: Bousiaan et Imhiouach | L49: 2 | M49: 4793 | N49: 6390.666667 | O49: 0.73 | P49: 2 | Q49: Dir
A50: Marrakech-Tensift-Al Haouz | B50: El Haouz | C50: GHERS | D50: PMH | E50: 257 | F50: 200 | G50: 234 | H50: 175 | J50: 3 AUEA | K50: gestion l'eau | L50: 2 | M50: 5411 | N50: 27055 | O50: 0.74 | P50: 2 | Q50: Piémont
A51: Marrakech-Tensift-Al Haouz | B51: Chichaoua | C51: Chichaoua amont | D51: PMH | E51: 1900 | F51: 2775 | G51: 1880 | H51: 1200 | L51: 1 | M51: 30422.615 | N51: 10963.1045 | O51: 0.75 | P51: 2 | Q51: Piémont
A52: Tadla-Azilal | B52: Azilal | C52: Iaamoumen | D52: PMH | E52: 200 | F52: 179 | G52: 136 | H52: 143 | J52: AUEA | K52: dérniere AG 2007 | L52: 3 | M52: 1779 | N52: 9938.547486 | O52: 0.76 | P52: 2 | Q52: Haute Montagne
A53: Marrakech-Tensift-Al Haouz | B53: ESSAOUIRA | C53: AIN LAHJAR | D53: PMH | E53: 100 | F53: 200 | G53: 450 | H53: 150 | J53: AUEA | K53: gestion l'eau | L53: 3 | M53: 1808 | N53: 9040 | O53: 0.81 | P53: 2 | Q53: Piémont
A54: Marrakech-Tensift-Al Haouz | B54: Chichaoua | C54: DOUIRANE | D54: PMH | E54: 1500 | F54: 1700 | G54: 1150 | H54: 800 | J54: 4 AUEA | K54: distribution eau | L54: 3 | M54: 17345 | N54: 10202.94118 | O54: 0.82 | P54: 2 | Q54: Piémont
A55: Oriental | B55: FIGUIG | C55: BNITADJIT | D55: PMH | E55: 450 | F55: 1232 | G55: 699 | H55: 200 | I55: 0 | J55: JEMAA | K55: BON | L55: 2 | M55: 11358 | N55: 9219.155844 | O55: 0.82 | P55: 2 | Q55: Piémont
A56: Marrakech-Tensift-Al Haouz | B56: El Haouz | C56: TAHANNAOUT | D56: PMH | E56: 140 | F56: 100 | G56: 99 | H56: 80 | J56: 1 AUEA | K56: Distribution eau | L56: 3 | M56: 3738 | N56: 37380 | O56: 0.84 | P56: 2 | Q56: Haute Montagne
A57: Fes-Boulemane | B57: Boulemane | C57: Tassa | D57: PMH | E57: 400 | F57: 415 | G57: 136 | H57: 162 | L57: 1 | M57: 13353.805 | N57: 32177.84337 | O57: 0.85 | P57: 2 | Q57: Piémont
A58: Marrakech-Tensift-Al Haouz | B58: El Haouz | C58: Ait izid | D58: PMH | E58: 300 | F58: 300 | G58: 330 | H58: 80 | J58: 1 AUEA | K58: Distribution l'eau | L58: 3 | M58: 7023 | N58: 23410 | O58: 0.85 | P58: 2 | Q58: Haute Montagne
A59: Meknes-Tafilalet | B59: ERRACHIDIA | C59: GOURRAMA | D59: PMH | E59: 830 | F59: 1380 | G59: 674 | H59: 536 | I59: 0 | J59: AUEA+JEMAA | K59: BON | L59: 2 | M59: 17466 | N59: 12656.52174 | O59: 0.86 | P59: 2 | Q59: Piémont
A60: Fes-Boulemane | B60: Boulemane | C60: Outat El haj El orjane | D60: PMH | E60: 2540 | F60: 2100 | G60: 1105 | H60: 1290 | L60: 1 | M60: 39787.435 | N60: 18946.39762 | O60: 0.88 | P60: 2 | Q60: Piémont
A61: Marrakech-Tensift-Al Haouz | B61: El Haouz | C61: Ait Ziad | D61: PMH | E61: 100 | F61: 536 | G61: 530 | H61: 300 | J61: Jemaa | K61: en cours création | L61: 3 | M61: 4754 | N61: 8869.402985 | O61: 0.88 | P61: 2 | Q61: Haute Montagne
A62: Meknes-Tafilalet | B62: ERRACHIDIA | C62: AGHBALOU AMONT | D62: PMH | E62: 630 | F62: 583 | G62: 329 | H62: 131 | I62: 0 | J62: JEMAA | K62: BON | L62: 2 | M62: 9070 | N62: 15557.46141 | O62: 0.9 | P62: 2 | Q62: Piémont
A63: Marrakech-Tensift-Al Haouz | B63: El Haouz | C63: TAMAZOZT | D63: PMH | E63: 107 | F63: 570 | G63: 2450 | H63: 400 | J63: 6 AUEA | K63: distribution eau | L63: 2 | M63: 4763 | N63: 8356.140351 | O63: 0.92 | P63: 2 | Q63: Haute Montagne
A64: Marrakech-Tensift-Al Haouz | B64: El Haouz | C64: OURIKA | D64: PMH | E64: 1600 | F64: 2000 | G64: 1300 | H64: 1600 | J64: 5 AUEA | K64: Distribution l'eau | L64: 2 | M64: 28425 | N64: 14212.5 | O64: 0.93 | P64: 2 | Q64: Haute Montagne
A65: Marrakech-Tensift-Al Haouz | B65: El Haouz | C65: AIT SLIMANE | D65: PMH | E65: 350 | F65: 140 | G65: 2868 | H65: 80 | J65: Jemaa | K65: en cours constitution | L65: 3 | M65: 6982 | N65: 49871.42857 | O65: 0.93 | P65: 2 | Q65: Haute Montagne
A66: Marrakech-Tensift-Al Haouz | B66: El Haouz | C66: Afnouz Zaouit el Kirite | D66: PMH | E66: 200 | F66: 200 | G66: 60 | H66: 140 | J66: JEMAA | K66: gestion l'eau | L66: 3 | M66: 1388 | N66: 6940 | O66: 0.93 | P66: 2 | Q66: Haute Montagne
A67: Marrakech-Tensift-Al Haouz | B67: El Haouz | C67: TIMGHILT | D67: PMH | E67: 230 | F67: 240 | G67: 541 | H67: 200 | J67: AUEA | K67: Gestion l'irrigation | L67: 3 | M67: 5674 | N67: 23641.66667 | O67: 0.94 | P67: 2 | Q67: Haute Montagne
A68: Marrakech-Tensift-Al Haouz | B68: El Haouz | C68: GHMAT | D68: PMH | E68: 1125 | F68: 3300 | G68: 1316 | H68: 920 | J68: 5 AUEA | K68: Distribution l'eau | L68: 2 | M68: 35129 | N68: 10645.15152 | O68: 0.96 | P68: 2 | Q68: Piémont
A71: Type | B71: PMH
B73: values
A74: Étiquettes lignes | B74: Somme SAU diagnostic | C74: Somme sup oliv | D74: Somme Number farms | E74: Somme Cost project (1000 dh)
A75: Fes-Boulemane | B75: 4085 | C75: 2503 | D75: 1857 | E75: 67167.24
A76: Boulemane | B76: 2515 | C76: 1452 | D76: 1241 | E76: 53141.24
A77: Sefrou | B77: 1570 | C77: 1051 | D77: 616 | E77: 14026
A78: Marrakech-Tensift-Al Haouz | B78: 13911 | C78: 6605 | D78: 13530 | E78: 166055.615
A79: Chichaoua | B79: 4475 | C79: 2000 | D79: 3030 | E79: 47767.615
A80: El Haouz | B80: 9136 | C80: 4355 | D80: 9940 | E80: 114650
A81: ESSAOUIRA | B81: 300 | C81: 250 | D81: 560 | E81: 3638
A82: Meknes-Tafilalet | B82: 7890 | C82: 3639 | D82: 5911 | E82: 127182
A83: ERRACHIDIA | B83: 5380 | C83: 1999 | D83: 3561 | E83: 92774
A84: Khénifra | B84: 2510 | C84: 1640 | D84: 2350 | E84: 34408
A85: Oriental | B85: 3864 | C85: 1651 | D85: 2394 | E85: 57921
A86: Berkan | B86: 140 | C86: 33 | D86: 200 | E86: 2160
A87: FIGUIG | B87: 1832 | C87: 470 | D87: 1241 | E87: 24878
A88: Oujda | B88: 885 | C88: 394 | D88: 290 | E88: 11743
A89: Taourirte | B89: 1007 | C89: 754 | D89: 663 | E89: 19140
A90: Souss Massa Draa | B90: 277 | C90: 232 | D90: 407 | E90: 5700
A91: Tata | B91: 277 | C91: 232 | D91: 407 | E91: 5700
A92: Tadla-Azilal | B92: 3377 | C92: 2347 | D92: 2555 | E92: 30925
A93: Azilal | B93: 1327 | C93: 997 | D93: 1555 | E93: 18501
A94: Beni Mellal | B94: 2050 | C94: 1350 | D94: 1000 | E94: 12424
A95: Taza-AlHoceima-Taounate | B95: 579 | C95: 396 | D95: 972 | E95: 15642
A96: Taounate | B96: 134 | C96: 106 | D96: 255 | E96: 4008
A97: TAZA | B97: 445 | C97: 290 | D97: 717 | E97: 11634
A98: Grand Total | B98: 33983 | C98: 17373 | D98: 27626 | E98: 470592.855
A99: Type | B99: PMH
B101: values
A102: Étiquettes lignes | B102: Somme SAU diagnostic | C102: Somme Number farms | D102: Somme Cost project (1000 dh) | E102: Somme sup oliv | F102: Number Périmètre
A103: 1
A104: 2 | B104: 6209 | C104: 5549 | D104: 107527 | E104: 3052 | F104: 10
A105: 3 | B105: 3259 | C105: 3411 | D105: 56087 | E105: 2320 | F105: 22
A106: 2
A107: 1 | B107: 5290 | C107: 3121 | D107: 83563.855 | E107: 2652 | F107: 3
A108: 2 | B108: 15060 | C108: 9036 | D108: 162374 | E108: 6933 | F108: 17
A109: 3 | B109: 4165 | C109: 6509 | D109: 61041 | E109: 2416 | F109: 13
A110: Grand Total | B110: 33983 | C110: 27626 | D110: 470592.855 | E110: 17373 | F110: 65
B111: 38148 | C111: 34135 | D111: 531633.855 | E111: 19789 | F111: 78
B114: values
A115: Étiquettes lignes | B115: Somme SAU diagnostic | C115: Somme Number farms | D115: Somme Cost project (1000 dh) | E115: Somme sup oliv | F115: Number Périmètre
A116: 1
A117: 2 | B117: 6209 | C117: 5549 | D117: 107527 | E117: 3052 | F117: 10
A118: 3 | B118: 3259 | C118: 3411 | D118: 56087 | E118: 2320 | F118: 22
A119: 2
A120: 1 | B120: 5290 | C120: 3121 | D120: 83563.855 | E120: 2652 | F120: 3
A121: 2 | B121: 15060 | C121: 9036 | D121: 162374 | E121: 6933 | F121: 17
A122: 3 | B122: 4165 | C122: 6509 | D122: 61041 | E122: 2416 | F122: 13
A123: Total général | B123: 33983 | C123: 27626 | D123: 470592.855 | E123: 17373 | F123: 65

Sheet Don_classe 1
A3: Area sown_ Actual situation (ha) | J3: Area sown_ Situation With project
A4: Crop/Perimeter | B4: Rich | C4: Talsint | D4: Aït Chribou | E4: Ouaoumana | F4: Guers Tiallaline | G4: Total | H4: Assol_Avg/Exp | I4: Assol_Avg/Exp | J4: Crop/Perimeter | K4: Rich | L4: Talsint | M4: Aït Chribou | N4: Ouaoumana | O4: Guers Tiallaline | P4: Total | Q4: Assol_Avg/Exp | R4: Assol_Avg/Exp
A5: Olives | B5: 192 | C5: 270 | D5: 253 | E5: 640 | F5: 979 | G5: =SUM(B5:F5) -> 2334 | H5: =G5/$G$21 -> 0.5652700412 | I5: =+'Data&assumptions'!B142 -> 1.6 | J5: Olives | K5: 292 | L5: 470 | M5: 253 | N5: 840 | O5: 979 | P5: =SUM(K5:O5) -> 2834 | Q5: =P5/$P$21 -> 0.6863647372 | R5: =+I5*P5/G5 -> 1.942759212
A6: Dates | B6: 91 | C6: 12 | F6: 3 | G6: =SUM(B6:F6) -> 106 | H6: 0.02567207556 | I6: =+'Data&assumptions'!$B$146*(H6/($H$6+$H$7)) -> 0.1530692423 | J6: Dates | K6: 91 | L6: 12 | O6: 3 | P6: =SUM(K6:O6) -> 106 | Q6: =P6/$P$21 -> 0.02567207556 | R6: =+I6*P6/G6 -> 0.1530692423
A7: Other Trees, | B7: 209 | C7: 65 | F7: 110 | G7: 384 | H7: 0.09300072657 | I7: =+'Data&assumptions'!$B$146*(H7/($H$6+$H$7)) -> 0.5545149909 | J7: Other Trees, | K7: 209 | L7: 65 | O7: 110 | P7: 384 | Q7: 0.09300072657 | R7: 0.5545149909
A8: Oats | C8: 0 | G8: 0 | J8: Oats | L8: 0 | P8: 0
A9: Bersim | C9: 0 | G9: 0 | H9: 0 | I9: =H9/$H$20*$I$20 -> 0 | J9: Bersim | L9: 0 | P9: 0 | Q9: 0
A10: Hard wheat | B10: 795 | C10: 105 | E10: 96 | F10: 158 | G10: 1154 | H10: 0.2794865585 | I10: =+'Data&assumptions'!$C$129*(H10/($H$10+$H$18+$H$11+$H$15)) -> 1.221521553 | J10: Hard wheat | K10: 795 | L10: 105 | N10: 96 | O10: 158 | P10: 1154 | Q10: 0.2794865585 | R10: 1.221521553
A11: Soft wheat | B11: 15 | C11: 150 | E11: 64 | F11: 416 | G11: 645 | H11: 0.1562121579 | I11: =+'Data&assumptions'!$C$129*(H11/($H$10+$H$18+$H$11+$H$15)) -> 0.6827395162 | J11: Soft wheat | K11: 15 | L11: 150 | N11: 64 | O11: 416 | P11: 645 | Q11: 0.1562121579 | R11: 0.6827395162
A12: bean | B12: 75 | C12: 22.5 | E12: 40 | F12: 133 | G12: 270.5 | H12: 0.06551223056 | I12: =+'Data&assumptions'!$C$130*(H12/($H$12+$H$13)) -> 0.1294258373 | J12: bean | K12: 75 | L12: 22.5 | N12: 40 | O12: 133 | P12: 270.5 | Q12: 0.06551223056 | R12: 0.1294258373
A13: Peas | B13: 25 | C13: 5 | F13: 13 | G13: 43 | H13: 0.01041414386 | I13: =+'Data&assumptions'!$C$130*(H13/($H$12+$H$13)) -> 0.02057416268 | J13: Peas | K13: 25 | L13: 5 | O13: 13 | P13: 43 | Q13: 0.01041414386 | R13: =+I13*P13/G13 -> 0.02057416268
A14: Alfalfa | B14: 263 | C14: 37.5 | D14: 16 | E14: 10 | F14: 180 | G14: 506.5 | H14: 0.1226689271 | I14: =+'Data&assumptions'!C131 -> 0.31 | J14: Alfalfa | K14: 263 | L14: 37.5 | M14: 16 | N14: 10 | O14: 180 | P14: 506.5 | Q14: 0.1226689271 | R14: 0.31
A15: Corn | B15: 149.1 | C15: 25 | E15: 10 | F15: 108 | G15: 292.1 | H15: 0.07074352143 | I15: =+'Data&assumptions'!$C$129*(H15/($H$10+$H$18+$H$11+$H$15)) -> 0.3091910274 | J15: Corn | K15: 149.1 | L15: 25 | N15: 10 | O15: 108 | P15: 292.1 | Q15: 0.07074352143 | R15: 0.3091910274
A16: Summer horticulture | B16: 6 | C16: 10 | D16: 32 | F16: 6 | G16: 54 | H16: 0.01307822717 | I16: =+'Data&assumptions'!C132*(H16/($H$17+$H$17)) -> 0.01321100917 | J16: Summer horticulture | K16: 6 | L16: 10 | M16: 32 | O16: 6 | P16: 54 | Q16: 0.01307822717 | R16: 0.01321100917
A17: Winter horticulture | B17: 31 | C17: 7.5 | E17: 120 | F17: 5 | G17: 163.5 | H17: 0.03959796561 | I17: =+'Data&assumptions'!C133*(H17/($H$17+$H$17)) -> 0 | J17: Winter horticulture | K17: 31 | L17: 7.5 | N17: 120 | O17: 5 | P17: 163.5 | Q17: 0.03959796561 | R17: 0
A18: Barley | B18: 10 | C18: 75 | D18: 16 | E18: 20 | F18: 8 | G18: 129 | H18: 0.03124243158 | I18: =+'Data&assumptions'!$C$129*(H18/($H$10+$H$18+$H$11+$H$15)) -> 0.1365479032 | J18: Barley | K18: 10 | L18: 75 | M18: 16 | N18: 20 | O18: 8 | P18: 129 | Q18: 0.03124243158 | R18: 0.1365479032
A19: Total | B19: =SUM(B5:B18) -> 1861.1 | C19: 784.5 | D19: 317 | E19: 1000 | F19: 2119 | G19: 6081.6 | H19: 1.472899007 | I19: =SUM(I5:I18) -> 5.130795242 | J19: Total | K19: =SUM(K5:K18) -> 1961.1 | L19: 984.5 | M19: 317 | N19: 1200 | O19: 2119 | P19: 6581.6 | Q19: 1.593993703 | R19: 5.473554454
A20: SAU | B20: 1739 | C20: 600 | D20: 317 | E20: 800 | F20: 1288 | G20: =SUM(B20:F20) -> 4744 | H20: =G20/G21 -> 1.148946476 | I20: =+'Data&assumptions'!E54 -> 4.46 | J20: SAU | K20: 1739 | L20: 600 | M20: 317 | N20: 800 | O20: 1288 | P20: =SUM(K20:O20) -> 4744 | Q20: =P20/P21 -> 1.148946476 | R20: =+I20 -> 4.46
A21: Number farms | B21: 1085 | C21: 542 | D21: 440 | E21: 1354 | F21: 708 | G21: =SUM(B21:F21) -> 4129 | J21: Number farms | K21: 1085 | L21: 542 | M21: 440 | N21: 1354 | O21: 708 | P21: =SUM(K21:O21) -> 4129
A23: Yield_ Actual situation (Q/ha) | J23: Yield_ Situation With project (Q/ha)
A25: Crop/Perimeter | B25: Rich | C25: Talsint | D25: Aït Chribou | E25: Ouaoumana | F25: Guers Tiallaline | G25: RDT avg | J25: Crop/Perimeter | K25: Rich | L25: Talsint | M25: Aït Chribou | N25: Ouaoumana | O25: Guers Tiallaline | P25: RDT avg
A26: Olives | B26: 41 | C26: 30 | D26: 37 | E26: 49 | F26: 27 | G26: =((B26*B5)+(C26*C5)+(D26*D5)+(E26*E5)+(F26*F5))/G5 -> 35.61525278 | J26: Olives | K26: 55.4 | L26: 39 | M26: 50 | N26: 68.6 | O26: 37.8 | P26: =(K26*K5+L26*L5+M26*M5+N26*N5+O26*O5)/P5 -> 50.03069866
A27: Dates | B27: 9.6 | C27: 13 | F27: 12.5 | G27: =((B27*B6)+(C27*C6)+(D27*D6)+(E27*E6)+(F27*F6))/G6 -> 10.06698113 | J27: Dates | K27: 9.6 | L27: 14.3 | O27: 13.7 | P27: 10.24811321
A28: Other Trees, | B28: 59 | C28: 36 | F28: 20.1 | G28: =((B28*B7)+(C28*C7)+(D28*D7)+(E28*E7)+(F28*F7))/G7 -> 43.96354167 | J28: Other Trees, | K28: 64.9 | L28: 39.6 | O28: 22.1 | P28: 48.35703125
A29: Oats | J29: Oats
A30: Bersim (UF/ha) | J30: Bersim (UF/Ha)
A31: Hard wheat | B31: 24 | C31: 15 | E31: 20 | F31: 23 | G31: =((B31*B10)+(C31*C10)+(D31*D10)+(E31*E10)+(F31*F10))/G10 -> 22.71143847 | J31: Hard wheat | K31: 26.4 | L31: 16.5 | N31: 22 | O31: 25.3 | P31: 24.98258232
A32: Soft wheat | B32: 22 | C32: 18 | E32: 20 | F32: 25 | G32: 22.80620155 | J32: Soft wheat | K32: 24.2 | L32: 19.8 | N32: 22 | O32: 27.5 | P32: 25.08682171
A33: bean | B33: 10 | C33: 11.2 | E33: 10 | F33: 16 | G33: 13.04990758 | J33: bean | K33: 11 | L33: 12.3 | N33: 11 | O33: 17.6 | P33: 14.35323475
A34: Peas | B34: 14 | C34: 11.2 | F34: 12 | G34: 13.06976744 | J34: Peas | K34: 15.4 | L34: 12.3 | O34: 13.2 | P34: 14.3744186
A35: Alfalfa | B35: 650 | C35: 500 | D35: 200 | E35: 120 | F35: 500 | G35: 560.9081935 | J35: Alfalfa | K35: 715 | L35: 550 | M35: 260 | N35: 132 | O35: 550 | P35: 618.2625864
A36: Corn | B36: 15 | C36: 11 | E36: 14 | F36: 16 | G36: 14.99315303 | J36: Corn | K36: 16.5 | L36: 12.1 | N36: 14.9 | O36: 17.6 | P36: 16.47535091
A37: Summer horticulture | B37: 224.6 | C37: 287.5 | D37: 100 | F37: 176 | G37: 157.0111111 | J37: Summer horticulture | K37: 224.6 | L37: 287.5 | M37: 140 | O37: 193.1 | P37: 182.6148148
A38: Winter horticulture | B38: 197.7 | C38: 306.7 | E38: 120 | F38: 203 | G38: 145.8345566 | J38: Winter horticulture | K38: 217.5 | L38: 337.3 | N38: 132 | O38: 223.1 | P38: 160.4143731
A39: Barley | B39: 15 | C39: 22 | D39: 18 | E39: 20 | F39: 17 | G39: 20.34108527 | J39: Barley | K39: 16.5 | L39: 24.2 | M39: 25 | N39: 22 | O39: 18.7 | P39: 23.02015504
A40: Secondary products | J40: Secondary products
A41: Straw Hard wheat | B41: 31 | C41: 31 | E41: 23 | F41: 31 | G41: =(B41*B10+C41*C10+D41*D10+E41*E10+F41*F10)/G10 -> 30.33448873 | J41: Straw Hard wheat | K41: 31 | L41: 31 | N41: 25.3 | O41: 31 | P41: =(K41*K10+L41*L10+M41*M10+N41*N10+O41*O10)/P10 -> 30.52582322
A42: Straw Soft wheat | B42: 31 | C42: 31 | E42: 25 | F42: 31 | G42: =(B42*B11+C42*C11+D42*D11+E42*E11+F42*F11)/G11 -> 30.40465116 | J42: Straw Soft wheat | K42: 31 | L42: 31 | N42: 27.5 | O42: 31 | P42: =(K42*K11+L42*L11+M42*M11+N42*N11+O42*O11)/P11 -> 30.65271318
A43: Straw Barley | B43: 25 | C43: 25 | E43: 28 | F43: 25 | G43: =(B43*B18+C18*C43+D43*D18+E43*E18+F18*F43)/G18 -> 22.36434109 | J43: Straw Barley | K43: 25 | L43: 25 | N43: 30.8 | O43: 25 | P43: =(K43*K18+L18*L43+M43*M18+N43*N18+O18*O43)/P18 -> 22.79844961
A44: Peas (SP) | J44: Peas (SP)
A45: bean (SP) | J45: bean (SP)
A46: Corn (SP) | B46: 1100 | C46: 1100 | E46: =16*20 -> 320 | F46: 1100 | G46: =(B46*B15+C15*C46+D46*D15+E46*E15+F46*F15)/G15 -> 1073.296816 | J46: Corn (SP) | K46: 1100 | L46: 1100 | N46: =18*20 -> 360 | O46: 1100 | P46: =(K46*K15+L15*L46+M46*M15+N46*N15+O46*O15)/P15 -> 1074.66621
A47: Winter horticulture(SP) | J47: Winter horticulture(SP)
A48: Summer horticulture(SP) | J48: Summer horticulture(SP)
A49: hay Alfalfa | B49: 6200 | C49: 6200 | F49: 6200 | G49: =(B49*B18+C18*C49+D49*D18+E49*E18+F49*F18)/G18 -> 4469.767442 | J49: hay Alfalfa | K49: 6200 | L49: 6200 | O49: 6200 | P49: =(K49*K14+L49*L14+M49*M14+N49*N14+O49*O14)/P14 -> 5881.737414
A51: Price DH/Q
A53: Crop/Perimeter | B53: Rich | C53: Talsint | D53: Aït Chribou | E53: Ouaoumana | F53: Guers Tiallaline | G53: Price avg
A54: Olives | B54: 500 | C54: 500 | D54: 550 | E54: 550 | F54: 500 | G54: =((B54*B26*B5+C54*C26*C5+D54*D26*D5+E54*E26*E5+F54*F26*F5)/(B26*B5+C26*C5+D26*D5+E26*E5+F26*F5))*'ERR & Sensitivity Analysis'!G14 -> 524.4935399
A55: Dates | B55: 5000 | C55: 5000 | F55: 5000 | G55: =(B55*B27*B6+C55*C27*C6+D55*D27*D6+E55*E27*E6+F55*F27*F6)/(B27*B6+C27*C6+D27*D6+E27*E6+F27*F6) -> 5000
A56: Other Trees, | B56: 300 | C56: 300 | F56: 300 | G56: 300
A57: Oats
A58: Bersim
A59: Hard wheat | B59: 300 | C59: 300 | E59: 350 | F59: 300 | G59: 303.6628639
A60: Soft wheat | B60: 270 | C60: 270 | E60: 300 | F60: 270 | G60: 272.6104691
A61: bean | B61: 400 | C61: 400 | E61: 350 | F61: 400 | G61: 394.3342776
A62: Peas | B62: 380 | C62: 380 | F62: 380 | G62: 380
A63: Alfalfa (DH/UF) | D63: 100 | E63: 100 | G63: 1.54875044
A64: Corn | B64: 320 | C64: 320 | E64: 300 | F64: 320 | G64: 319.3606576
A65: Summer horticulture | B65: 210 | C65: 210 | D65: 200 | F65: 210 | G65: 206.225792
A66: Winter horticulture | B66: 200 | C66: 200 | E66: 200 | F66: 200 | G66: 200
A67: Barley | B67: 200 | C67: 200 | D67: 200 | E67: 250 | F67: 200 | G67: 207.6219512
A68: Secondary products
A69: Straw Hard wheat | B69: 90 | C69: 90 | F69: 90 | G69: =(B69*B41*B10+C69*C41*C10+D69*D41*D10+E69*E41*E10+F69*F41*F10)/(B41*B10+C41*C10+D41*D10+E41*E10+F41*F10) -> 84.32325887
A70: Straw Soft wheat | B70: 90 | C70: 90 | F70: 90 | G70: =(B70*B42*B11+C70*C42*C11+D70*D42*D11+E70*E42*E11+F70*F42*F11)/(B42*B11+C42*C11+D42*D11+E42*E11+F42*F11) -> 82.65718219
A71: Straw Barley | B71: 80 | C71: 80 | F71: 80 | G71: =(B71*B43*B18+C71*C43*C18+D71*D43*D18+E71*E43*E18+F71*F43*F18)/(B43*B18+C43*C18+D43*D18+E43*E18+F43*F18) -> 64.47140381
A72: Peas (SP)
A73: bean (SP)
A74: Corn (SP) | B74: 1.24 | C74: 1.24 | F74: 1.2 | G74: =(B74*B46*B15+C74*C46*C15+D74*D46*D15+E74*E46*E15+F74*F46*F15)/(B46*B15+C46*C15+D46*D15+E46*E15+F46*F15) -> 1.212185895
A75: Winter horticulture(SP)
A76: Summer horticulture(SP)
A77: hay Alfalfa | B77: 1.5 | C77: 1.5 | F77: 1.5 | G77: =(B77*B49*B14+C77*C49*C14+D77*D49*D14+E77*E49*E14+F77*F49*F14)/(B49*B14+C49*C14+D49*D14+E49*E14+F49*F14) -> 1.5
A79: Actual situation | B79: Charges w/o MO (DH/Ha) | J79: Target | K79: Charges w/o MO (DH/Ha)
A80: Crop/Perimeter | B80: Rich | C80: Talsint | D80: Aït Chribou | E80: Ouaoumana | F80: Guers Tiallaline | G80: Charges Avg | J80: Crop/Perimeter | K80: Rich | L80: Talsint | M80: Aït Chribou | N80: Ouaoumana | O80: Guers Tiallaline | P80: Charges Avg
A81: Olives | B81: 4942 | C81: 3442 | D81: 110 | E81: 1118 | F81: 1442 | G81: =(B81*B5+C81*C5+D81*D5+E81*E5+F81*F5)/G5 -> 1728.051414 | J81: Olives | K81: 5242 | L81: 3742 | M81: 140 | N81: 1238 | O81: 1742 | P81: =(K81*K5+L81*L5+M81*M5+N81*N5+O81*O5)/P5 -> 2141.90614
A82: Dates | B82: 6380 | C82: 2880 | F82: 2880 | G82: =(B82*B6+C82*C6+D82*D6+E82*E6+F82*F6)/G6 -> 5884.716981 | J82: Dates | K82: 4880 | L82: 3320 | O82: 3320 | P82: =(K82*K6+L82*L6+M82*M6+N82*N6+O82*O6)/P6 -> 4659.245283
A83: Other Trees, | B83: 2290 | C83: 2290 | F83: 2290 | G83: =(B83*B7+C83*C7+D83*D7+E83*E7+F83*F7)/G7 -> 2290 | J83: Other Trees, | K83: 1840 | L83: 1840 | O83: 3940 | P83: =(K83*K7+L83*L7+M83*M7+N83*N7+O83*O7)/P7 -> 2441.5625
A84: Oats | J84: Oats
A85: Bersim (UF/ha) | J85: Bersim (UF/ha)
A86: Hard wheat | B86: 2312 | C86: 2312 | E86: 1123 | F86: 2312 | G86: =(B86*B10+C86*C10+D86*D10+E86*E10+F86*F10)/G10 -> 2213.088388 | J86: Hard wheat | K86: 2253 | L86: 2253 | N86: 1123 | O86: 2253 | P86: =(K86*K10+L86*L10+M86*M10+N86*N10+O86*O10)/P10 -> 2158.996534
A87: Soft wheat | B87: 2312 | C87: 2312 | E87: 865 | F87: 2312 | G87: 2168.421705 | J87: Soft wheat | K87: 2253 | L87: 2253 | N87: 865 | O87: 2253 | P87: 2115.275969
A88: bean | B88: 1000 | C88: 1000 | E88: 475 | F88: 1000 | G88: 922.3659889 | J88: bean | K88: 670 | L88: 670 | N88: 474.5 | O88: 670 | P88: 641.090573
A89: Peas | B89: 0 | C89: 0 | F89: 0 | G89: 0 | J89: Peas | K89: 0 | L89: 0 | O89: 0 | P89: 0
A90: Alfalfa | B90: 1129 | C90: 1129 | D90: 914 | E90: 944 | F90: 1129 | G90: 1118.555775 | J90: Alfalfa | K90: 1129 | L90: 1129 | M90: 914 | N90: 943.5 | O90: 2095 | P90: 1461.84304
A91: Corn | B91: 1913 | C91: 1913 | E91: 685 | F91: 1913 | G91: 1870.959603 | J91: Corn | K91: 1641 | L91: 1641 | N91: 685 | O91: 1641 | P91: 1608.271482
A92: Summer horticulture | B92: 2825 | C92: 2825 | D92: 3609 | F92: 2825 | G92: 3289.592593 | J92: Summer horticulture | K92: 2825 | L92: 2825 | M92: 3609 | O92: 2825 | P92: 3289.592593
A93: Winter horticulture | B93: 3694 | C93: 3694 | E93: 4188 | F93: 3694 | G93: 4056.568807 | J93: Winter horticulture | K93: 3694 | L93: 3694 | N93: 4188.3 | O93: 3694 | P93: 4056.788991
A94: Barley | B94: 862 | C94: 862 | D94: 526 | E94: 548 | F94: 862 | G94: 771.6434109 | J94: Barley | K94: 735 | L94: 735 | M94: 526 | N94: 547.5 | O94: 735 | P94: 680.0077519
A97: Actual situation | B97: Charges MO (DH/Ha) | J97: Target | K97: Charges MO (DH/Ha)
A98: Crop/Perimeter | B98: Rich | C98: Talsint | D98: Aït Chribou | E98: Ouaoumana | F98: Guers Tiallaline | G98: Charges Avg | J98: Crop/Perimeter | K98: Rich | L98: Talsint | M98: Aït Chribou | N98: Ouaoumana | O98: Guers Tiallaline | P98: Charges Avg
A99: Olives | B99: 3700 | C99: 3700 | D99: 2427 | E99: 4328 | F99: 3700 | G99: =(B99*B5+C99*C5+D99*D5+E99*E5+F99*F5)/G5 -> 3734.212082 | J99: Olives | K99: 4000 | L99: 4000 | M99: 2736 | N99: 4684 | O99: 4000 | P99: =(K99*K5+L99*L5+M99*M5+N99*N5+O99*O5)/P5 -> 4089.896965
A100: Dates | B100: 3750 | C100: 3750 | F100: 3750 | G100: =(B100*B6+C100*C6+D100*D6+E100*E6+F100*F6)/G6 -> 3750 | J100: Dates | K100: 3750 | L100: 3750 | O100: 3750 | P100: =(K100*K6+L100*L6+M100*M6+N100*N6+O100*O6)/P6 -> 3750
A101: Other Trees, | B101: 1550 | C101: 1550 | F101: 1550 | G101: =(B101*B7+C101*C7+D101*D7+E101*E7+F101*F7)/G7 -> 1550 | J101: Other Trees, | K101: 1550 | L101: 1550 | O101: 1550 | P101: =(K101*K7+L101*L7+M101*M7+N101*N7+O101*O7)/P7 -> 1550
A102: Oats | J102: Oats
A103: Bersim (UF/ha) | J103: Bersim (UF/ha)
A104: Hard wheat | B104: 1215 | C104: 1215 | E104: 1698 | F104: 1215 | G104: =(B104*B10+C104*C10+D104*D10+E104*E10+F104*F10)/G10 -> 1255.180243 | J104: Hard wheat | K104: 1215 | L104: 1215 | N104: 1698 | O104: 1215 | P104: =(K104*K10+L104*L10+M104*M10+N104*N10+O104*O10)/P10 -> 1255.180243
A105: Soft wheat | B105: 1215 | C105: 1215 | E105: 860 | F105: 1215 | G105: 1179.775194 | J105: Soft wheat | K105: 1215 | L105: 1215 | N105: 860 | O105: 1215 | P105: 1179.775194
A106: bean | B106: 1675 | C106: 1675 | E106: 1183 | F106: 1675 | G106: 1602.245841 | J106: bean | K106: 1675 | L106: 1675 | N106: 1183 | O106: 1675 | P106: 1602.245841
A107: Peas | B107: 0 | C107: 0 | F107: 0 | G107: 0 | J107: Peas | K107: 0 | L107: 0 | O107: 0 | P107: 0
A108: Alfalfa | B108: 1240 | C108: 1240 | D108: 2116 | E108: 2586 | F108: 1240 | G108: 1294.246792 | J108: Alfalfa | K108: 1240 | L108: 1240 | M108: 2398 | N108: 2586 | O108: 1240 | P108: 1303.154985
A109: Corn | B109: 415 | C109: 415 | E109: 1490 | F109: 415 | G109: 451.8024649 | J109: Corn | K109: 415 | L109: 415 | N109: 1490 | O109: 415 | P109: 451.8024649
A110: Summer horticulture | B110: 2730 | C110: 2730 | D110: 1254 | F110: 2730 | G110: 1855.333333 | J110: Summer horticulture | K110: 2730 | L110: 2730 | M110: 1414 | O110: 2730 | P110: 1950.148148
A111: Winter horticulture | B111: 2900 | C111: 2900 | E111: 1248 | F111: 2900 | G111: 1687.522936 | J111: Winter horticulture | K111: 2900 | L111: 2900 | N111: 1248 | O111: 2900 | P111: 1687.522936
A112: Barley | B112: 290 | C112: 290 | D112: 1110 | E112: 1875 | F112: 290 | G112: 637.4418605 | J112: Barley | K112: 290 | L112: 290 | M112: 1400 | N112: 1875.4 | O112: 290 | P112: 673.4728682
A116: Plan action mise en value agricole
A117: Extension of plantations Olives | G117: check
A118: Périmètre | B118: Nb plants | C118: Sup | D118: Densité | E118: durée | F118: Cost | G118: # of total plants
A119: Rich | B119: 27700 | C119: 100 | D119: 277 | E119: 4 | G119: =D119*C119 -> 27700 | H119: =C119/$G$21 -> 0.02421893921
A120: Talsint | B120: 30000 | C120: 200 | D120: 150 | G120: =D120*C120 -> 30000 | H120: =C120/$G$21 -> 0.04843787842
A121: Ouaoumana | B121: =C121*D121 -> 62400 | C121: 200 | D121: 312 | G121: =D121*C121 -> 62400 | H121: =C121/$G$21 -> 0.04843787842
A122: Total | B122: =SUM(B119:B121) -> 120100 | C122: =SUM(C119:C121) -> 500 | D122: =B122/C122 -> 240.2 | G122: =D122*C122 -> 120100 | H122: =C122/$G$21 -> 0.1210946961 | I122: =(H122/H19)*I19 -> 0.4218293905
A126: Rémunération in aiguadier (à mi-temps) par AUEA | D126: 9600 DH/an
A127: Frais gestion chaque AUEA | D127: 6000 DH/an

Sheet BudExp DHMax<55%
A4: Etablissement du budget exploitation
A6: I. Evolution l'Area sown (Ha)
B8: Area sown actual | C8: Area sown target | D8: w/o project | E8: With project
A9: Cultures | D9: Years 1-20 | E9: Years 1 | F9: 2 | G9: 3 | H9: 4 | I9: 5 | J9: 6 | K9: 7 | L9: 8 | M9: 9 | N9: 10 | O9: 11-20
A10: Cereals | B10: =SUM(B11:B14) -> 2.35 | C10: =SUM(C11:C14) -> 2.35 | D10: 2.35 | E10: 2.35 | F10: 2.35 | G10: 2.35 | H10: 2.35 | I10: 2.35 | J10: 2.35 | K10: 2.35 | L10: 2.35 | M10: 2.35 | N10: 2.35 | O10: 2.35
A11: Soft wheat | B11: =+'Don_classe 1'!I11 -> 0.6827395162 | C11: =+'Don_classe 1'!R11 -> 0.6827395162 | D11: =B11 -> 0.6827395162 | E11: =B11 -> 0.6827395162 | F11: =E11 -> 0.6827395162 | G11: =C11 -> 0.6827395162 | H11: =G11 -> 0.6827395162 | I11: 0.6827395162 | J11: 0.6827395162 | K11: 0.6827395162 | L11: 0.6827395162 | M11: 0.6827395162 | N11: 0.6827395162 | O11: 0.6827395162
A12: Hard wheat | B12: =+'Don_classe 1'!I10 -> 1.221521553 | C12: ='Don_classe 1'!R10 -> 1.221521553 | D12: =B12 -> 1.221521553 | E12: =B12 -> 1.221521553 | F12: =E12 -> 1.221521553 | G12: =C12 -> 1.221521553 | H12: 1.221521553 | I12: 1.221521553 | J12: 1.221521553 | K12: 1.221521553 | L12: 1.221521553 | M12: 1.221521553 | N12: 1.221521553 | O12: 1.221521553
A13: Barley | B13: =+'Don_classe 1'!I18 -> 0.1365479032 | C13: ='Don_classe 1'!R18 -> 0.1365479032 | D13: 0.1365479032 | E13: =B13 -> 0.1365479032 | F13: =E13 -> 0.1365479032 | G13: =C13 -> 0.1365479032 | H13: 0.1365479032 | I13: 0.1365479032 | J13: 0.1365479032 | K13: 0.1365479032 | L13: 0.1365479032 | M13: 0.1365479032 | N13: 0.1365479032 | O13: 0.1365479032
A14: Corn | B14: =+'Don_classe 1'!I15 -> 0.3091910274 | C14: ='Don_classe 1'!R15 -> 0.3091910274 | D14: 0.3091910274 | E14: =B14 -> 0.3091910274 | F14: =E14 -> 0.3091910274 | G14: =C14 -> 0.3091910274 | H14: 0.3091910274 | I14: 0.3091910274 | J14: 0.3091910274 | K14: 0.3091910274 | L14: 0.3091910274 | M14: 0.3091910274 | N14: 0.3091910274 | O14: 0.3091910274
A15: Legumes | B15: =SUM(B16:B17) -> 0.15 | C15: =SUM(C16:C17) -> 0.15 | D15: 0.15 | E15: 0.15 | F15: 0.15 | G15: 0.15 | H15: 0.15 | I15: 0.15 | J15: 0.15 | K15: 0.15 | L15: 0.15 | M15: 0.15 | N15: 0.15 | O15: 0.15
A16: Peas | B16: =+'Don_classe 1'!I13 -> 0.02057416268 | C16: ='Don_classe 1'!R13 -> 0.02057416268 | D16: 0.02057416268 | E16: =B16 -> 0.02057416268 | F16: =E16 -> 0.02057416268 | G16: =C16 -> 0.02057416268 | H16: 0.02057416268 | I16: 0.02057416268 | J16: 0.02057416268 | K16: 0.02057416268 | L16: 0.02057416268 | M16: 0.02057416268 | N16: 0.02057416268 | O16: 0.02057416268
A17: bean | B17: =+'Don_classe 1'!I12 -> 0.1294258373 | C17: ='Don_classe 1'!R12 -> 0.1294258373 | D17: 0.1294258373 | E17: =B17 -> 0.1294258373 | F17: =E17 -> 0.1294258373 | G17: =C17 -> 0.1294258373 | H17: 0.1294258373 | I17: 0.1294258373 | J17: 0.1294258373 | K17: 0.1294258373 | L17: 0.1294258373 | M17: 0.1294258373 | N17: 0.1294258373 | O17: 0.1294258373
A18: Fruit Trees | B18: =SUM(B19:B22) -> 2.307584233 | C18: =SUM(C19:C22) -> 2.993102656 | D18: 2.307584233 | E18: 2.307584233 | F18: 2.307584233 | G18: 2.307584233 | H18: 2.461825878 | I18: 2.650343445 | J18: 2.650343445 | K18: 2.650343445 | L18: 2.650343445 | M18: 2.650343445 | N18: 2.650343445 | O18: 2.650343445
A19: Olives | B19: =+'Don_classe 1'!I5 -> 1.6 | C19: ='Don_classe 1'!R5 -> 1.942759212 | D19: 1.6 | E19: =+B19 -> 1.6 | F19: =E19 -> 1.6 | G19: =F19 -> 1.6 | H19: 1.6 | I19: 1.6 | J19: 1.6 | K19: 1.6 | L19: 1.6 | M19: 1.6 | N19: 1.6 | O19: 1.6
A20: Olives nouvelle plantation - intensification | B20: 0 | C20: =+C19-B19 -> 0.3427592117 | D20: 0 | E20: =B20 -> 0 | F20: =E20 -> 0 | G20: =F20 -> 0 | H20: =+C20*0.45 -> 0.1542416452 | I20: =+C20 -> 0.3427592117 | J20: =I20 -> 0.3427592117 | K20: 0.3427592117 | L20: 0.3427592117 | M20: 0.3427592117 | N20: 0.3427592117 | O20: 0.3427592117
A21: Dates | B21: =+'Don_classe 1'!I6 -> 0.1530692423 | C21: ='Don_classe 1'!R6 -> 0.1530692423 | D21: 0.1530692423 | E21: =B21 -> 0.1530692423 | F21: =E21 -> 0.1530692423 | G21: =C21 -> 0.1530692423 | H21: 0.1530692423 | I21: 0.1530692423 | J21: 0.1530692423 | K21: 0.1530692423 | L21: 0.1530692423 | M21: 0.1530692423 | N21: 0.1530692423 | O21: 0.1530692423
A22: Other Tree Crops | B22: =+'Don_classe 1'!I7 -> 0.5545149909 | C22: ='Don_classe 1'!R7 -> 0.5545149909 | D22: 0.5545149909 | E22: =B22 -> 0.5545149909 | F22: =E22 -> 0.5545149909 | G22: =C22 -> 0.5545149909 | H22: 0.5545149909 | I22: 0.5545149909 | J22: 0.5545149909 | K22: 0.5545149909 | L22: 0.5545149909 | M22: 0.5545149909 | N22: 0.5545149909 | O22: 0.5545149909
A23: Horticulture | B23: =SUM(B24:B25) -> 0.01321100917 | C23: =SUM(C24:C25) -> 0.01321100917 | D23: 0.01321100917 | E23: 0.01321100917 | F23: 0.01321100917 | G23: 0.01321100917 | H23: 0.01321100917 | I23: 0.01321100917 | J23: 0.01321100917 | K23: 0.01321100917 | L23: 0.01321100917 | M23: 0.01321100917 | N23: 0.01321100917 | O23: 0.01321100917
A24: Winter horticulture | B24: =+'Don_classe 1'!I16 -> 0.01321100917 | C24: ='Don_classe 1'!R17 -> 0 | D24: 0.01321100917 | E24: =B24 -> 0.01321100917 | F24: =E24 -> 0.01321100917 | G24: =C24 -> 0 | H24: 0 | I24: 0 | J24: 0 | K24: 0 | L24: 0 | M24: 0 | N24: 0 | O24: 0
A25: Summer horticulture | B25: =+'Don_classe 1'!I17 -> 0 | C25: ='Don_classe 1'!R16 -> 0.01321100917 | D25: 0 | E25: =B25 -> 0 | F25: =E25 -> 0 | G25: =C25 -> 0.01321100917 | H25: 0.01321100917 | I25: 0.01321100917 | J25: 0.01321100917 | K25: 0.01321100917 | L25: 0.01321100917 | M25: 0.01321100917 | N25: 0.01321100917 | O25: 0.01321100917
A26: Feed Crops | B26: =SUM(B27:B28) -> 0.31 | C26: =SUM(C27:C28) -> 0.31 | D26: 0.31 | E26: 0.31 | F26: 0.31 | G26: 0.31 | H26: 0.31 | I26: 0.31 | J26: 0.31 | K26: 0.31 | L26: 0.31 | M26: 0.31 | N26: 0.31 | O26: 0.31
A27: Alfalfa | B27: ='Don_classe 1'!I14 -> 0.31 | C27: ='Don_classe 1'!R14 -> 0.31 | D27: 0.31 | E27: =B27 -> 0.31 | F27: =E27 -> 0.31 | G27: =C27 -> 0.31 | H27: =G27 -> 0.31 | I27: 0.31 | J27: 0.31 | K27: 0.31 | L27: 0.31 | M27: 0.31 | N27: 0.31 | O27: 0.31
A28: Bersim | B28: ='Don_classe 1'!I9 -> 0 | H28: 0 | I28: 0 | J28: 0 | K28: 0 | L28: 0 | M28: 0 | N28: 0 | O28: 0
A29: Total | B29: =SUM(B10,B15,B18,B23,B26) -> 5.130795242 | C29: =SUM(C10,C15,C18,C23,C26) -> 5.816313666 | D29: =SUM(D10,D15,D18,D23,D26) -> 5.130795242 | E29: =SUM(E10,E15,E18,E23,E26) -> 5.130795242 | F29: 5.130795242 | G29: 5.130795242 | H29: 5.285036888 | I29: 5.473554454 | J29: 5.473554454 | K29: 5.473554454 | L29: 5.473554454 | M29: 5.473554454 | N29: 5.473554454 | O29: 5.473554454
A30: SAU | B30: 1.056696429 | C30: 1.056696429 | D30: 1.056696429 | E30: 1.056696429 | F30: 1.056696429 | G30: 1.056696429 | H30: 1.056696429 | I30: 1.056696429 | J30: 1.056696429 | K30: 1.056696429 | L30: 1.056696429 | M30: 1.056696429 | N30: 1.056696429 | O30: 1.056696429
A33: II. Evolution of Yields (Q/Ha)
B34: Yield actual | C34: Yield target | D34: w/o project | E34: With project
A35: Cultures | D35: Years 1-20 | E35: Years 1 | F35: 2 | G35: 3 | H35: 4 | I35: 5 | J35: 6 | K35: 7 | L35: 8 | M35: 9 | N35: 10 | O35: 11-20
A36: Cereals
A37: Soft wheat | B37: ='Don_classe 1'!G32*'Data&assumptions'!B234 -> 22.80620155 | C37: ='Don_classe 1'!P32*'Data&assumptions'!B234 -> 25.08682171 | D37: =B37 -> 22.80620155 | E37: =D37 -> 22.80620155 | F37: =E37 -> 22.80620155 | G37: =$F37+($C37-$B37)*'Data&assumptions'!$D$220 -> 23.6044186 | H37: =$F37+($C37-$B37)*'Data&assumptions'!$E$220 -> 24.74472868 | I37: =$F37+($C37-$B37)*'Data&assumptions'!$F$220 -> 25.08682171 | J37: =I37 -> 25.08682171 | K37: =J37 -> 25.08682171 | L37: 25.08682171 | M37: 25.08682171 | N37: 25.08682171 | O37: 25.08682171
A38: Hard wheat | B38: ='Don_classe 1'!G31*'Data&assumptions'!B234 -> 22.71143847 | C38: ='Don_classe 1'!P31*'Data&assumptions'!B234 -> 24.98258232 | D38: =B38 -> 22.71143847 | E38: =D38 -> 22.71143847 | F38: 22.71143847 | G38: =$F38+($C38-$B38)*'Data&assumptions'!$D$220 -> 23.50633882 | H38: =$F38+($C38-$B38)*'Data&assumptions'!$E$220 -> 24.64191075 | I38: =$F38+($C38-$B38)*'Data&assumptions'!$F$220 -> 24.98258232 | J38: =I38 -> 24.98258232 | K38: 24.98258232 | L38: 24.98258232 | M38: 24.98258232 | N38: 24.98258232 | O38: 24.98258232
A39: Barley | B39: ='Don_classe 1'!G39*'Data&assumptions'!B234 -> 20.34108527 | C39: ='Don_classe 1'!P39*'Data&assumptions'!B234 -> 23.02015504 | D39: 20.34108527 | E39: 20.34108527 | F39: 20.34108527 | G39: =$F39+($C39-$B39)*'Data&assumptions'!$D$220 -> 21.27875969 | H39: =$F39+($C39-$B39)*'Data&assumptions'!$E$220 -> 22.61829457 | I39: =$F39+($C39-$B39)*'Data&assumptions'!$F$220 -> 23.02015504 | J39: 23.02015504 | K39: 23.02015504 | L39: 23.02015504 | M39: 23.02015504 | N39: 23.02015504 | O39: 23.02015504
A40: Corn | B40: ='Don_classe 1'!G36*'Data&assumptions'!B234 -> 14.99315303 | C40: ='Don_classe 1'!P36*'Data&assumptions'!B234 -> 16.47535091 | D40: 14.99315303 | E40: 14.99315303 | F40: 14.99315303 | G40: =$F40+($C40-$B40)*'Data&assumptions'!$D$220 -> 15.51192229 | H40: =$F40+($C40-$B40)*'Data&assumptions'!$E$220 -> 16.25302123 | I40: =$F40+($C40-$B40)*'Data&assumptions'!$F$220 -> 16.47535091 | J40: 16.47535091 | K40: 16.47535091 | L40: 16.47535091 | M40: 16.47535091 | N40: 16.47535091 | O40: 16.47535091
A41: Legumes
A42: Peas | B42: ='Don_classe 1'!G34*'Data&assumptions'!B234 -> 13.06976744 | C42: ='Don_classe 1'!P34*'Data&assumptions'!B234 -> 14.3744186 | D42: 13.06976744 | E42: =D42 -> 13.06976744 | F42: =E42 -> 13.06976744 | G42: =$F42+($C42-$B42)*'Data&assumptions'!$D$220 -> 13.52639535 | H42: =$F42+($C42-$B42)*'Data&assumptions'!$E$220 -> 14.17872093 | I42: =$F42+($C42-$B42)*'Data&assumptions'!$F$220 -> 14.3744186 | J42: 14.3744186 | K42: 14.3744186 | L42: 14.3744186 | M42: 14.3744186 | N42: 14.3744186 | O42: 14.3744186
A43: bean | B43: ='Don_classe 1'!G33*'Data&assumptions'!B234 -> 13.04990758 | C43: ='Don_classe 1'!P33*'Data&assumptions'!B234 -> 14.35323475 | D43: 13.04990758 | E43: =D43 -> 13.04990758 | F43: =E43 -> 13.04990758 | G43: =$F43+($C43-$B43)*'Data&assumptions'!$D$220 -> 13.50607209 | H43: =$F43+($C43-$B43)*'Data&assumptions'!$E$220 -> 14.15773567 | I43: =$F43+($C43-$B43)*'Data&assumptions'!$F$220 -> 14.35323475 | J43: 14.35323475 | K43: 14.35323475 | L43: 14.35323475 | M43: 14.35323475 | N43: 14.35323475 | O43: 14.35323475
A44: Fruit Trees
A45: Olives | B45: ='Don_classe 1'!G26*'Data&assumptions'!B234 -> 35.61525278 | D45: =+'Data&assumptions'!B211*'Data&assumptions'!B234 -> 35.61525278 | E45: ='Data&assumptions'!B215 -> 35.61525278 | F45: ='Data&assumptions'!C215 -> 35.61525278 | G45: ='Data&assumptions'!D215 -> 36.94743219 | H45: ='Data&assumptions'!E215 -> 37.32482362 | I45: ='Data&assumptions'!F215 -> 37.73112267 | J45: ='Data&assumptions'!G215 -> 38.16901166 | K45: ='Data&assumptions'!H215 -> 38.64145263 | L45: ='Data&assumptions'!I215 -> 39.1517182 | M45: ='Data&assumptions'!J215 -> 39.70342592 | N45: ='Data&assumptions'!K215 -> 40.30057647 | O45: =(+N45+'Data&assumptions'!L207)*'Data&assumptions'!$B$234 -> 50.18126763
A46: Olives nouvelle plantation | B46: =0*'Data&assumptions'!B234 -> 0 | D46: 0 | E46: 0 | F46: 0 | G46: 0 | H46: 0 | I46: =+I45*'Data&assumptions'!F230 -> 18.86556134 | J46: =+J45*'Data&assumptions'!G230 -> 28.62675875 | K46: =+K45*'Data&assumptions'!H230 -> 34.77730737 | L46: =+L45*'Data&assumptions'!I230 -> 39.1517182 | M46: =+M45 -> 39.70342592 | N46: =+N45 -> 40.30057647 | O46: =+O45 -> 50.18126763
A47: Dates | B47: ='Don_classe 1'!G27*'Data&assumptions'!B234 -> 10.06698113 | C47: ='Don_classe 1'!P27*'Data&assumptions'!B234 -> 10.24811321 | D47: 10.06698113 | E47: =D47 -> 10.06698113 | F47: =E47 -> 10.06698113 | G47: =$F47+($C47-$B47)*'Data&assumptions'!$D$220 -> 10.13037736 | H47: =$F47+($C47-$B47)*'Data&assumptions'!$E$220 -> 10.2209434 | I47: =$F47+($C47-$B47)*'Data&assumptions'!$F$220 -> 10.24811321 | J47: 10.24811321 | K47: 10.24811321 | L47: 10.24811321 | M47: 10.24811321 | N47: 10.24811321 | O47: 10.24811321
A48: Other Tree Crops | B48: ='Don_classe 1'!G28*'Data&assumptions'!B234 -> 43.96354167 | C48: ='Don_classe 1'!P28*'Data&assumptions'!B234 -> 48.35703125 | D48: 43.96354167 | E48: =D48 -> 43.96354167 | F48: =E48 -> 43.96354167 | G48: =$F48+($C48-$B48)*'Data&assumptions'!$D$220 -> 45.50126302 | H48: =$F48+($C48-$B48)*'Data&assumptions'!$E$220 -> 47.69800781 | I48: =$F48+($C48-$B48)*'Data&assumptions'!$F$220 -> 48.35703125 | J48: 48.35703125 | K48: 48.35703125 | L48: 48.35703125 | M48: 48.35703125 | N48: 48.35703125 | O48: 48.35703125
A49: Horticulture
A50: Winter horticulture | B50: ='Don_classe 1'!G38*'Data&assumptions'!B234 -> 145.8345566 | C50: ='Don_classe 1'!P38*'Data&assumptions'!B234 -> 160.4143731 | D50: 145.8345566 | E50: =D50 -> 145.8345566 | F50: =E50 -> 145.8345566 | G50: =$F50+($C50-$B50)*'Data&assumptions'!$D$220 -> 150.9374924 | H50: =$F50+($C50-$B50)*'Data&assumptions'!$E$220 -> 158.2274006 | I50: =$F50+($C50-$B50)*'Data&assumptions'!$F$220 -> 160.4143731 | J50: 160.4143731 | K50: 160.4143731 | L50: 160.4143731 | M50: 160.4143731 | N50: 160.4143731 | O50: 160.4143731
A51: Summer horticulture | B51: ='Don_classe 1'!G37*'Data&assumptions'!B234 -> 157.0111111 | C51: ='Don_classe 1'!P37*'Data&assumptions'!B234 -> 182.6148148 | D51: 157.0111111 | E51: =D51 -> 157.0111111 | F51: =E51 -> 157.0111111 | G51: =$F51+($C51-$B51)*'Data&assumptions'!$D$220 -> 165.9724074 | H51: =$F51+($C51-$B51)*'Data&assumptions'!$E$220 -> 178.7742593 | I51: =$F51+($C51-$B51)*'Data&assumptions'!$F$220 -> 182.6148148 | J51: 182.6148148 | K51: 182.6148148 | L51: 182.6148148 | M51: 182.6148148 | N51: 182.6148148 | O51: 182.6148148
A52: Feed Crops
A53: Alfalfa | B53: ='Don_classe 1'!G35*'Data&assumptions'!B234 -> 560.9081935 | C53: ='Don_classe 1'!P35*'Data&assumptions'!B234 -> 618.2625864 | D53: 560.9081935 | E53: =D53 -> 560.9081935 | F53: =E53 -> 560.9081935 | G53: =$F53+($C53-$B53)*'Data&assumptions'!$D$220 -> 580.982231 | H53: =$F53+($C53-$B53)*'Data&assumptions'!$E$220 -> 609.6594274 | I53: =$F53+($C53-$B53)*'Data&assumptions'!$F$220 -> 618.2625864 | J53: 618.2625864 | K53: 618.2625864 | L53: 618.2625864 | M53: 618.2625864 | N53: 618.2625864 | O53: 618.2625864
A54: Bersim
A55: Secondary products
A56: Straw Hard wheat | B56: ='Don_classe 1'!G41*'Data&assumptions'!B234 -> 30.33448873 | C56: ='Don_classe 1'!P41*'Data&assumptions'!B234 -> 30.52582322 | D56: 30.33448873 | E56: =D56 -> 30.33448873 | F56: 30.33448873 | G56: =$F56+($C56-$B56)*'Data&assumptions'!$D$220 -> 30.40145581 | H56: =$F56+($C56-$B56)*'Data&assumptions'!$E$220 -> 30.49712305 | I56: =$F56+($C56-$B56)*'Data&assumptions'!$F$220 -> 30.52582322 | J56: =I56 -> 30.52582322 | K56: 30.52582322 | L56: 30.52582322 | M56: 30.52582322 | N56: 30.52582322 | O56: 30.52582322
A57: Straw Soft wheat | B57: ='Don_classe 1'!G42*'Data&assumptions'!B234 -> 30.40465116 | C57: ='Don_classe 1'!P42*'Data&assumptions'!B234 -> 30.65271318 | D57: 30.40465116 | E57: 30.40465116 | F57: 30.40465116 | G57: =$F57+($C57-$B57)*'Data&assumptions'!$D$220 -> 30.49147287 | H57: =$F57+($C57-$B57)*'Data&assumptions'!$E$220 -> 30.61550388 | I57: =$F57+($C57-$B57)*'Data&assumptions'!$F$220 -> 30.65271318 | J57: 30.65271318 | K57: 30.65271318 | L57: 30.65271318 | M57: 30.65271318 | N57: 30.65271318 | O57: 30.65271318
A58: Straw Barley | B58: ='Don_classe 1'!G43*'Data&assumptions'!B234 -> 22.36434109 | C58: ='Don_classe 1'!P43*'Data&assumptions'!B234 -> 22.79844961 | D58: 22.36434109 | E58: 22.36434109 | F58: 22.36434109 | G58: =$F58+($C58-$B58)*'Data&assumptions'!$D$220 -> 22.51627907 | H58: =$F58+($C58-$B58)*'Data&assumptions'!$E$220 -> 22.73333333 | I58: =$F58+($C58-$B58)*'Data&assumptions'!$F$220 -> 22.79844961 | J58: 22.79844961 | K58: 22.79844961 | L58: 22.79844961 | M58: 22.79844961 | N58: 22.79844961 | O58: 22.79844961
A59: Peas (SP) | D59: 0 | E59: 0 | F59: 0 | G59: =$F59+($C59-$B59)*'Data&assumptions'!$D$220 -> 0 | H59: =$F59+($C59-$B59)*'Data&assumptions'!$E$220 -> 0 | I59: =$F59+($C59-$B59)*'Data&assumptions'!$F$220 -> 0 | J59: 0 | K59: 0 | L59: 0 | M59: 0 | N59: 0 | O59: 0
A60: bean (SP) | D60: 0 | E60: 0 | F60: 0 | G60: =$F60+($C60-$B60)*'Data&assumptions'!$D$220 -> 0 | H60: =$F60+($C60-$B60)*'Data&assumptions'!$E$220 -> 0 | I60: =$F60+($C60-$B60)*'Data&assumptions'!$F$220 -> 0 | J60: 0 | K60: 0 | L60: 0 | M60: 0 | N60: 0 | O60: 0
A61: Corn (SP) (UF/HA) | B61: ='Don_classe 1'!G46*'Data&assumptions'!B234 -> 1073.296816 | C61: ='Don_classe 1'!P46*'Data&assumptions'!B234 -> 1074.66621 | D61: 1073.296816 | E61: 1073.296816 | F61: 1073.296816 | G61: =$F61+($C61-$B61)*'Data&assumptions'!$D$220 -> 1073.776104 | H61: =$F61+($C61-$B61)*'Data&assumptions'!$E$220 -> 1074.460801 | I61: =$F61+($C61-$B61)*'Data&assumptions'!$F$220 -> 1074.66621 | J61: 1074.66621 | K61: 1074.66621 | L61: 1074.66621 | M61: 1074.66621 | N61: 1074.66621 | O61: 1074.66621
A63: III. Evolution of production (Q)
B64: w/o project | C64: With project
A65: Cultures | B65: Years 1-20 | C65: Years 1 | D65: 2 | E65: 3 | F65: 4 | G65: 5 | H65: 6 | I65: 7 | J65: 8 | K65: 9 | L65: 10 | M65: 11-20
A66: Cereals
A67: Soft wheat | B67: =D37*D11 -> 15.57069501 | C67: 15.57069501 | D67: =F37*F11 -> 15.57069501 | E67: 16.11566934 | F67: 16.89420409 | G67: 17.12776452 | H67: 17.12776452 | I67: 17.12776452 | J67: 17.12776452 | K67: 17.12776452 | L67: 17.12776452 | M67: =O37*O11*10 -> 171.2776452
A68: Hard wheat | B68: 27.7425116 | C68: 27.7425116 | D68: 27.7425116 | E68: 28.7134995 | F68: 30.10062508 | G68: 30.51676276 | H68: 30.51676276 | I68: 30.51676276 | J68: 30.51676276 | K68: =M38*M12 -> 30.51676276 | L68: 30.51676276 | M68: =O38*O12*10 -> 305.1676276
A69: Barley | B69: 2.777532544 | C69: 2.777532544 | D69: 2.777532544 | E69: 2.905570019 | F69: 3.088480699 | G69: 3.143353903 | H69: 3.143353903 | I69: 3.143353903 | J69: 3.143353903 | K69: 3.143353903 | L69: 3.143353903 | M69: =O39*O13*10 -> 31.43353903
A70: Corn | B70: 4.63574839 | C70: 4.63574839 | D70: 4.63574839 | E70: 4.796147189 | F70: 5.025288332 | G70: 5.094030674 | H70: 5.094030674 | I70: 5.094030674 | J70: 5.094030674 | K70: 5.094030674 | L70: 5.094030674 | M70: =O40*O14*10 -> 50.94030674
A71: Legumes
A72: Peas | B72: =D42*D16 -> 0.2688995215 | C72: 0.2688995215 | D72: 0.2688995215 | E72: 0.2782942584 | F72: 0.291715311 | G72: 0.2957416268 | H72: 0.2957416268 | I72: 0.2957416268 | J72: 0.2957416268 | K72: 0.2957416268 | L72: 0.2957416268 | M72: =O42*O16*10 -> 2.957416268
A73: bean | B73: 1.688995215 | C73: 1.688995215 | D73: 1.688995215 | E73: 1.748034689 | F73: 1.832376794 | G73: 1.857679426 | H73: 1.857679426 | I73: 1.857679426 | J73: 1.857679426 | K73: 1.857679426 | L73: 1.857679426 | M73: 1.857679426
A74: Fruit Trees
A75: Olives | B75: =(D45*D19)+(D20*D46) -> 56.98440446 | C75: =(D45*D19)+(D20*D46) -> 56.98440446 | D75: 56.98440446 | E75: 56.98440446 | F75: 59.1158915 | G75: 59.71971779 | H75: 66.83614121 | I75: 70.88250392 | J75: 73.74656666 | K75: 76.06236119 | L75: 77.13419644 | M75: =((O45*N19)+(N20*O46))*10 -> 974.9011995
A76: Sold unprocessed | B76: =+B75*'Data&assumptions'!$B$157/100 -> 17.60818098 | C76: =+C75*'Data&assumptions'!$B$157/100 -> 17.60818098 | D76: =+D75*'Data&assumptions'!$B$157/100 -> 17.60818098 | E76: =+E75*'Data&assumptions'!$B$157/100 -> 17.60818098 | F76: =+F75*'Data&assumptions'!$B$157/100 -> 18.26681047 | G76: =+G75*'Data&assumptions'!$B$157/100 -> 18.4533928 | H76: =+H75*'Data&assumptions'!$B$157/100 -> 20.65236763 | I76: =+I75*'Data&assumptions'!$B$157/100 -> 21.90269371 | J76: =+J75*'Data&assumptions'!$B$157/100 -> 22.7876891 | K76: =+K75*'Data&assumptions'!$B$157/100 -> 23.50326961 | L76: =+L75*'Data&assumptions'!$B$157/100 -> 23.8344667 | M76: =+M75*'Data&assumptions'!$B$157/100 -> 301.2444706
A77: Transformation olive | B77: =+B75-B76 -> 39.37622348 | C77: =+C75-C76 -> 39.37622348 | D77: 39.37622348 | E77: 39.37622348 | F77: 40.84908103 | G77: 41.26632499 | H77: 46.18377358 | I77: 48.97981021 | J77: 50.95887756 | K77: 52.55909158 | L77: 53.29972974 | M77: 673.6567288
A78: Part traditional processing | B78: =+'Data&assumptions'!B171*B77 -> 12.16725306 | C78: =+'Data&assumptions'!C171*C77 -> 12.16725306 | D78: =+'Data&assumptions'!D171*D77 -> 13.78167822 | E78: =+'Data&assumptions'!E171*E77 -> 13.78167822 | F78: =+'Data&assumptions'!F171*F77 -> 12.25472431 | G78: =+'Data&assumptions'!G171*G77 -> 10.31658125 | H78: =+'Data&assumptions'!H171*H77 -> 0 | I78: =+'Data&assumptions'!I171*I77 -> 0 | J78: =+'Data&assumptions'!J171*J77 -> 0 | K78: =+'Data&assumptions'!K171*K77 -> 0 | L78: =+'Data&assumptions'!L171*L77 -> 0 | M78: =+'Data&assumptions'!M171*M77 -> 0
A79: Part modern processing | B79: =+'Data&assumptions'!B172*B77 -> 27.20897042 | C79: =+'Data&assumptions'!C172*C77 -> 27.20897042 | D79: =+'Data&assumptions'!D172*D77 -> 25.59454526 | E79: =+'Data&assumptions'!E172*E77 -> 25.59454526 | F79: =+'Data&assumptions'!F172*F77 -> 28.59435672 | G79: =+'Data&assumptions'!G172*G77 -> 30.94974375 | H79: =+'Data&assumptions'!H172*H77 -> 46.18377358 | I79: =+'Data&assumptions'!I172*I77 -> 48.97981021 | J79: =+'Data&assumptions'!J172*J77 -> 50.95887756 | K79: =+'Data&assumptions'!K172*K77 -> 52.55909158 | L79: =+'Data&assumptions'!L172*L77 -> 53.29972974 | M79: =+'Data&assumptions'!M172*M77 -> 673.6567288
A80: Dates | B80: =D47*D21 -> 1.540945174 | C80: 1.540945174 | D80: 1.540945174 | E80: 1.550649186 | F80: 1.564512061 | G80: 1.568670923 | H80: 1.568670923 | I80: 1.568670923 | J80: 1.568670923 | K80: 1.568670923 | L80: 1.568670923 | M80: =O47*O21*10 -> 15.68670923
A81: Other Tree Crops | B81: 24.37844291 | C81: 24.37844291 | D81: 24.37844291 | E81: 25.23113245 | F81: 26.44926037 | G81: 26.81469874 | H81: 26.81469874 | I81: 26.81469874 | J81: 26.81469874 | K81: 26.81469874 | L81: 26.81469874 | M81: =O48*O22*10 -> 268.1469874
A82: Horticulture
A83: Winter horticulture | B83: =D50*D24 -> 1.926621665 | C83: 1.926621665 | D83: 1.926621665 | E83: 0 | F83: 0 | G83: 0 | H83: 0 | I83: 0 | J83: 0 | K83: 0 | L83: 0 | M83: 0
A84: Summer horticulture | B84: 0 | C84: 0 | D84: 0 | E84: 2.192662997 | F84: 2.361788379 | G84: 2.412525994 | H84: 2.412525994 | I84: 2.412525994 | J84: 2.412525994 | K84: 2.412525994 | L84: 2.412525994 | M84: =O51*O25*10 -> 24.12525994
A85: Feed Crops
A86: Alfalfa | B86: =D53*D27 -> 173.88154 | C86: 173.88154 | D86: 173.88154 | E86: 180.1044916 | F86: 188.9944225 | G86: 191.6614018 | H86: 191.6614018 | I86: 191.6614018 | J86: 191.6614018 | K86: 191.6614018 | L86: 191.6614018 | M86: =O53*O27*10 -> 1916.614018
A87: Bersim | B87: 0 | C87: 0 | D87: 0 | E87: 0 | F87: 0 | G87: 0 | H87: 0 | I87: 0 | J87: 0 | K87: 0 | L87: 0 | M87: 0
A88: Secondary products
A89: Straw Hard wheat | B89: =D56*D12 -> 37.05423179 | C89: 37.05423179 | D89: 37.05423179 | E89: 37.13603351 | F89: 37.25289311 | G89: 37.28795099 | H89: 37.28795099 | I89: 37.28795099 | J89: 37.28795099 | K89: 37.28795099 | L89: 37.28795099 | M89: =O56*O12*10 -> 372.8795099
A90: Straw Soft wheat | B90: =D57*D11 -> 20.75845683 | C90: 20.75845683 | D90: 20.75845683 | E90: 20.81773344 | F90: 20.90241431 | G90: 20.92781857 | H90: 20.92781857 | I90: 20.92781857 | J90: 20.92781857 | K90: 20.92781857 | L90: 20.92781857 | M90: =O57*O11*10 -> 209.2781857
A91: Straw Barley | B91: =D58*D13 -> 3.053803883 | C91: 3.053803883 | D91: 3.053803883 | E91: 3.074550696 | F91: 3.104189 | G91: 3.113080492 | H91: 3.113080492 | I91: 3.113080492 | J91: 3.113080492 | K91: 3.113080492 | L91: 3.113080492 | M91: =O58*O13*10 -> 31.13080492
A92: Peas (SP) | B92: =D59*D16 -> 0 | C92: 0 | D92: 0 | E92: 0 | F92: 0 | G92: 0 | H92: 0 | I92: 0 | J92: 0 | K92: 0 | L92: 0 | M92: 0
A93: bean (SP) | B93: 0 | C93: 0 | D93: 0 | E93: 0 | F93: 0 | G93: 0 | H93: 0 | I93: 0 | J93: 0 | K93: 0 | L93: 0 | M93: 0
A94: Corn (SP) (UF/HA) | B94: =D61*D14 -> 331.8537453 | C94: 331.8537453 | D94: 331.8537453 | E94: 332.0019368 | F94: 332.213639 | G94: 332.2771497 | H94: 332.2771497 | I94: 332.2771497 | J94: 332.2771497 | K94: 332.2771497 | L94: 332.2771497 | M94: =O61*O14*10 -> 3322.771497
A97: IV. Producer prices (DH/Q)
B98: Financial price | C98: Conversion factor | D98: Economic price | G98: Conversion factor
A99: Cultures
A100: Cereals
A101: Soft wheat | B101: ='Don_classe 1'!G60 -> 272.6104691 | C101: ='ERR & Sensitivity Analysis'!G$14 -> 1 | D101: =B101*C101 -> 272.6104691 | E101: Source of conversion factors: TC-1B Calcul-Price-Paritaires | G101: 0.93
A102: Hard wheat | B102: ='Don_classe 1'!G59 -> 303.6628639 | C102: ='ERR & Sensitivity Analysis'!G$14 -> 1 | D102: =B102*C102 -> 303.6628639 | G102: 1.45
A103: Barley | B103: ='Don_classe 1'!G67 -> 207.6219512 | C103: ='ERR & Sensitivity Analysis'!G$14 -> 1 | D103: =B103*C103 -> 207.6219512 | G103: 0.85
A104: Corn | B104: 150 | C104: ='ERR & Sensitivity Analysis'!G$14 -> 1 | D104: =B104*C104 -> 150 | G104: 1
A105: Legumes
A106: Peas | B106: ='Don_classe 1'!G62 -> 380 | C106: ='ERR & Sensitivity Analysis'!G$14 -> 1 | D106: =B106*C106 -> 380 | G106: 1
A107: bean | B107: ='Don_classe 1'!G61 -> 394.3342776 | C107: ='ERR & Sensitivity Analysis'!G$14 -> 1 | D107: =B107*C107 -> 394.3342776 | G107: 1
A108: Fruit Trees
A109: Olives | B109: =+'Data&assumptions'!B164 -> 395.7 | C109: ='ERR & Sensitivity Analysis'!G$14 -> 1 | D109: =B109*C109 -> 395.7 | G109: 1
A110: Unit value with traditional processing | B110: =+'Data&assumptions'!D182*100 -> 2320 | C110: =1.1*'ERR & Sensitivity Analysis'!G$14 -> 1.1 | D110: =+B110*C110 -> 2552 | E110: =SUM(B237:U237) -> 103719.263
A111: Unit value with modern processing | B111: ='Data&assumptions'!E182*100 -> 2429 | C111: =1.4*'ERR & Sensitivity Analysis'!G$14 -> 1.4 | D111: =+B111*C111 -> 3400.6
A112: Dates | B112: ='Don_classe 1'!G55 -> 5000 | C112: ='ERR & Sensitivity Analysis'!G$14 -> 1 | D112: =B112*C112 -> 5000 | G112: 1
A113: Other Tree Crops | B113: ='Don_classe 1'!G56 -> 300 | C113: ='ERR & Sensitivity Analysis'!G$14 -> 1 | D113: =B113*C113 -> 300 | G113: 1
A114: Horticulture
A115: Winter horticulture | B115: ='Don_classe 1'!G66 -> 200 | C115: ='ERR & Sensitivity Analysis'!G$14 -> 1 | D115: =B115*C115 -> 200 | G115: 1
A116: Summer horticulture | B116: ='Don_classe 1'!G65 -> 206.225792 | C116: ='ERR & Sensitivity Analysis'!G$14 -> 1 | D116: =B116*C116 -> 206.225792 | G116: 1
A117: Feed Crops
A118: Alfalfa | B118: ='Don_classe 1'!G63 -> 1.54875044 | C118: ='ERR & Sensitivity Analysis'!G$14 -> 1 | D118: =B118*C118 -> 1.54875044 | G118: 1
A119: Bersim | C119: ='ERR & Sensitivity Analysis'!G$14 -> 1 | D119: =B119*C119 -> 0 | G119: 1
A120: Secondary products
A121: Straw wheat | B121: ='Don_classe 1'!G69 -> 84.32325887 | C121: ='ERR & Sensitivity Analysis'!G$14 -> 1 | D121: =B121*C121 -> 84.32325887 | G121: 1
A122: Straw Barley | B122: ='Don_classe 1'!G71 -> 64.47140381 | C122: ='ERR & Sensitivity Analysis'!G$14 -> 1 | D122: =B122*C122 -> 64.47140381 | G122: 1
A123: Peas (SP) | C123: ='ERR & Sensitivity Analysis'!G$14 -> 1 | D123: =B123*C123 -> 0 | G123: 1
A124: bean (SP) | C124: ='ERR & Sensitivity Analysis'!G$14 -> 1 | D124: =B124*C124 -> 0 | G124: 1
A125: Corn (SP) (DH/UF) | B125: ='Don_classe 1'!G74 -> 1.212185895 | C125: ='ERR & Sensitivity Analysis'!G$14 -> 1 | D125: =B125*C125 -> 1.212185895 | G125: 1
A126: Daily pay of labor | C126: ='ERR & Sensitivity Analysis'!G$14 -> 1 | G126: 0.5
A127: Source : Etude faisabilité et contrôle sur le terrain (juillet 2013)
A129: V. Evolution of value of production (DH)
B130: w/o project | C130: With project
A131: Cultures | B131: Years 1-20 | C131: Years 1 | D131: 2 | E131: 3 | F131: 4 | G131: 5 | H131: 6 | I131: 7 | J131: 8 | K131: 9 | L131: 10 | M131: 11-20
A132: Cereals | B132: =SUM(B133:B136) -> 13941.14398 | C132: =SUM(C133:C136) -> 13941.14398 | D132: 13941.14398 | E132: 14435.20587 | F132: 15141.00856 | G132: 15352.74937 | H132: 15352.74937 | I132: 15352.74937 | J132: 15352.74937 | K132: 15352.74937 | L132: 15352.74937 | M132: 153527.4937
A133: Soft wheat | B133: =$D$101*B67 -> 4244.734471 | C133: =$D$101*C67 -> 4244.734471 | D133: 4244.734471 | E133: 4393.300178 | F133: 4605.536901 | G133: 4669.207919 | H133: 4669.207919 | I133: 4669.207919 | J133: 4669.207919 | K133: 4669.207919 | L133: 4669.207919 | M133: 46692.07919
A134: Hard wheat | B134: =$D$102*B68 -> 8424.370524 | C134: =$D$102*C68 -> 8424.370524 | D134: 8424.370524 | E134: 8719.223492 | F134: 9140.442018 | G134: 9266.807576 | H134: 9266.807576 | I134: 9266.807576 | J134: 9266.807576 | K134: 9266.807576 | L134: 9266.807576 | M134: 92668.07576
A135: Barley | B135: =$D$103*B69 -> 576.6767263 | C135: =$D$103*C69 -> 576.6767263 | D135: 576.6767263 | E135: 603.2601168 | F135: 641.236389 | G135: 652.6292707 | H135: 652.6292707 | I135: 652.6292707 | J135: 652.6292707 | K135: 652.6292707 | L135: 652.6292707 | M135: 6526.292707
A136: Corn | B136: =$D$104*B70 -> 695.3622585 | C136: =$D$104*C70 -> 695.3622585 | D136: 695.3622585 | E136: 719.4220784 | F136: 753.7932497 | G136: 764.1046011 | H136: 764.1046011 | I136: 764.1046011 | J136: 764.1046011 | K136: 764.1046011 | L136: 764.1046011 | M136: 7641.046011
A137: Legumes | B137: =SUM(B138:B139) -> 768.2105263 | C137: =SUM(C138:C139) -> 768.2105263 | D137: 768.2105263 | E137: 795.0618145 | F137: 833.4207977 | G137: 844.9284926 | H137: 844.9284926 | I137: 844.9284926 | J137: 844.9284926 | K137: 844.9284926 | L137: 844.9284926 | M137: 1856.364856
A138: Peas | B138: =$D$106*B72 -> 102.1818182 | C138: =$D$106*C72 -> 102.1818182 | D138: 102.1818182 | E138: 105.7518182 | F138: 110.8518182 | G138: 112.3818182 | H138: 112.3818182 | I138: 112.3818182 | J138: 112.3818182 | K138: 112.3818182 | L138: 112.3818182 | M138: 1123.818182
A139: bean | B139: =$D$107*B73 -> 666.0287081 | C139: =$D$107*C73 -> 666.0287081 | D139: 666.0287081 | E139: 689.3099963 | F139: 722.5689795 | G139: 732.5466744 | H139: 732.5466744 | I139: 732.5466744 | J139: 732.5466744 | K139: 732.5466744 | L139: 732.5466744 | M139: 732.5466744
A140: Fruit Trees | B140: =SUM(B141:B146) -> 44476.94909 | C140: =SUM(C141:C146) -> 44476.94909 | D140: 44227.60888 | E140: 44531.9358 | F140: 46374.70403 | G140: 47136.5335 | H140: 52643.46847 | I140: 54868.71529 | J140: 56443.77096 | K140: 57717.31334 | L140: 58306.75581 | M140: 548344.2829
A141: Olives | B141: =+B76*$D$109 -> 6967.557213 | C141: =+C76*$D$109 -> 6967.557213 | D141: 6967.557213 | E141: 6967.557213 | F141: 7228.176905 | G141: 7302.00753 | H141: 8172.141873 | I141: 8666.895901 | J141: 9017.088576 | K141: 9300.243783 | L141: 9431.298474 | M141: 119202.437
A142: Oil olive
A143: Traditional processing | B143: =+$D110*'Data&assumptions'!$B$185*B78 -> 5651.251023 | C143: =+$D110*'Data&assumptions'!$B$185*C78 -> 5651.251023 | D143: =+$D110*'Data&assumptions'!$B$185*D78 -> 6401.093392 | E143: =+$D110*'Data&assumptions'!$B$185*E78 -> 6401.093392 | F143: =+$D110*'Data&assumptions'!$B$185*F78 -> 5691.878271 | G143: =+$D110*'Data&assumptions'!$B$185*G78 -> 4791.680593 | H143: =+$D110*'Data&assumptions'!$B$185*H78 -> 0 | I143: =+$D110*'Data&assumptions'!$B$185*I78 -> 0 | J143: =+$D110*'Data&assumptions'!$B$185*J78 -> 0 | K143: =+$D110*'Data&assumptions'!$B$185*K78 -> 0 | L143: =+$D110*'Data&assumptions'!$B$185*L78 -> 0 | M143: =SUM(C143:L143) -> 28936.99667
A144: Modern processing | B144: =+$D111*'Data&assumptions'!$B$185*B79 -> 16839.88212 | C144: =+$D111*'Data&assumptions'!$B$185*C79 -> 16839.88212 | D144: =+$D111*'Data&assumptions'!$B$185*D79 -> 15840.69953 | E144: =+$D111*'Data&assumptions'!$B$185*E79 -> 15840.69953 | F144: =+$D111*'Data&assumptions'!$B$185*F79 -> 17697.31044 | G144: =+$D111*'Data&assumptions'!$B$185*G79 -> 19155.08114 | H144: =+$D111*'Data&assumptions'!$B$185*H79 -> 28583.56236 | I144: =+$D111*'Data&assumptions'!$B$185*I79 -> 30314.05515 | J144: =+$D111*'Data&assumptions'!$B$185*J79 -> 31538.91815 | K144: =+$D111*'Data&assumptions'!$B$185*K79 -> 32529.30532 | L144: =+$D111*'Data&assumptions'!$B$185*L79 -> 32987.69309 | M144: =SUM(C144:L144) -> 241327.2068
A145: Dates | B145: =$D$112*B80 -> 7704.725869 | C145: =$D$112*C80 -> 7704.725869 | D145: 7704.725869 | E145: 7753.245931 | F145: 7822.560305 | G145: 7843.354617 | H145: 7843.354617 | I145: 7843.354617 | J145: 7843.354617 | K145: 7843.354617 | L145: 7843.354617 | M145: 78433.54617
A146: Other Tree Crops | B146: =$D$113*B81 -> 7313.532872 | C146: =$D$113*C81 -> 7313.532872 | D146: 7313.532872 | E146: 7569.339734 | F146: 7934.77811 | G146: 8044.409622 | H146: 8044.409622 | I146: 8044.409622 | J146: 8044.409622 | K146: 8044.409622 | L146: 8044.409622 | M146: 80444.09622
A147: Horticulture | B147: =SUM(B148:B149) -> 385.324333 | C147: =SUM(C148:C149) -> 385.324333 | D147: 385.324333 | E147: 452.1836631 | F147: 487.061679 | G147: 497.5250838 | H147: 497.5250838 | I147: 497.5250838 | J147: 497.5250838 | K147: 497.5250838 | L147: 497.5250838 | M147: 4975.250838
A148: Winter horticulture | B148: =$D$115*B83 -> 385.324333 | C148: =$D$115*C83 -> 385.324333 | D148: 385.324333 | E148: 0 | F148: 0 | G148: 0 | H148: 0 | I148: 0 | J148: 0 | K148: 0 | L148: 0 | M148: 0
A149: Summer horticulture | B149: =$D$116*B84 -> 0 | C149: =$D$116*C84 -> 0 | D149: 0 | E149: 452.1836631 | F149: 487.061679 | G149: 497.5250838 | H149: 497.5250838 | I149: 497.5250838 | J149: 497.5250838 | K149: 497.5250838 | L149: 497.5250838 | M149: 4975.250838
A150: Feed Crops | B150: =SUM(B151:B152) -> 269.2991115 | C150: =SUM(C151:C152) -> 269.2991115 | D150: 269.2991115 | E150: 278.9369106 | F150: 292.705195 | G150: 296.8356803 | H150: 296.8356803 | I150: 296.8356803 | J150: 296.8356803 | K150: 296.8356803 | L150: 296.8356803 | M150: 2968.356803
A151: Alfalfa | B151: =$D$118*B86 -> 269.2991115 | C151: =$D$118*C86 -> 269.2991115 | D151: 269.2991115 | E151: 278.9369106 | F151: 292.705195 | G151: 296.8356803 | H151: 296.8356803 | I151: 296.8356803 | J151: 296.8356803 | K151: 296.8356803 | L151: 296.8356803 | M151: 2968.356803
A152: Bersim | B152: =$D$119*B87 -> 0 | C152: =$D$119*C87 -> 0 | D152: 0 | E152: 0 | F152: 0 | G152: 0 | H152: 0 | I152: 0 | J152: 0 | K152: 0 | L152: 0 | M152: 0
A153: Secondary products | B153: =SUM(B154:B159) -> 5474.105761 | C153: =SUM(C154:C159) -> 5474.105761 | D153: 5474.105761 | E153: 5487.519157 | F153: 5506.681152 | G153: 5512.429751 | H153: 5512.429751 | I153: 5512.429751 | J153: 5512.429751 | K153: 5512.429751 | L153: 5512.429751 | M153: 55124.29751
A154: Straw Hard wheat | B154: =$D$121*B89 -> 3124.53358 | C154: =$D$121*C89 -> 3124.53358 | D154: 3124.53358 | E154: 3131.431367 | F154: 3141.28535 | G154: 3144.241544 | H154: 3144.241544 | I154: 3144.241544 | J154: 3144.241544 | K154: 3144.241544 | L154: 3144.241544 | M154: 31442.41544
A155: Straw Soft wheat | B155: =$D$121*B90 -> 1750.420729 | C155: 1750.420729 | D155: 1750.420729 | E155: 1755.419126 | F155: 1762.559693 | G155: 1764.701863 | H155: 1764.701863 | I155: 1764.701863 | J155: 1764.701863 | K155: 1764.701863 | L155: 1764.701863 | M155: 17647.01863
A156: Straw Barley | B156: =$D$122*B91 -> 196.8830233 | C156: =$D$122*C91 -> 196.8830233 | D156: 196.8830233 | E156: 198.2205995 | F156: 200.1314226 | G156: 200.7046695 | H156: 200.7046695 | I156: 200.7046695 | J156: 200.7046695 | K156: 200.7046695 | L156: 200.7046695 | M156: 2007.046695
A157: Peas (SP) | B157: =$D$123*B92 -> 0 | C157: =$D$123*C92 -> 0 | D157: 0 | E157: 0 | F157: 0 | G157: 0 | H157: 0 | I157: 0 | J157: 0 | K157: 0 | L157: 0 | M157: 0
A158: bean (SP) | B158: =$D$124*B93 -> 0 | C158: =$D$124*C93 -> 0 | D158: 0 | E158: 0 | F158: 0 | G158: 0 | H158: 0 | I158: 0 | J158: 0 | K158: 0 | L158: 0 | M158: 0
A159: Corn (SP) | B159: =$D$125*B94 -> 402.2684294 | C159: =$D$125*C94 -> 402.2684294 | D159: 402.2684294 | E159: 402.448065 | F159: 402.7046874 | G159: 402.7816741 | H159: 402.7816741 | I159: 402.7816741 | J159: 402.7816741 | K159: 402.7816741 | L159: 402.7816741 | M159: 4027.816741
A160: value totale of production | B160: =SUM(B132,B137,B140,B147,B150,B153) -> 65315.03281 | C160: =SUM(C132,C137,C140,C147,C150,C153) -> 65315.03281 | D160: 65065.69259 | E160: 65980.84321 | F160: 68635.58142 | G160: 69641.00188 | H160: 75147.93684 | I160: 77373.18367 | J160: 78948.23933 | K160: 80221.78172 | L160: 80811.22418 | M160: 766796.0466
A162: VI. Evolution of costs of production (DH)
A164: Charges w/o labor
B166: Cost (DH/Ha) | D166: w/o project | E166: With project
B167: w/o project | C167: With project | D167: Years 1-20 | E167: Years 1 | F167: 2 | G167: 3 | H167: 4 | I167: 5 | J167: 6 | K167: 7 | L167: 8 | M167: 9 | N167: 10 | O167: 11-20
A168: Cultures
A169: Cereals | D169: =SUM(D170:D173) -> 7024.113107 | E169: =SUM(E170:E173) -> 7024.113107 | F169: =SUM(F170:F173) -> 7024.113107 | G169: =SUM(G170:G173) -> 4671.560036 | H169: =SUM(H170:H173) -> 4671.560036 | I169: 4671.560036 | J169: 4671.560036 | K169: 4671.560036 | L169: 4671.560036 | M169: 4671.560036 | N169: 4671.560036 | O169: 46715.60036
A170: Soft wheat | B170: ='Don_classe 1'!G87 -> 2168.421705 | C170: ='Don_classe 1'!P87 -> 2115.275969 | D170: =+B170 -> 2168.421705 | E170: =D170 -> 2168.421705 | F170: 2168.421705 | G170: =$C$170*G11 -> 1444.182492 | H170: =$C$170*H11 -> 1444.182492 | I170: 1444.182492 | J170: 1444.182492 | K170: 1444.182492 | L170: 1444.182492 | M170: 1444.182492 | N170: 1444.182492 | O170: =+N170*10 -> 14441.82492
A171: Hard wheat | B171: ='Don_classe 1'!G86 -> 2213.088388 | C171: ='Don_classe 1'!P86 -> 2158.996534 | D171: =+B171 -> 2213.088388 | E171: 2213.088388 | F171: 2213.088388 | G171: =$C$171*G12 -> 2637.260799 | H171: =$C$171*H12 -> 2637.260799 | I171: 2637.260799 | J171: 2637.260799 | K171: 2637.260799 | L171: 2637.260799 | M171: 2637.260799 | N171: 2637.260799 | O171: =+N171*10 -> 26372.60799
A172: Barley | B172: ='Don_classe 1'!G94 -> 771.6434109 | C172: ='Don_classe 1'!P94 -> 680.0077519 | D172: =+B172 -> 771.6434109 | E172: 771.6434109 | F172: 771.6434109 | G172: =$C$172*G13 -> 92.85363272 | H172: =$C$172*H13 -> 92.85363272 | I172: 92.85363272 | J172: 92.85363272 | K172: 92.85363272 | L172: 92.85363272 | M172: 92.85363272 | N172: 92.85363272 | O172: =+N172*10 -> 928.5363272
A173: Corn | B173: ='Don_classe 1'!G91 -> 1870.959603 | C173: ='Don_classe 1'!P91 -> 1608.271482 | D173: =+B173 -> 1870.959603 | E173: 1870.959603 | F173: 1870.959603 | G173: =$C$173*G14 -> 497.263112 | H173: =$C$173*H14 -> 497.263112 | I173: 497.263112 | J173: 497.263112 | K173: 497.263112 | L173: 497.263112 | M173: 497.263112 | N173: 497.263112 | O173: =+N173*10 -> 4972.63112
A174: Legumes | D174: =SUM(D175:D176) -> 119.3779904 | E174: =SUM(E175:E176) -> 119.3779904 | F174: 119.3779904 | G174: 82.97368421 | H174: 82.97368421 | I174: 82.97368421 | J174: 82.97368421 | K174: 82.97368421 | L174: 82.97368421 | M174: 82.97368421 | N174: 82.97368421 | O174: 829.7368421
A175: Peas | B175: ='Don_classe 1'!G89 -> 0 | C175: 0 | D175: =B175*D16 -> 0 | E175: =D175 -> 0 | F175: =E175 -> 0 | G175: =$C$175*G16 -> 0 | H175: =$C$175*H16 -> 0 | I175: 0 | J175: 0 | K175: 0 | L175: 0 | M175: 0 | N175: 0 | O175: =+N175*10 -> 0
A176: bean | B176: ='Don_classe 1'!G88 -> 922.3659889 | C176: ='Don_classe 1'!P88 -> 641.090573 | D176: =B176*D17 -> 119.3779904 | E176: =D176 -> 119.3779904 | F176: =E176 -> 119.3779904 | G176: =$C$176*G17 -> 82.97368421 | H176: =$C$176*H17 -> 82.97368421 | I176: 82.97368421 | J176: 82.97368421 | K176: 82.97368421 | L176: 82.97368421 | M176: 82.97368421 | N176: 82.97368421 | O176: =+N176*10 -> 829.7368421
A177: Fruit Trees | D177: =SUM(D178:D183) -> 6648.994377 | E177: =SUM(E178:E183) -> 6648.994377 | F177: 7126.758368 | G177: 8305.233342 | H177: 8405.400123 | I177: 8461.177695 | J177: 8890.582897 | K177: 9027.980137 | L177: 9125.231507 | M177: 9203.866024 | N177: 8113.268695 | O177: 81132.68695
A178: Olives | B178: ='Don_classe 1'!G81 -> 1728.051414 | C178: ='Don_classe 1'!P81 -> 2141.90614 | D178: =B178*D19 -> 2764.882262 | E178: =D178 -> 2764.882262 | F178: =E178 -> 2764.882262 | G178: =$C$178*G19 -> 3427.049824 | H178: =$C$178*H19 -> 3427.049824 | I178: 3427.049824 | J178: 3427.049824 | K178: 3427.049824 | L178: 3427.049824 | M178: 3427.049824 | N178: 3427.049824 | O178: =+N178*10 -> 34270.49824
A179: Olives nouvelle plantation | B179: =+'Data&assumptions'!$B$151*'BudExp DHMax<55%'!D20 -> 0 | C179: =+'Data&assumptions'!$B$151*'BudExp DHMax<55%'!E20 -> 0 | D179: =+'Data&assumptions'!$B$151*'BudExp DHMax<55%'!F20 -> 0 | E179: =+'Data&assumptions'!$B$151*'BudExp DHMax<55%'!G20 -> 0 | F179: =+'Data&assumptions'!$B$151*'BudExp DHMax<55%'!H20 -> 507.1465296 | G179: =+'Data&assumptions'!$B$151*'BudExp DHMax<55%'!I20 -> 1126.992288 | H179: =+'Data&assumptions'!$B$151*'BudExp DHMax<55%'!J20 -> 1126.992288 | I179: =+'Data&assumptions'!$B$151*'BudExp DHMax<55%'!K20 -> 1126.992288 | J179: =+'Data&assumptions'!$B$151*'BudExp DHMax<55%'!L20 -> 1126.992288 | K179: =+'Data&assumptions'!$B$151*'BudExp DHMax<55%'!M20 -> 1126.992288 | L179: =+'Data&assumptions'!$B$151*'BudExp DHMax<55%'!N20 -> 1126.992288 | M179: =+'Data&assumptions'!$B$151*'BudExp DHMax<55%'!O20 -> 1126.992288 | N179: =+'Data&assumptions'!$B$151*'BudExp DHMax<55%'!P20 -> 0 | O179: 0
A180: Oil olive traditional processing | D180: =+B78*100*'Data&assumptions'!$B$185*'Data&assumptions'!$F$179 -> 376.4548095 | E180: =+C78*100*'Data&assumptions'!$B$185*'Data&assumptions'!$F$179 -> 376.4548095 | F180: =+D78*100*'Data&assumptions'!$B$185*'Data&assumptions'!$F$179 -> 426.4051241 | G180: =+E78*100*'Data&assumptions'!$B$185*'Data&assumptions'!$F$179 -> 426.4051241 | H180: =+F78*100*'Data&assumptions'!$B$185*'Data&assumptions'!$F$179 -> 379.1611701 | I180: =+G78*100*'Data&assumptions'!$B$185*'Data&assumptions'!$F$179 -> 319.1950238 | J180: =+H78*100*'Data&assumptions'!$B$185*'Data&assumptions'!$F$179 -> 0 | K180: =+I78*100*'Data&assumptions'!$B$185*'Data&assumptions'!$F$179 -> 0 | L180: =+J78*100*'Data&assumptions'!$B$185*'Data&assumptions'!$F$179 -> 0 | M180: =+K78*100*'Data&assumptions'!$B$185*'Data&assumptions'!$F$179 -> 0 | N180: =+L78*100*'Data&assumptions'!$B$185*'Data&assumptions'!$F$179 -> 0 | O180: 0
A181: Oil olive modern processing | D181: =+B79*100*'Data&assumptions'!$B$185*'Data&assumptions'!$G$179 -> 1337.048807 | E181: =+C79*100*'Data&assumptions'!$B$185*'Data&assumptions'!$G$179 -> 1337.048807 | F181: =+D79*100*'Data&assumptions'!$B$185*'Data&assumptions'!$G$179 -> 1257.715954 | G181: =+E79*100*'Data&assumptions'!$B$185*'Data&assumptions'!$G$179 -> 1257.715954 | H181: =+F79*100*'Data&assumptions'!$B$185*'Data&assumptions'!$G$179 -> 1405.126689 | I181: =+G79*100*'Data&assumptions'!$B$185*'Data&assumptions'!$G$179 -> 1520.870408 | J181: =+H79*100*'Data&assumptions'!$B$185*'Data&assumptions'!$G$179 -> 2269.470634 | K181: =+I79*100*'Data&assumptions'!$B$185*'Data&assumptions'!$G$179 -> 2406.867874 | L181: =+J79*100*'Data&assumptions'!$B$185*'Data&assumptions'!$G$179 -> 2504.119243 | M181: =+K79*100*'Data&assumptions'!$B$185*'Data&assumptions'!$G$179 -> 2582.75376 | N181: =+L79*100*'Data&assumptions'!$B$185*'Data&assumptions'!$G$179 -> 2619.14872 | O181: 26191.4872
A182: Dates | B182: ='Don_classe 1'!G82 -> 5884.716981 | C182: ='Don_classe 1'!P82 -> 4659.245283 | D182: =B182*D21 -> 900.7691693 | E182: =D182 -> 900.7691693 | F182: =E182 -> 900.7691693 | G182: =$C$182*G21 -> 713.187145 | H182: =$C$182*H21 -> 713.187145 | I182: 713.187145 | J182: 713.187145 | K182: 713.187145 | L182: 713.187145 | M182: 713.187145 | N182: 713.187145 | O182: 7131.87145
A183: Other Tree Crops | B183: ='Don_classe 1'!G83 -> 2290 | C183: ='Don_classe 1'!P83 -> 2441.5625 | D183: =B183*D22 -> 1269.839329 | E183: =D183 -> 1269.839329 | F183: =E183 -> 1269.839329 | G183: =$C$183*G22 -> 1353.883007 | H183: =$C$183*H22 -> 1353.883007 | I183: 1353.883007 | J183: 1353.883007 | K183: 1353.883007 | L183: 1353.883007 | M183: 1353.883007 | N183: 1353.883007 | O183: 13538.83007
A184: Horticulture | D184: =SUM(D185:D186) -> 53.59136773 | E184: =SUM(E185:E186) -> 53.59136773 | F184: 53.59136773 | G184: 43.45883792 | H184: 43.45883792 | I184: 43.45883792 | J184: 43.45883792 | K184: 43.45883792 | L184: 43.45883792 | M184: 43.45883792 | N184: 43.45883792 | O184: 434.5883792
A185: Winter horticulture | B185: ='Don_classe 1'!G93 -> 4056.568807 | C185: ='Don_classe 1'!P93 -> 4056.788991 | D185: =B185*D24 -> 53.59136773 | E185: =D185 -> 53.59136773 | F185: =E185 -> 53.59136773 | G185: =$C$185*G24 -> 0 | H185: =$C$185*H24 -> 0 | I185: 0 | J185: 0 | K185: 0 | L185: 0 | M185: 0 | N185: 0 | O185: =+N185*10 -> 0
A186: Summer horticulture | B186: ='Don_classe 1'!G92 -> 3289.592593 | C186: ='Don_classe 1'!P92 -> 3289.592593 | D186: =B186*D25 -> 0 | E186: =D186 -> 0 | F186: =E186 -> 0 | G186: =$C$186*G25 -> 43.45883792 | H186: =$C$186*H25 -> 43.45883792 | I186: 43.45883792 | J186: 43.45883792 | K186: 43.45883792 | L186: 43.45883792 | M186: 43.45883792 | N186: 43.45883792 | O186: =+N186*10 -> 434.5883792
A187: Feed Crops | D187: =SUM(D188:D189) -> 346.7522902 | E187: =SUM(E188:E189) -> 346.7522902 | F187: 346.7522902 | G187: 453.1713425 | H187: 453.1713425 | I187: 453.1713425 | J187: 453.1713425 | K187: 453.1713425 | L187: 453.1713425 | M187: 453.1713425 | N187: 453.1713425 | O187: 4531.713425
A188: Alfalfa | B188: ='Don_classe 1'!G90 -> 1118.555775 | C188: ='Don_classe 1'!P90 -> 1461.84304 | D188: =B188*D27 -> 346.7522902 | E188: =D188 -> 346.7522902 | F188: =E188 -> 346.7522902 | G188: =$C$188*G27 -> 453.1713425 | H188: =$C$188*H27 -> 453.1713425 | I188: 453.1713425 | J188: 453.1713425 | K188: 453.1713425 | L188: 453.1713425 | M188: 453.1713425 | N188: 453.1713425 | O188: =+N188*10 -> 4531.713425
A189: Bersim | D189: =B189*D28 -> 0 | E189: =D189 -> 0 | F189: =E189 -> 0 | G189: =$C$189*G28 -> 0 | H189: =$C$189*H28 -> 0 | I189: 0 | J189: 0 | K189: 0 | L189: 0 | M189: 0 | N189: 0 | O189: =+N189*10 -> 0
A190: Total | D190: =SUM(D169,D174,D177,D184,D187) -> 14192.82913 | E190: 14192.82913 | F190: 14670.59312 | G190: 13556.39724 | H190: 13656.56402 | I190: 13712.3416 | J190: 14141.7468 | K190: 14279.14404 | L190: 14376.39541 | M190: 14455.02992 | N190: 13364.4326 | O190: 133644.326
A192: Charges labor
B194: Cost (DH/Ha) | D194: w/o project | E194: With project
B195: w/o project | C195: With project | D195: Years 1-20 | E195: Years 1 | F195: 2 | G195: 3 | H195: 4 | I195: 5 | J195: 6 | K195: 7 | L195: 8 | M195: 9 | N195: 10 | O195: 11 - 20
A196: Cultures
A197: Cereals | B197: =SUM(B198:B201) -> 3524.199762 | C197: =SUM(C198:C201) -> 3560.23077 | D197: =SUM(D198:D201) -> 2565.443482 | E197: =SUM(E198:E201) -> 2565.443482 | F197: 2565.443482 | G197: 2570.363441 | H197: 2570.363441 | I197: 2570.363441 | J197: 2570.363441 | K197: 2570.363441 | L197: 2570.363441 | M197: 2570.363441 | N197: 2570.363441 | O197: 25703.63441
A198: Soft wheat | B198: ='Don_classe 1'!G105*$C$126 -> 1179.775194 | C198: ='Don_classe 1'!P105*$C$126 -> 1179.775194 | D198: =B198*D11 -> 805.4791451 | E198: =D198 -> 805.4791451 | F198: =E198 -> 805.4791451 | G198: =C198*G11 -> 805.4791451 | H198: =G198 -> 805.4791451 | I198: =H198 -> 805.4791451 | J198: 805.4791451 | K198: 805.4791451 | L198: 805.4791451 | M198: 805.4791451 | N198: 805.4791451 | O198: =N198*10 -> 8054.791451
A199: Hard wheat | B199: ='Don_classe 1'!G104*$C$126 -> 1255.180243 | C199: ='Don_classe 1'!P104*$C$126 -> 1255.180243 | D199: =B199*D12 -> 1533.229719 | E199: =D199 -> 1533.229719 | F199: 1533.229719 | G199: =C199*G12 -> 1533.229719 | H199: =G199 -> 1533.229719 | I199: 1533.229719 | J199: 1533.229719 | K199: 1533.229719 | L199: 1533.229719 | M199: 1533.229719 | N199: 1533.229719 | O199: =N199*10 -> 15332.29719
A200: Barley | B200: ='Don_classe 1'!G112*$C$126 -> 637.4418605 | C200: ='Don_classe 1'!P112*$C$126 -> 673.4728682 | D200: =B200*D13 -> 87.04134949 | E200: 87.04134949 | F200: 87.04134949 | G200: =C200*G13 -> 91.96130805 | H200: 91.96130805 | I200: 91.96130805 | J200: 91.96130805 | K200: 91.96130805 | L200: 91.96130805 | M200: 91.96130805 | N200: 91.96130805 | O200: =N200*10 -> 919.6130805
A201: Corn | B201: ='Don_classe 1'!G109*$C$126 -> 451.8024649 | C201: ='Don_classe 1'!P109*$C$126 -> 451.8024649 | D201: =B201*D14 -> 139.6932683 | E201: 139.6932683 | F201: =E201 -> 139.6932683 | G201: =C201*G14 -> 139.6932683 | H201: 139.6932683 | I201: 139.6932683 | J201: 139.6932683 | K201: 139.6932683 | L201: 139.6932683 | M201: 139.6932683 | N201: 139.6932683 | O201: =N201*10 -> 1396.932683
A202: Legumes | D202: =SUM(D203:D204) -> 207.3720096 | E202: =SUM(E203:E204) -> 207.3720096 | F202: 207.3720096 | G202: 207.3720096 | H202: 207.3720096 | I202: 207.3720096 | J202: 207.3720096 | K202: 207.3720096 | L202: 207.3720096 | M202: 207.3720096 | N202: 207.3720096 | O202: 2073.720096
A203: Peas | B203: ='Don_classe 1'!G107*$C$126 -> 0 | C203: 0 | D203: =B203*D16 -> 0 | E203: =D203 -> 0 | F203: =E203 -> 0 | G203: =C203*G16 -> 0 | H203: 0 | I203: 0 | J203: 0 | K203: 0 | L203: 0 | M203: 0 | N203: 0 | O203: 0
A204: bean | B204: ='Don_classe 1'!G106*$C$126 -> 1602.245841 | C204: ='Don_classe 1'!P106*$C$126 -> 1602.245841 | D204: =B204*D17 -> 207.3720096 | E204: =D204 -> 207.3720096 | F204: =E204 -> 207.3720096 | G204: =C204*G17 -> 207.3720096 | H204: 207.3720096 | I204: 207.3720096 | J204: 207.3720096 | K204: 207.3720096 | L204: 207.3720096 | M204: 207.3720096 | N204: 207.3720096 | O204: =+N204*10 -> 2073.720096
A205: Fruit Trees | D205: =SUM(D206:D209) -> 7408.247226 | E205: =SUM(E206:E209) -> 7408.247226 | F205: 7408.247226 | G205: 7977.343039 | H205: 8292.759257 | I205: 8678.267969 | J205: 8678.267969 | K205: 8678.267969 | L205: 9028.730434 | M205: 9239.007913 | N205: 9379.192899 | O205: 93791.92899
A206: Olives | B206: ='Don_classe 1'!G99*$C$126 -> 3734.212082 | C206: ='Don_classe 1'!P99*$C$126 -> 4089.896965 | D206: =B206*D19 -> 5974.739332 | E206: =D206 -> 5974.739332 | F206: 5974.739332 | G206: =C206*G19 -> 6543.835145 | H206: 6543.835145 | I206: 6543.835145 | J206: 6543.835145 | K206: 6543.835145 | L206: 6543.835145 | M206: 6543.835145 | N206: 6543.835145 | O206: =+N206*10 -> 65438.35145
A207: Newly planted olive trees | B207: 0 | C207: ='Don_classe 1'!P99*$C$126 -> 4089.896965 | D207: =B207*D20 -> 0 | E207: 0 | F207: 0 | G207: =$C$207*G20*'Data&assumptions'!$F$229 -> 0 | H207: =$C$207*H20*'Data&assumptions'!$F$229 -> 315.4162184 | I207: =$C$207*I20*'Data&assumptions'!$F$229 -> 700.9249298 | J207: =$C$207*J20*'Data&assumptions'!$F$229 -> 700.9249298 | K207: =$C$207*K20*'Data&assumptions'!F$229 -> 700.9249298 | L207: =$C$207*L20*'Data&assumptions'!G$229 -> 1051.387395 | M207: =$C$207*M20*'Data&assumptions'!H$229 -> 1261.664874 | N207: =$C$207*N20*'Data&assumptions'!I$229 -> 1401.84986 | O207: =+N207*10 -> 14018.4986
A208: Dates | B208: ='Don_classe 1'!G100*$C$126 -> 3750 | C208: ='Don_classe 1'!P100*$C$126 -> 3750 | D208: =B208*D21 -> 574.0096585 | E208: 574.0096585 | F208: 574.0096585 | G208: =C208*G21 -> 574.0096585 | H208: 574.0096585 | I208: 574.0096585 | J208: 574.0096585 | K208: 574.0096585 | L208: 574.0096585 | M208: 574.0096585 | N208: 574.0096585 | O208: =+N208*10 -> 5740.096585
A209: Other Tree Crops | B209: ='Don_classe 1'!G101*$C$126 -> 1550 | C209: ='Don_classe 1'!P101*$C$126 -> 1550 | D209: =B209*D22 -> 859.4982358 | E209: 859.4982358 | F209: 859.4982358 | G209: =C209*G22 -> 859.4982358 | H209: 859.4982358 | I209: 859.4982358 | J209: 859.4982358 | K209: 859.4982358 | L209: 859.4982358 | M209: 859.4982358 | N209: 859.4982358 | O209: =+N209*10 -> 8594.982358
A210: Horticulture | D210: =SUM(D211:D212) -> 22.29388099 | E210: =SUM(E211:E212) -> 22.29388099 | F210: 22.29388099 | G210: 25.76342508 | H210: 25.76342508 | I210: 25.76342508 | J210: 25.76342508 | K210: 25.76342508 | L210: 25.76342508 | M210: 25.76342508 | N210: 25.76342508 | O210: 257.6342508
A211: Winter horticulture | B211: ='Don_classe 1'!G111*$C$126 -> 1687.522936 | C211: ='Don_classe 1'!P111*$C$126 -> 1687.522936 | D211: =B211*D24 -> 22.29388099 | E211: =D211 -> 22.29388099 | F211: =E211 -> 22.29388099 | G211: =C211*G24 -> 0 | H211: 0 | I211: 0 | J211: 0 | K211: 0 | L211: 0 | M211: 0 | N211: 0 | O211: =+N211*10 -> 0
A212: Summer horticulture | B212: ='Don_classe 1'!G110*$C$126 -> 1855.333333 | C212: ='Don_classe 1'!P110*$C$126 -> 1950.148148 | D212: =B212*D25 -> 0 | E212: =D212 -> 0 | F212: =E212 -> 0 | G212: =C212*G25 -> 25.76342508 | H212: 25.76342508 | I212: 25.76342508 | J212: 25.76342508 | K212: 25.76342508 | L212: 25.76342508 | M212: 25.76342508 | N212: 25.76342508 | O212: =+N212*10 -> 257.6342508
A213: Feed Crops | D213: =SUM(D214:D215) -> 401.2165054 | E213: =SUM(E214:E215) -> 401.2165054 | F213: 401.2165054 | G213: 403.9780454 | H213: 403.9780454 | I213: 403.9780454 | J213: 403.9780454 | K213: 403.9780454 | L213: 403.9780454 | M213: 403.9780454 | N213: 403.9780454 | O213: 4039.780454
A214: Alfalfa | B214: ='Don_classe 1'!G108*$C$126 -> 1294.246792 | C214: ='Don_classe 1'!P108*$C$126 -> 1303.154985 | D214: =B214*D27 -> 401.2165054 | E214: =D214 -> 401.2165054 | F214: =E214 -> 401.2165054 | G214: =C214*G27 -> 403.9780454 | H214: 403.9780454 | I214: 403.9780454 | J214: 403.9780454 | K214: 403.9780454 | L214: 403.9780454 | M214: 403.9780454 | N214: 403.9780454 | O214: =+N214*10 -> 4039.780454
A215: Bersim | D215: =B215*D28 -> 0 | E215: =D215 -> 0 | F215: =E215 -> 0 | G215: =C215*G28 -> 0 | H215: 0 | I215: 0 | J215: 0 | K215: 0 | L215: 0 | M215: 0 | N215: 0 | O215: =+N215*10 -> 0
A216: Total | D216: =SUM(D197,D202,D205,D210,D213) -> 10604.5731 | E216: =SUM(E197,E202,E205,E210,E213) -> 10604.5731 | F216: 10604.5731 | G216: 11184.81996 | H216: 11500.23618 | I216: 11885.74489 | J216: 11885.74489 | K216: 11885.74489 | L216: 12236.20735 | M216: 12446.48483 | N216: 12586.66982 | O216: 125866.6982
... 23 more rows

Sheet Don_classe2
B3: Area sown_ Actual situation (ha) | N3: Area sown_ Situation With project
A4: Crop/Perimeter | B4: Zekkara | C4: Maamer Beni Khlil | D4: Chichaoua amont | E4: Outat El haj | F4: Ourika | G4: Ghmat | H4: Total | I4: Assol_Avg/Exp | J4: Assol_Avg/Exp | M4: Crop/Perimeter | N4: Zekkara | O4: Maamer Beni Khlil | P4: Chichaoua amont | Q4: Outat El haj | R4: Ourika | S4: Ghmat | T4: Total | U4: Assol_Avg/Exp | V4: Assol_Avg/Exp
A5: Olives | B5: 160 | C5: 331 | D5: 1200 | E5: 1290 | F5: 1600 | G5: 920 | H5: =SUM(B5:G5) -> 5501 | I5: =H5/$H$22 -> 0.8838367609 | J5: =+'Data&assumptions'!C142 -> 1.7 | M5: Olives | N5: 160 | O5: 331 | P5: 1200 | Q5: 1420 | R5: 1600 | S5: 920 | T5: =SUM(N5:S5) -> 5631 | U5: =T5/$T$22 -> 0.9047236504 | V5: =+J5*T5/H5 -> 1.740174514
A6: Dates | E6: 193 | G6: 30 | H6: =SUM(B6:G6) -> 223 | I6: 0.03582904884 | J6: =+'Data&assumptions'!$C146*(I6/($I$6+$I$7)) -> 0.1219439335 | M6: Dates | Q6: 253 | S6: 30 | T6: =SUM(N6:S6) -> 283 | U6: 0.04546915167 | V6: =+J6*T6/H6 -> 0.1547539605
A7: Other Trees, | D7: 440 | E7: 59 | F7: 50 | G7: 30 | H7: 579 | I7: 0.09302699229 | J7: =+'Data&assumptions'!$C146*(I7/($I$6+$I$7)) -> 0.3166167601 | M7: Other Trees, | P7: 440 | Q7: 112 | R7: 50 | S7: 30 | T7: 632 | U7: 0.1015424165 | V7: 0.3455989506
A8: Oats | B8: 60 | E8: 0 | G8: 0 | H8: 60 | I8: 0.009640102828 | J8: ='Data&assumptions'!$D$129*(I8*($I$8+$I$10+$I$11+$I$15+$I$19)) -> 0.02231271034 | M8: Oats | N8: 60 | Q8: 0 | S8: 0 | T8: 60 | U8: 0.009640102828 | V8: 0.02231271034
A9: Bersim | D9: 122 | E9: 0 | F9: 20 | G9: 220 | H9: 362 | I9: 0.05816195373 | J9: =+'Data&assumptions'!$D$131*(I11/($I$11+$I$14+$I$16)) -> 0.3744922379 | M9: Bersim | P9: 122 | Q9: 0 | R9: 20 | S9: 220 | T9: 362 | U9: 0.05816195373 | V9: 0.3744922379
A10: Hard wheat | C10: 104.4 | D10: 295 | E10: 346 | F10: 375 | G10: 960 | H10: 2080.4 | I10: 0.3342544987 | J10: ='Data&assumptions'!$D$129*(I10*($I$8+$I$10+$I$11+$I$15+$I$19)) -> 0.773656043 | M10: Hard wheat | O10: 104.4 | P10: 295 | Q10: 170 | R10: 375 | S10: 960 | T10: 1904.4 | U10: 0.3059768638 | V10: 0.708205426
A11: Soft wheat | B11: 40 | C11: 69.6 | D11: 435 | E11: 346 | F11: 85 | G11: 300 | H11: 1275.6 | I11: 0.2049485861 | J11: ='Data&assumptions'!$D$129*(I11*($I$8+$I$10+$I$11+$I$15+$I$19)) -> 0.4743682217 | M11: Soft wheat | N11: 40 | O11: 69.6 | P11: 435 | Q11: 243 | R11: 85 | S11: 300 | T11: 1172.6 | U11: 0.1883997429 | V11: 0.4360647356
A12: bean | C12: 17 | D12: 110 | E12: 259 | G12: 40 | H12: 426 | I12: 0.06844473008 | J12: =+'Data&assumptions'!$D$130*(I12/($I$12+$I$13)) -> 0.03896341463 | M12: bean | O12: 17 | P12: 110 | Q12: 181 | S12: 40 | T12: 348 | U12: 0.0559125964 | V12: 0.03182926829
A13: Peas | D13: 110 | E13: 0 | G13: 120 | H13: 230 | I13: 0.03695372751 | J13: =+'Data&assumptions'!$D$130*(I13/($I$12+$I$13)) -> 0.02103658537 | M13: Peas | P13: 110 | Q13: 0 | S13: 120 | T13: 230 | U13: 0.03695372751 | V13: 0.02103658537
A14: Alfalfa | B14: 41 | C14: 14.5 | D14: 270 | E14: 162 | F14: 50 | G14: 290 | H14: 827.5 | I14: 0.1329530848 | J14: =+'Data&assumptions'!$D$131*(I16/($I$11+$I$14+$I$16)) -> 0.04256928073 | M14: Alfalfa | N14: 41 | O14: 14.5 | P14: 270 | Q14: 162 | R14: 50 | S14: 290 | T14: 827.5 | U14: 0.1329530848 | V14: 0.04256928073
A15: Corn | E15: 170 | G15: 0 | H15: 170 | I15: 0.02731362468 | J15: ='Data&assumptions'!$D$129*(I15*($I$8+$I$10+$I$11+$I$15+$I$19)) -> 0.06321934595 | M15: Corn | Q15: 170 | S15: 0 | T15: 170 | U15: 0.02731362468 | V15: 0.06321934595
A16: Corn stover | D16: 145 | H16: 145 | I16: 0.02329691517 | J16: =+'Data&assumptions'!$D$131*(I18/($I$11+$I$14+$I$16)) -> 0.1335794671 | M16: Corn stover | P16: 145 | T16: 145 | U16: 0.02329691517 | V16: 0.1335794671
A17: Summer horticulture | E17: 57 | F17: 8 | G17: 0 | H17: 65 | I17: =H17/$H$22 -> 0.01044344473 | J17: ='Data&assumptions'!$D$132*(I17/($I$17+$I$18)) -> 0.0375 | M17: Summer horticulture | Q17: 57 | R17: 8 | S17: 0 | T17: 65 | U17: =T17/$T$22 -> 0.01044344473 | V17: 0.0375
A18: Winter horticulture | B18: 15 | C18: 29 | E18: 72 | F18: 159 | G18: 180 | H18: 455 | I18: =H18/$H$22 -> 0.07310411311 | J18: ='Data&assumptions'!$D$132*(I18/($I$17+$I$18)) -> 0.2625 | M18: Winter horticulture | N18: 15 | O18: 29 | Q18: 72 | R18: 159 | S18: 180 | T18: 455 | U18: =T18/$T$22 -> 0.07310411311 | V18: 0.2625
A19: Barley | B19: 25 | C19: 14.5 | D19: 620 | E19: 260 | F19: 430 | G19: 850 | H19: =SUM(B19:G19) -> 2199.5 | I19: =H19/$H$22 -> 0.3533901028 | J19: ='Data&assumptions'!$D$129*(I19*($I$8+$I$10+$I$11+$I$15+$I$19)) -> 0.817946773 | M19: Barley | N19: 25 | O19: 14.5 | P19: 620 | Q19: 149 | R19: 430 | S19: 850 | T19: 2088.5 | U19: =T19/$T$22 -> 0.3355559126 | V19: 0.7766682589
A20: Total | B20: =SUM(B5:B19) -> 341 | C20: 580 | D20: 3747 | E20: 3214 | F20: 2777 | G20: 3940 | H20: 14599 | I20: 2.345597686 | J20: 5.200704773 | M20: Total | N20: =SUM(N5:N19) -> 341 | O20: =SUM(O5:O19) -> 580 | P20: 3747 | Q20: 2989 | R20: 2777 | S20: 3940 | T20: 14374 | U20: =SUM(U5:U19) -> 2.309447301 | V20: =SUM(V5:V19) -> 5.150504741
A21: SAU | B21: 250 | C21: 580 | D21: 2775 | E21: 2100 | F21: 2000 | G21: 3300 | H21: =SUM(B21:G21) -> 11005 | I21: =H21/$H$22 -> 1.768155527 | J21: =+'Data&assumptions'!H54 -> 5.19 | M21: SAU | N21: 250 | O21: 580 | P21: 2775 | Q21: 2100 | R21: 2000 | S21: 3300 | T21: =SUM(N21:S21) -> 11005 | U21: =T21/T22 -> 1.768155527 | V21: =+J21 -> 5.19
A22: Number farms | B22: 107 | C22: 516 | D22: 1880 | E22: 1105 | F22: 1300 | G22: 1316 | H22: =SUM(B22:G22) -> 6224 | M22: Number farms | N22: 107 | O22: 516 | P22: 1880 | Q22: 1105 | R22: 1300 | S22: 1316 | T22: =SUM(N22:S22) -> 6224
B24: Yield_ Actual situation (Q/ha) | N24: Yield_ Situation With project (Q/ha)
A26: Crop/Perimeter | B26: Zekkara | C26: Maamer Beni Khlil | D26: Chichaoua amont | E26: Outat El haj | F26: Ourika | G26: Ghmat | H26: RDT avg | M26: Crop/Perimeter | N26: Zekkara | O26: Maamer Beni Khlil | P26: Chichaoua amont | Q26: Outat El haj | R26: Ourika | S26: Ghmat | T26: RDT avg
A27: Olives | B27: 38 | C27: 65 | D27: 20 | E27: 19.181 | F27: 20 | G27: 19 | H27: =(B27*B5+C27*C5+D27*D5+E27*E5+F27*F5+G27*G5)/H5 -> 22.87193056 | M27: Olives | N27: 50 | O27: 81.3 | P27: 37 | Q27: 32.1 | R27: 31 | S27: 30 | T27: =(N27*N5+O27*O5+P27*P5+Q27*Q5+R27*R5+S27*S5)/T5 -> 35.88923815
A28: Dates | E28: 7.205 | G28: 6 | H28: =(B28*B6+C28*C6+D28*D6+E28*E6+F28*F6+G28*G6)/H6 -> 7.042892377 | M28: Dates | Q28: 10.2 | S28: 7 | T28: =(N28*N6+O28*O6+P28*P6+Q28*Q6+R28*R6+S28*S6)/T6 -> 9.860777385
A29: Other Trees, | D29: 136.6 | E29: 20 | F29: 63 | G29: 133 | H29: 118.1761658 | M29: Other Trees, | P29: 175 | Q29: 32 | R29: 79 | S29: 160 | T29: 141.3512658
A30: Oats | B30: 67 | H30: 67 | M30: Oats | N30: 72 | T30: 72
A31: Bersim (UF/ha) | D31: 463 | F31: 350 | G31: 327 | H31: 374.1049724 | M31: Bersim (UF/Ha) | P31: 593 | R31: 438 | S31: 393 | T31: 462.8895028
A32: Hard wheat | C32: 18 | D32: 15 | E32: 15.23 | F32: 10 | G32: 13 | H32: 13.3646318 | M32: Hard wheat | O32: 19.8 | P32: 19 | Q32: 23.1 | R32: 13 | S32: 16 | T32: 16.71608906
A33: Soft wheat | B33: 12 | C33: 18 | D33: 23 | E33: 13.23 | F33: 14 | G33: 15 | H33: 17.25100345 | M33: Soft wheat | N33: 13 | O33: 19.8 | P33: 29 | Q33: 22.1 | R33: 17 | S33: 18 | T33: 22.79411564
A34: bean | C34: 8 | D34: 32 | E34: 10.82 | G34: 17 | H34: 16.75676056 | M34: bean | O34: 8.8 | P34: 41 | Q34: 16.3 | S34: 20 | T34: 24.16637931
A35: Peas | D35: 23 | G35: 12 | H35: 17.26086957 | M35: Peas | P35: 29 | S35: 14 | T35: 21.17391304
A36: Alfalfa (UF/Ha) | C36: 120 | D36: 656 | E36: 413 | F36: 440 | G36: 528 | H36: 508.623565 | M36: Alfalfa (UF/Ha) | O36: 132 | P36: 839 | Q36: 413 | R36: 550 | S36: 633 | T36: 611.9879154
A37: Corn | E37: 10.205 | H37: 10.205 | M37: Corn | Q37: 13 | T37: 13
A38: Corn stover | D38: 472 | H38: 472 | M38: Corn stover | P38: 605 | T38: 605
A39: Summer horticulture | E39: 120.25 | F39: 200 | H39: 130.0653846 | M39: Summer horticulture | Q39: 120.25 | R39: 250 | T39: 136.2192308
A40: Winter horticulture | B40: 87 | C40: 80 | E40: 107.25 | F40: 45 | G40: 247 | H40: 138.378022 | M40: Winter horticulture | N40: 97 | O40: 88 | Q40: 114.9 | R40: 56 | S40: 297 | T40: 164.0523077
A41: Barley | B41: 11 | C41: 18 | D41: 13 | E41: 12.82 | F41: 12 | G41: 11 | H41: 12.02055013 | M41: Barley | N41: 12 | O41: 19.8 | P41: 17 | Q41: 18.8 | R41: 15 | S41: 13 | T41: 15.0482643
A42: Secondary products | M42: Secondary products
A43: Straw Hard wheat | C43: 27 | D43: 30 | E43: 31 | F43: 19.4 | G43: 37 | H43: =(B43*B10+C43*C10+D43*D10+E43*E10+F43*F10+G43*G10)/H10 -> 31.335224 | M43: Straw Hard wheat | O43: 29.7 | P43: 38 | Q43: 31 | S43: 45 | T43: =(N43*N10+O43*O10+P43*P10+Q43*Q10+R43*R10+S43*S10)/T10 -> 32.96612056
A44: Straw Soft wheat | B44: 30 | C44: 28 | D44: 39 | E44: 31 | F44: 20.7 | G44: 37 | H44: =(B44*B11+C44*C11+D44*D11+E44*E11+F44*F11+G44*G11)/H11 -> 34.25783945 | M44: Straw Soft wheat | N44: 30 | O44: 30.8 | P44: 58 | Q44: 31 | S44: 45 | T44: =(N44*N11+O44*O11+P44*P11+Q44*Q11+R44*R11+S44*S11)/T11 -> 42.30486099
A45: Straw barley | B45: 34 | C45: 31 | D45: 27 | E45: 25 | F45: 24 | G45: 32 | H45: =(B45*B19+C45*C19+D45*D19+E45*E19+F45*F19+G45*G19)/H19 -> 28.2152762 | M45: Straw Barley | N45: 34 | O45: 34.1 | P45: 34 | Q45: 25 | S45: 38 | T45: =(N45*N19+O45*O19+P45*P19+Q45*Q19+R45*R19+S45*S19)/T19 -> 27.9863299
A46: Peas (SP) | D46: 9 | G46: 12 | H46: =(B46*B13+C46*C13+D46*D13+E46*E13+F46*F13+G46*G13)/H13 -> 10.56521739 | M46: Peas (SP) | P46: 11 | S46: 14 | T46: =(N46*N13+O46*O13+P46*P13+Q46*Q13+R46*R13+S46*S13)/T13 -> 12.56521739
A47: bean (SP) | D47: 24 | G47: 17 | H47: =(B47*B12+C47*C12+D47*D12+E47*E12+F47*F12+G47*G12)/H12 -> 7.79342723 | M47: bean (SP) | P47: 30 | S47: 20.4 | T47: =(N47*N12+O47*O12+P47*P12+Q47*Q12+R47*R12+S47*S12)/T12 -> 11.82758621
A48: Corn (SP) | E48: 1100 | H48: =(B48*B15+C48*C15+D48*D15+E48*E15+F48*F15+G48*G15)/H15 -> 1100 | M48: Corn (SP) | Q48: 1100 | T48: =(N48*N15+O48*O15+P48*P15+Q48*Q15+R48*R15+S48*S15)/T15 -> 1100
A49: Winter horticulture(SP) | E49: 7000 | F49: 18.4 | H49: =F49 -> 18.4 | M49: Winter horticulture(SP) | Q49: 7000 | R49: 23 | T49: =R49 -> 23
A50: Summer horticulture(SP) | E50: 7000 | M50: Summer horticulture(SP) | Q50: 7000
A51: hay Alfalfa | B51: 80 | H51: =B51 -> 80 | M51: hay Alfalfa | N51: 87 | T51: =N51 -> 87
B52: Price DH/Q
A54: Crop/Perimeter | B54: Zekkara | C54: Maamer Beni Khlil | D54: Chichaoua amont | E54: Outat El haj | F54: Ourika | G54: Ghmat | H54: Price avg
A55: Olives | B55: 450 | C55: 500 | D55: 550 | E55: 500 | F55: 550 | G55: 550 | H55: =(B55*B27*B5+C55*C27*C5+D55*D27*D5+E55*E27*E5+F55*F27*F5+G55*G27*G5)/(B27*B5+C27*C5+D27*D5+E27*E5+F27*F5+G27*G5) -> 526.7846165
A56: Dates | E56: 5000 | G56: 3000 | H56: =(B56*B28*B6+C56*C28*C6+D56*D28*D6+E56*E28*E6+F56*F28*F6+G56*G28*G6)/(B28*B6+C28*C6+D28*D6+E28*E6+F28*F6+G28*G6) -> 4770.783126
A57: Other Trees, | D57: 303 | E57: 400 | F57: 240 | G57: 200 | H57: 295.7662808
A58: Oats | B58: 190 | H58: 190
A59: Bersim (DH/UF) | D59: 20 | F59: 25 | G59: 25 | H59: 22.91450682
A60: Hard wheat | C60: 350 | D60: 450 | E60: 300 | F60: 450 | G60: 450 | H60: 414.8120867
A61: Soft wheat | B61: 270 | C61: 270 | D61: 300 | E61: 270 | F61: 300 | G61: 300 | H61: 291.3970402
A62: bean | C62: 450 | D62: 350 | E62: 400 | G62: 350 | H62: 371.5341576
A63: Peas | D63: 600 | G63: 600 | H63: 600
A64: Alfalfa (DH/UF) | C64: 100 | D64: 30 | E64: 22.5 | F64: 37.5 | G64: 37.5 | H64: 32.21771454
A65: Corn | E65: 380 | H65: 380
A66: Corn stover | D66: 40 | H66: 40
A67: Summer horticulture | E67: 210 | F67: 200 | H67: 208.1074607
A68: Winter horticulture | B68: 225 | C68: 200 | E68: 200 | F68: 200 | G68: 200 | H68: 200.5181697
A69: Barley | B69: 260 | C69: 200 | D69: 250 | E69: 200 | F69: 250 | G69: 250 | H69: 243.3069079
A70: Secondary products
A71: Straw Hard wheat | D71: 72 | E71: 90 | F71: 90 | H71: =(B71*B43*B11+C71*C43*C11+D71*D43*D11+E71*E43*E11+F71*F43*F11+G71*G43*G11)/(B43*B11+C43*C11+D43*D11+E43*E11+F43*F11+G43*G11) -> 53.46680832
A72: Straw Soft wheat | B72: 50 | D72: 72 | E72: 90 | F72: 90 | H72: =(B72*B44*B11+C72*C44*C11+D72*D44*D11+E72*E44*E11+F72*F44*F11+G72*G44*G11)/(B44*B11+C44*C11+D44*D11+E44*E11+F44*F11+G44*G11) -> 55.03921115
A73: Straw Barley | B73: 50 | D73: 80 | E73: 80 | F73: 100 | H73: =(B73*B45*B19+C73*C45*C19+D73*D45*D19+E73*E45*E19+F73*F45*F19+G73*G45*G19)/(B45*B19+C45*C19+D45*D19+E45*E19+F45*F19+G45*G19) -> 47.2723757
A74: Peas (SP) | D74: 100 | H74: =(B74*B46*B13+C74*C46*C13+D74*D46*D13+E74*E46*E13+F74*F46*F13+G74*G46*G13)/(B46*B13+C46*C13+D46*D13+E46*E13+F46*F13+G46*G13) -> 40.74074074
A75: bean (SP) | D75: 100 | G75: 125 | H75: =(B75*B47*B12+C75*C47*C12+D75*D47*D12+E75*E47*E12+F75*F47*F12+G75*G47*G12)/(B47*B12+C47*C12+D47*D12+E47*E12+F47*F12+G47*G12) -> 105.1204819
A76: Corn (SP) | E76: 1.25 | H76: =(B76*B48*B15+C76*C48*C15+D76*D48*D15+E76*E48*E15+F76*F48*F15+G76*G48*G15)/(B48*B15+C48*C15+D48*D15+E48*E15+F48*F15+G48*G15) -> 1.25
A77: Winter horticulture(SP) | E77: 1 | F77: 125 | H77: =(B77*B49*B18+C77*C49*C18+D77*D49*D18+E77*E49*E18+F77*F49*F18+G77*G49*G18)/(B49*B18+C49*C18+D49*D18+E49*E18+F49*F18+G49*G18) -> 1.715636377
A78: Summer horticulture(SP) | E78: 1 | H78: =(B78*B50*B17+C78*C50*C17+D78*D50*D17+E78*E50*E17+F78*F50*F17+G78*G50*G17)/(B50*B17+C50*C17+D50*D17+E50*E17+F50*F17+G50*G17) -> 1
A79: hay Alfalfa | B79: 200 | H79: =(B79*B51*B14+C79*C51*C14+D79*D51*D14+E79*E51*E14+F79*F51*F14+G79*G51*G14)/(B51*B14+C51*C14+D51*D14+E51*E14+F51*F14+G51*G14) -> 200
A81: Actual situation | B81: Charges w/o MO (DH/Ha) | M81: Target | N81: Charges w/o MO (DH/Ha)
A83: Crop/Perimeter | B83: Zekkara | C83: Maamer Beni Khlil | D83: Chichaoua amont | E83: Outat El haj | F83: Ourika | G83: Ghmat | H83: Charges Avg | M83: Crop/Perimeter | N83: Zekkara | O83: Maamer Beni Khlil | P83: Chichaoua amont | Q83: Outat El haj | R83: Ourika | S83: Ghmat | T83: Charges Avg
A84: Olives | B84: 1885 | C84: 2260 | D84: 1493 | E84: 2330 | F84: 954 | G84: 697 | H84: =(B84*B5+C84*C5+D84*D5+E84*E5+F84*F5+G84*G5)/H5 -> 1456.935103 | M84: Olives | N84: 2425 | O84: 2260 | P84: 3010 | Q84: 3240 | R84: 2094 | S84: 1931 | T84: =(N84*N5+O84*O5+P84*P5+Q84*Q5+R84*R5+S84*S5)/T5 -> 2570.729888
A85: Dates | E85: 2880 | G85: 1277 | H85: =(B85*B6+C85*C6+D85*D6+E85*E6+F85*F6+G85*G6)/H6 -> 2664.349776 | M85: Dates | Q85: 3320 | S85: 1277 | T85: =(N85*N6+O85*O6+P85*P6+Q85*Q6+R85*R6+S85*S6)/T6 -> 3103.427562
A86: Other Trees, | D86: 2486 | E86: 2646 | F86: 1582 | G86: 1800 | H86: 2388.694301 | M86: Other Trees, | P86: 2898 | Q86: 3114 | R86: 1582 | S86: 1800 | T86: 2780.044304
A87: Oats | B87: 2290 | H87: 2290 | M87: Oats | N87: 2290 | T87: 2290
A88: Bersim | D88: 1556 | F88: 1523 | G88: 1627 | H88: 1597.325967 | M88: Bersim | P88: 1849 | R88: 1523 | S88: 1627 | T88: 1696.071823
A89: Hard wheat | C89: 1051 | D89: 1852 | E89: 1732.5 | F89: 1119 | G89: 1161 | H89: 1340.941357 | M89: Hard wheat | O89: 1051 | P89: 2237 | Q89: 1913 | R89: 1119 | S89: 1161 | T89: 1380.505356
A90: Soft wheat | B90: 1785 | C90: 550 | D90: 1788 | E90: 1732.5 | F90: 1026 | G90: 1075 | H90: 1486.841486 | M90: Soft wheat | N90: 1785 | O90: 550 | P90: 2792 | Q90: 1913 | R90: 1026 | S90: 1075 | T90: 1875.122804
A91: bean | C91: 715 | D91: 1423 | E91: 360 | G91: 1060 | H91: 714.3779343 | M91: bean | O91: 715 | P91: 1927 | Q91: 360 | S91: 1060 | T91: 953.1178161
A92: Peas | D92: 1972 | G92: 1520 | H92: 1736.173913 | M92: Peas | P92: 2462 | S92: 1520 | T92: 1970.521739
A93: Alfalfa | B93: 7025 | C93: 1303.5 | D93: 2350 | E93: 1129 | F93: 2698 | G93: 2040 | H93: 2236.645015 | M93: Alfalfa | N93: 7025 | O93: 1303.5 | P93: 2850 | Q93: 2320 | R93: 2698 | S93: 2040 | T93: 2632.949547
A94: Corn | E94: 1345.2 | H94: 1345.2 | M94: Corn | Q94: 1484 | T94: 1484
A95: Corn stover | D95: 1965 | H95: 1965 | M95: Corn stover | P95: 2554 | T95: 2554
A96: Summer horticulture | E96: 2825 | F96: 13650 | H96: 4157.307692 | M96: Summer horticulture | Q96: 3105 | R96: 19650 | T96: 5141.307692
A97: Winter horticulture | B97: 10500 | C97: 4188.3 | E97: 3694 | F97: 4130 | G97: 21000 | H97: 10948.56857 | M97: Winter horticulture | N97: 10500 | O97: 4188.3 | Q97: 4614 | R97: 4173 | S97: 21000 | T97: 11109.17736
A98: Barley | B98: 1885 | C98: 552.8 | D98: 1452 | E98: 770.4 | F98: 553 | G98: 529 | H98: 837.9743578 | M98: Barley | N98: 1885 | O98: 552.8 | P98: 1869 | Q98: 766 | R98: 553 | S98: 529 | T98: 965.0440986
A101: Actual situation | B101: Charges MO (DH/Ha) | M101: Target | N101: Charges MO (DH/Ha)
A103: Crop/Perimeter | B103: Zekkara | C103: Maamer Beni Khlil | D103: Chichaoua amont | E103: Outat El haj | F103: Ourika | G103: Ghmat | H103: Charges Avg | M103: Crop/Perimeter | N103: Zekkara | O103: Maamer Beni Khlil | P103: Chichaoua amont | Q103: Outat El haj | R103: Ourika | S103: Ghmat | T103: Charges Avg
A104: Olives | B104: 2450 | C104: 4650 | D104: 6160 | E104: 2305 | F104: 2950 | G104: 5696 | H104: =(B104*B5+C104*C5+D104*D5+E104*E5+F104*F5+G104*G5)/H5 -> 4045.977095 | M104: Olives | N104: 3840 | O104: 4850 | P104: 7070 | Q104: 2985 | R104: 3900 | S104: 8201 | T104: =(N104*N5+O104*O5+P104*P5+Q104*Q5+R104*R5+S104*S5)/T5 -> 5101.646244
A105: Dates | E105: 3750 | G105: 4417 | H105: =(B105*B6+C105*C6+D105*D6+E105*E6+F105*F6+G105*G6)/H6 -> 3839.730942 | M105: Dates | Q105: 3950 | S105: 4900 | T105: =(N105*N6+O105*O6+P105*P6+Q105*Q6+R105*R6+S105*S6)/T6 -> 4050.706714
A106: Other Trees, | D106: 4493 | E106: 1900 | F106: 600 | G106: 7167 | H106: 4031.139896 | M106: Other Trees, | P106: 5012 | Q106: 1900 | R106: 1770 | S106: 7650 | T106: 4329.240506
A107: Oats | B107: 850 | H107: 850 | M107: Oats | N107: 850 | T107: 850
A108: Bersim | D108: 3850 | F108: 1400 | G108: 6773 | H108: 5491.049724 | M108: Bersim | P108: 4060 | R108: 1600 | S108: 7300 | T108: 5893.149171
A109: Hard wheat | C109: 1596 | D109: 770 | E109: 360 | F109: 1000 | G109: 2747 | H109: 1697.006537 | M109: Hard wheat | O109: 1596 | P109: 1190 | Q109: 415 | R109: 1000 | S109: 2747 | T109: 1890.538962
A110: Soft wheat | B110: 400 | C110: 1342 | D110: 770 | E110: 360 | F110: 1000 | G110: 2750 | H110: 1159.386328 | M110: Soft wheat | N110: 400 | O110: 1342 | P110: 1190 | Q110: 415 | R110: 1000 | S110: 2750 | T110: 1396.808972
A111: bean | C111: 798 | D111: 1750 | E111: 675 | G111: 3000 | H111: 1175.800469 | M111: bean | O111: 798 | P111: 3150 | Q111: 555 | S111: 3000 | T111: 1668.163793
A112: Peas | D112: 1750 | G112: 3750 | H112: 2793.478261 | M112: Peas | P112: 4200 | S112: 3750 | T112: 3965.217391
A113: Alfalfa | B113: 1500 | C113: 2158 | D113: 4970 | E113: 1240 | F113: 1400 | G113: 9931 | H113: 5541.463444 | M113: Alfalfa | N113: 1500 | O113: 2158 | P113: 4970 | Q113: 1250 | R113: 1600 | S113: 10450 | T113: 5737.390937
A114: Corn | E114: 390 | H114: 390 | M114: Corn | Q114: 390 | T114: 390
A115: Corn stover | D115: 4200 | H115: 4200 | M115: Corn stover | P115: 4200 | T115: 4200
A116: Summer horticulture | E116: 2730 | F116: 2500 | H116: 2701.692308 | M116: Summer horticulture | Q116: 2730 | R116: 2500 | T116: 2701.692308
A117: Winter horticulture | B117: 1950 | C117: 1248 | E117: 2900 | F117: 1887 | G117: 7222 | H117: 4119.197802 | M117: Winter horticulture | N117: 1950 | O117: 1248 | Q117: 2900 | R117: 2372 | S117: 7700 | T117: 4477.78022
A118: Barley | B118: 450 | C118: 1275.4 | D118: 770 | E118: 235 | F118: 750 | G118: 2500 | H118: 1371.104024 | M118: Barley | N118: 450 | O118: 1275.4 | P118: 1190 | Q118: 290 | R118: 750 | S118: 2500 | T118: 1560.092554
A121: Agricultural value development action plan
A123: Périmètre | B123: Nb plants | C123: Sup | D123: Densité | E123: durée | F123: Cost | G123: Cost/plant | I123: Assol_Avg/Exp | J123: Assol_Avg/Exp
A124: Outat El haj | B124: 15000 | C124: 130 | D124: =B124/C124 -> 115.3846154 | E124: 4 | F124: 300000 | G124: =F124/B124 -> 20 | H124: =G124*D124 -> 2307.692308 | I124: =C124/H22 -> 0.02088688946 | J124: =I124/I20*J20 -> 0.04631081722
A125: Ghmat | B125: 0
A126: Zekkara | B126: 0
A127: Maamer Beni Khlil | B127: 0
A128: Chichaoua amont | B128: 0
A129: Ourika | B129: 0

Sheet BudExp DHMax>55%
A1: The operating budget
A3: I. Evolution of area sown (Ha)
B5: Area sown actual | C5: Area sown target | D5: Without project | E5: With project
A6: Crops | D6: Years 1-20 | E6: Years 1 | F6: 2 | G6: 3 | H6: 4 | I6: 5 | J6: 6 | K6: 7 | L6: 8 | M6: 9 | N6: 10 | O6: 11 -20
A7: Cereals | B7: =SUM(B8:B12) -> 2.151503094 | C7: =SUM(C8:C12) -> 2.006470477 | D7: =SUM(D8:D12) -> 2.151503094 | E7: 2.151503094 | F7: 2.151503094 | G7: 2.006470477 | H7: 2.006470477 | I7: 2.006470477 | J7: 2.006470477 | K7: 2.006470477 | L7: 2.006470477 | M7: 2.006470477 | N7: 2.006470477 | O7: =SUM(O8:O12) -> 2.006470477
A8: Soft wheat | B8: =Don_classe2!J11 -> 0.4743682217 | C8: =Don_classe2!V11 -> 0.4360647356 | D8: =B8 -> 0.4743682217 | E8: =B8 -> 0.4743682217 | F8: =E8 -> 0.4743682217 | G8: =C8 -> 0.4360647356 | H8: =G8 -> 0.4360647356 | I8: 0.4360647356 | J8: 0.4360647356 | K8: 0.4360647356 | L8: 0.4360647356 | M8: 0.4360647356 | N8: 0.4360647356 | O8: 0.4360647356
A9: Hard wheat | B9: =Don_classe2!J10 -> 0.773656043 | C9: =Don_classe2!V10 -> 0.708205426 | D9: =B9 -> 0.773656043 | E9: =B9 -> 0.773656043 | F9: =E9 -> 0.773656043 | G9: =C9 -> 0.708205426 | H9: 0.708205426 | I9: 0.708205426 | J9: 0.708205426 | K9: 0.708205426 | L9: 0.708205426 | M9: 0.708205426 | N9: 0.708205426 | O9: 0.708205426
A10: Barley | B10: =Don_classe2!J19 -> 0.817946773 | C10: =Don_classe2!V19 -> 0.7766682589 | D10: 0.817946773 | E10: =B10 -> 0.817946773 | F10: =E10 -> 0.817946773 | G10: =C10 -> 0.7766682589 | H10: 0.7766682589 | I10: 0.7766682589 | J10: 0.7766682589 | K10: 0.7766682589 | L10: 0.7766682589 | M10: 0.7766682589 | N10: 0.7766682589 | O10: 0.7766682589
A11: Corn | B11: =Don_classe2!J15 -> 0.06321934595 | C11: =Don_classe2!V15 -> 0.06321934595 | D11: 0.06321934595 | E11: =B11 -> 0.06321934595 | F11: =E11 -> 0.06321934595 | G11: =C11 -> 0.06321934595 | H11: 0.06321934595 | I11: 0.06321934595 | J11: 0.06321934595 | K11: 0.06321934595 | L11: 0.06321934595 | M11: 0.06321934595 | N11: 0.06321934595 | O11: 0.06321934595
A12: Oats | B12: =Don_classe2!J8 -> 0.02231271034 | C12: =Don_classe2!V8 -> 0.02231271034 | D12: 0.02231271034 | E12: =B12 -> 0.02231271034 | F12: =E12 -> 0.02231271034 | G12: =C12 -> 0.02231271034 | H12: 0.02231271034 | I12: 0.02231271034 | J12: 0.02231271034 | K12: 0.02231271034 | L12: 0.02231271034 | M12: 0.02231271034 | N12: 0.02231271034 | O12: 0.02231271034
A13: Legumes | B13: =SUM(B14:B15) -> 0.06 | C13: =SUM(C14:C15) -> 0.05286585366 | D13: 0.06 | E13: 0.06 | F13: 0.06 | G13: 0.05286585366 | H13: 0.05286585366 | I13: 0.05286585366 | J13: 0.05286585366 | K13: 0.05286585366 | L13: 0.05286585366 | M13: 0.05286585366 | N13: 0.05286585366 | O13: =SUM(O14:O15) -> 0.05286585366
A14: Peas | B14: =Don_classe2!J13 -> 0.02103658537 | C14: =Don_classe2!V13 -> 0.02103658537 | D14: 0.02103658537 | E14: =B14 -> 0.02103658537 | F14: =E14 -> 0.02103658537 | G14: =C14 -> 0.02103658537 | H14: 0.02103658537 | I14: 0.02103658537 | J14: 0.02103658537 | K14: 0.02103658537 | L14: 0.02103658537 | M14: 0.02103658537 | N14: 0.02103658537 | O14: 0.02103658537
A15: Beans | B15: =Don_classe2!J12 -> 0.03896341463 | C15: =Don_classe2!V12 -> 0.03182926829 | D15: 0.03896341463 | E15: =B15 -> 0.03896341463 | F15: =E15 -> 0.03896341463 | G15: =C15 -> 0.03182926829 | H15: 0.03182926829 | I15: 0.03182926829 | J15: 0.03182926829 | K15: 0.03182926829 | L15: 0.03182926829 | M15: 0.03182926829 | N15: 0.03182926829 | O15: 0.03182926829
A16: Fruit trees | B16: =SUM(B17:B20) -> 2.138560694 | C16: =SUM(C17:C20) -> 2.246663728 | D16: 2.138560694 | E16: 2.138560694 | F16: 2.138560694 | G16: 2.200352911 | H16: 2.221192779 | I16: 2.246663728 | J16: 2.246663728 | K16: 2.246663728 | L16: 2.246663728 | M16: 2.246663728 | N16: 2.246663728 | O16: =SUM(O17:O20) -> 2.246663728
A17: Olives | B17: =Don_classe2!J5 -> 1.7 | C17: =Don_classe2!J5 -> 1.7 | D17: 1.7 | E17: =B17 -> 1.7 | F17: =E17 -> 1.7 | G17: =C17 -> 1.7 | H17: 1.7 | I17: 1.7 | J17: 1.7 | K17: 1.7 | L17: 1.7 | M17: 1.7 | N17: 1.7 | O17: 1.7
A18: Olives newly planted | C18: =Don_classe2!J124 -> 0.04631081722 | D18: 0 | E18: =B18 -> 0 | F18: =E18 -> 0 | G18: =F18 -> 0 | H18: =C18*0.45 -> 0.02083986775 | I18: =C18 -> 0.04631081722 | J18: 0.04631081722 | K18: 0.04631081722 | L18: 0.04631081722 | M18: 0.04631081722 | N18: 0.04631081722 | O18: 0.04631081722
A19: Dates | B19: =Don_classe2!J6 -> 0.1219439335 | C19: =Don_classe2!V6 -> 0.1547539605 | D19: 0.1219439335 | E19: =B19 -> 0.1219439335 | F19: =E19 -> 0.1219439335 | G19: =C19 -> 0.1547539605 | H19: 0.1547539605 | I19: 0.1547539605 | J19: 0.1547539605 | K19: 0.1547539605 | L19: 0.1547539605 | M19: 0.1547539605 | N19: 0.1547539605 | O19: 0.1547539605
A20: Other tree crops | B20: =Don_classe2!J7 -> 0.3166167601 | C20: =Don_classe2!V7 -> 0.3455989506 | D20: 0.3166167601 | E20: =B20 -> 0.3166167601 | F20: =E20 -> 0.3166167601 | G20: =C20 -> 0.3455989506 | H20: 0.3455989506 | I20: 0.3455989506 | J20: 0.3455989506 | K20: 0.3455989506 | L20: 0.3455989506 | M20: 0.3455989506 | N20: 0.3455989506 | O20: 0.3455989506
A21: Horticulture | B21: =SUM(B22:B23) -> 0.3 | C21: =SUM(C22:C23) -> 0.3 | D21: 0.3 | E21: 0.3 | F21: 0.3 | G21: 0.3 | H21: 0.3 | I21: 0.3 | J21: 0.3 | K21: 0.3 | L21: 0.3 | M21: 0.3 | N21: 0.3 | O21: =SUM(O22:O23) -> 0.3
A22: horticulturewinter | B22: =Don_classe2!J18 -> 0.2625 | C22: =Don_classe2!V18 -> 0.2625 | D22: 0.2625 | E22: =B22 -> 0.2625 | F22: =E22 -> 0.2625 | G22: =C22 -> 0.2625 | H22: 0.2625 | I22: 0.2625 | J22: 0.2625 | K22: 0.2625 | L22: 0.2625 | M22: 0.2625 | N22: 0.2625 | O22: 0.2625
A23: horticulturesummer | B23: =Don_classe2!J17 -> 0.0375 | C23: =Don_classe2!V17 -> 0.0375 | D23: 0.0375 | E23: =B23 -> 0.0375 | F23: =E23 -> 0.0375 | G23: =C23 -> 0.0375 | H23: 0.0375 | I23: 0.0375 | J23: 0.0375 | K23: 0.0375 | L23: 0.0375 | M23: 0.0375 | N23: 0.0375 | O23: 0.0375
A24: Feed crops | B24: =SUM(B25:B27) -> 0.5506409857 | C24: =SUM(C25:C27) -> 0.5506409857 | D24: 0.5506409857 | E24: 0.5506409857 | F24: 0.5506409857 | G24: 0.5506409857 | H24: 0.5506409857 | I24: 0.5506409857 | J24: 0.5506409857 | K24: 0.5506409857 | L24: 0.5506409857 | M24: 0.5506409857 | N24: 0.5506409857 | O24: =SUM(O25:O27) -> 0.5506409857
A25: Alfalfa | B25: =Don_classe2!J14 -> 0.04256928073 | C25: =Don_classe2!V14 -> 0.04256928073 | D25: 0.04256928073 | E25: =B25 -> 0.04256928073 | F25: =E25 -> 0.04256928073 | G25: =C25 -> 0.04256928073 | H25: =G25 -> 0.04256928073 | I25: 0.04256928073 | J25: 0.04256928073 | K25: 0.04256928073 | L25: 0.04256928073 | M25: 0.04256928073 | N25: 0.04256928073 | O25: 0.04256928073
A26: Bersim* | B26: =Don_classe2!J9 -> 0.3744922379 | C26: =Don_classe2!V9 -> 0.3744922379 | D26: 0.3744922379 | E26: =B26 -> 0.3744922379 | F26: =E26 -> 0.3744922379 | G26: =C26 -> 0.3744922379 | H26: 0.3744922379 | I26: 0.3744922379 | J26: 0.3744922379 | K26: 0.3744922379 | L26: 0.3744922379 | M26: 0.3744922379 | N26: 0.3744922379 | O26: 0.3744922379
A27: Corn stover | B27: =Don_classe2!J16 -> 0.1335794671 | C27: =Don_classe2!V16 -> 0.1335794671 | D27: 0.1335794671 | E27: =B27 -> 0.1335794671 | F27: =E27 -> 0.1335794671 | G27: =C27 -> 0.1335794671 | H27: 0.1335794671 | I27: 0.1335794671 | J27: 0.1335794671 | K27: 0.1335794671 | L27: 0.1335794671 | M27: 0.1335794671 | N27: 0.1335794671 | O27: 0.1335794671
A28: Total | B28: =SUM(B7,B13,B16,B21,B24) -> 5.200704773 | C28: =SUM(C7,C13,C16,C21,C24) -> 5.156641045 | D28: =SUM(D7,D13,D16,D21,D24) -> 5.200704773 | E28: =SUM(E7,E13,E16,E21,E24) -> 5.200704773 | F28: 5.200704773 | G28: 5.110330227 | H28: 5.131170095 | I28: 5.156641045 | J28: 5.156641045 | K28: 5.156641045 | L28: 5.156641045 | M28: 5.156641045 | N28: 5.156641045 | O28: =SUM(O7,O13,O16,O21,O24) -> 5.156641045
A29: SAU | B29: 1.313350477 | C29: 1.313350477 | D29: 1.313350477 | E29: 1.313350477 | F29: 1.313350477 | G29: 1.313350477 | H29: 1.313350477 | I29: 1.313350477 | J29: 1.313350477 | K29: 1.313350477 | L29: 1.313350477 | M29: 1.313350477 | N29: 1.313350477 | O29: 1.313350477
A30: *http://www.agrimaroc.net/elevage/aliment/bersm.htm
A32: II. Evolution of Yields (Q/Ha)
B33: Yield actual | C33: Yield target | D33: Without project | E33: With project
A34: Crops | D34: Years 1-20 | E34: Years 1 | F34: 2 | G34: 3 | H34: 4 | I34: 5 | J34: 6 | K34: 7 | L34: 8 | M34: 9 | N34: 10 | O34: 11 - 20
A35: Cereals
A36: Soft wheat | B36: =Don_classe2!H33*'Data&assumptions'!B235 -> 17.25100345 | C36: =Don_classe2!T33*'Data&assumptions'!B235 -> 22.79411564 | D36: =B36 -> 17.25100345 | E36: =D36 -> 17.25100345 | F36: =E36 -> 17.25100345 | G36: =$F36+($C36-$B36)*'Data&assumptions'!$D$220 -> 19.19109272 | H36: =$F36+($C36-$B36)*'Data&assumptions'!$E$220 -> 21.96264881 | I36: =$F36+($C36-$B36)*'Data&assumptions'!$F$220 -> 22.79411564 | J36: =I36 -> 22.79411564 | K36: =J36 -> 22.79411564 | L36: 22.79411564 | M36: 22.79411564 | N36: 22.79411564 | O36: 22.79411564
A37: Hard wheat | B37: =Don_classe2!H32*'Data&assumptions'!B235 -> 13.3646318 | C37: =Don_classe2!T32*'Data&assumptions'!B235 -> 16.71608906 | D37: =B37 -> 13.3646318 | E37: =D37 -> 13.3646318 | F37: 13.3646318 | G37: =$F37+($C37-$B37)*'Data&assumptions'!$D$220 -> 14.53764184 | H37: =$F37+($C37-$B37)*'Data&assumptions'!$E$220 -> 16.21337047 | I37: =$F37+($C37-$B37)*'Data&assumptions'!$F$220 -> 16.71608906 | J37: =I37 -> 16.71608906 | K37: 16.71608906 | L37: 16.71608906 | M37: 16.71608906 | N37: 16.71608906 | O37: 16.71608906
A38: Barley | B38: =Don_classe2!H41*'Data&assumptions'!B235 -> 12.02055013 | C38: =Don_classe2!T41*'Data&assumptions'!B235 -> 15.0482643 | D38: 12.02055013 | E38: 12.02055013 | F38: 12.02055013 | G38: =$F38+($C38-$B38)*'Data&assumptions'!$D$220 -> 13.08025009 | H38: =$F38+($C38-$B38)*'Data&assumptions'!$E$220 -> 14.59410718 | I38: =$F38+($C38-$B38)*'Data&assumptions'!$F$220 -> 15.0482643 | J38: 15.0482643 | K38: 15.0482643 | L38: 15.0482643 | M38: 15.0482643 | N38: 15.0482643 | O38: 15.0482643
A39: Corn | B39: =Don_classe2!H37*'Data&assumptions'!B235 -> 10.205 | C39: =Don_classe2!T37*'Data&assumptions'!B235 -> 13 | D39: 10.205 | E39: 10.205 | F39: 10.205 | G39: =$F39+($C39-$B39)*'Data&assumptions'!$D$220 -> 11.18325 | H39: =$F39+($C39-$B39)*'Data&assumptions'!$E$220 -> 12.58075 | I39: =$F39+($C39-$B39)*'Data&assumptions'!$F$220 -> 13 | J39: 13 | K39: 13 | L39: 13 | M39: 13 | N39: 13 | O39: 13
A40: Oats | B40: =Don_classe2!H30*'Data&assumptions'!B235 -> 67 | C40: =Don_classe2!T30*'Data&assumptions'!B235 -> 72 | D40: 67 | E40: 67 | F40: 67 | G40: =$F40+($C40-$B40)*'Data&assumptions'!$D$220 -> 68.75 | H40: =$F40+($C40-$B40)*'Data&assumptions'!$E$220 -> 71.25 | I40: =$F40+($C40-$B40)*'Data&assumptions'!$F$220 -> 72 | J40: 72 | K40: 72 | L40: 72 | M40: 72 | N40: 72 | O40: 72
A41: Legumes
A42: Peas | B42: =Don_classe2!H35*'Data&assumptions'!B235 -> 17.26086957 | C42: =Don_classe2!T35*'Data&assumptions'!B235 -> 21.17391304 | D42: 17.26086957 | E42: =D42 -> 17.26086957 | F42: =E42 -> 17.26086957 | G42: =$F42+($C42-$B42)*'Data&assumptions'!$D$220 -> 18.63043478 | H42: =$F42+($C42-$B42)*'Data&assumptions'!$E$220 -> 20.58695652 | I42: =$F42+($C42-$B42)*'Data&assumptions'!$F$220 -> 21.17391304 | J42: 21.17391304 | K42: 21.17391304 | L42: 21.17391304 | M42: 21.17391304 | N42: 21.17391304 | O42: 21.17391304
A43: Beans | B43: =Don_classe2!H34*'Data&assumptions'!B235 -> 16.75676056 | C43: =Don_classe2!T34*'Data&assumptions'!B235 -> 24.16637931 | D43: 16.75676056 | E43: =D43 -> 16.75676056 | F43: =E43 -> 16.75676056 | G43: =$F43+($C43-$B43)*'Data&assumptions'!$D$220 -> 19.35012712 | H43: =$F43+($C43-$B43)*'Data&assumptions'!$E$220 -> 23.0549365 | I43: =$F43+($C43-$B43)*'Data&assumptions'!$F$220 -> 24.16637931 | J43: 24.16637931 | K43: 24.16637931 | L43: 24.16637931 | M43: 24.16637931 | N43: 24.16637931 | O43: 24.16637931
A44: Fruit trees
A45: Olives | B45: =Don_classe2!H27*'Data&assumptions'!B235 -> 22.87193056 | D45: =+'Data&assumptions'!B212 -> 22.87193056 | E45: ='Data&assumptions'!B216 -> 22.87193056 | F45: ='Data&assumptions'!C216 -> 22.87193056 | G45: ='Data&assumptions'!D216 -> 24.07490334 | H45: ='Data&assumptions'!E216 -> 24.41569199 | I45: ='Data&assumptions'!F216 -> 24.78258455 | J45: ='Data&assumptions'!G216 -> 25.17800316 | K45: ='Data&assumptions'!H216 -> 25.6046226 | L45: ='Data&assumptions'!I216 -> 26.06539807 | M45: ='Data&assumptions'!J216 -> 26.56359627 | N45: ='Data&assumptions'!K216 -> 27.10282984 | O45: =+(N45+'Data&assumptions'!L207)*'Data&assumptions'!$B$235 -> 36.983521
A46: Olives newly planted | D46: 0 | E46: 0 | F46: 0 | G46: 0 | H46: 0 | I46: =+I45*'Data&assumptions'!F230 -> 12.39129227 | J46: =+J45*'Data&assumptions'!G230 -> 18.88350237 | K46: =+K45*'Data&assumptions'!H230 -> 23.04416034 | L46: =+L45*'Data&assumptions'!I230 -> 26.06539807 | M46: =+M45 -> 26.56359627 | N46: =+N45 -> 27.10282984 | O46: =+O45 -> 36.983521
A47: Dates | B47: =Don_classe2!H28*'Data&assumptions'!B235 -> 7.042892377 | C47: =Don_classe2!T28*'Data&assumptions'!B235 -> 9.860777385 | D47: 7.042892377 | E47: =D47 -> 7.042892377 | F47: =E47 -> 7.042892377 | G47: =$F47+($C47-$B47)*'Data&assumptions'!$D$220 -> 8.02915213 | H47: =$F47+($C47-$B47)*'Data&assumptions'!$E$220 -> 9.438094634 | I47: =$F47+($C47-$B47)*'Data&assumptions'!$F$220 -> 9.860777385 | J47: 9.860777385 | K47: 9.860777385 | L47: 9.860777385 | M47: 9.860777385 | N47: 9.860777385 | O47: 9.860777385
A48: Other tree crops | B48: =Don_classe2!H29*'Data&assumptions'!B235 -> 118.1761658 | C48: =Don_classe2!T29*'Data&assumptions'!B235 -> 141.3512658 | D48: 118.1761658 | E48: =D48 -> 118.1761658 | F48: =E48 -> 118.1761658 | G48: =$F48+($C48-$B48)*'Data&assumptions'!$D$220 -> 126.2874508 | H48: =$F48+($C48-$B48)*'Data&assumptions'!$E$220 -> 137.8750008 | I48: =$F48+($C48-$B48)*'Data&assumptions'!$F$220 -> 141.3512658 | J48: 141.3512658 | K48: 141.3512658 | L48: 141.3512658 | M48: 141.3512658 | N48: 141.3512658 | O48: 141.3512658
A49: Horticulture
A50: horticulturewinter | B50: =Don_classe2!H40*'Data&assumptions'!B235 -> 138.378022 | C50: =Don_classe2!T40*'Data&assumptions'!B235 -> 164.0523077 | D50: 138.378022 | E50: =D50 -> 138.378022 | F50: =E50 -> 138.378022 | G50: =$F50+($C50-$B50)*'Data&assumptions'!$D$220 -> 147.364022 | H50: =$F50+($C50-$B50)*'Data&assumptions'!$E$220 -> 160.2011648 | I50: =$F50+($C50-$B50)*'Data&assumptions'!$F$220 -> 164.0523077 | J50: 164.0523077 | K50: 164.0523077 | L50: 164.0523077 | M50: 164.0523077 | N50: 164.0523077 | O50: 164.0523077
A51: horticulturesummer | B51: =Don_classe2!H39*'Data&assumptions'!B235 -> 130.0653846 | C51: =Don_classe2!T39*'Data&assumptions'!B235 -> 136.2192308 | D51: 130.0653846 | E51: =D51 -> 130.0653846 | F51: =E51 -> 130.0653846 | G51: =$F51+($C51-$B51)*'Data&assumptions'!$D$220 -> 132.2192308 | H51: =$F51+($C51-$B51)*'Data&assumptions'!$E$220 -> 135.2961538 | I51: =$F51+($C51-$B51)*'Data&assumptions'!$F$220 -> 136.2192308 | J51: 136.2192308 | K51: 136.2192308 | L51: 136.2192308 | M51: 136.2192308 | N51: 136.2192308 | O51: 136.2192308
A52: Feed crops
A53: Alfalfa | B53: =Don_classe2!H36*'Data&assumptions'!B235 -> 508.623565 | C53: =Don_classe2!T36*'Data&assumptions'!B235 -> 611.9879154 | D53: 508.623565 | E53: =D53 -> 508.623565 | F53: 508.623565 | G53: =$F53+($C53-$B53)*'Data&assumptions'!$D$220 -> 544.8010876 | H53: =$F53+($C53-$B53)*'Data&assumptions'!$E$220 -> 596.4832628 | I53: =$F53+($C53-$B53)*'Data&assumptions'!$F$220 -> 611.9879154 | J53: 611.9879154 | K53: 611.9879154 | L53: 611.9879154 | M53: 611.9879154 | N53: 611.9879154 | O53: 611.9879154
A54: Bersim | B54: =Don_classe2!H31*'Data&assumptions'!B235 -> 374.1049724 | C54: =Don_classe2!T31*'Data&assumptions'!B235 -> 462.8895028 | D54: 374.1049724 | E54: 374.1049724 | F54: 374.1049724 | G54: =$F54+($C54-$B54)*'Data&assumptions'!$D$220 -> 405.179558 | H54: =$F54+($C54-$B54)*'Data&assumptions'!$E$220 -> 449.5718232 | I54: =$F54+($C54-$B54)*'Data&assumptions'!$F$220 -> 462.8895028 | J54: =I54 -> 462.8895028 | K54: 462.8895028 | L54: 462.8895028 | M54: 462.8895028 | N54: 462.8895028 | O54: 462.8895028
A55: Corn stover | B55: =Don_classe2!H38*'Data&assumptions'!B235 -> 472 | C55: =Don_classe2!T38*'Data&assumptions'!B235 -> 605 | D55: 472 | E55: 472 | F55: 472 | G55: =$F55+($C55-$B55)*'Data&assumptions'!$D$220 -> 518.55 | H55: =$F55+($C55-$B55)*'Data&assumptions'!$E$220 -> 585.05 | I55: =$F55+($C55-$B55)*'Data&assumptions'!$F$220 -> 605 | J55: 605 | K55: 605 | L55: 605 | M55: 605 | N55: 605 | O55: 605
A56: Secondary products
A57: Straw Hard wheat | B57: =Don_classe2!H43*'Data&assumptions'!B235 -> 31.335224 | C57: =Don_classe2!T43*'Data&assumptions'!B235 -> 32.96612056 | D57: 31.335224 | E57: =D57 -> 31.335224 | F57: 31.335224 | G57: =$F57+($C57-$B57)*'Data&assumptions'!$D$220 -> 31.90603779 | H57: =$F57+($C57-$B57)*'Data&assumptions'!$E$220 -> 32.72148608 | I57: =$F57+($C57-$B57)*'Data&assumptions'!$F$220 -> 32.96612056 | J57: =I57 -> 32.96612056 | K57: 32.96612056 | L57: 32.96612056 | M57: 32.96612056 | N57: 32.96612056 | O57: 32.96612056
A58: Straw Soft wheat | B58: =Don_classe2!H44*'Data&assumptions'!B235 -> 34.25783945 | C58: =Don_classe2!T44*'Data&assumptions'!B235 -> 42.30486099 | D58: 34.25783945 | E58: 34.25783945 | F58: 34.25783945 | G58: =$F58+($C58-$B58)*'Data&assumptions'!$D$220 -> 37.07429699 | H58: =$F58+($C58-$B58)*'Data&assumptions'!$E$220 -> 41.09780776 | I58: =$F58+($C58-$B58)*'Data&assumptions'!$F$220 -> 42.30486099 | J58: 42.30486099 | K58: 42.30486099 | L58: 42.30486099 | M58: 42.30486099 | N58: 42.30486099 | O58: 42.30486099
A59: Straw Barley | B59: =Don_classe2!H45*'Data&assumptions'!B235 -> 28.2152762 | C59: =Don_classe2!T45*'Data&assumptions'!B235 -> 27.9863299 | D59: 28.2152762 | E59: 28.2152762 | F59: 28.2152762 | G59: =$F59+($C59-$B59)*'Data&assumptions'!$D$220 -> 28.135145 | H59: =$F59+($C59-$B59)*'Data&assumptions'!$E$220 -> 28.02067185 | I59: =$F59+($C59-$B59)*'Data&assumptions'!$F$220 -> 27.9863299 | J59: 27.9863299 | K59: 27.9863299 | L59: 27.9863299 | M59: 27.9863299 | N59: 27.9863299 | O59: 27.9863299
A60: Peas (SP) | B60: =Don_classe2!H46*'Data&assumptions'!B235 -> 10.56521739 | C60: =Don_classe2!T46*'Data&assumptions'!B235 -> 12.56521739 | D60: 10.56521739 | E60: 10.56521739 | F60: 10.56521739 | G60: =$F60+($C60-$B60)*'Data&assumptions'!$D$220 -> 11.26521739 | H60: =$F60+($C60-$B60)*'Data&assumptions'!$E$220 -> 12.26521739 | I60: =$F60+($C60-$B60)*'Data&assumptions'!$F$220 -> 12.56521739 | J60: 12.56521739 | K60: 12.56521739 | L60: 12.56521739 | M60: 12.56521739 | N60: 12.56521739 | O60: 12.56521739
A61: Beans (SP) | B61: =Don_classe2!H47*'Data&assumptions'!B235 -> 7.79342723 | C61: =Don_classe2!T47*'Data&assumptions'!B235 -> 11.82758621 | D61: 7.79342723 | E61: 7.79342723 | F61: 7.79342723 | G61: =$F61+($C61-$B61)*'Data&assumptions'!$D$220 -> 9.205382872 | H61: =$F61+($C61-$B61)*'Data&assumptions'!$E$220 -> 11.22246236 | I61: =$F61+($C61-$B61)*'Data&assumptions'!$F$220 -> 11.82758621 | J61: 11.82758621 | K61: 11.82758621 | L61: 11.82758621 | M61: 11.82758621 | N61: 11.82758621 | O61: 11.82758621
A62: Corn (SP) (UF/HA) | B62: =Don_classe2!H48*'Data&assumptions'!B235 -> 1100 | C62: =Don_classe2!T48*'Data&assumptions'!B235 -> 1100 | D62: 1100 | E62: 1100 | F62: 1100 | G62: =$F62+($C62-$B62)*'Data&assumptions'!$D$220 -> 1100 | H62: =$F62+($C62-$B62)*'Data&assumptions'!$E$220 -> 1100 | I62: =$F62+($C62-$B62)*'Data&assumptions'!$F$220 -> 1100 | J62: 1100 | K62: 1100 | L62: 1100 | M62: 1100 | N62: 1100 | O62: 1100
A64: III. Evolution of production (Q)
B65: Without project | C65: With project
A66: Crops | B66: Years 1-20 | C66: Years 1 | D66: 2 | E66: 3 | F66: 4 | G66: 5 | H66: 6 | I66: 7 | J66: 8 | K66: 9 | L66: 10 | M66: 11-20
A67: Cereals
A68: Soft wheat | B68: =D36*D8 -> 8.183327829 | C68: =D36*D8 -> 8.183327829 | D68: 8.183327829 | E68: 8.183327829 | F68: 8.368558772 | G68: 9.577136648 | H68: 9.939710011 | I68: 9.939710011 | J68: 9.939710011 | K68: 9.939710011 | L68: 9.939710011 | M68: =N36*N8*10 -> 99.39710011
A69: Hard wheat | B69: =D37*D9 -> 10.33962816 | C69: =D37*D9 -> 10.33962816 | D69: 10.33962816 | E69: 10.33962816 | F69: 10.29563683 | G69: 11.48239694 | H69: 11.83842497 | I69: 11.83842497 | J69: 11.83842497 | K69: 11.83842497 | L69: 11.83842497 | M69: =N37*N9*10 -> 118.3842497
A70: Barley | B70: =D38*D10 -> 9.832170185 | C70: =D38*D10 -> 9.832170185 | D70: 9.832170185 | E70: 9.832170185 | F70: 10.15901506 | G70: 11.33477981 | H70: 11.68750924 | I70: 11.68750924 | J70: 11.68750924 | K70: 11.68750924 | L70: 11.68750924 | M70: 116.8750924
A71: Corn | B71: =D39*D11 -> 0.6451534254 | C71: =D39*D11 -> 0.6451534254 | D71: 0.6451534254 | E71: 0.6451534254 | F71: 0.7069977506 | G71: 0.7953467866 | H71: 0.8218514973 | I71: 0.8218514973 | J71: 0.8218514973 | K71: 0.8218514973 | L71: 0.8218514973 | M71: 8.218514973
A72: Oats | B72: =D40*D12 -> 1.494951592 | C72: =D40*D12 -> 1.494951592 | D72: 1.494951592 | E72: 1.494951592 | F72: 1.533998836 | G72: 1.589780611 | H72: 1.606515144 | I72: 1.606515144 | J72: 1.606515144 | K72: 1.606515144 | L72: 1.606515144 | M72: 16.06515144
A73: Legumes
A74: Peas | B74: =D42*D14 -> 0.3631097561 | C74: =D42*D14 -> 0.3631097561 | D74: 0.3631097561 | E74: 0.3631097561 | F74: 0.3919207317 | G74: 0.4330792683 | H74: 0.4454268293 | I74: 0.4454268293 | J74: 0.4454268293 | K74: 0.4454268293 | L74: 0.4454268293 | M74: 4.454268293
A75: Beans | B75: =D43*D15 -> 0.6529006098 | C75: =D43*D15 -> 0.6529006098 | D75: 0.6529006098 | E75: 0.6529006098 | F75: 0.6159003878 | G75: 0.7338217593 | H75: 0.7691981707 | I75: 0.7691981707 | J75: 0.7691981707 | K75: 0.7691981707 | L75: 0.7691981707 | M75: 7.691981707
A76: Fruit trees
A77: Olives | B77: =(D45*D17)+(D46*D18) -> 38.88228195 | C77: =(D45*D17)+(D46*D18) -> 38.88228195 | D77: =(E45*E17)+(E46*E18) -> 38.88228195 | E77: 38.88228195 | F77: 40.92733568 | G77: 41.50667639 | H77: 42.7042446 | I77: 43.6771158 | J77: 44.59505231 | K77: 45.51828661 | L77: 46.3882955 | M77: =((O45*O17)+(O46*O18))*10 -> 645.8472278
A78: Raw | B78: =+B77*'Data&assumptions'!$C$157/100 -> 13.25885814 | C78: =+C77*'Data&assumptions'!$C$157/100 -> 13.25885814 | D78: =+D77*'Data&assumptions'!$C$157/100 -> 13.25885814 | E78: =+E77*'Data&assumptions'!$C$157/100 -> 13.25885814 | F78: =+F77*'Data&assumptions'!$C$157/100 -> 13.95622147 | G78: =+G77*'Data&assumptions'!$C$157/100 -> 14.15377665 | H78: =+H77*'Data&assumptions'!$C$157/100 -> 14.56214741 | I78: =+I77*'Data&assumptions'!$C$157/100 -> 14.89389649 | J78: =+J77*'Data&assumptions'!$C$157/100 -> 15.20691284 | K78: =+K77*'Data&assumptions'!$C$157/100 -> 15.52173573 | L78: =+L77*'Data&assumptions'!$C$157/100 -> 15.81840877 | M78: =+M77*'Data&assumptions'!$C$157/100 -> 220.2339047
A79: Processed Olives | B79: =+B77*'Data&assumptions'!$C$158/100 -> 25.23460098 | C79: =+C77*'Data&assumptions'!$C$158/100 -> 25.23460098 | D79: =+D77*'Data&assumptions'!$C$158/100 -> 25.23460098 | E79: =+E77*'Data&assumptions'!$C$158/100 -> 25.23460098 | F79: =+F77*'Data&assumptions'!$C$158/100 -> 26.56184086 | G79: =+G77*'Data&assumptions'!$C$158/100 -> 26.93783298 | H79: =+H77*'Data&assumptions'!$C$158/100 -> 27.71505475 | I79: =+I77*'Data&assumptions'!$C$158/100 -> 28.34644816 | J79: =+J77*'Data&assumptions'!$C$158/100 -> 28.94218895 | K79: =+K77*'Data&assumptions'!$C$158/100 -> 29.54136801 | L79: =+L77*'Data&assumptions'!$C$158/100 -> 30.10600378 | M79: =+M77*'Data&assumptions'!$C$158/100 -> 419.1548509
A80: Traditional pressing | B80: =+B79*'Data&assumptions'!B174 -> 8.604998936 | C80: =+C79*+'Data&assumptions'!C171 -> 7.797491704 | D80: =+D79*+'Data&assumptions'!D171 -> 8.832110345 | E80: =+E79*+'Data&assumptions'!E171 -> 8.832110345 | F80: =+F79*+'Data&assumptions'!F171 -> 7.968552258 | G80: =+G79*+'Data&assumptions'!G171 -> 6.734458244 | H80: =+H79*+'Data&assumptions'!H171 -> 0 | I80: =+I79*+'Data&assumptions'!I171 -> 0 | J80: =+J79*+'Data&assumptions'!J171 -> 0 | K80: =+K79*+'Data&assumptions'!K171 -> 0 | L80: =+L79*+'Data&assumptions'!L171 -> 0 | M80: =+M79*+'Data&assumptions'!M171 -> 0
A81: Moofrn pressing | B81: =+B79*'Data&assumptions'!B172 -> 17.43710928 | C81: =+C79*'Data&assumptions'!C172 -> 17.43710928 | D81: =+D79*'Data&assumptions'!D172 -> 16.40249064 | E81: =+E79*'Data&assumptions'!E172 -> 16.40249064 | F81: =+F79*'Data&assumptions'!F172 -> 18.5932886 | G81: =+G79*'Data&assumptions'!G172 -> 20.20337473 | H81: =+H79*'Data&assumptions'!H172 -> 27.71505475 | I81: =+I79*'Data&assumptions'!I172 -> 28.34644816 | J81: =+J79*'Data&assumptions'!J172 -> 28.94218895 | K81: =+K79*'Data&assumptions'!K172 -> 29.54136801 | L81: =+L79*'Data&assumptions'!L172 -> 30.10600378 | M81: =+M79*'Data&assumptions'!M172 -> 419.1548509
A82: Dates | B82: =D47*D19 -> 0.8588379998 | C82: =D47*D19 -> 0.8588379998 | D82: =E47*E19 -> 0.8588379998 | E82: 0.8588379998 | F82: 1.242543091 | G82: 1.460582524 | H82: 1.525994354 | I82: 1.525994354 | J82: 1.525994354 | K82: 1.525994354 | L82: 1.525994354 | M82: =N47*N19*10 -> 15.25994354
A83: Other tree crops | B83: =D48*D20 -> 37.41655474 | C83: =D48*D20 -> 37.41655474 | D83: 37.41655474 | E83: 37.41655474 | F83: 43.64481047 | G83: 47.6494556 | H83: 48.85084913 | I83: 48.85084913 | J83: 48.85084913 | K83: 48.85084913 | L83: 48.85084913 | M83: =N48*N20*10 -> 488.5084913
A84: Horticulture
A85: horticulturewinter | B85: =D50*D22 -> 36.32423077 | C85: =D50*D22 -> 36.32423077 | D85: 36.32423077 | E85: 38.68305577 | F85: 42.05280577 | G85: 43.06373077 | H85: 43.06373077 | I85: 43.06373077 | J85: 43.06373077 | K85: 43.06373077 | L85: 43.06373077 | M85: =O50*O22*10 -> 430.6373077
A86: horticulturesummer | B86: 4.877451923 | C86: =D51*D23 -> 4.877451923 | D86: 4.877451923 | E86: 4.958221154 | F86: 5.073605769 | G86: 5.108221154 | H86: 5.108221154 | I86: 5.108221154 | J86: 5.108221154 | K86: 5.108221154 | L86: 5.108221154 | M86: =O51*O23*10 -> 51.08221154
A87: Feed crops
A88: Alfalfa | B88: =D53*D25 -> 21.65173932 | C88: =D53*D25 -> 21.65173932 | D88: =E53*E25 -> 21.65173932 | E88: 21.65173932 | F88: 23.19179044 | G88: 25.39186346 | H88: 26.05188537 | I88: 26.05188537 | J88: 26.05188537 | K88: 26.05188537 | L88: 26.05188537 | M88: =N53*N25*10 -> 260.5188537
A89: Bersim | B89: =D54*D26 -> 140.0994083 | C89: =D54*D26 -> 140.0994083 | D89: =E54*E26 -> 140.0994083 | E89: 140.0994083 | F89: 151.7365994 | G89: 168.3611582 | H89: 173.3485258 | I89: 173.3485258 | J89: 173.3485258 | K89: 173.3485258 | L89: 173.3485258 | M89: =N54*N26*10 -> 1733.485258
A90: Corn stover | B90: =D55*D27 -> 63.04950847 | C90: =D55*D27 -> 63.04950847 | D90: =E55*E27 -> 63.04950847 | E90: 63.04950847 | F90: 69.26763267 | G90: 78.15066723 | H90: 80.8155776 | I90: 80.8155776 | J90: 80.8155776 | K90: 80.8155776 | L90: 80.8155776 | M90: =N55*N27*10 -> 808.155776
A91: Secondary products
A92: Straw Hard wheat | B92: =D57*D9 -> 24.2426854 | C92: =D57*D9 -> 24.2426854 | D92: =E57*E9 -> 24.2426854 | E92: 24.2426854 | F92: 22.59602909 | G92: 23.17353399 | H92: 23.34678546 | I92: 23.34678546 | J92: 23.34678546 | K92: 23.34678546 | L92: 23.34678546 | M92: =N57*N9*10 -> 233.4678546
A93: Straw Soft wheat | B93: =D58*D8 -> 16.25083038 | C93: =D58*D8 -> 16.25083038 | D93: =E58*E8 -> 16.25083038 | E93: 16.25083038 | F93: 16.16679352 | G93: 17.92130468 | H93: 18.44765803 | I93: 18.44765803 | J93: 18.44765803 | K93: 18.44765803 | L93: 18.44765803 | M93: =N58*N8*10 -> 184.4765803
A94: Straw Barley | B94: =D59*D10 -> 23.07859412 | C94: =D59*D10 -> 23.07859412 | D94: =E59*E10 -> 23.07859412 | E94: 23.07859412 | F94: 21.85167408 | G94: 21.76276642 | H94: 21.73609412 | I94: 21.73609412 | J94: 21.73609412 | K94: 21.73609412 | L94: 21.73609412 | M94: =N59*N10*10 -> 217.3609412
A95: Peas (SP) | B95: =D60*D14 -> 0.2222560976 | C95: =D60*D14 -> 0.2222560976 | D95: =E60*E14 -> 0.2222560976 | E95: 0.2222560976 | F95: 0.2369817073 | G95: 0.2580182927 | H95: 0.2643292683 | I95: 0.2643292683 | J95: 0.2643292683 | K95: 0.2643292683 | L95: 0.2643292683 | M95: =N60*N14*10 -> 2.643292683
A96: Beans (SP) | B96: =D61*D15 -> 0.3036585366 | C96: =D61*D15 -> 0.3036585366 | D96: =E61*E15 -> 0.3036585366 | E96: 0.3036585366 | F96: 0.2930006012 | G96: 0.3572027654 | H96: 0.3764634146 | I96: 0.3764634146 | J96: 0.3764634146 | K96: 0.3764634146 | L96: 0.3764634146 | M96: =N61*N15*10 -> 3.764634146
A97: Corn (SP) (UF/HA) | B97: =D62*D11 -> 69.54128054 | C97: =D62*D11 -> 69.54128054 | D97: =E62*E11 -> 69.54128054 | E97: 69.54128054 | F97: 69.54128054 | G97: 69.54128054 | H97: 69.54128054 | I97: 69.54128054 | J97: 69.54128054 | K97: 69.54128054 | L97: 69.54128054 | M97: =N62*N11*10 -> 695.4128054
A100: IV. Producer prices (DH/Q)
B101: Financial price | C101: Conversion factor | D101: Economic price | G101: Conversion factor
A102: Crops
A103: Cereals
A104: Soft wheat | B104: =Don_classe2!H61 -> 291.3970402 | C104: ='ERR & Sensitivity Analysis'!G$14 -> 1 | D104: =B104*C104 -> 291.3970402 | E104: Source of conversion factors: TC-1B Calcul-Price-Paritaires | G104: 0.93
A105: Hard wheat | B105: =Don_classe2!H60 -> 414.8120867 | C105: ='ERR & Sensitivity Analysis'!G$14 -> 1 | D105: =B105*C105 -> 414.8120867 | G105: 1.45
A106: Barley | B106: =Don_classe2!H69 -> 243.3069079 | C106: ='ERR & Sensitivity Analysis'!G$14 -> 1 | D106: =B106*C106 -> 243.3069079 | G106: 0.85
A107: Corn | B107: 150 | C107: ='ERR & Sensitivity Analysis'!G$14 -> 1 | D107: =B107*C107 -> 150 | G107: 1
A108: Oats | B108: =Don_classe2!H58 -> 190 | C108: ='ERR & Sensitivity Analysis'!G$14 -> 1 | D108: =B108*C108 -> 190 | G108: 1
A109: Legumes
A110: Peas | B110: =Don_classe2!H63 -> 600 | C110: ='ERR & Sensitivity Analysis'!G$14 -> 1 | D110: =B110*C110 -> 600 | G110: 1
A111: Beans | B111: =Don_classe2!H62 -> 371.5341576 | C111: ='ERR & Sensitivity Analysis'!G$14 -> 1 | D111: =B111*C111 -> 371.5341576 | G111: 1
A112: Fruit trees
A113: Olives | B113: =+'Data&assumptions'!C164 -> 344.6 | C113: ='ERR & Sensitivity Analysis'!G$14 -> 1 | D113: =B113*C113 -> 344.6 | G113: 1
A114: Avg unit value, traditional pressing | B114: =+'Data&assumptions'!D182*100 -> 2320 | C114: =1.1*'ERR & Sensitivity Analysis'!G$14 -> 1.1 | D114: =B114*C114 -> 2552
A115: Avg unit value, moofrn pressing | B115: =+'Data&assumptions'!E182*100 -> 2429 | C115: =1.4*'ERR & Sensitivity Analysis'!G$14 -> 1.4 | D115: =B115*C115 -> 3400.6
A116: Dates | B116: =Don_classe2!H56 -> 4770.783126 | C116: ='ERR & Sensitivity Analysis'!G$14 -> 1 | D116: =B116*C116 -> 4770.783126 | G116: 1
A117: Other tree crops | B117: =Don_classe2!H57 -> 295.7662808 | C117: ='ERR & Sensitivity Analysis'!G$14 -> 1 | D117: =B117*C117 -> 295.7662808 | G117: 1
A118: Horticulture
A119: horticulturewinter | B119: =Don_classe2!H68 -> 200.5181697 | C119: ='ERR & Sensitivity Analysis'!G$14 -> 1 | D119: =B119*C119 -> 200.5181697 | G119: 1
A120: horticulturesummer | B120: =Don_classe2!H67 -> 208.1074607 | C120: ='ERR & Sensitivity Analysis'!G$14 -> 1 | D120: =B120*C120 -> 208.1074607 | G120: 1
A121: Feed crops
A122: Alfalfa | B122: =Don_classe2!H64 -> 32.21771454 | C122: ='ERR & Sensitivity Analysis'!G$14 -> 1 | D122: =B122*C122 -> 32.21771454 | G122: 1
A123: Bersim | B123: =Don_classe2!H59 -> 22.91450682 | C123: ='ERR & Sensitivity Analysis'!G$14 -> 1 | D123: =B123*C123 -> 22.91450682 | G123: 1
A124: Corn stover | B124: =Don_classe2!H66 -> 40 | C124: ='ERR & Sensitivity Analysis'!G$14 -> 1 | D124: =B124*C124 -> 40 | G124: 2
A125: Secondary products
A126: Straw wheat | B126: =Don_classe2!H71 -> 53.46680832 | C126: ='ERR & Sensitivity Analysis'!G$14 -> 1 | D126: =B126*C126 -> 53.46680832 | G126: 1
A127: Straw Barley | B127: =Don_classe2!H73 -> 47.2723757 | C127: ='ERR & Sensitivity Analysis'!G$14 -> 1 | D127: =B127*C127 -> 47.2723757 | G127: 1
A128: Peas (SP) | B128: =Don_classe2!H74 -> 40.74074074 | C128: ='ERR & Sensitivity Analysis'!G$14 -> 1 | D128: =B128*C128 -> 40.74074074 | G128: 1
A129: Beans (SP) | B129: =Don_classe2!H75 -> 105.1204819 | C129: ='ERR & Sensitivity Analysis'!G$14 -> 1 | D129: =B129*C129 -> 105.1204819 | G129: 1
A130: Corn (SP) (DH/UF) | B130: =Don_classe2!H76 -> 1.25 | C130: ='ERR & Sensitivity Analysis'!G$14 -> 1 | D130: =B130*C130 -> 1.25 | G130: 1
A131: Daily salary of farm workers | C131: ='ERR & Sensitivity Analysis'!G$14 -> 1 | G131: 0.5
A132: Source : Etuof of faisabilité et contrôle sur le terrain (juillet 2013)
A134: V. Evolution of value of production (DH)
B135: Without project | C135: With project
A136: Crops | B136: Years 1-20 | C136: Years 1 | D136: 2 | E136: 3 | F136: 4 | G136: 5 | H136: 6 | I136: 7 | J136: 8 | K136: 9 | L136: 10 | M136: 11-20
A137: Cereals | B137: =SUM(B138:B142) -> 9446.648982 | C137: =SUM(C138:C142) -> 9446.648982 | D137: 9446.648982 | E137: 9446.648982 | F137: 9578.595839 | G137: 10732.97687 | H137: 11079.29118 | I137: 11079.29118 | J137: 11079.29118 | K137: 11079.29118 | L137: 11079.29118 | M137: 110792.9118
A138: Soft wheat | B138: =$D$104*B68 -> 2384.597508 | C138: =$D104*C68 -> 2384.597508 | D138: =$D104*D68 -> 2384.597508 | E138: 2384.597508 | F138: 2438.573257 | G138: 2790.749273 | H138: 2896.402077 | I138: 2896.402077 | J138: 2896.402077 | K138: 2896.402077 | L138: 2896.402077 | M138: 28964.02077
A139: Hard wheat | B139: =$D$105*B69 -> 4289.002731 | C139: =$D105*C69 -> 4289.002731 | D139: 4289.002731 | E139: 4289.002731 | F139: 4270.754599 | G139: 4763.037035 | H139: 4910.721766 | I139: 4910.721766 | J139: 4910.721766 | K139: 4910.721766 | L139: 4910.721766 | M139: 49107.21766
A140: Barley | B140: =$D$106*B70 -> 2392.234926 | C140: =$D106*C70 -> 2392.234926 | D140: 2392.234926 | E140: 2392.234926 | F140: 2471.758542 | G140: 2757.830228 | H140: 2843.651734 | I140: 2843.651734 | J140: 2843.651734 | K140: 2843.651734 | L140: 2843.651734 | M140: 28436.51734
A141: Corn | B141: =$D$107*B71 -> 96.77301381 | C141: =$D107*C71 -> 96.77301381 | D141: 96.77301381 | E141: 96.77301381 | F141: 106.0496626 | G141: 119.302018 | H141: 123.2777246 | I141: 123.2777246 | J141: 123.2777246 | K141: 123.2777246 | L141: 123.2777246 | M141: 1232.777246
A142: Oats | B142: =$D$108*B72 -> 284.0408026 | C142: =$D108*C72 -> 284.0408026 | D142: 284.0408026 | E142: 284.0408026 | F142: 291.4597788 | G142: 302.0583162 | H142: 305.2378774 | I142: 305.2378774 | J142: 305.2378774 | K142: 305.2378774 | L142: 305.2378774 | M142: 3052.378774
A143: Legumes | B143: =SUM(B144:B145) -> 460.4407317 | C143: =SUM(C144:C145) -> 460.4407317 | D143: 460.4407317 | E143: 460.4407317 | F143: 463.9804708 | G143: 532.4874101 | H143: 553.039492 | I143: 553.039492 | J143: 553.039492 | K143: 553.039492 | L143: 553.039492 | M143: 5530.39492
A144: Peas | B144: =$D$110*B74 -> 217.8658537 | C144: =$D110*C74 -> 217.8658537 | D144: =$D110*D74 -> 217.8658537 | E144: 217.8658537 | F144: 235.152439 | G144: 259.847561 | H144: 267.2560976 | I144: 267.2560976 | J144: 267.2560976 | K144: 267.2560976 | L144: 267.2560976 | M144: 2672.560976
A145: Beans | B145: =$D$111*B75 -> 242.574878 | C145: =$D111*C75 -> 242.574878 | D145: =$D111*D75 -> 242.574878 | E145: 242.574878 | F145: 228.8280317 | G145: 272.6398492 | H145: 285.7833944 | I145: 285.7833944 | J145: 285.7833944 | K145: 285.7833944 | L145: 285.7833944 | M145: 2857.833944
A146: Fruit trees | B146: =SUM(B147:B152) -> 34521.58717 | C146: =SUM(C147:C152) -> 34146.52913 | D146: 33986.73725 | E146: 33986.73725 | F146: 38854.54383 | G146: 41570.58406 | H146: 43899.84044 | I146: 44404.93636 | J146: 44881.51125 | K146: 45360.83665 | L146: 45812.52845 | M146: 552597.6178
A147: Olives | B147: =$D$113*B78 -> 4569.002517 | C147: =$D$113*C78 -> 4569.002517 | D147: 4569.002517 | E147: 4569.002517 | F147: 4809.313918 | G147: 4877.391433 | H147: 5018.115997 | I147: 5132.43673 | J147: 5240.302164 | K147: 5348.790134 | L147: 5451.023661 | M147: 75892.60356
A148: Olive oil
A149: Traditional processing | B149: =+$D114*B80*'Data&assumptions'!$B$185 -> 3996.712226 | C149: =+$D114*C80*'Data&assumptions'!$B$185 -> 3621.654187 | D149: =+$D114*D80*'Data&assumptions'!$B$185 -> 4102.197299 | E149: =+$D114*E80*'Data&assumptions'!$B$185 -> 4102.197299 | F149: =+$D114*F80*'Data&assumptions'!$B$185 -> 3701.105656 | G149: =+$D114*G80*'Data&assumptions'!$B$185 -> 3127.913414 | H149: =+$D114*H80*'Data&assumptions'!$B$185 -> 0 | I149: =+$D114*I80*'Data&assumptions'!$B$185 -> 0 | J149: =+$D114*J80*'Data&assumptions'!$B$185 -> 0 | K149: =+$D114*K80*'Data&assumptions'!$B$185 -> 0 | L149: =+$D114*L80*'Data&assumptions'!$B$185 -> 0 | M149: =+$D114*M80*'Data&assumptions'!$B$185 -> 0
A150: Modern processing | B150: =+$D115*B81*'Data&assumptions'!$B$185 -> 10791.98736 | C150: =+$D115*C81*'Data&assumptions'!$B$185 -> 10791.98736 | D150: =+$D115*D81*'Data&assumptions'!$B$185 -> 10151.65236 | E150: =+$D115*E81*'Data&assumptions'!$B$185 -> 10151.65236 | F150: =+$D115*F81*'Data&assumptions'!$B$185 -> 11507.55737 | G150: =+$D115*G81*'Data&assumptions'!$B$185 -> 12504.05449 | H150: =+$D115*H81*'Data&assumptions'!$B$185 -> 17153.10236 | I150: =+$D115*I81*'Data&assumptions'!$B$185 -> 17543.87755 | J150: =+$D115*J81*'Data&assumptions'!$B$185 -> 17912.58701 | K150: =+$D115*K81*'Data&assumptions'!$B$185 -> 18283.42444 | L150: =+$D115*L81*'Data&assumptions'!$B$185 -> 18632.88272 | M150: =+$D115*M81*'Data&assumptions'!$B$185 -> 259418.7934
A151: Dates | B151: =$D$116*B82 -> 4097.329837 | C151: =$D$116*C82 -> 4097.329837 | D151: 4097.329837 | E151: 4097.329837 | F151: 5927.903613 | G151: 6968.122459 | H151: 7280.188113 | I151: 7280.188113 | J151: 7280.188113 | K151: 7280.188113 | L151: 7280.188113 | M151: =$D$116*M82 -> 72801.88113
A152: Other tree crops | B152: =$D$117*B83 -> 11066.55524 | C152: =$D$117*C83 -> 11066.55524 | D152: 11066.55524 | E152: 11066.55524 | F152: 12908.66327 | G152: 14093.10227 | H152: 14448.43396 | I152: 14448.43396 | J152: 14448.43396 | K152: 14448.43396 | L152: 14448.43396 | M152: 144484.3396
A153: Horticulture | B153: =SUM(B154:B155) -> 8298.702404 | C153: =SUM(C154:C155) -> 8298.702404 | D153: 8298.702404 | E153: 8788.498355 | F153: 9488.206857 | G153: 9698.119407 | H153: 9698.119407 | I153: 9698.119407 | J153: 9698.119407 | K153: 9698.119407 | L153: 9698.119407 | M153: 96981.19407
A154: horticulturewinter | B154: =$D$119*B85 -> 7283.668269 | C154: =$D$119*C85 -> 7283.668269 | D154: 7283.668269 | E154: 7756.655541 | F154: 8432.351643 | G154: 8635.060474 | H154: 8635.060474 | I154: 8635.060474 | J154: 8635.060474 | K154: 8635.060474 | L154: 8635.060474 | M154: 86350.60474
A155: horticulturesummer | B155: =$D$120*B86 -> 1015.034135 | C155: =$D$120*C86 -> 1015.034135 | D155: 1015.034135 | E155: 1031.842814 | F155: 1055.855213 | G155: 1063.058933 | H155: 1063.058933 | I155: 1063.058933 | J155: 1063.058933 | K155: 1063.058933 | L155: 1063.058933 | M155: 10630.58933
A156: Feed crops | B156: =SUM(B157:B159) -> 6429.858742 | C156: =SUM(C157:C159) -> 6429.858742 | D156: 6429.858742 | E156: 6429.858742 | F156: 6994.861132 | G156: 7802.007404 | H156: 8044.151286 | I156: 8044.151286 | J156: 8044.151286 | K156: 8044.151286 | L156: 8044.151286 | M156: 80441.51286
A157: Alfalfa | B157: =$D$122*B88 -> 697.5695566 | C157: =$D$122*C88 -> 697.5695566 | D157: 697.5695566 | E157: 697.5695566 | F157: 747.1864839 | G157: 818.0678086 | H157: 839.332206 | I157: 839.332206 | J157: 839.332206 | K157: 839.332206 | L157: 839.332206 | M157: 8393.32206
A158: Bersim | B158: =$D$123*B89 -> 3210.308847 | C158: =$D$123*C89 -> 3210.308847 | D158: 3210.308847 | E158: 3210.308847 | F158: 3476.969342 | G158: 3857.912906 | H158: 3972.195976 | I158: 3972.195976 | J158: 3972.195976 | K158: 3972.195976 | L158: 3972.195976 | M158: 39721.95976
A159: Corn stover | B159: =$D$124*B90 -> 2521.980339 | C159: =$D$124*C90 -> 2521.980339 | D159: 2521.980339 | E159: 2521.980339 | F159: 2770.705307 | G159: 3126.026689 | H159: 3232.623104 | I159: 3232.623104 | J159: 3232.623104 | K159: 3232.623104 | L159: 3232.623104 | M159: 32326.23104
A160: Secondary products | B160: =SUM(B161:B166) -> 3383.941229 | C160: =SUM(C161:C166) -> 3383.941229 | D160: 3383.941229 | E160: 3383.941229 | F160: 3232.886728 | G160: 3360.975316 | H160: 3399.401892 | I160: 3399.401892 | J160: 3399.401892 | K160: 3399.401892 | L160: 3399.401892 | M160: 33994.01892
A161: Straw Hard wheat | B161: =$D$126*B92 -> 1296.179014 | C161: =$D$126*C92 -> 1296.179014 | D161: 1296.179014 | E161: 1296.179014 | F161: 1208.137556 | G161: 1239.0149 | H161: 1248.278103 | I161: 1248.278103 | J161: 1248.278103 | K161: 1248.278103 | L161: 1248.278103 | M161: 12482.78103
A162: Straw Soft wheat | B162: =$D$126*B93 -> 868.8800329 | C162: 868.8800329 | D162: 868.8800329 | E162: 868.8800329 | F162: 864.38685 | G162: 958.194962 | H162: 986.3373956 | I162: 986.3373956 | J162: 986.3373956 | K162: 986.3373956 | L162: 986.3373956 | M162: 9863.373956
A163: Straw Barley | B163: =$D$127*B94 -> 1090.979972 | C163: =$D$127*C94 -> 1090.979972 | D163: 1090.979972 | E163: 1090.979972 | F163: 1032.980547 | G163: 1028.77767 | H163: 1027.516807 | I163: 1027.516807 | J163: 1027.516807 | K163: 1027.516807 | L163: 1027.516807 | M163: 10275.16807
A164: Peas (SP) | B164: =$D$128*B95 -> 9.054878049 | C164: =$D$128*C95 -> 9.054878049 | D164: 9.054878049 | E164: 9.054878049 | F164: 9.654810298 | G164: 10.51185637 | H164: 10.76897019 | I164: 10.76897019 | J164: 10.76897019 | K164: 10.76897019 | L164: 10.76897019 | M164: 107.6897019
A165: Beans (SP) | B165: =$D$129*B96 -> 31.92073171 | C165: =$D$129*C96 -> 31.92073171 | D165: 31.92073171 | E165: 31.92073171 | F165: 30.8003644 | G165: 37.54932684 | H165: 39.57401557 | I165: 39.57401557 | J165: 39.57401557 | K165: 39.57401557 | L165: 39.57401557 | M165: 395.7401557
A166: Corn (SP) | B166: =$D$130*B97 -> 86.92660068 | C166: =$D$130*C97 -> 86.92660068 | D166: 86.92660068 | E166: 86.92660068 | F166: 86.92660068 | G166: 86.92660068 | H166: 86.92660068 | I166: 86.92660068 | J166: 86.92660068 | K166: 86.92660068 | L166: 86.92660068 | M166: 869.2660068
A167: Total value of production | B167: =SUM(B137,B143,B146,B153,B156,B160) -> 62541.17926 | C167: 62166.12122 | D167: 62006.32934 | E167: 62496.12529 | F167: 68613.07486 | G167: 73697.15047 | H167: 76673.84369 | I167: 77178.93961 | J167: 77655.51451 | K167: 78134.83991 | L167: 78586.53171 | M167: 880337.6503
A169: VI. Evolution of costs of production (DH)
A171: Charges Without labor
B173: Cost (DH/Ha) | D173: Without project | E173: With project
B174: Without project | C174: With project | D174: Years 1-20 | E174: Years 1 | F174: 2 | G174: 3 | H174: 4 | I174: 5 | J174: 6 | K174: 7 | L174: 8 | M174: 9 | N174: 10 | O174: 11 - 20
A175: Crops
A176: Cereals | D176: =SUM(D177:D181) -> 2564.294929 | E176: =SUM(E177:E181) -> 2891.803304 | F176: 2891.803304 | G176: 2689.78905 | H176: 2689.78905 | I176: 2689.78905 | J176: 2689.78905 | K176: 2689.78905 | L176: 2689.78905 | M176: 2689.78905 | N176: 2689.78905 | O176: =SUM(O177:O181) -> 26897.8905
A177: Soft wheat | B177: =Don_classe2!H90 -> 1486.841486 | C177: =Don_classe2!T90 -> 1875.122804 | D177: =B177*D8 -> 705.3103519 | E177: =+$C177*E8 -> 889.4986701 | F177: =+$C177*F8 -> 889.4986701 | G177: 817.6749298 | H177: 817.6749298 | I177: 817.6749298 | J177: 817.6749298 | K177: 817.6749298 | L177: 817.6749298 | M177: 817.6749298 | N177: 817.6749298 | O177: =+N177*10 -> 8176.749298
A178: Hard wheat | B178: =Don_classe2!H89 -> 1340.941357 | C178: =Don_classe2!T89 -> 1380.505356 | D178: =B178*D9 -> 1037.427385 | E178: =+$C178*E9 -> 1068.036311 | F178: 1068.036311 | G178: 977.6813838 | H178: 977.6813838 | I178: 977.6813838 | J178: 977.6813838 | K178: 977.6813838 | L178: 977.6813838 | M178: 977.6813838 | N178: 977.6813838 | O178: =+N178*10 -> 9776.813838
A179: Barley | B179: =Don_classe2!H98 -> 837.9743578 | C179: =Don_classe2!T98 -> 965.0440986 | D179: =B179*D10 -> 685.4184219 | E179: 789.3547063 | F179: 789.3547063 | G179: 749.5191199 | H179: 749.5191199 | I179: 749.5191199 | J179: 749.5191199 | K179: 749.5191199 | L179: 749.5191199 | M179: 749.5191199 | N179: 749.5191199 | O179: =+N179*10 -> 7495.191199
A180: Corn | B180: =Don_classe2!H94 -> 1345.2 | C180: =Don_classe2!T94 -> 1484 | D180: =B180*D11 -> 85.04266417 | E180: 93.81750939 | F180: 93.81750939 | G180: 93.81750939 | H180: 93.81750939 | I180: 93.81750939 | J180: 93.81750939 | K180: 93.81750939 | L180: 93.81750939 | M180: 93.81750939 | N180: 93.81750939 | O180: =+N180*10 -> 938.1750939
A181: Oats | B181: =Don_classe2!H87 -> 2290 | C181: =Don_classe2!T87 -> 2290 | D181: =B181*D12 -> 51.09610667 | E181: 51.09610667 | F181: 51.09610667 | G181: 51.09610667 | H181: 51.09610667 | I181: 51.09610667 | J181: 51.09610667 | K181: 51.09610667 | L181: 51.09610667 | M181: 51.09610667 | N181: 51.09610667 | O181: =+N181*10 -> 510.9610667
A182: Legumes | D182: =SUM(D183:D184) -> 64.35777439 | E182: =SUM(E183:E184) -> 64.35777439 | F182: 64.35777439 | G182: 71.79009146 | H182: 71.79009146 | I182: 71.79009146 | J182: 71.79009146 | K182: 71.79009146 | L182: 71.79009146 | M182: 71.79009146 | N182: 71.79009146 | O182: =SUM(O183:O184) -> 717.9009146
A183: Peas | B183: =Don_classe2!H92 -> 1736.173913 | C183: =Don_classe2!T92 -> 1970.521739 | D183: =B183*D14 -> 36.52317073 | E183: =D183 -> 36.52317073 | F183: =E183 -> 36.52317073 | G183: =$C$183*G14 -> 41.45304878 | H183: =$C$183*H14 -> 41.45304878 | I183: 41.45304878 | J183: 41.45304878 | K183: 41.45304878 | L183: 41.45304878 | M183: 41.45304878 | N183: 41.45304878 | O183: =+N183*10 -> 414.5304878
A184: Beans | B184: =Don_classe2!H91 -> 714.3779343 | C184: =Don_classe2!T91 -> 953.1178161 | D184: =B184*D15 -> 27.83460366 | E184: =D184 -> 27.83460366 | F184: =E184 -> 27.83460366 | G184: =$C$184*G15 -> 30.33704268 | H184: =$C$184*H15 -> 30.33704268 | I184: 30.33704268 | J184: 30.33704268 | K184: 30.33704268 | L184: 30.33704268 | M184: 30.33704268 | N184: 30.33704268 | O184: =+N184*10 -> 303.3704268
A185: Fruit trees | D185: =SUM(D186:D191) -> 4681.089834 | E185: =SUM(E186:E191) -> 4656.10556 | F185: 4637.275501 | G185: 6890.572794 | H185: 6998.296954 | I185: 7071.973183 | J185: 7232.733001 | K185: 7263.759673 | L185: 7322.797527 | M185: 7370.099076 | N185: 7409.750538 | O185: =SUM(O186:O191) -> 74097.50538
A186: Olives | B186: =Don_classe2!H84 -> 1456.935103 | C186: =Don_classe2!T84 -> 2570.729888 | D186: =B186*D17 -> 2476.789675 | E186: =D186 -> 2476.789675 | F186: =E186 -> 2476.789675 | G186: =$C$186*G17 -> 4370.24081 | H186: =$C$186*H17 -> 4370.24081 | I186: 4370.24081 | J186: 4370.24081 | K186: 4370.24081 | L186: 4370.24081 | M186: 4370.24081 | N186: 4370.24081 | O186: =+N186*10 -> 43702.4081
A187: Olives newly planted | C187: =Don_classe2!T84 -> 2570.729888 | D187: =B187*D18 -> 0 | E187: =$C$187*E18*'Data&assumptions'!$F$230 -> 0 | F187: =$C$187*F18*'Data&assumptions'!$F$230 -> 0 | G187: =$C$187*G18*'Data&assumptions'!$F$230 -> 0 | H187: =$C$187*H18*'Data&assumptions'!$F$230 -> 26.78683544 | I187: =$C$187*I18*'Data&assumptions'!$F$230 -> 59.52630098 | J187: =$C$187*J18*'Data&assumptions'!$F$230 -> 59.52630098 | K187: =$C$187*K18*'Data&assumptions'!F$230 -> 59.52630098 | L187: =$C$187*L18*'Data&assumptions'!G$230 -> 89.28945147 | M187: =$C$187*M18*'Data&assumptions'!H$230 -> 107.1473418 | N187: =$C$187*N18*'Data&assumptions'!$I$230 -> 119.052602 | O187: 1190.52602
A188: Olive oil, traditional processing | D188: =+B80*100*'Data&assumptions'!$B$185*'Data&assumptions'!$F$179 -> 266.2386671 | E188: =+C80*100*'Data&assumptions'!$B$185*'Data&assumptions'!$F$179 -> 241.2543933 | F188: =+D80*100*'Data&assumptions'!$B$185*'Data&assumptions'!$F$179 -> 273.2654941 | G188: =+E80*100*'Data&assumptions'!$B$185*'Data&assumptions'!$F$179 -> 273.2654941 | H188: =+F80*100*'Data&assumptions'!$B$185*'Data&assumptions'!$F$179 -> 246.5470069 | I188: =+G80*100*'Data&assumptions'!$B$185*'Data&assumptions'!$F$179 -> 208.3641381 | J188: =+H80*100*'Data&assumptions'!$B$185*'Data&assumptions'!$F$179 -> 0 | K188: =+I80*100*'Data&assumptions'!$B$185*'Data&assumptions'!$F$179 -> 0 | L188: =+J80*100*'Data&assumptions'!$B$185*'Data&assumptions'!$F$179 -> 0 | M188: =+K80*100*'Data&assumptions'!$B$185*'Data&assumptions'!$F$179 -> 0 | N188: =+L80*100*'Data&assumptions'!$B$185*'Data&assumptions'!$F$179 -> 0 | O188: 0
A189: Olive oil, modern processing | D189: =+B81*100*'Data&assumptions'!$B$185*'Data&assumptions'!$G$179 -> 856.85955 | E189: =+C81*100*'Data&assumptions'!$B$185*'Data&assumptions'!$G$179 -> 856.85955 | F189: =+D81*100*'Data&assumptions'!$B$185*'Data&assumptions'!$G$179 -> 806.0183901 | G189: =+E81*100*'Data&assumptions'!$B$185*'Data&assumptions'!$G$179 -> 806.0183901 | H189: =+F81*100*'Data&assumptions'!$B$185*'Data&assumptions'!$G$179 -> 913.6742019 | I189: =+G81*100*'Data&assumptions'!$B$185*'Data&assumptions'!$G$179 -> 992.7938343 | J189: =+H81*100*'Data&assumptions'!$B$185*'Data&assumptions'!$G$179 -> 1361.91779 | K189: =+I81*100*'Data&assumptions'!$B$185*'Data&assumptions'!$G$179 -> 1392.944462 | L189: =+J81*100*'Data&assumptions'!$B$185*'Data&assumptions'!$G$179 -> 1422.219165 | M189: =+K81*100*'Data&assumptions'!$B$185*'Data&assumptions'!$G$179 -> 1451.662824 | N189: =+L81*100*'Data&assumptions'!$B$185*'Data&assumptions'!$G$179 -> 1479.409026 | O189: 14794.09026
A190: Dates | B190: =Don_classe2!H85 -> 2664.349776 | C190: =Don_classe2!T85 -> 3103.427562 | D190: =B190*D19 -> 324.9012919 | E190: =D190 -> 324.9012919 | F190: =E190 -> 324.9012919 | G190: =$C$190*G19 -> 480.2677062 | H190: =$C$190*H19 -> 480.2677062 | I190: 480.2677062 | J190: 480.2677062 | K190: 480.2677062 | L190: 480.2677062 | M190: 480.2677062 | N190: 480.2677062 | O190: 4802.677062
A191: Other tree crops | B191: =Don_classe2!H86 -> 2388.694301 | C191: =Don_classe2!T86 -> 2780.044304 | D191: =B191*D20 -> 756.3006504 | E191: =D191 -> 756.3006504 | F191: =E191 -> 756.3006504 | G191: =$C$191*G20 -> 960.780394 | H191: =$C$191*H20 -> 960.780394 | I191: 960.780394 | J191: 960.780394 | K191: 960.780394 | L191: 960.780394 | M191: 960.780394 | N191: 960.780394 | O191: 9607.80394
A192: Horticulture | D192: =SUM(D193:D194) -> 3029.898288 | E192: =SUM(E193:E194) -> 3029.898288 | F192: 3029.898288 | G192: 3108.958096 | H192: 3108.958096 | I192: 3108.958096 | J192: 3108.958096 | K192: 3108.958096 | L192: 3108.958096 | M192: 3108.958096 | N192: 3108.958096 | O192: =SUM(O193:O194) -> 31089.58096
A193: horticulturewinter | B193: =Don_classe2!H97 -> 10948.56857 | C193: =Don_classe2!T97 -> 11109.17736 | D193: =B193*D22 -> 2873.99925 | E193: =D193 -> 2873.99925 | F193: =E193 -> 2873.99925 | G193: =$C$193*G22 -> 2916.159058 | H193: =$C$193*H22 -> 2916.159058 | I193: 2916.159058 | J193: 2916.159058 | K193: 2916.159058 | L193: 2916.159058 | M193: 2916.159058 | N193: 2916.159058 | O193: =+N193*10 -> 29161.59058
A194: horticulturesummer | B194: =Don_classe2!H96 -> 4157.307692 | C194: =Don_classe2!T96 -> 5141.307692 | D194: =B194*D23 -> 155.8990385 | E194: =D194 -> 155.8990385 | F194: =E194 -> 155.8990385 | G194: =$C$194*G23 -> 192.7990385 | H194: =$C$194*H23 -> 192.7990385 | I194: 192.7990385 | J194: 192.7990385 | K194: 192.7990385 | L194: 192.7990385 | M194: 192.7990385 | N194: 192.7990385 | O194: =+N194*10 -> 1927.990385
A195: Feed crops | D195: =SUM(D196:D198) -> 955.8821984 | E195: =SUM(E196:E198) -> 955.8821984 | F195: 955.8821984 | G195: 973.8088714 | H195: 973.8088714 | I195: 973.8088714 | J195: 973.8088714 | K195: 973.8088714 | L195: 973.8088714 | M195: 973.8088714 | N195: 973.8088714 | O195: =SUM(O196:O198) -> 9738.088714
A196: Alfalfa | B196: =Don_classe2!H93 -> 2236.645015 | C196: =Don_classe2!T93 -> 2632.949547 | D196: =B196*D25 -> 95.21236953 | E196: =D196 -> 95.21236953 | F196: 95.21236953 | G196: =$C$196*G25 -> 112.0827684 | H196: =$C$196*H25 -> 112.0827684 | I196: 112.0827684 | J196: 112.0827684 | K196: 112.0827684 | L196: 112.0827684 | M196: 112.0827684 | N196: 112.0827684 | O196: =+N196*10 -> 1120.827684
A197: Bersim | B197: =Don_classe2!H88 -> 1597.325967 | C197: =Don_classe2!T88 -> 1696.071823 | D197: =B197*D26 -> 598.186176 | E197: 598.186176 | F197: 598.186176 | G197: =$C$197*G26 -> 635.1657327 | H197: =$C$197*H26 -> 635.1657327 | I197: 635.1657327 | J197: 635.1657327 | K197: 635.1657327 | L197: 635.1657327 | M197: 635.1657327 | N197: 635.1657327 | O197: =+N197*10 -> 6351.657327
A198: Corn stover | B198: =Don_classe2!H95 -> 1965 | C198: =Don_classe2!T95 -> 2554 | D198: =B198*D27 -> 262.4836529 | E198: 262.4836529 | F198: 262.4836529 | G198: =$C$197*G27 -> 226.5603703 | H198: 226.5603703 | I198: 226.5603703 | J198: 226.5603703 | K198: 226.5603703 | L198: 226.5603703 | M198: 226.5603703 | N198: 226.5603703 | O198: =+N198*10 -> 2265.603703
A199: Total | D199: =SUM(D176,D182,D185,D192,D195) -> 11295.52302 | E199: =SUM(E176,E182,E185,E192,E195) -> 11598.04713 | F199: 11579.21707 | G199: 13734.9189 | H199: 13842.64306 | I199: 13916.31929 | J199: 14077.07911 | K199: 14108.10578 | L199: 14167.14364 | M199: 14214.44518 | N199: 14254.09665 | O199: =SUM(O176,O182,O185,O192,O195) -> 142540.9665
A201: Charges of labor
B203: Cost (DH/Ha) | D203: Without project | E203: With project
B204: Without project | C204: With project | D204: Years 1-20 | E204: Years 1 | F204: 2 | G204: 3 | H204: 4 | I204: 5 | J204: 6 | K204: 7 | L204: 8 | M204: 9 | N204: 10 | O204: 11 - 20
A205: Crops
A206: Cereals | D206: =SUM(D207:D211) -> 3027.986854 | E206: =SUM(E207:E211) -> 3027.986854 | F206: 3027.986854 | G206: 3203.284803 | H206: 3203.284803 | I206: 3203.284803 | J206: 3203.284803 | K206: 3203.284803 | L206: 3203.284803 | M206: 3203.284803 | N206: 3203.284803 | O206: 32032.84803
A207: Soft wheat | B207: =(Don_classe2!H110)*$C$131 -> 1159.386328 | C207: =Don_classe2!T110*$C$131 -> 1396.808972 | D207: =B207*D8 -> 549.9760307 | E207: =D207 -> 549.9760307 | F207: =E207 -> 549.9760307 | G207: =C207*G8 -> 609.0991349 | H207: =G207 -> 609.0991349 | I207: 609.0991349 | J207: 609.0991349 | K207: 609.0991349 | L207: 609.0991349 | M207: 609.0991349 | N207: 609.0991349 | O207: =+N207*10 -> 6090.991349
A208: Hard wheat | B208: =(Don_classe2!H109)*$C$131 -> 1697.006537 | C208: =Don_classe2!T109*$C$131 -> 1890.538962 | D208: =B208*D9 -> 1312.899363 | E208: =D208 -> 1312.899363 | F208: 1312.899363 | G208: =C208*G9 -> 1338.889951 | H208: =G208 -> 1338.889951 | I208: 1338.889951 | J208: 1338.889951 | K208: 1338.889951 | L208: 1338.889951 | M208: =L208 -> 1338.889951 | N208: 1338.889951 | O208: =+N208*10 -> 13388.89951
A209: Barley | B209: =(Don_classe2!H118)*$C$131 -> 1371.104024 | C209: =Don_classe2!T118*$C$131 -> 1560.092554 | D209: =B209*D10 -> 1121.490112 | E209: 1121.490112 | F209: 1121.490112 | G209: =C209*G10 -> 1211.674368 | H209: 1211.674368 | I209: 1211.674368 | J209: 1211.674368 | K209: 1211.674368 | L209: 1211.674368 | M209: 1211.674368 | N209: 1211.674368 | O209: =+N209*10 -> 12116.74368
A210: Corn | B210: =(Don_classe2!H114)*$C$131 -> 390 | C210: =Don_classe2!T114*$C$131 -> 390 | D210: =B210*D11 -> 24.65554492 | E210: 24.65554492 | F210: 24.65554492 | G210: =C210*G11 -> 24.65554492 | H210: 24.65554492 | I210: 24.65554492 | J210: 24.65554492 | K210: 24.65554492 | L210: 24.65554492 | M210: 24.65554492 | N210: 24.65554492 | O210: =+N210*10 -> 246.5554492
A211: Oats | B211: =(Don_classe2!H107)*$C$131 -> 850 | C211: =Don_classe2!T107*$C$131 -> 850 | D211: =B211*D12 -> 18.96580378 | E211: 18.96580378 | F211: 18.96580378 | G211: =C211*G12 -> 18.96580378 | H211: 18.96580378 | I211: 18.96580378 | J211: 18.96580378 | K211: 18.96580378 | L211: 18.96580378 | M211: 18.96580378 | N211: 18.96580378 | O211: =+N211*10 -> 189.6580378
A212: Legumes | D212: =SUM(D213:D214) -> 104.5784451 | E212: =SUM(E213:E214) -> 104.5784451 | F212: 104.5784451 | G212: 136.5110671 | H212: 136.5110671 | I212: 136.5110671 | J212: 136.5110671 | K212: 136.5110671 | L212: 136.5110671 | M212: 136.5110671 | N212: 136.5110671 | O212: 1365.110671
... 46 more rows

Sheet DATA-enq reference
A2: Table 3: Agricultural area in use (ha) in PMH zones
B3: Variable | C3: Estimation | D3: Zone A (Deficit <55) | G3: Zone B (Deficit >55) | J3: Total
D4: P | E4: HP | F4: T | G4: P | H4: HP | I4: T | J4: P | K4: HP | L4: T
B5: SAU | C5: Avg. (ha) | D5: 2.71 | E5: 1.75 | F5: 4.46 | G5: 3.7 | H5: 1.49 | I5: 5.19 | J5: 3.39 | K5: 1.57 | L5: 4.96
B6: SAU irrigated | C6: Avg. (ha) | D6: 2.06 | E6: 0.26 | F6: 2.32 | G6: 3.23 | H6: 0.45 | I6: 3.68 | J6: 2.86 | K6: 0.39 | L6: 3.26
D7: P : Perimeter | F7: HP : without perimeters | I7: T: Total
A9: Table 7: Area sown in PMH zones
A10: Zone | B10: Parameter | C10: Number of parcels | D10: Tree crops | F10: Area, annual crops (ha) | L10: Fallow (ha)
D11: Olive | E11: Other | F11: Cereals | G11: Legumes | H11: Forage | I11: Horticulture | J11: Industrial crops | K11: others
A12: Zone A (Deficit <55) | B12: Avg. | C12: 3.54 | D12: 153.74 | E12: 67.99 | F12: 2.35 | G12: 0.15 | H12: 0.31 | I12: 0.08 | J12: 0 | K12: 0 | L12: 0.62
A13: Zone B (Deficit >55) | B13: Avg. | C13: 4.05 | D13: 173 | E13: 44.63 | F13: 2.49 | G13: 0.06 | H13: 0.66 | I13: 0.3 | J13: 0 | K13: 0 | L13: 0.78
A14: Total | B14: Avg. | C14: 3.89 | D14: 166.98 | E14: 51.93 | F14: 2.44 | G14: 0.09 | H14: 0.55 | I14: 0.23 | J14: 0 | K14: 0 | L14: 0.73
A17: Table 9: Number and average yield of varieties of olive in the PMH area
A18: Variable | B18: Estimation | C18: Picholine Marocaine
A19: Number of varieties | B19: Avg. farm | C19: 170.4
A20: Yield, kg/tree | B20: Avg. | C20: 38.5
A23: Table 7: Cropping practised in the PMH area
A24: Zone | B24: Avg. | C24: Zone A (Deficit <55) | D24: Zone B (Deficit >55) | E24: Total
A25: Parcels | B25: Number | C25: 3.54 | D25: 4.05 | E25: 3.89
A26: Olives | B26: Number | C26: 153.74 | D26: 173 | E26: 166.98
A27: Others | B27: Number | C27: 67.99 | D27: 44.63 | E27: 51.93
A28: Cereals | B28: ha | C28: 2.35 | D28: 2.49 | E28: 2.44
A29: Legumes | B29: ha | C29: 0.15 | D29: 0.06 | E29: 0.09
A30: Forage | B30: ha | C30: 0.31 | D30: 0.66 | E30: 0.55
A31: Horticulture | B31: ha | C31: 0.08 | D31: 0.3 | E31: 0.23
A32: Industrial crops | B32: ha | C32: 0 | D32: 0 | E32: 0
A33: others | B33: ha | C33: 0 | D33: 0 | E33: 0
A34: Fallow (ha) | B34: ha | C34: 0.62 | D34: 0.78 | E34: 0.73
A37: Table 10: Size Avg. herd operated the area of PMH
A38: Effectif | B38: Zone A (Deficit <55) | C38: Zone B (Deficit >55) | D38: Total
A39: Bovine | B39: 2.75 | C39: 2.92 | D39: 2.87
A40: Ovine | B40: 10.99 | C40: 16.03 | D40: 14.45
A41: Goat | B41: 1.23 | C41: 5.24 | D41: 3.98
A42: Camel | B42: 0 | C42: 0 | D42: 0
A43: Equine | B43: 1.11 | C43: 1.05 | D43: 1.07
A44: Traditional hives | B44: 0.23 | C44: 0.21 | D44: 0.21
A45: Modern hives | B45: 0.65 | C45: 0.42 | D45: 0.49
A47: Table 11: Equipment of farms in the PMH area
C48: Zone A (Deficit <55) | E48: Zone B (Deficit >55) | G48: Total
C49: % farms | D49: Avg. | E49: % farms | F49: Avg. | G49: % farms | H49: Avg.
C50: 4.5 | D50: 0.05 | E50: 9.32 | F50: 0.13 | G50: 7.81 | H50: 0.12
A51: Irrigation equipment | B51: Motorpump | C51: 11 | D51: 0.12 | E51: 30 | F51: 0.42 | G51: 24.1 | H51: 0.33
B52: Drip irrigation (ha) | C52: 0 | D52: 0 | E52: 2.7 | F52: 0.16 | G52: 1.9 | H52: 0.11
B53: Aspersion (ha) | C53: 0 | D53: 0 | E53: 0.5 | F53: 0.01 | G53: 0.3 | H53: 0.01
B54: Gravitaire assisted (ha) | C54: 2.5 | D54: 0.05 | E54: 2.3 | F54: 0.1 | G54: 2.3 | H54: 0.08
A55: Pulveriser | C55: 1 | D55: 0.01 | E55: 3.41 | F55: 0.03 | G55: 2.66 | H55: 0.03
A56: Vibrator | C56: 0 | D56: 0 | E56: 0 | F56: 0 | G56: 0 | H56: 0
A57: Chainsaw | C57: 1.5 | D57: 0.02 | E57: 0.45 | F57: 0.01 | G57: 0.78 | H57: 0.01
A60: Table 12 : Source of irrigation water
A61: Zone | B61: Deficit <55 | C61: Deficit >55 | D61: Total
A62: Source | B62: 30.4 | C62: 21.2 | D62: 23.7
A63: Khettara | B63: 0.5 | C63: 3.2 | D63: 2.5
A64: Barrage | B64: 2.3 | C64: 1.2 | D64: 1.5
A65: Oued | B65: 54.4 | C65: 50.8 | D65: 51.7
A66: Eau crue | B66: 1.4 | C66: 0.5 | D66: 0.7
A67: Puits | B67: 11.1 | C67: 23.1 | D67: 19.9
A68: Total | B68: 100 | C68: 100 | D68: 100
A74: Table 14: Area sown under olives in PMH zones
A75: Zone | B75: Deficit <55 | C75: Deficit >55 | D75: Total
A76: Agricultural area in use (ha) | B76: 4.5 | C76: 5.2 | D76: 5
A77: Number of varieties | B77: 164.4 | C77: 174.2 | D77: 171.3
A78: Equivalent – actual area (ha) | B78: 1.6 | C78: 1.7 | D78: 1.7
A79: Area sown (%) | B79: 56.7 | C79: 51.2 | D79: 52.9
A80: Average age of trees (years) | B80: 22 | C80: 25.7 | D80: 24.6
A84: Table 15: Indicators of technical conduct of the olive tree in the PMH (% operators practising the technique) area
A85: Zone | B85: Deficit <55 | C85: Deficit >55 | D85: Total
A86: Tillage | B86: 12 | C86: 21.6 | D86: 18.6
A87: Chemical fertilisation | B87: 59.5 | C87: 47.3 | D87: 51.1
A88: Phytosanitary protection | B88: 11.5 | C88: 18.4 | D88: 16.3
A89: Irrigation | B89: 88.5 | C89: 90.9 | D89: 90.2
A90: Size | B90: 43 | C90: 59.6 | D90: 54.4
A91: Mechanized harvesting | B91: 0.5 | C91: 0.7 | D91: 0.6
A92: Best practice indicator* | B92: 2.3 | C92: 2.4 | D92: 2.4
A96: Table 16: Olive productivity (Qx/ha equivalent)
A97: Zone | B97: Deficit <=55 | C97: Deficit >55 | D97: Total
A98: Yld (qx/ha)- 2006-2009 | B98: 36.6 | C98: 39.5 | D98: 38.7
A99: Yld (qx/ha)- 2008-2009 | B99: 36.7 | C99: 44.3 | D99: 42.1
A102: Table 17: Cost of inputs of the olive tree (dh/operation and dh/ha equivalent)
A103: Zone | C103: Deficit <=55 | D103: Deficit >55 | E103: Total
A104: Manure | B104: (dh) | C104: 87.2 | D104: 208.3 | E104: 36.3
A105: Chemical Fertilizers | B105: ( dh) | C105: 465.2 | D105: 379.6 | E105: 50.6
A106: Pesticiof | B106: (dh) | C106: 60.7 | D106: 100.4 | E106: 25.6
A107: Water | B107: (dh) | C107: 167 | D107: 807.4 | E107: 234.3
A108: Total inputs dh/farm | C108: 780.1 | D108: 1495.7 | E108: 252.1
A109: Total inputs | B109: dh/ha equivalent | C109: 738.4 | D109: 1202.7 | E109: 267.1
A112: Table 18: Costs of mechanization and use of animal energy (dh/operation and dh/ha equivalent)
C114: Deficit <=55 | D114: Deficit >55 | E114: Total
A115: Animal energy (dh) | C115: 193.3 | D115: 120.2 | E115: 142.1
A116: Mechanical energy (dh) | C116: 65.8 | D116: 317.1 | E116: 241.7
A117: Total | B117: dh/farm | C117: 259.1 | D117: 437.3 | E117: 383.9
A118: Total dh/ha equivalent | C118: 280.7 | D118: 346.5 | E118: 326.7
A121: Table 19: Costs of labor for olive trees in the PMH (dh/operation and dh/equivalent ha) area
B123: Deficit <=55 | C123: Deficit >55 | D123: Total
A124: Family labor (dh) | B124: 1224.8 | C124: 1686.2 | D124: 1547.8
A125: Salaried labor (dh) | B125: 2061.9 | C125: 3858.8 | D125: 3319.8
A126: Total labor (dh) | B126: 3286.8 | C126: 5545 | D126: 4867.5
A127: Total labor (dh/ha equivalent) | B127: 3231.9 | C127: 4688.8 | D127: 4251.8
A130: Table 21: Gross olive production in PMH zones in dh/farm and dh/equivalent ha)
C132: Deficit <=55 | D132: Deficit >55 | E132: Total
A133: before harvest | B133: (dh) | C133: 7093.8 | D133: 1594.7 | E133: 2083.7
A134: Quantité récoltée | B134: (qx) | C134: 56.6 | D134: 54.5 | E134: 47.2
A135: Price avg | B135: (dh/ql) | C135: 416.4 | D135: 344.6 | E135: 356.4
A136: after harvest | B136: (dh) | C136: 22513.9 | D136: 18151.7 | E136: 16195.5
A137: Gross product | B137: (dh) | C137: 29607.6 | D137: 19746.4 | E137: 18279.3
A138: Gross product | B138: (dh/ equivalent ha) | C138: 10535.6 | D138: 13928.8 | E138: 13454.9
A141: Table 23: oftination of olives in PMH zones (% of quantity)
B143: Deficit <=55 | C143: Deficit >55 | D143: Total
A144: Sale | B144: 30.9 | C144: 34.1 | D144: 33.2
A145: Processing | B145: 68.7 | C145: 64.9 | D145: 66
A146: Other | B146: 0.4 | C146: 1 | D146: 0.8
A149: Table 24: Sale of olive by producers from the area PMH (%)
A151: Zone | B151: <=55 | C151: >55 | D151: Total
A152: Sales by variety | B152: 2.3 | C152: 4.5 | D152: 3.9
A153: After harvest sales | B153: 86 | C153: 88.6 | D153: 87.8
A154: Sales before and after harvest | B154: 11.6 | C154: 6.9 | D154: 8.3
A155: Total | B155: 100 | C155: 100 | D155: 100
A158: Table 25: Types of buyers and sales price for olives after harvest in PMH zones
A159: Zone | B159: <=55 | C159: >55 | D159: Total
B160: 395.7 | C160: 344.6 | D160: 357.6
A163: Table 27: Olive intended for processing (%)
B164: <=55 | C164: >55 | D164: Total
A165: Black olives | B165: 0.2 | C165: 1.22 | D165: 0.91
A166: Green olives | B166: 0.22 | C166: 0.71 | D166: 0.56
A167: Extra virgin oil | B167: 0.6 | C167: 1.04 | D167: 0.9
A168: Ordinary virgin oil | B168: 8.31 | C168: 5.97 | D168: 6.68
A169: Ordinary oil | B169: 90.68 | C169: 91.05 | D169: 90.94
A173: Table 31: Indicators of variable costs of cereals in the area of PMH
C174: <=55 | D174: >55 | E174: Total
A175: Total inputs (dh) | C175: 1932.9 | D175: 2354 | E175: 2223.8
A176: Total energy, animal and mechanised (dh) | C176: 1293.8 | D176: 1657.9 | E176: 1545.4
A177: Total labor | B177: (dh) | C177: 2300.6 | D177: 2503.5 | E177: 2440.8
A178: Total variable costs (dh)/farm | C178: 5527.2 | D178: 6515.3 | E178: 6210
A179: Variable costs (dh/ha) | C179: 4174.5 | D179: 3520.3 | E179: 3721.1
A182: Table 32: Gross product of cereals in PMH zones
C183: <=55 | D183: >55 | E183: Total
A184: Value, principle product (dh) | C184: 9262.2 | D184: 9488.5 | E184: 9418.6
A185: Value, subproducts (dh) | C185: 2014.9 | D185: 3295.5 | E185: 2899.8
A186: Gross product (dh/farm) | C186: 11277.2 | D186: 12792.1 | E186: 12324
A187: Gross product | B187: (dh/ha) | C187: 6343.8 | D187: 5930.2 | E187: 6057.2
A190: Table 34: Variable costs of other crops in the PMH zones
C191: <=55 | D191: >55 | E191: Total
A192: Total inputs (dh) | C192: 913.3 | D192: 3174.8 | E192: 2590.8
A193: Total energy, animal and mechanised (dh) | C193: 388.5 | D193: 706.8 | E193: 624.6
A194: Total labor | B194: (dh) | C194: 1602.1 | D194: 2915.6 | E194: 2576.5
A195: Total variable costs (dh)/farm | C195: 2903.9 | D195: 6797.2 | E195: 5791.9
A196: Variable costs (dh/ha) | C196: 6543.3 | D196: 7753.1 | E196: 7440.8
A199: Table 35: Gross product of other crops in the PMH zones
B201: <=55 | C201: >55 | D201: Total
A202: Value before harvest (dh) | B202: 50.8 | C202: 2806 | D202: 2094.6
A203: Value after harvest (dh) | B203: 8581.3 | C203: 15914.5 | D203: 14021.1
A204: Value sous Products (dh) | B204: 446.6 | C204: 382 | D204: 398.7
A205: Gross product (dh/farm) | B205: 9078.8 | C205: 19102.4 | D205: 16514.4
A206: Gross product (dh/ha) | B206: 13582.3 | C206: 16646.5 | D206: 15855.3
A209: Table 37: Indicateurs of Variable costs of other tree species in PMH zones (dh/farm)
C210: <=55 | D210: >55 | E210: Total
A211: Total inputs (dh) | C211: 764.9 | D211: 912.6 | E211: 856.1
A212: Total energy, animal and mechanised (dh) | C212: 127.9 | D212: 221.6 | E212: 185.7
A213: Total labor | B213: (dh) | C213: 1032.1 | D213: 1633.7 | E213: 1403.6
A214: Variable costs (dh/ha) | C214: 1924.9 | D214: 2767.9 | E214: 2445.4
A216: Table 38: Gross product of other tree species in PMH zones (dh/farm)
B217: <=55 | C217: >55 | D217: Total
A218: Value before harvest (dh) | B218: 4311.4 | C218: 2274.3 | D218: 3053.6
A219: Value after harvest (dh) | B219: 4440.8 | C219: 8027.9 | D219: 6655.8
A220: Gross product* dh/farm | B220: 8790.8 | C220: 10314.7 | D220: 9731.8
A223: Table 40: Variable costs of animal production in PMH zones (Avg. dh/farm)
C224: <=55 | D224: >55 | E224: Total
A225: Ruminants and equines | B225: (dh) | C225: 11139.6 | D225: 19105.7 | E225: 16639.7
A226: Small-scale farming | B226: (dh) | C226: 68.15 | D226: 135.9 | E226: 120.1
A227: Apiculture | B227: (dh) | C227: 57 | D227: 92.1 | E227: 80.6
A228: Charges totales élevage | B228: (dh /farm) | C228: 11050.5 | D228: 18959.8 | E228: 16513.6
A231: Table 41: Gross product of animal production in PMH zones (Avg. dh/farm)
C232: <=55 | D232: >55 | E232: Total
A233: Ruminants and equines | B233: (dh) | C233: 28451.1 | D233: 32598.4 | E233: 31314.5
A234: Petit élevage | B234: (dh) | C234: 1124.4 | D234: 568.4 | E234: 698.6
A235: Apiculture | B235: (dh) | C235: 4631 | D235: 3393.2 | E235: 3799.4
A236: Gross product élevage | B236: (dh /farm) | C236: 29137.5 | D236: 32898.1 | E236: 31735
A240: Tablex 56 and 57: share and average prices of the categories of olive oil produced by the TDC in UV areas (%)
B241: Structure du Product en %
A242: Type | B242: Oil ordinary | C242: Oil virgin | D242: Oil extra virgin | E242: Oil ordinary | F242: Oil virgin | G242: Oil extra virgin
A243: Modern | B243: 71.4 | C243: 0 | D243: 28.6 | E243: 2500 | F243: . | G243: 3250
A244: Semi-Modern | B244: 70.7 | C244: 17.1 | D244: 12.2 | E244: 2639.1 | F244: 2750 | G244: 3000
A245: Traditional | B245: 91.1 | C245: 8.8 | D245: 0.1 | E245: 3040 | F245: 2750 | G245: 3000
A249: Table 58: Average variable costs of UV activity in PMH zones (dh/UV) | H249: Table 55. Variable costs of Oils d’olives commercialisées par les UV Moderns | N249: marge valorisation
A250: Type | B250: Matière première | C250: Main œuvre occasionnelle | D250: Other Variable costs | E250: Total Variable costs dh/UV | H250: Product | I250: Cost of primary materials | J250: Processing cost | K250: Variable costs (DH/T) | N250: par kg HO Producte
A251: Modern | B251: 247000 | C251: 14079.3 | D251: 12608.4 | E251: 273687.7 | H251: HOV extra | I251: 18469.9 | J251: 2678 | K251: 21147.9 | N251: =+(K251+J251)/1000 -> 23.8259
A252: Semi Modern | B252: 274117.5 | C252: 52570 | D252: 18782.1 | E252: 345469.6 | H252: HOV courante | I252: 15705.2 | J252: 2678 | K252: 18383.2
A253: Traditional | B253: 45926.4 | C253: 14187.6 | D253: 1830.2 | E253: 61944.2 | H253: HOV lampante | I253: 10256.4 | J253: 2678 | K253: 12934.5
A257: Table 59: Gross product per unit of olives in PMH zones
A259: Type | B259: Parameter | C259: Service Delivery | D259: Product Value | E259: Sub Products | F259: Gross product
A260: Modern | B260: Avg. | C260: 29394.3 | D260: 384760 | E260: 11730 | F260: 421877.1
A261: Semi Modern | B261: Avg. | C261: 107150.4 | D261: 425957 | E261: 42218 | F261: 575216.1
A262: Traditional | B262: Avg. | C262: 20967.1 | D262: 86494.5 | E262: 5788.5 | F262: 111958
A266: Table 60: Indicators of gross income of adopters of best practices of the PMH in olive areas
A268: Type | B268: Parameter | C268: Gross product (dh) | D268: Variable costs (dh) | E268: Gross margin (dh) | F268: Gross margin/Gross product (%)
A269: Modern | B269: Avg. | C269: 424208.6 | D269: 273687.7 | E269: 150520.9 | F269: 35.5 | H269: =+D269/C269 -> 0.6451724458
A270: Semi Modern | B270: Avg. | C270: 575325.3 | D270: 345469.6 | E270: 229855.7 | F270: 39.9
A271: Traditional | B271: Avg. | C271: 112022.3 | D271: 61944.2 | E271: 50078.1 | F271: 44.7
A276: Comparison of indicators of the Variable costs between baseline survey and data feasibility studies - data without project
A277: Variable costs | B277: Baseline survey | D277: Feasability study
A278: DH/ha | B278: Deficit <=55 | C278: Deficit >55 | D278: Deficit <=55 | E278: Deficit >55
... 16 more rows

Sheet Data&assumptions
A1: Assumptions and data sources
A2: Hypothesiss
A3: 5. This project will not have any intensification activities associated with it. Gains will be achieved by an increase of green fodder resources,
A4: grains and under valued products.
A5: 6. duration of life of the project: | B5: 25 yrs
A6: 8. installation of the olive tree cost | B6: 20 DH/plant
A7: Data Sources:
A8: 1. the data on crop rotation, the yield of crops, prices, production costs as well for the current situation as the future situation,
A9: provided by feasibility studies at the level of the perimeters of PMH. These data were collected by the consultant TC - 1B through the work centers related to
A10: the Ministry of Agriculture, and through participatory diagnostics carried out with farmers. Techno-economic records by Cropare also developed
A11: by the consultant for the situation without and with project, these fact sheets contain basic data on the technical conduct of the culture, the level of use of inputs and labor,
A12: the prices of the inputs and products, and the revenue per hectare culture
A13: 2 see two worksheets ('Don_classe 1'; "Don_classe 2") synthesizing the data for 11 perimeters retained at the level of two perimeters classes that are identified on the basis of the maximum water deficit
A14: The assumptions are also addressed by feasibility studies
A15: 3. the rotation of operation type were obtained by dividing the total area of each crop by the total number of existing agricultural operations at the level of the concerned perimeters
A16: 4. the yield by Cropwas obtained by calculating the weighted average of the yields achieved by selected perimeters
A17: 5. prices and operating costs were obtained by the calculation of an average single price and costs at the level of the concerned perimeters
A19: Abréviations
A20: SAU : Superficie Agricole Utile | B20: SAU: agricultural land in use
A21: UF : Unité fourragère | B21: UF: Feed Unit
A22: Qx : quintaux | B22: Qx: quintals
A23: Ha : hectare | B23: Ha: hectare
A24: SP: sous produits | B24: SP: byproducts
A25: DH : dirhams | B25: DH: Dirhams
A26: RDT Avg : Yield avg | B26: RTD Avg: average yield
A27: Assol_Avg : Area sown avg | B27: Assol_Avg: Average area sown
A28: MO : labor | B28: MO: labor
A29: CM/Ha : Cost avg of aménagements hydro-agricoles par hectare | B29: CM / Ha: the average cost of irrigation per hectare
A30: DHMax : water deficit mensuel maximal | B30: DHMax: maximum monthly water deficit
A41: I Size and number of holdings
A43: Initial Data
A44: Water deficit | B44: SAU diagnostic (ha) | C44: No. of Holdings | D44: Project Costs ('000 DH) | E44: Olive Area (ha) | F44: Avg Cost per ha (dh) | G44: SAU % /zone | H44: Average Surface Ha
A45: < 55% | B45: =SUM(Iden_classe!F4:F35) -> 9468 | C45: =SUM(Iden_classe!G4:G35) -> 8960 | D45: =SUM(Iden_classe!M4:M35) -> 163614 | E45: =SUM(Iden_classe!H4:H35) -> 5372 | F45: =+D45*1000/B45 -> 17280.73511 | G45: =+E45/B45 -> 0.5673848754 | H45: =+B45/C45 -> 1.056696429
A46: >=55% | B46: =SUM(Iden_classe!F36:F68) -> 24515 | C46: =SUM(Iden_classe!G36:G68) -> 18666 | D46: =SUM(Iden_classe!M36:M68) -> 306978.855 | E46: =SUM(Iden_classe!H36:H68) -> 12001 | F46: =+D46*1000/B46 -> 12522.0826 | G46: =+E46/B46 -> 0.4895370182 | H46: =+B46/C46 -> 1.313350477
A47: Total | B47: =SUM(B45:B46) -> 33983 | C47: =SUM(C45:C46) -> 27626 | D47: =SUM(D45:D46) -> 470592.855 | E47: =SUM(E45:E46) -> 17373 | F47: =+D47*1000/B47 -> 13847.89027 | G47: =+E47/B47 -> 0.5112262013 | H47: =+B47/C47 -> 1.230109317
A48: Data from the baseline survey
A51: Table 3: SAU exploited (ha) of the PMH area
A52: Variable | B52: Estimation | C52: Zone A (Deficit <55) | F52: Zone B (Deficit >55) | I52: Total
C53: P | D53: HP | E53: E | F53: P | G53: HP | H53: E | I53: P | J53: HP | K53: E
A54: SAU | B54: Avg. (ha) | C54: 2.71 | D54: 1.75 | E54: 4.46 | F54: 3.7 | G54: 1.49 | H54: 5.19 | I54: 3.39 | J54: 1.57 | K54: 4.96
A55: SAU irrigated | B55: Avg. (ha) | C55: 2.06 | D55: 0.26 | E55: 2.32 | F55: 3.23 | G55: 0.45 | H55: 3.68 | I55: 2.86 | J55: 0.39 | K55: 3.26
D56: P : Périmètre | F56: HP : Hors périmètre | I56: E : Ensemble
A58: Number of holdings with regard to surface Avg. holdings within the scope of the project
A59: water deficit | B59: SAU diagnostic (ha) | C59: SAU adjusted irrigated | D59: Surface project Avg. irrigated | E59: Number operators | F59: SAU adjusted irrigated, % total
A60: < 55% | B60: =+B45 -> 9468 | C60: =+$C$62*B60/$B$62 -> 9468 | D60: =+C55 -> 2.06 | E60: =+C60/D60 -> 4596.116505 | F60: =+C60/$C$62 -> 0.2786098932
A61: >=55% | B61: =+B46 -> 24515 | C61: =+$C$62*B61/$B$62 -> 24515 | D61: =+F55 -> 3.23 | E61: =+C61/D61 -> 7589.783282 | F61: =+C61/$C$62 -> 0.7213901068
A62: Total | B62: =SUM(B60:B61) -> 33983 | C62: =+G68 -> 33983 | D62: =+I55 -> 2.86 | E62: =+C62/D62 -> 11882.16783 | F62: =+C62/$C$62 -> 1
A65: II - Expenditures carried out by the project
A66: Estimate of expenditures | H66: Grandeurs parties of projects mixtes Oasis-PMH - revenant au project olive PMH- en 2011
A67: Olive-PMH ('000 DH)) | B67: 2009 | C67: 2010 | D67: 2011 | E67: 2012 | F67: 2013 | G67: Total | H67: Avant | I67: Correction | J67: Après
A68: Olives Area (hectares) | C68: 5290 | D68: 25351 | E68: 3342 | F68: 0 | G68: =SUM(C68:F68) -> 33983 | H68: 18379 | I68: 3082 | J68: =+H68+I68 -> 21461
A69: % Almonds (0%) - Olives (100%) | B69: =100% -> 1 | C69: =100% -> 1 | D69: =+J69 -> 1 | E69: =100% -> 1 | F69: =100% -> 1 | G69: =100% -> 1 | H69: 1 | I69: 1 | J69: 1
A70: Investment olives almonds +
A71: Environmental studies, studies of feasability and supervision of works | B71: 107497.5263 | D71: =+J71 -> 0 | G71: =SUM(C71:F71) -> 0 | H71: 0 | I71: 0 | J71: =+I71+H71 -> 0
A72: Work (plantations, intensification and irrigation infrastructure) | C72: 103426.0875 | D72: =+J72 -> 408236.4897 | E72: 61381.747 | F72: 88749.282 | G72: 661793.6062 | H72: 247899.151 | I72: 160337.3387 | J72: =+I72+H72 -> 408236.4897
A73: Processing equipment (catalyst fund) | D73: 4736.897862 | F73: 66208.46068 | G73: 70945.35854 | H73: 0 | I73: 4736.897862 | J73: 4736.897862
A74: Supervision and training of farmers | B74: 21573.77564 | C74: 21573.77564 | D74: =+J74 -> 34022.70432 | E74: 21573.77564 | F74: 21573.77564 | G74: 98744.03125 | H74: 21573.77564 | I74: 12448.92867 | J74: 34022.70432
A75: Other common expenses (administration, research,. Etc.) | B75: 6837.310279 | C75: 6837.310279 | D75: 8776.605734 | E75: 6837.310279 | F75: 6837.310279 | G75: 29288.53657 | H75: 6837.310279 | I75: 1939.295455 | J75: 8776.605734
A76: Total operating expenses | B76: 135908.6122 | C76: 131837.1734 | D76: 455772.6976 | E76: 89792.83292 | F76: 183368.8286 | G76: 860771.5326 | H76: 276310.2369 | I76: 179462.4607 | J76: 455772.6976
A77: Monitoring & Evaluation (3.66%) | B77: =+($G$84*$J$86)/5 -> 4131.703356 | C77: =+($G$84*$J$86)/5 -> 4131.703356 | D77: 9565.02304 | E77: =+($G$84*$J$86)/5 -> 4131.703356 | F77: =+($G$84*$J$86)/5 -> 4131.703356 | G77: 21960.13311 | H77: 5982.033447 | I77: 3582.989592 | J77: 9565.02304
A78: Investment olives | I78: From DFP:
A79: Environmental studies, studies of feasability and supervision of works | B79: =+B$69*B71 -> 107497.5263 | C79: 0 | D79: 0 | E79: 0 | F79: 0 | G79: =SUM(C79:F79) -> 0 | H79: =SUM(B79:F79)/8.2 -> 13109.45443 | I79: 12.5
A80: Work (plantations, intensification and irrigation infrastructure) | B80: 0 | C80: 103426.0875 | D80: 408236.4897 | E80: 61381.747 | F80: 88749.282 | G80: 661793.6062 | H80: =SUM(B80:F80)/8.2 -> 80706.53734 | I80: 72.4
A81: Equipment for the development of products | B81: 0 | C81: 0 | D81: 4736.897862 | E81: 0 | F81: 66208.46068 | G81: 70945.35854 | H81: 8651.872993 | I81: Catalyst fund?
A82: Supervision and training of farmers | B82: 21573.77564 | C82: 21573.77564 | D82: 34022.70432 | E82: 21573.77564 | F82: =+F$69*F74 -> 21573.77564 | G82: 98744.03125 | H82: =SUM(B82:F82)/8.2 -> 14672.90328 | I82: 2.7
A83: Other common expenses (administration, research,. Etc.) | B83: =+B$69*B75 -> 6837.310279 | C83: 6837.310279 | D83: 8776.605734 | E83: 6837.310279 | F83: 6837.310279 | G83: 29288.53657 | H83: 4405.591079
A84: Total operating expenses | B84: =SUM(B79:B83) -> 135908.6122 | C84: =SUM(C79:C83) -> 131837.1734 | D84: =SUM(D79:D83) -> 455772.6976 | E84: =SUM(E79:E83) -> 89792.83292 | F84: =SUM(F79:F83) -> 183368.8286 | G84: 860771.5326 | H84: 121546.3591
A85: Monitoring & Evaluation (3.66%) | B85: =+B$69*B77 -> 4131.703356 | C85: =+C$69*C77 -> 4131.703356 | D85: =+D$69*D77 -> 9565.02304 | E85: =+E$69*E77 -> 4131.703356 | F85: =+F$69*F77 -> 4131.703356 | G85: 21960.13311 | H85: 3181.931276 | I85: Hypothesis sur le Cost du suivi-évaluation
A86: Cost total olives | B86: =+B85+B84 -> 140040.3156 | C86: =+C85+C84 -> 135968.8768 | D86: =+D85+D84 -> 465337.7207 | E86: =+E85+E84 -> 93924.53628 | F86: =+F85+F84 -> 187500.532 | G86: =SUM(C86:F86) -> 882731.6657 | I86: Taux | J86: 0.024
B87: =B86/8.2 -> 17078.08726 | C87: 16581.57034 | D87: 56748.50252 | E87: 11454.21174 | F87: 22865.91853 | G87: 107650.2031
A89: Final costs for closeout ERR (from Annex A - MOR_QFR-DFP_Q20_OoC2_10-10-2013_Corrected by MCC_10-11-2013.so.xls):
A90: Environmental studies, studies of feasability and supervision of works | B90: =SUM('fruit tree budget'!H24,'fruit tree budget'!I24,'fruit tree budget'!J24,'fruit tree budget'!K24) -> 961520.76 | C90: =SUM('fruit tree budget'!L24:O24) -> 5210747.71 | D90: =SUM('fruit tree budget'!P24:S24) -> 1189138.18 | E90: =SUM('fruit tree budget'!T24:W24) -> 1572858.75 | F90: =SUM('fruit tree budget'!X24:AA24) -> 3627083.372 | G90: =SUM(B90:F90) -> 12561348.77
A91: Work (plantations, intensification and irrigation infrastructure) | B91: =SUM('fruit tree budget'!H25,'fruit tree budget'!I25,'fruit tree budget'!J25,'fruit tree budget'!K25) -> 0 | C91: =SUM('fruit tree budget'!L25:O25) -> 1145736.92 | D91: =SUM('fruit tree budget'!P25:S25) -> 12858083.72 | E91: =SUM('fruit tree budget'!T25:W25) -> 28058783.57 | F91: =SUM('fruit tree budget'!X25:AA25) -> 33037664.07 | G91: =SUM(B91:F91) -> 75100268.28
A92: Processing equipment (catalyst fund) | B92: ='fruit tree budget'!AE95*SUM('fruit tree budget'!H95,'fruit tree budget'!I95,'fruit tree budget'!J95,'fruit tree budget'!K95) -> 0 | C92: ='fruit tree budget'!AE95*SUM('fruit tree budget'!L95:O95) -> 0 | D92: ='fruit tree budget'!AE95*SUM('fruit tree budget'!P95:S95) -> 23538.27285 | E92: ='fruit tree budget'!AE95*SUM('fruit tree budget'!T95:W95) -> 111064.5786 | F92: ='fruit tree budget'!AE95*SUM('fruit tree budget'!X95:AA95) -> 8290255.207 | G92: 8424858.058 | H92: ='fruit tree budget'!AE95 -> 0.407497762 | I92: Olive-irrigation share of catalyst fund costs between rehabilitation/Expansion and irrigation
A93: Supervision and training of farmers: Olive irrigation budget | B93: =SUM('fruit tree budget'!H32,'fruit tree budget'!I32,'fruit tree budget'!J32,'fruit tree budget'!K32) -> 0 | C93: =SUM('fruit tree budget'!L32:O32) -> 0 | D93: =SUM('fruit tree budget'!P32:S32) -> 616430.69 | E93: =SUM('fruit tree budget'!T32:W32) -> 1034980.77 | F93: =SUM('fruit tree budget'!X32:AA32) -> 1006662.54 | G93: 2658074
A94: Supervision and training of farmers: Olive-tree specific Fruit tree sector services | B94: =H94*SUM('fruit tree budget'!H55,'fruit tree budget'!I55,'fruit tree budget'!J55,'fruit tree budget'!K55) -> 0 | C94: =H94*SUM('fruit tree budget'!L55:O55) -> 0 | D94: =H94*SUM('fruit tree budget'!P55:S55) -> 184564.0127 | E94: =H94*SUM('fruit tree budget'!T55:W55) -> 310770.6213 | F94: =H94*SUM('fruit tree budget'!X55:AA55) -> 382319.6733 | G94: 877654.3073 | H94: =H92 -> 0.407497762 | I94: Olive-irrigation share of olive-specific fruit tree sector services costs
A95: Supervision and training of farmerss: other Fruit tree sector services | B95: =(SUM('fruit tree budget'!H53:K53)-SUM('fruit tree budget'!H54:K54))*'Data&assumptions'!H95 -> 0 | C95: =(SUM('fruit tree budget'!L53:O53)-SUM('fruit tree budget'!L54:O54))*'Data&assumptions'!H95 -> 891646.6092 | D95: =(SUM('fruit tree budget'!P53:S53)-SUM('fruit tree budget'!P54:S54))*'Data&assumptions'!H95 -> 344824.1039 | E95: =(SUM('fruit tree budget'!T53:W53)-SUM('fruit tree budget'!T54:W54))*'Data&assumptions'!H95 -> 1283202.772 | F95: =(SUM('fruit tree budget'!X53:AA53)-SUM('fruit tree budget'!X54:AA54))*'Data&assumptions'!H95 -> 1486079.451 | G95: 4005752.936 | H95: ='fruit tree budget'!AC23/SUM('fruit tree budget'!AC23,'fruit tree budget'!AC6,'fruit tree budget'!AC36) -> 0.3153010134 | I95: Olive-irrigation share of other fruit tree sector services costs
A96: Other common expenses (MAPM admin): | B96: =SUM('fruit tree budget'!H107:K107)*'Data&assumptions'!H95 -> 0 | C96: =SUM('fruit tree budget'!L107:O107)*'Data&assumptions'!H95 -> 0 | D96: =SUM('fruit tree budget'!P107:S107)*'Data&assumptions'!H95 -> 0 | E96: =SUM('fruit tree budget'!T107:W107)*'Data&assumptions'!H95 -> 203087.6686 | F96: =SUM('fruit tree budget'!X107:AA107)*'Data&assumptions'!H95 -> 478421.1699 | G96: 681508.8385
A97: Other common expenses (M&E): | B97: =SUM('total budget'!G507:J507)*'total budget'!AC113*'total budget'!AC26 -> 9223.107977 | C97: =SUM('total budget'!K507:N507)*'Data&assumptions'!H97 -> 248648.7981 | D97: =SUM('total budget'!O507:R507)*'Data&assumptions'!H97 -> 698977.7592 | E97: =SUM('total budget'!S507:V507)*'Data&assumptions'!H97 -> 752240.2994 | F97: =SUM('total budget'!W507:Z507)*'Data&assumptions'!H97 -> 1147644.523 | G97: 2856734.488 | H97: ='total budget'!AC113*'total budget'!AC26 -> 0.1757433894 | I97: Olive-irrigation share of M&E
A98: Other common expenses (admin): | B98: =SUM('total budget'!G563:J563)*'total budget'!AC114*'total budget'!AC27 -> 0 | C98: =SUM('total budget'!K563:N563)*'Data&assumptions'!H98 -> 2072430.449 | D98: =SUM('total budget'!O563:R563)*'Data&assumptions'!H98 -> 2470243.869 | E98: =SUM('total budget'!S563:V563)*'Data&assumptions'!H98 -> 1996892.334 | F98: =SUM('total budget'!W563:Z563)*'Data&assumptions'!H98 -> 2778668.075 | G98: 9318234.726 | H98: =H97 -> 0.1757433894 | I98: Olive-irrigation share of Admin
A99: Total operating expenses | B99: =SUM(B90:B98) -> 970743.868 | C99: 9569210.486 | D99: 18385800.61 | E99: 35323881.36 | F99: 52234798.08 | G99: 116484434.4
A105: Project unit cost per hectare (in Dh)
A107: Project Expenses | B107: Total | C107: 2009 | D107: 2010 | E107: 2011 | F107: 2012 | G107: 2013
A108: Environmental studies, studies of feasability and supervision of works | B108: =8.2*G90*$F$61/$C$61 -> 3031.017271 | C108: =(8.2*B90*$F$61)/$C$61 -> 232.0121894 | D108: =(8.2*C90*$F$61)/$C$61 -> 1257.338411 | E108: =(8.2*D90*$F$61)/$C$61 -> 286.9356171 | F108: =(8.2*E90*$F$61)/$C$61 -> 379.5262852 | G108: =(8.2*F90*$F$61)/$C$61 -> 875.2047685
A109: Work (plantations, intensification and irrigation infrastructure) | B109: =8.2*G91*$F$61/$C$61 -> 18121.47838 | C109: =8.2*B91*$F$61/$C$61 -> 0 | D109: 276.4630181 | E109: 3102.618559 | F109: 6770.503642 | G109: 7971.893164
A110: Equipment for the development of products | B110: =8.2*G92*$F$61/$C$61 -> 2032.893979 | C110: 0 | D110: 0 | E110: 5.679717428 | F110: 26.79956285 | G110: 2000.414698
A111: Supervision and training of farmers | B111: =8.2*SUM(G93:G95)*$F$61/$C$61 -> 1819.737698 | C111: =8.2*SUM(B93:B95)*$F$61/$C$61 -> 0 | D111: =8.2*SUM(C93:C95)*$F$61/$C$61 -> 215.1517581 | E111: =8.2*SUM(D93:D95)*$F$61/$C$61 -> 276.4827771 | F111: =8.2*SUM(E93:E95)*$F$61/$C$61 -> 634.359066 | G111: =8.2*SUM(F93:F95)*$F$61/$C$61 -> 693.7440969
A112: Other common expenses (administration, research,. Etc.) | B112: =8.2*SUM(G96:G98)*$F$61/$C$61 -> 3102.231117 | C112: =8.2*SUM(B96:B98)*$F$61/$C$61 -> 2.225509384 | D112: =8.2*SUM(C96:C98)*$F$61/$C$61 -> 560.0697356 | E112: =8.2*SUM(D96:D98)*$F$61/$C$61 -> 764.7240488 | F112: =8.2*SUM(E96:E98)*$F$61/$C$61 -> 712.3622539 | G112: =8.2*SUM(F96:F98)*$F$61/$C$61 -> 1062.849569
A113: Total operating expenses | B113: =8.2*G99*$F$61/$C$61 -> 28107.35845 | C113: =8.2*B99*$F$61/$C$61 -> 234.2376988 | D113: =8.2*C99*$F$61/$C$61 -> 2309.022923 | E113: =8.2*D99*$F$61/$C$61 -> 4436.44072 | F113: =8.2*E99*$F$61/$C$61 -> 8523.55081 | G113: =8.2*F99*$F$61/$C$61 -> 12604.1063
A115: Total cost | B115: =8.2*G99*$F$61/$C$61 -> 28107.35845 | C115: =8.2*B99*$F$61/$C$61 -> 234.2376988 | D115: =8.2*C99*$F$61/$C$61 -> 2309.022923 | E115: =8.2*D99*$F$61/$C$61 -> 4436.44072 | F115: =8.2*E99*$F$61/$C$61 -> 8523.55081 | G115: =8.2*F99*$F$61/$C$61 -> 12604.1063
A117: III - Resource maintenance costs
A119: Resource maintenance costs per ha | B119: Hypothesis : | C119: 0 | D119: years 1-5 | E119: =+D235 -> 0.01 | F119: years6-10 | G119: =+D235 -> 0.01 | H119: years 11-20
A120: Year | B120: Years 1 - 20 | C120: years 1 | D120: 2 | E120: 3 | F120: 4 | G120: 5 | H120: 6 | I120: 7 | J120: 8 | K120: 9 | L120: 10 | M120: 11 | N120: 12 | O120: 13 | P120: 14 | Q120: 15 | R120: 16 | S120: 17 | T120: 18 | U120: 19 | V120: 20 | W120: 21 | X120: 22 | Y120: 23 | Z120: 24 | AA120: 25 | AB120: 26 | AC120: 27 | AD120: 28 | AE120: 29 | AF120: 30
C121: =+B109*$C$119 -> 0 | D121: =+$C$119*$G$109 -> 0 | E121: =+$C$119*$G$109 -> 0 | F121: =+$C$119*$G$109 -> 0 | G121: =+$C$119*$G$109 -> 0 | H121: =+$B$109*$E$119 -> 181.2147838 | I121: =+$B$109*$E$119 -> 181.2147838 | J121: =+$B$109*$E$119 -> 181.2147838 | K121: =+$B$109*$E$119 -> 181.2147838 | L121: =+$B$109*$E$119 -> 181.2147838 | M121: =+$B$109*$G$119 -> 181.2147838 | N121: 181.2147838 | O121: 181.2147838 | P121: 181.2147838 | Q121: 181.2147838 | R121: 181.2147838 | S121: 181.2147838 | T121: 181.2147838 | U121: 181.2147838 | V121: 181.2147838 | W121: 181.2147838 | X121: 181.2147838 | Y121: 181.2147838 | Z121: 181.2147838 | AA121: 181.2147838 | AB121: 181.2147838 | AC121: 181.2147838 | AD121: 181.2147838 | AE121: 181.2147838 | AF121: 181.2147838
A124: Table 7: Acreage Sown in PMH zones
A125: Zone | B125: Avg. | C125: Zone A (Deficit <55) | D125: Zone B (Deficit >55) | E125: Total
A126: Plots | B126: Number | C126: 3.54 | D126: 4.05 | E126: 3.89
A127: Olives | B127: Number | C127: 153.74 | D127: 173 | E127: 166.98
A128: Others | B128: Number | C128: 67.99 | D128: 44.63 | E128: 51.93
A129: Cereals | B129: ha | C129: 2.35 | D129: 2.49 | E129: 2.44
A130: Legumes | B130: ha | C130: 0.15 | D130: 0.06 | E130: 0.09
A131: Forage | B131: ha | C131: 0.31 | D131: 0.66 | E131: 0.55
A132: Horticulture | B132: ha | C132: 0.08 | D132: 0.3 | E132: 0.23
A133: Industrial crops | B133: ha | C133: 0 | D133: 0 | E133: 0
A134: Others | B134: ha | C134: 0 | D134: 0 | E134: 0
A135: Fallow (ha) | B135: ha | C135: 0.62 | D135: 0.78 | E135: 0.73
C137: =SUM(C129:C135) -> 3.51
A138: Table 14: Area Sown under olives in the PMH zones
A139: Zone | B139: Deficit <55 | C139: Deficit >55 | D139: Ensemble
A140: SAU in use (ha) | B140: 4.5 | C140: 5.2 | D140: 5
A141: Number of perimeters | B141: 164.4 | C141: 174.2 | D141: 171.3
A142: Equivalent – actual area (ha) | B142: 1.6 | C142: 1.7 | D142: 1.7
A143: Area sown (%) | B143: 56.7 | C143: 51.2 | D143: 52.9
A144: Avg tree age (years) | B144: 22 | C144: 25.7 | D144: 24.6
A146: Equivalent : ha other trees | B146: =+B142*C128/C127 -> 0.7075842331 | C146: =+C142*D128/D127 -> 0.4385606936 | D146: =+D142*E128/E127 -> 0.5286920589
A148: Costs of planting (Intensification) per HA | C148: =+C137+B142 -> 5.11
A149: Zone DH | B149: DH < 55% | C149: DH >=55%
A150: Cost of planting per tree (DH) | B150: 20 | C150: 20
A151: Cost of planting per HA (DH) | B151: =+B150*B141 -> 3288 | C151: =+C150*C141 -> 3484
A154: Table 23: oftination of olives from PMH zones (% of quantity)
B156: Deficit <=55 | C156: Deficit >55 | D156: Total
A157: Direct sale | B157: 30.9 | C157: 34.1 | D157: 33.2
A158: Processing | B158: 68.7 | C158: 64.9 | D158: 66
A159: Other | B159: 0.4 | C159: 1 | D159: 0.8
A162: Table 25: Types of buyers and selling prices of the olive after harvest the area of PMH
A163: Zone | B163: <=55 | C163: >55 | D163: Ensemble
A164: Price DH/Ql | B164: 395.7 | C164: 344.6 | D164: 357.6
A168: Percentage of Farmers using processing plants | B168: Avant project | C168: With project
A169: years | B169: years 1 - 20 | C169: years 1 | D169: 2 | E169: 3 | F169: 4 | G169: 5 | H169: 6 | I169: 7 | J169: 8 | K169: 9 | L169: 10 | M169: 11-20
A170: Deficit <=55
A171: UV traditional | B171: =+B157/100 -> 0.309 | C171: =+B171 -> 0.309 | D171: 0.35 | E171: 0.35 | F171: 0.3 | G171: 0.25 | H171: 0 | I171: 0 | J171: 0 | K171: 0 | L171: 0 | M171: 0
A172: UV modern | B172: =+(B158+B159)/100 -> 0.691 | C172: =+B172 -> 0.691 | D172: 0.65 | E172: 0.65 | F172: 0.7 | G172: 0.75 | H172: 1 | I172: 1 | J172: 1 | K172: 1 | L172: 1 | M172: 1
A173: Deficit >55
A174: UV traditional | B174: =+C157/100 -> 0.341 | C174: =+B174 -> 0.341 | D174: =+D171 -> 0.35 | E174: =+E171 -> 0.35 | F174: 0.3 | G174: 0.25 | H174: 0 | I174: 0 | J174: 0 | K174: 0 | L174: 0 | M174: 0
A175: UV modern | B175: =+(C158+C159)/100 -> 0.659 | C175: =+B175 -> 0.659 | D175: =+D172 -> 0.65 | E175: =+E172 -> 0.65 | F175: 0.7 | G175: 0.75 | H175: 1 | I175: 1 | J175: 1 | K175: 1 | L175: 1 | M175: 1
A177: Effects of oil processing on the value of olives | B177: Part of Oils | D177: Price of Oils | F177: Cost trituration DH/litre HO
A178: Quality of oil produced | B178: Traditionnelle | C178: Moderne | D178: Traditionnelle | E178: Moderne | F178: Traditionnelle | G178: Moderne
A179: Ordinary Oil | B179: 91.1 | C179: 71.4 | D179: 23.2 | E179: 20 | F179: 1.7 | G179: 2.7
A180: Oil virgin | B180: 8.8 | D180: 23.2 | F180: 1.7
A181: Oil extra virgin | B181: 0.1 | C181: 28.6 | D181: 23.2 | E181: 35 | F181: 1.7 | G181: 2.7
A182: Avg.s | D182: =+(D179*(B179/100))+(D180*(B180/100))+(D181*(B181/100)) -> 23.2 | E182: =+(E179*(C179/100))+(E180*(C180/100))+(E181*(C181/100)) -> 24.29
A183: Source: Survey "Situation of reference" for the share of the Oils. for the price and the cost of crushing, marketing and storage, "analysis of the value chain of the sectors of olive and Palm in the fruit tree intervention areas (ME - 12 A/APP) project: report of phase 2 Phytoconsulting"
A185: Extraction rate | B185: 0.182
A188: Rate of annual increase in the rate of adoption of best practices
A189: Labor | E189: 0.1146675735 | G189: Growth rates calculated so as to increase the rate of adoption of good practice to 100% in year 20 of the draft
A190: Olive treatment on trees | E190: 0.04402159872
A191: Olive "Cueillette" | E191: 0.08757564674
A193: Rate of adoption of best practices (hypothesized rate of adoption over ten years)
A194: With the project
B195: Year 1 | C195: 2 | D195: 3 | E195: 4 | F195: 5 | G195: 6 | H195: 7 | I195: 8 | J195: 9 | K195: 10 | L195: 11 | M195: 12 | N195: 13 | O195: 14 | P195: 15 | Q195: 16 | R195: 17 | S195: 18 | T195: 19 | U195: 20
A196: Soil and Fertilisation Works | B196: =+'DATA-enq reference'!B86/100 -> 0.12 | C196: =+B196 -> 0.12 | D196: =+(1+31.6%)*C196 -> 0.15792 | E196: =+D196*(1+$E189) -> 0.1760283032 | F196: =+E196*(1+$E189) -> 0.1962130416 | G196: 0.218712315 | H196: 0.2437915255 | I196: 0.2717465081 | J196: 0.3029070208 | K196: 0.3376406339 | L196: =+K196*(1+$E189) -> 0.3763570661 | M196: 0.4195130177 | N196: 0.4676175575 | O196: 0.5212381282 | P196: 0.5810072396 | Q196: 0.6476299299 | R196: 0.7218920825 | S196: 0.804669696 | T196: 0.8969392175 | U196: 0.9997890612
A197: Olive treatment on trees | B197: =+('DATA-enq reference'!B87+'DATA-enq reference'!B88+'DATA-enq reference'!B90)/300 -> 0.38 | C197: =+B197 -> 0.38 | D197: =+(1+26.5%)*C197 -> 0.4807 | E197: 0.5018611825 | F197: 0.5239539141 | G197: 0.547019203 | H197: 0.5710998629 | I197: 0.5962405919 | J197: 0.622488056 | K197: 0.6498909754 | L197: =+K197*(1+$E190) -> 0.6785002151 | M197: 0.7083688793 | N197: 0.7395524098 | O197: 0.7721086893 | P197: 0.8060981481 | Q197: 0.8415838774 | R197: 0.8786317451 | S197: 0.9173105192 | T197: 0.9576919948 | U197: 0.9998511275
A198: "Cueillette" olive | B198: =+'DATA-enq reference'!D91/100 -> 0.006 | C198: =+B198 -> 0.006 | D198: 0.24 | E198: =+D198*(1+$E191) -> 0.2610181552 | F198: 0.283876989 | G198: 0.3087376999 | H198: 0.3357756036 | I198: 0.3651813693 | J198: 0.3971623639 | K198: 0.4319441147 | L198: =+K198*(1+$E191) -> 0.4697718999 | M198: 0.5109124779 | N198: 0.5556559686 | O198: 0.6043178994 | P198: 0.6572414303 | Q198: 0.7147997736 | R198: 0.7773988261 | S198: 0.845480031 | T198: 0.9195234916 | U198: 1.000051356
A199: Average rate of best practice adoption | B199: =AVERAGE(B196:B197) -> 0.25 | C199: =AVERAGE(C196:C197) -> 0.25 | D199: 0.31931 | E199: 0.3389447429 | F199: 0.3600834779 | G199: 0.382865759 | H199: 0.4074456942 | I199: 0.43399355 | J199: 0.4626975384 | K199: 0.4937658046 | L199: 0.5274286406 | M199: 0.5639409485 | N199: 0.6035849837 | O199: 0.6466734087 | P199: 0.6935526938 | Q199: 0.7446069036 | R199: 0.8002619138 | S199: 0.8609901076 | T199: 0.9273156061 | U199: 0.9998200943
A201: The improvements from year 2 are those given by the report of the project TC5A - 12th quarter 2013 - page 7-12. The average rate of good practices influence productivity: the adoption of good practices is supposed to allow the percentage of growers who have adopted to achieve gains in productivity observed on the basis of a control sample and a control sample. Picking mode affects the quality of the oil. It does not affect the yield per tree. Its impact is observable at the level of the price through the decrease of acidity.
A204: Impact of the adoption of good practices on gains in yield of olives | L204: 11 | M204: 12 | N204: 13 | O204: 14 | P204: 15 | Q204: 16 | R204: 17 | S204: 18 | T204: 19 | U204: 20
A205: With the project
A206: Gain in Qx/ha | B206: Year 1 | C206: 2 | D206: 3 | E206: 4 | F206: 5 | G206: 6 | H206: 7 | I206: 8 | J206: 9 | K206: 10 | L206: 11 to 20
A207: water deficit < 55% | B207: =+$B$211*(B199-$B199) -> 0 | C207: 0 | D207: =+$B$211*(D199-$B199) -> 2.468493171 | E207: 3.167789501 | F207: 3.920650891 | G207: 4.732047594 | H207: 5.607468198 | I207: 6.552976794 | J207: 7.575276597 | K207: 8.681780753 | L207: 9.880691165
A208: water deficit >=55% | B208: =+$B$212*(B199-$B199) -> 0 | C208: 0 | D208: 1.585253507 | E208: 2.034337982 | F208: 2.517821661 | G208: 3.038896414 | H208: 3.601086984 | I208: 4.208287699 | J208: 4.864803328 | K208: 5.575394556 | L208: 6.345328603
B209: 1 | C209: =B209*(1+C207/100) -> 1 | D209: =C209*(1+D207/100) -> 1.024684932 | E209: 1.057144793 | F209: 1.09859175 | G209: 1.150577635 | H209: 1.21509591 | I209: 1.294720863 | J209: 1.392799549 | K209: 1.513719352 | L209: 1.663285287 | M209: 1.663285287 | N209: 1.663285287 | O209: 1.663285287 | P209: 1.663285287 | Q209: 1.663285287 | R209: 1.663285287 | S209: 1.663285287 | T209: 1.663285287 | U209: 1.663285287
A210: Yield of Olivess par ha en Qx | C210: Cible: | D210: Implied yield for non-adopters:
A211: water deficit < 55% | B211: =+'Don_classe 1'!G26 -> 35.61525278 | C211: ='Don_classe 1'!P26 -> 50.03069866 | D211: =(B211-C211*$B$199)/(1-$B$199) -> 30.81010416
A212: water deficit >=55% | B212: =+Don_classe2!H27 -> 22.87193056 | C212: =Don_classe2!T27 -> 35.88923815 | D212: =(B212-C212*$B$199)/(1-$B$199) -> 18.53282803
A214: Olive yields: | B214: Year 1 | C214: 2 | D214: 3 | E214: 4 | F214: 5 | G214: 6 | H214: 7 | I214: 8 | J214: 9 | K214: 10
A215: water deficit < 55% | B215: =$B$211+($C$211-$D$211)*(B199-$B$199) -> 35.61525278 | C215: =$B$211+($C$211-$D$211)*(C199-$B$199) -> 35.61525278 | D215: 36.94743219 | E215: 37.32482362 | F215: 37.73112267 | G215: 38.16901166 | H215: 38.64145263 | I215: 39.1517182 | J215: 39.70342592 | K215: 40.30057647 | L215: 40.94759619 | M215: 41.64938445 | N215: 42.41136638 | O215: 43.23955152 | P215: 44.14059925 | Q215: 45.12189152 | R215: 46.1916139 | S215: 47.35884589 | T215: 48.6336614 | U215: 50.02724077
A216: water deficit >=55% | B216: =$B$212+($C$212-$D$212)*(B199-$B$199) -> 22.87193056 | C216: =$B$212+($C$212-$D$212)*(C199-$B$199) -> 22.87193056 | D216: 24.07490334 | E216: 24.41569199 | F216: 24.78258455 | G216: 25.17800316 | H216: 25.6046226 | I216: 26.06539807 | J216: 26.56359627 | K216: 27.10282984 | L216: 27.68709582 | M216: 28.32081841 | N216: 29.00889655 | O216: 29.75675692 | P216: 30.57041302 | Q216: 31.45653082 | R216: 32.42250201 | S216: 33.47652544 | T216: 34.627698 | U216: 35.88611563
A218: Evolution of yields of other crops
A219: water deficit zone | B219: years 1 | C219: years 2 | D219: years 3 | E219: years 4 | F219: years 5
A220: DH < 55% | D220: 0.35 | E220: 0.85 | F220: 1
A221: DH >= 55% | D221: 0.35 | E221: 0.85 | F221: 1
A222: Irrigation management work will be spread over two years. Improving the performance of the old plantations of olive and other cultures will begin in year 3
A223: and will be complete in year 5. Take the example of class 1: objective performance: 50 Q/Ha; performance will be improved (50 - 36) = 14 Q/ha at the end of 5 years,
A224: year 3: the performance will be: 36 + (14 * 0, 35) = 40.9 Q/ha
A227: Evolution of yields of newly planted olive trees
A228: Zone water deficit | B228: years 1 | C228: years 2 | D228: years 3 | E228: years 4 | F228: years 5 | G228: years 6 | H228: years 7 | I228: years 8
A229: DH < 55% | F229: 0.5 | G229: 0.75 | H229: 0.9 | I229: 1
A230: DH >= 55% | F230: 0.5 | G230: 0.75 | H230: 0.9 | I230: 1
A233: Hypothesis for yields
A234: DH < 55% | B234: ='ERR & Sensitivity Analysis'!G15 -> 1 | C234: ERR | D234: =+'ERR & Sensitivity Analysis'!D21 -> 0.1028941499
A235: DH >= 55% | B235: ='ERR & Sensitivity Analysis'!G15 -> 1 | C235: O&M | D235: 0.01

Sheet total budget
B3: Forecasted Cash Requirements for -> | D3: Cumulative TR | E3: Cumulative | F3: Cumulative with TR | T3: Prior | U3: Prior | V3: Prior | W3: Prior | X3: Current | Y3: Next | AB3: Total
C4: Contract # | D4: Actual Cumulative Tax Reimbursements Received | E4: Cumulative Actual Disbursements at Beginning of Current Period | F4: Cumulative Actual Disbursements at Beginning of Current Period incl Tax Reimbursement received (Sched. C, Col 3) | G4: Compact Quarter 1 | H4: Compact Quarter 2 | I4: Compact Quarter 3 | J4: Compact Quarter 4 | K4: Compact Quarter 5 | L4: Compact Quarter 6 | M4: Compact Quarter 7 | N4: Compact Quarter 8 | O4: Compact Quarter 9 | P4: Compact Quarter 10 | Q4: Compact Quarter 11 | R4: Compact Quarter 12 | S4: Compact Quarter 13 | T4: Compact Quarter 14 | U4: Compact Quarter 15 | V4: Compact Quarter 16 | W4: Compact Quarter 17 | X4: Compact Quarter 18 | Y4: Compact Quarter 19 | Z4: Total Compact Quarter 20 | AA4: Likely not to be paid/Not allocated | AB4: Cash Disbursements As Currently Forecasted
B5: Calendar Month/Quarter -> | E5: 31 Mar 13 | F5: 31 Mar 13 | G5: Oct '08 Dec '08 | H5: Jan '09 Mar '09 | I5: Apr '09 Jun '09 | J5: Jul '09 Sep '09 | K5: Oct '09 Dec '09 | L5: Jan '10 Mar '10 | M5: Apr '10 Jun '10 | N5: Jul '10 Sep '10 | O5: Oct '10 Dec '10 | P5: Jan '11 Mar '11 | Q5: Apr '11 Jun '11 | R5: Jul '11 Sep '11 | S5: Oct '11 Dec '11 | T5: Jan '12 Mar '12 | U5: Apr '12 Jun '12 | V5: Jul '12 Sep '12 | W5: Oct '12 Dec '12 | X5: Jan '13 Mar '13 | Y5: Apr '13 Jun '13 | Z5: Jul '13 Jan '14 | AD5: M&E share: | AE5: Admin share:
A6: 8.47581 | G6: (2+3+4) | H6: (6+7+8) | I6: (10+11+12) | J6: (14+15+16) | K6: (18+19+20) | L6: (22+23+24) | M6: (26+27+28) | N6: (30+31+32) | O6: (34+35+36) | P6: (38+39+40) | R6: (46+47+48) | S6: (50+51+52) | T6: (54+55+56)
A7: BUDGET LINES | D7: Column 1a | E7: Column 1b | F7: Column 1 (1a+1b) | G7: Column 5 | H7: Column 9 | I7: Column 13 | J7: Column 17 | K7: Column 21 | L7: Column 25 | M7: Column 29 | N7: Column 33 | O7: Column 37 | P7: Column 41 | Q7: Column 45 | R7: Column 49 | S7: Column 53 | T7: Column 57 | U7: Column 61 | V7: Column 65 | W7: Column 69 | X7: Column 73 | Y7: Column 77 | Z7: Column 81 | AA7: Column 80 | AB7: Column 82
A8: 1000000 | B8: 1. Fruit Tree Productivity Project
A9: 1010000 | B9: A. Rain-fed Olive, Almond and Fig Tree Intensification and Expansion | C9: TC-01A,3A,5A | D9: -2.328306437e-10 | E9: 105336621.9 | F9: 105336621.9 | G9: 0 | H9: 0 | I9: 432759 | J9: 2868550.41 | K9: 2369913.27 | L9: 1671462 | M9: 5502134.77 | N9: 3402239.29 | O9: 5390410.37 | P9: 15185863.4 | Q9: 18523494.96 | R9: 5575304.35 | S9: 6948547.6 | T9: 9954954.84 | U9: 9112561.73 | V9: 6624313.02 | W9: 4428387.63 | X9: 7345725.23 | Y9: 9285930.65 | Z9: 13392470.52 | AA9: 9160193.118 | AB9: 128015023 | AC9: =AB9/SUM($AB$9,$AB$26,$AB$39) -> 0.4584480542
A10: 1010100 | B10: Strategic Envrironmental Assessment and Feasibility Studies | C10: TC-01A | D10: 0 | E10: 14009040.61 | F10: 14009040.61 | G10: 0 | H10: 0 | I10: 432759 | J10: 2318662.79 | K10: 842486.53 | L10: 844201 | M10: 564469.73 | N10: 1198009.3 | O10: 554269.66 | P10: 890159.27 | Q10: 855473.76 | R10: 571147.63 | S10: 1149771.23 | T10: 577835.09 | U10: 576244.14 | V10: 1462305.29 | W10: 582132.6 | X10: 589113.59 | Y10: 1461323.18 | Z10: 1537413.13 | AA10: 0.290000001 | AB10: 17007776.92
A11: 1010200 | B11: Mitigation and Management of Environmental and Social Impacts | C11: TC-G-01A1 | D11: 0 | E11: 157138.48 | F11: 157138.48 | G11: 0 | H11: 0 | I11: 0 | J11: 0 | K11: 0 | L11: 0 | M11: 0 | N11: 0 | O11: 21413.06 | P11: 23986.1 | Q11: 0 | R11: 11453.59 | S11: 0 | T11: 33415.46 | U11: 43899.16 | V11: 0 | W11: 0 | X11: 22971.11 | Y11: 22529.64 | Z11: 42722.84 | AA11: -0.27 | AB11: 222390.96
A12: 1010300 | B12: Training of Beneficiaries and their Professional Organizations | C12: TC-05A | D12: 0 | E12: 4425321.66 | F12: 4425321.66 | G12: 0 | H12: 0 | I12: 0 | J12: 0 | K12: 0 | L12: 0 | M12: 0 | N12: 0 | O12: 348723.54 | P12: 0 | Q12: 813688.54 | R12: 193735.37 | S12: 735314.65 | T12: 410350.67 | U12: 460276.37 | V12: 670831.06 | W12: 324084.28 | X12: 468317.18 | Y12: 519679.4 | Z12: 899062.74 | AA12: 0.8799999997 | AB12: 5844063.8
A13: 1010400 | B13: Expansion of plantings in rainfed areas (120,000 Ha) | C13: TC-03AP, 03A1-3 | D13: 0 | E13: 81119149.83 | F13: 81119149.83 | G13: 0 | H13: 0 | I13: 0 | J13: 549887.62 | K13: 1527426.74 | L13: 827261 | M13: 4937665.04 | N13: 2204229.99 | O13: 4022174.11 | P13: 14271718.03 | Q13: 15818729.06 | R13: 4552395.47 | S13: 4133863.02 | T13: 8411089.13 | U13: 7446335.77 | V13: 3637391.69 | W13: 3109699.86 | X13: 5669283.3 | Y13: 6620988.29 | Z13: 9592435.649 | AA13: 7568903.771 | AB13: 97332573.77
A14: 1010401 | B14: Expansion of plantings in rainfed areas (120,000 Ha) | C14: TC-03AP | D14: 0 | E14: 6806977.75 | F14: 6806977.75 | G14: 0 | H14: 0 | I14: 0 | J14: 549887.62 | K14: 1527426.74 | L14: 827261 | M14: 796621.86 | N14: 589243.71 | O14: 624972.56 | P14: 402234.22 | Q14: 514669.42 | R14: 210696.51 | S14: 279003.97 | T14: 172714.24 | U14: 0 | V14: 312245.9 | W14: 0 | X14: 0 | Y14: 0 | Z14: 0 | AA14: 0 | AB14: 6806977.75
A15: 1010402 | B15: Expansion of plantings in rainfed areas (120,000 Ha) | C15: TC-03A1 | D15: 0 | E15: 26391894.59 | F15: 26391894.59 | G15: 0 | H15: 0 | I15: 0 | J15: 0 | K15: 0 | L15: 0 | M15: 4141043.18 | N15: 1097816.19 | O15: 2404130.44 | P15: 3633801.95 | Q15: 4782711.53 | R15: 1241174.67 | S15: 1544760.77 | T15: 2531578.74 | U15: 2436306.1 | V15: 753203 | W15: 1151807.15 | X15: 673560.87 | Y15: 2802273.62 | Z15: 1953227.702 | AA15: 1279524.578 | AB15: 31147395.91
A16: 1010403 | B16: Expansion of plantings in rainfed areas (120,000 Ha) | C16: TC-03A1 bis Olivess | D16: 0 | E16: 7427630.77 | F16: 7427630.77 | G16: 0 | H16: 0 | I16: 0 | J16: 0 | K16: 0 | L16: 0 | M16: 0 | N16: 125818 | O16: 94444.87 | P16: 2398567.73 | Q16: 1429673.23 | R16: 483458.32 | S16: 486355.56 | T16: 700468.37 | U16: 608266.25 | V16: 337179.19 | W16: 294707.89 | X16: 468691.36 | Y16: 764570.14 | Z16: 329543.8 | AA16: 382521 | AB16: 8521744.71
A17: 1010404 | B17: Expansion of plantings in rainfed areas (120,000 Ha) | C17: TC-03A1 bis Amendiers | D17: 0 | E17: 4083775.27 | F17: 4083775.27 | G17: 0 | H17: 0 | I17: 0 | J17: 0 | K17: 0 | L17: 0 | M17: 0 | N17: 117204.26 | O17: 546611.89 | P17: 1577886.47 | Q17: 0 | R17: 0 | S17: 0 | T17: 524893.67 | U17: 510001.53 | V17: 225705.03 | W17: 213787.26 | X17: 367685.16 | Y17: 224372.27 | Z17: 512066.05 | AA17: 105294.09 | AB17: 4820213.59
A18: 1010405 | B18: Expansion of plantings in rainfed areas (120,000 Ha) | C18: TC-03A2.1 | D18: 0 | E18: 19599703.06 | F18: 19599703.06 | G18: 0 | H18: 0 | I18: 0 | J18: 0 | K18: 0 | L18: 0 | M18: 0 | N18: 274147.83 | O18: 203560.4 | P18: 3369235.01 | Q18: 3757484.68 | R18: 1797945.16 | S18: 615915.58 | T18: 2891796.35 | U18: 2008258.24 | V18: 1337689.79 | W18: 468347.23 | X18: 2875322.79 | Y18: 2022422.77 | Z18: 5397899.637 | AA18: 1010642.563 | AB18: 27020025.47
A19: 1010410 | B19: Expansion of plantings in rainfed areas (120,000 Ha) | C19: TC-03A2.2 | E19: 15289743.41 | F19: 15289743.41 | G19: 0 | H19: 0 | I19: 0 | J19: 0 | K19: 0 | L19: 0 | M19: 0 | N19: 0 | O19: 148453.95 | P19: 1943239.38 | Q19: 5334190.2 | R19: 819120.81 | S19: 1207827.09 | T19: 1589637.76 | U19: 1553253.49 | V19: 671368.78 | W19: 738628.83 | X19: 1284023.12 | Y19: 641459.17 | Z19: 1218693.78 | AA19: 4790921.82 | AB19: 17149896.36
A20: 1010415 | B20: Expansion of plantings in rainfed areas (120,000 Ha) | C20: TC-03A2.3 | E20: 1519424.98 | F20: 1519424.98 | G20: 0 | H20: 0 | I20: 0 | J20: 0 | K20: 0 | L20: 0 | M20: 0 | N20: 0 | O20: 0 | P20: 946753.27 | Q20: 0 | R20: 0 | S20: 0.05 | T20: 0 | U20: 330250.16 | V20: 0 | W20: 242421.5 | X20: 0 | Y20: 165890.32 | Z20: 181004.68 | AA20: -0.2799999998 | AB20: 1866319.98
A21: 1010420 | B21: Expansion of plantings in rainfed areas (120,000 Ha) | C21: TC-03A3 | D21: 0 | E21: 0 | F21: 0 | G21: 0 | H21: 0 | I21: 0 | J21: 0 | K21: 0 | L21: 0 | M21: 0 | N21: 0 | O21: 0 | P21: 0 | Q21: 0 | R21: 0 | S21: 0 | T21: 0 | U21: 0 | V21: 0 | W21: 0 | X21: 0 | Y21: 0 | Z21: 0 | AA21: 0 | AB21: 0
A22: 1010500 | B22: Technical Assistance for the rehabilitation of plantings in rainfed areas (55,000Ha) | C22: TC-05A | D22: 0 | E22: 5625971.29 | F22: 5625971.29 | G22: 0 | H22: 0 | I22: 0 | J22: 0 | K22: 0 | L22: 0 | M22: 0 | N22: 0 | O22: 443830 | P22: 0 | Q22: 1035603.6 | R22: 246572.29 | S22: 929598.7 | T22: 522264.49 | U22: 585806.29 | V22: 853784.98 | W22: 412470.89 | X22: 596040.05 | Y22: 661410.14 | Z22: 1025402.51 | AA22: -0.02000000002 | AB22: 7312783.94
A23: 1010810 | B23: Contract Revaluation Balance | C23: 0 | D23: -2.328306437e-10 | E23: 0 | F23: -2.328306437e-10 | G23: 0 | H23: 0 | I23: 0 | J23: 0 | K23: 0 | L23: 0 | M23: 0 | N23: 0 | O23: 0 | P23: 0 | Q23: 0 | R23: 0 | S23: 0 | T23: 0 | U23: 0 | V23: 0 | W23: 0 | X23: 0 | Y23: 0 | Z23: 0 | AB23: -2.328306437e-10
A24: 1010910 | B24: Budget not committed (to achieve full Comact budget) | C24: 0 | D24: 0 | E24: 0 | F24: 0 | G24: 0 | H24: 0 | I24: 0 | J24: 0 | K24: 0 | L24: 0 | M24: 0 | N24: 0 | O24: 0 | P24: 0 | Q24: 0 | R24: 0 | S24: 0 | T24: 0 | U24: 0 | V24: 0 | W24: 0 | X24: 0 | Y24: 0 | Z24: 0 | AA24: 1591288.466 | AB24: 0
A25: 1010950 | B25: Cost Contingency & Non-contracted expenses | E25: 0 | F25: 0 | G25: 0 | H25: 0 | I25: 0 | J25: 0 | K25: 0 | L25: 0 | M25: 0 | N25: 0 | O25: 0 | P25: 0 | Q25: 0 | R25: 0 | S25: 0 | T25: 0 | U25: 0 | V25: 0 | W25: 0 | X25: 0 | Y25: 0 | Z25: 295433.65 | AB25: 295433.65
A26: 1020000 | B26: B. Olive Tree Irrigation and Intensification | C26: TC-01B,03B,05A | D26: -1.164153218e-10 | E26: 59815565.09 | F26: 59815565.09 | G26: 0 | H26: 0 | I26: 638037 | J26: 323483.76 | K26: 930692.6 | L26: 3327627.55 | M26: 509390.76 | N26: 1588773.72 | O26: 1731028.82 | P26: 2169163.69 | Q26: 4959411.38 | R26: 5187618.01 | S26: 6376948.97 | T26: 9674315.39 | U26: 7622493.63 | V26: 5957884.33 | W26: 3932889.94 | X26: 4885805.54 | Y26: 9238053.53 | Z26: 18989652.85 | AA26: 2274098.274 | AB26: 88043271.47 | AC26: =AB26/SUM($AB$9,$AB$26,$AB$39) -> 0.3153010134
A27: 1020100 | B27: Strategic Envrironmental Assessment, Feasibility Studies & Construction Supervision Services | C27: TC-01B | D27: 0 | E27: 9035493.15 | F27: 9035493.15 | G27: 0 | H27: 0 | I27: 638037 | J27: 323483.76 | K27: 930692.6 | L27: 2817040.53 | M27: 509390.76 | N27: 953623.82 | O27: 788987.36 | P27: 4593.8 | Q27: 395557.02 | R27: 0 | S27: 238889.42 | T27: 636672 | U27: 0 | V27: 697297.33 | W27: 102.96 | X27: 101124.79 | Y27: 583197.48 | Z27: 2942658.142 | AA27: 160447.4083 | AB27: 12561348.77
A28: 1020500 | B28: Construction of irrigation works and rehabilitation of plantations in PMH zones | C28: TC-03B/TC-05A | D28: 0 | E28: 50780071.94 | F28: 50780071.94 | G28: 0 | H28: 0 | I28: 0 | J28: 0 | K28: 0 | L28: 510587.02 | M28: 0 | N28: 635149.9 | O28: 942041.46 | P28: 2164569.89 | Q28: 4563854.36 | R28: 5187618.01 | S28: 6138059.55 | T28: 9037643.39 | U28: 7622493.63 | V28: 5260587 | W28: 3932786.98 | X28: 4784680.75 | Y28: 8654856.05 | Z28: 15665340.29 | AA28: 2113650.866 | AB28: 75100268.28
A29: 1020510 | B29: Irrigation construction works | C29: TC-03B | D29: 0 | E29: 48768477.99 | F29: 48768477.99 | G29: 0 | H29: 0 | I29: 0 | J29: 0 | K29: 0 | L29: 510587.02 | M29: 0 | N29: 635149.9 | O29: 783530.72 | P29: 2164569.89 | Q29: 4193995.94 | R29: 5099556.48 | S29: 5803741.55 | T29: 8851120.36 | U29: 7413277.1 | V29: 4955663.79 | W29: 3785475.94 | X29: 4571809.3 | Y29: 8418638.14 | Z29: 15255078.15 | AA29: 2113651.156 | AB29: 72442194.28
A30: 1020511 | B30: Irrigation construction works - 1st Tranche | C30: TC-03B1 | D30: 0 | E30: 10465881.42 | F30: 10465881.42 | G30: 0 | H30: 0 | I30: 0 | J30: 0 | K30: 0 | L30: 510587.02 | M30: 0 | N30: 635149.9 | O30: 783530.72 | P30: 1045448.98 | Q30: 2225466.29 | R30: 944200.77 | S30: 695188.19 | T30: 2667812.62 | U30: 958496.93 | V30: 0 | W30: 0 | X30: 0 | Y30: 0 | Z30: 1373646.084 | AA30: 456680.8664 | AB30: 11839527.5
A31: 1020512 | B31: Irrigation construction works - 2nd Tranche | C31: TC-03B2 | D31: 0 | E31: 27772010.05 | F31: 27772010.05 | G31: 0 | H31: 0 | I31: 0 | J31: 0 | K31: 0 | L31: 0 | M31: 0 | N31: 0 | O31: 0 | P31: 1119120.91 | Q31: 1968529.65 | R31: 3934264.77 | S31: 4843904.36 | T31: 5466409.5 | U31: 4605328.71 | V31: 2910274.35 | W31: 1524786.49 | X31: 1399391.31 | Y31: 4982839.7 | Z31: 6399952.235 | AA31: 1231091.575 | AB31: 39154801.98
A32: 1020513 | B32: Irrigation construction works - 3rd Tranche | C32: TC-03B3 | D32: 0 | E32: 5763607.39 | F32: 5763607.39 | G32: 0 | H32: 0 | I32: 0 | J32: 0 | K32: 0 | L32: 0 | M32: 0 | N32: 0 | O32: 0 | P32: 0 | Q32: 0 | R32: 221090.94 | S32: 264649 | T32: 716898.24 | U32: 1590888.65 | V32: 853315.03 | W32: 1006854.31 | X32: 1109911.22 | Y32: 2370493.74 | Z32: 2594954.275 | AA32: 240855.2746 | AB32: 10729055.41
A33: 1020514 | B33: Irrigation construction works - 2nd Tranche BIS | C33: TC-03B2bis | E33: 0 | F33: 0 | G33: 0 | H33: 0 | I33: 0 | J33: 0 | K33: 0 | L33: 0 | M33: 0 | N33: 0 | O33: 0 | P33: 0 | Q33: 0 | R33: 0 | S33: 0 | T33: 0 | U33: 0 | V33: 0 | W33: 0 | X33: 0 | Y33: 0 | Z33: 0 | AA33: 0 | AB33: 0
A34: 1020515 | B34: Irrigation construction works - 3rd Tranche BIS | C34: TC-03B3bis | E34: 4766979.13 | F34: 4766979.13 | Q34: 0 | R34: 0 | S34: 0 | T34: 0 | U34: 258562.81 | V34: 1192074.41 | W34: 1253835.14 | X34: 2062506.77 | Y34: 1065304.7 | Z34: 4886525.56 | AA34: 185023.44 | AB34: 10718809.39
A35: 1020520 | B35: Technical assistance for rehabilitation | C35: TC-05A | D35: 0 | E35: 2011593.95 | F35: 2011593.95 | G35: 0 | H35: 0 | I35: 0 | J35: 0 | K35: 0 | L35: 0 | M35: 0 | N35: 0 | O35: 158510.74 | P35: 0 | Q35: 369858.42 | R35: 88061.53 | S35: 334318 | T35: 186523.03 | U35: 209216.53 | V35: 304923.21 | W35: 147311.04 | X35: 212871.45 | Y35: 236217.91 | Z35: 410262.14 | AA35: -0.2899999999 | AB35: 2658074
A36: 1020810 | B36: Contract Revaluation Balance | C36: 0 | D36: -1.164153218e-10 | E36: 0 | F36: -1.164153218e-10 | G36: 0 | H36: 0 | I36: 0 | J36: 0 | K36: 0 | L36: 0 | M36: 0 | N36: 0 | O36: 0 | P36: 0 | Q36: 0 | R36: 0 | S36: 0 | T36: 0 | U36: 0 | V36: 0 | W36: 0 | X36: 0 | Y36: 0 | Z36: 0 | AB36: -1.164153218e-10
A37: 1020910 | B37: Budget not committed (to achieve full Comact budget) | C37: 0 | D37: 0 | E37: 0 | F37: 0 | G37: 0 | H37: 0 | I37: 0 | J37: 0 | K37: 0 | L37: 0 | M37: 0 | N37: 0 | O37: 0 | P37: 0 | Q37: 0 | R37: 0 | S37: 0 | T37: 0 | U37: 0 | V37: 0 | W37: 0 | X37: 0 | Y37: 0 | Z37: 0 | AA37: 0 | AB37: 0
A38: 1020950 | B38: Cost Contingency & Non-contracted expenses | E38: 0 | F38: 0 | G38: 0 | H38: 0 | I38: 0 | J38: 0 | K38: 0 | L38: 0 | M38: 0 | N38: 0 | O38: 0 | P38: 0 | Q38: 0 | R38: 0 | S38: 0 | T38: 0 | U38: 0 | V38: 0 | W38: 0 | X38: 0 | Y38: 0 | Z38: 381654.41 | AB38: 381654.41
A39: 1030000 | B39: C. Date Tree Irrigation and Intensification | C39: TC-01B,3B1-2,5B,6A.1-2,8 | D39: 0 | E39: 46478657.47 | F39: 46478657.47 | G39: 0 | H39: 0 | I39: 0 | J39: 0 | K39: 0 | L39: 1098078.46 | M39: 103441.94 | N39: 1437482.64 | O39: 4214244.33 | P39: 4323493.77 | Q39: 7440453.37 | R39: 3802236.76 | S39: 4680356.81 | T39: 5184710.01 | U39: 5178859.55 | V39: 3337012.81 | W39: 2648930.17 | X39: 3029356.85 | Y39: 3636255.33 | Z39: 13062404.81 | AA39: 1954056.924 | AB39: 63177317.61 | AC39: =AB39/SUM($AB$9,$AB$26,$AB$39) -> 0.2262509324
A40: 1030100 | B40: Strategic Envrironmental Assessment, Feasibility Studies & Construction Supervision Services | C40: TC-01B | D40: 0 | E40: 4238361.18 | F40: 4238361.18 | G40: 0 | H40: 0 | I40: 0 | J40: 0 | K40: 0 | L40: 0 | M40: 103441.94 | N40: 1033092.47 | O40: 854736.3 | P40: 4976.68 | Q40: 428520.09 | R40: 0 | S40: 258796.86 | T40: 689728 | U40: 0 | V40: 755405.43 | W40: 111.55 | X40: 109551.86 | Y40: 631797.26 | Z40: 3303168.668 | AA40: 183885.6517 | AB40: 8173327.108
A41: 1030500 | B41: Construction of irrigation works and rehabiliation of palm groves in oases | C41: TC-03B,05B,06A,08 | D41: 0 | E41: 42240296.29 | F41: 42240296.29 | G41: 0 | H41: 0 | I41: 0 | J41: 0 | K41: 0 | L41: 1098078.46 | M41: 0 | N41: 404390.17 | O41: 3359508.03 | P41: 4318517.09 | Q41: 7011933.28 | R41: 3802236.76 | S41: 4421559.95 | T41: 4494982.01 | U41: 5178859.55 | V41: 2581607.38 | W41: 2648818.62 | X41: 2919804.99 | Y41: 3004458.07 | Z41: 9524346.104 | AA41: 290584.4257 | AB41: 54769100.46
A42: 1030510 | B42: 'Irrigation construction works | C42: TC-03B | D42: 0 | E42: 29488411.63 | F42: 29488411.63 | G42: 0 | H42: 0 | I42: 0 | J42: 0 | K42: 0 | L42: 1098078.46 | M42: 0 | N42: 404390.17 | O42: 2434054.56 | P42: 3134433.6 | Q42: 5529557.72 | R42: 2957747.11 | S42: 3715525.73 | T42: 2283726.11 | U42: 4036662.52 | V42: 1059677.51 | W42: 1866512.66 | X42: 968045.48 | Y42: 1981632.8 | Z42: 5005859.054 | AA42: 338497.7057 | AB42: 36475903.48
A43: 1030511 | B43: Irrigatation construction works - 1st Tranche | C43: TC-03B1 | D43: 0 | E43: 22648229.06 | F43: 22648229.06 | G43: 0 | H43: 0 | I43: 0 | J43: 0 | K43: 0 | L43: 1098078.46 | M43: 0 | N43: 404390.17 | O43: 2434054.56 | P43: 3096718.96 | Q43: 5458501.69 | R43: 2535069.81 | S43: 2679932.47 | T43: 907904.71 | U43: 2489426.61 | V43: 0 | W43: 1129818.38 | X43: 414333.24 | Y43: 685250.64 | Z43: 963275.62 | AA43: 170662.95 | AB43: 24296755.32
A44: 1030512 | B44: Irrigatation construction works - 2nd Tranche | C44: TC-03B2 | D44: 0 | E44: 897042.16 | F44: 897042.16 | G44: 0 | H44: 0 | I44: 0 | J44: 0 | K44: 0 | L44: 0 | M44: 0 | N44: 0 | O44: 0 | P44: 37714.64 | Q44: 71056.03 | R44: 140174.67 | S44: 162885.2 | T44: 187582.36 | U44: 154022.95 | V44: 71145.76 | W44: 25937.08 | X44: 46523.47 | Y44: 140157.12 | Z44: 161300.2 | AA44: 115295.24 | AB44: 1198499.48
A45: 1030513 | B45: Irrigatation construction works - 3nd Tranche | C45: TC-03B3 | E45: 1180497.38 | F45: 1180497.38 | N45: 0 | O45: 0 | P45: 0 | Q45: 0 | R45: 44792.29 | S45: 54204.72 | T45: 146834.58 | U45: 325844.64 | V45: 137621.4 | W45: 243868.55 | X45: 227331.2 | Y45: 485522.82 | Z45: 531496.654 | AA45: 52539.336 | AB45: 2197516.854
A46: 1030514 | B46: Irrigatation construction works - 2nd Tranche BIS | C46: TC-03B2bis | E46: 4762643.03 | F46: 4762643.03 | O46: 0 | P46: 0 | Q46: 0 | R46: 237710.34 | S46: 818503.34 | T46: 1041404.46 | U46: 1067368.32 | V46: 850910.35 | W46: 466888.65 | X46: 279857.57 | Y46: 670702.22 | Z46: 3349786.58 | AA46: 0.1796999993 | AB46: 8783131.83
A47: 1030515 | B47: Irrigation construction works - 3rd Tranche BIS | C47: TC-03B3bis | E47: 0 | F47: 0 | Q47: 0 | R47: 0 | S47: 0 | T47: 0 | U47: 0 | V47: 0 | W47: 0 | X47: 0 | Y47: 0 | Z47: 0 | AA47: 0 | AB47: 0
A48: 1030540 | B48: Regeneration and rehabilitation of palm groves | C48: TC-06A.1-2 | D48: 0 | E48: 7112923.57 | F48: 7112923.57 | G48: 0 | H48: 0 | I48: 0 | J48: 0 | K48: 0 | L48: 0 | M48: 0 | N48: 0 | O48: 447961.93 | P48: 1184083.49 | Q48: 312200.3 | R48: 382545.01 | S48: -0.25 | T48: 1668280.9 | U48: 572897.02 | V48: 861486.61 | W48: 293881.42 | X48: 1389587.14 | Y48: 510466.28 | Z48: 3483833.86 | AA48: 0.7600000005 | AB48: 11107223.71
A49: 1030541 | B49: In-planting (in-vitro and shoots) | C49: TC-06A.1 | D49: 0 | E49: 4364276.63 | F49: 4364276.63 | G49: 0 | H49: 0 | I49: 0 | J49: 0 | K49: 0 | L49: 0 | M49: 0 | N49: 0 | O49: 447961.93 | P49: 1139351.26 | Q49: 33429.9 | R49: 281140.5 | S49: 0 | T49: 941947.54 | U49: 116889.89 | V49: 244029.82 | W49: 245103.18 | X49: 914422.61 | Y49: 231599.18 | Z49: 3198404.71 | AA49: 0.5100000002 | AB49: 7794280.52
A50: 1030542 | B50: Rehabilitation (thinning suckers) | C50: TC-06A.2 | D50: 0 | E50: 851723.3 | F50: 851723.3 | G50: 0 | H50: 0 | I50: 0 | J50: 0 | K50: 0 | L50: 0 | M50: 0 | N50: 0 | O50: 0 | P50: 44732.23 | Q50: 278770.4 | R50: 101404.51 | S50: -0.4 | T50: 142090.9 | U50: 76892.32 | V50: 132092.76 | W50: 0 | X50: 75740.58 | Y50: 129256.42 | Z50: 50868.87 | AA50: 0.3999999999 | AB50: 1031848.59
A51: 1030543 | B51: Rehabilitation (thinning suckers) | C51: TC-06A2bis | E51: 1896923.64 | F51: 1896923.64 | O51: 0 | P51: 0 | Q51: 0 | R51: 0 | S51: 0.15 | T51: 584242.46 | U51: 379114.81 | V51: 485364.03 | W51: 48778.24 | X51: 399423.95 | Y51: 149610.68 | Z51: 234560.28 | AA51: -0.1499999997 | AB51: 2281094.6
A52: 1030550 | B52: Technical assistance for rehabilitation | C52: TC-05B | D52: 0 | E52: 5638961.09 | F52: 5638961.09 | G52: 0 | H52: 0 | I52: 0 | J52: 0 | K52: 0 | L52: 0 | M52: 0 | N52: 0 | O52: 477491.54 | P52: 0 | Q52: 1170175.26 | R52: 461944.64 | S52: 706034.47 | T52: 542975 | U52: 569300.01 | V52: 660443.26 | W52: 488424.54 | X52: 562172.37 | Y52: 512358.99 | Z52: 1034653.19 | AA52: -47914.04 | AB52: 7185973.27
A53: 1030810 | B53: Contract Revaluation Balance | C53: 0 | D53: 0 | E53: 0 | F53: 0 | G53: 0 | H53: 0 | I53: 0 | J53: 0 | K53: 0 | L53: 0 | M53: 0 | N53: 0 | O53: 0 | P53: 0 | Q53: 0 | R53: 0 | S53: 0 | T53: 0 | U53: 0 | V53: 0 | W53: 0 | X53: 0 | Y53: 0 | Z53: 0 | AB53: 0
A54: 1030910 | B54: Budget not committed (to achieve full Comact budget) | C54: 0 | D54: 0 | E54: 0 | F54: 0 | G54: 0 | H54: 0 | I54: 0 | J54: 0 | K54: 0 | L54: 0 | M54: 0 | N54: 0 | O54: 0 | P54: 0 | Q54: 0 | R54: 0 | S54: 0 | T54: 0 | U54: 0 | V54: 0 | W54: 0 | X54: 0 | Y54: 0 | Z54: 0 | AA54: 1479586.847 | AB54: 0
A55: 1030950 | B55: Cost Contingency & Non-contracted expenses | E55: 0 | F55: 0 | G55: 0 | H55: 0 | I55: 0 | J55: 0 | K55: 0 | L55: 0 | M55: 0 | N55: 0 | O55: 0 | P55: 0 | Q55: 0 | R55: 0 | S55: 0 | T55: 0 | U55: 0 | V55: 0 | W55: 0 | X55: 0 | Y55: 0 | Z55: 234890.04 | AB55: 234890.04
A56: 1040000 | B56: D. Fruit Tree Sector Services | C56: TC-02A/B,4A,5A/B,6B,7A | D56: -51.14 | E56: 10800193.01 | F56: 10800141.87 | G56: 0 | H56: 0 | I56: 0 | J56: 0 | K56: 14758.88 | L56: 143687.44 | M56: 3993.43 | N56: 2665482.05 | O56: 187237.75 | P56: 300400.42 | Q56: 1085372.76 | R56: 333910.48 | S56: 700258.75 | T56: 684679.78 | U56: 3728953.87 | V56: 350584.1 | W56: 349299.19 | X56: 251574.11 | Y56: 1769152.24 | Z56: 8455194.99 | AA56: 964465.2391 | AB56: 21024489.1
A57: 1040100 | B57: Support and Development of Service and Value-Adding Service organizations | C57: TC-05A,05B | D57: 0 | E57: 2808866.06 | F57: 2808866.06 | G57: 0 | H57: 0 | I57: 0 | J57: 0 | K57: 0 | L57: 0 | M57: 0 | N57: 0 | O57: 187237.75 | P57: 0 | Q57: 472633.48 | R57: 153415.56 | S57: 346608.16 | T57: 255087.15 | U57: 442426.56 | V57: 350584.1 | W57: 349299.19 | X57: 251574.11 | Y57: 301210.22 | Z57: 5209928.4 | AA57: 48976.8 | AB57: 8320004.68
A58: 1040110 | B58: Market information system | C58: TC-05A,05B | D58: 0 | E58: 1423204.12 | F58: 1423204.12 | G58: 0 | H58: 0 | I58: 0 | J58: 0 | K58: 0 | L58: 0 | M58: 0 | N58: 0 | O58: 116578.04 | P58: 0 | Q58: 279600.02 | R58: 91065.45 | S58: 205622.18 | T58: 134710.34 | U58: 145791.74 | V58: 189870.29 | W58: 114352.76 | X58: 145613.3 | Y58: 147185.81 | Z58: 272372.6 | AA58: -6309.18 | AB58: 1842762.53
A59: 1040111 | B59: Olives, Almonds, and Figs | C59: TC-05A | D59: 0 | E59: 670394.37 | F59: 670394.37 | G59: 0 | H59: 0 | I59: 0 | J59: 0 | K59: 0 | L59: 0 | M59: 0 | N59: 0 | O59: 52836.92 | P59: 0 | Q59: 123286.14 | R59: 29353.84 | S59: 111302.39 | T59: 62174.34 | U59: 69738.84 | V59: 101641.07 | W59: 49103.68 | X59: 70957.15 | Y59: 78739.3 | Z59: 134152.33 | AA59: -0.3 | AB59: 883286
A60: 1040112 | B60: Dates | C60: TC-05B | D60: 0 | E60: 752809.75 | F60: 752809.75 | G60: 0 | H60: 0 | I60: 0 | J60: 0 | K60: 0 | L60: 0 | M60: 0 | N60: 0 | O60: 63741.12 | P60: 0 | Q60: 156313.88 | R60: 61711.61 | S60: 94319.79 | T60: 72536 | U60: 76052.9 | V60: 88229.22 | W60: 65249.08 | X60: 74656.15 | Y60: 68446.51 | Z60: 138220.27 | AA60: -6308.88 | AB60: 959476.53
A61: 1040120 | B61: Training (upstream and downstream value chain operators) | C61: TC-05A,05B | D61: 0 | E61: 348020.84 | F61: 348020.84 | G61: 0 | H61: 0 | I61: 0 | J61: 0 | K61: 0 | L61: 0 | M61: 0 | N61: 0 | O61: 28389.91 | P61: 0 | Q61: 68234.44 | R61: 23069.98 | S61: 52040.01 | T61: 32650.87 | U61: 35144.51 | V61: 44917.96 | W61: 28005.85 | X61: 35567.31 | Y61: 34824.1 | Z61: 162043.29 | AA61: 36914.67 | AB61: 544888.23
A62: 1040121 | B62: Olives, Almonds, and Figs | C62: TC-05A | D62: 0 | E62: 137570.31 | F62: 137570.31 | G62: 0 | H62: 0 | I62: 0 | J62: 0 | K62: 0 | L62: 0 | M62: 0 | N62: 0 | O62: 10566.46 | P62: 0 | Q62: 24657.23 | R62: 5870.77 | S62: 25752.81 | T62: 12434.87 | U62: 13947.77 | V62: 20328.22 | W62: 9820.74 | X62: 14191.44 | Y62: 15747.86 | Z62: 93178.89 | AA62: 1.27 | AB62: 246497.06
A63: 1040122 | B63: Dates | C63: TC-05B | D63: 0 | E63: 210450.53 | F63: 210450.53 | G63: 0 | H63: 0 | I63: 0 | J63: 0 | K63: 0 | L63: 0 | M63: 0 | N63: 0 | O63: 17823.45 | P63: 0 | Q63: 43577.21 | R63: 17199.21 | S63: 26287.2 | T63: 20216 | U63: 21196.74 | V63: 24589.74 | W63: 18185.11 | X63: 21375.87 | Y63: 19076.24 | Z63: 68864.4 | AA63: 36913.4 | AB63: 298391.17
A64: 1040130 | B64: Certification program | C64: TC-05A,05B | D64: 0 | E64: 0 | F64: 0 | G64: 0 | H64: 0 | I64: 0 | J64: 0 | K64: 0 | L64: 0 | M64: 0 | N64: 0 | O64: 0 | P64: 0 | Q64: 0 | R64: 0 | S64: 0 | T64: 0 | U64: 0 | V64: 0 | W64: 0 | X64: 0 | Y64: 0 | Z64: 0 | AA64: 0 | AB64: 0
A65: 1040131 | B65: Olives, Almonds, and Figs | C65: TC-05A1.1 | D65: 0 | E65: 0 | F65: 0 | G65: 0 | H65: 0 | I65: 0 | J65: 0 | K65: 0 | L65: 0 | M65: 0 | N65: 0 | O65: 0 | P65: 0 | Q65: 0 | R65: 0 | S65: 0 | T65: 0 | U65: 0 | V65: 0 | W65: 0 | X65: 0 | Y65: 0 | Z65: 0 | AA65: 0 | AB65: 0
A66: 1040132 | B66: Olives, Almonds, and Figs | C66: TC-05A1.2 | D66: 0 | E66: 0 | F66: 0 | G66: 0 | H66: 0 | I66: 0 | J66: 0 | K66: 0 | L66: 0 | M66: 0 | N66: 0 | O66: 0 | P66: 0 | Q66: 0 | R66: 0 | S66: 0 | T66: 0 | U66: 0 | V66: 0 | W66: 0 | X66: 0 | Y66: 0 | Z66: 0 | AA66: 0 | AB66: 0
A67: 1040140 | B67: Environmental impact evaluation (support for olive processors for impact evaluation) | C67: TC-05A,05B | D67: 0 | E67: 534364.09 | F67: 534364.09 | G67: 0 | H67: 0 | I67: 0 | J67: 0 | K67: 0 | L67: 0 | M67: 0 | N67: 0 | O67: 42269.8 | P67: 0 | Q67: 98628.91 | R67: 23483.07 | S67: 87090.31 | T67: 49739.47 | U67: 55791.07 | V67: 81312.82 | W67: 39282.91 | X67: 56765.73 | Y67: 62991.43 | Z67: 70244.76 | AA67: -0.6199999999 | AB67: 667600.28
A68: 1040141 | B68: Olives, Almonds, and Figs | C68: TC-05A | D68: 0 | E68: 534364.09 | F68: 534364.09 | G68: 0 | H68: 0 | I68: 0 | J68: 0 | K68: 0 | L68: 0 | M68: 0 | N68: 0 | O68: 42269.8 | P68: 0 | Q68: 98628.91 | R68: 23483.07 | S68: 87090.31 | T68: 49739.47 | U68: 55791.07 | V68: 81312.82 | W68: 39282.91 | X68: 56765.73 | Y68: 62991.43 | Z68: 70244.76 | AA68: -0.6199999999 | AB68: 667600.28
A69: 1040142 | B69: Dates | C69: TC-05B | D69: 0 | E69: 0 | F69: 0 | G69: 0 | H69: 0 | I69: 0 | J69: 0 | K69: 0 | L69: 0 | M69: 0 | N69: 0 | O69: 0 | P69: 0 | Q69: 0 | R69: 0 | S69: 0 | T69: 0 | U69: 0 | V69: 0 | W69: 0 | X69: 0 | Y69: 0 | Z69: 0 | AA69: 0 | AB69: 0
A70: 1040150 | B70: Support secondary cooperatives and professional organizations | C70: TC-06B | D70: 0 | E70: 331082.5 | F70: 331082.5 | G70: 0 | H70: 0 | I70: 0 | J70: 0 | K70: 0 | L70: 0 | M70: 0 | N70: 0 | O70: 0 | P70: 0 | Q70: 0 | R70: 0 | S70: 0 | T70: 0 | U70: 185365.99 | V70: 0 | W70: 145716.51 | X70: 0 | Y70: 0 | Z70: 4533505.57 | AA70: 18371.93 | AB70: 4864588.07
A71: 1040152 | B71: Dates | C71: TC-06B1 | D71: 0 | E71: 185365.99 | F71: 185365.99 | G71: 0 | H71: 0 | I71: 0 | J71: 0 | K71: 0 | L71: 0 | M71: 0 | N71: 0 | O71: 0 | P71: 0 | Q71: 0 | R71: 0 | S71: 0 | T71: 0 | U71: 185365.99 | V71: 0 | W71: 0 | X71: 0 | Y71: 0 | Z71: 142544.79 | AA71: 2384.97 | AB71: 327910.78
A72: 1040153 | B72: Dates | C72: TC-06B1bis | D72: 0 | E72: 0 | F72: 0 | P72: 0 | Q72: 0 | R72: 0 | S72: 0 | T72: 0 | U72: 0 | V72: 0 | W72: 0 | X72: 0 | Y72: 0 | Z72: 0 | AA72: 15985.7 | AB72: 0
A73: 1040154 | B73: Dates | C73: TC-06B2 | D73: 0 | E73: 145716.51 | F73: 145716.51 | P73: 0 | Q73: 0 | R73: 0 | S73: 0 | T73: 0 | U73: 0 | V73: 0 | W73: 145716.51 | X73: 0 | Y73: 0 | Z73: 1339788.05 | AA73: 1.75 | AB73: 1485504.56
A74: 1040156 | B74: Dates | C74: TC-06B3 | D74: 0 | E74: 0 | F74: 0 | P74: 0 | Q74: 0 | R74: 0 | S74: 0 | T74: 0 | U74: 0 | V74: 0 | W74: 0 | X74: 0 | Y74: 0 | Z74: 370988.42 | AA74: -0.49 | AB74: 370988.42
A75: 1040157 | B75: Dates | C75: TC-06B4 | D75: 0 | E75: 0 | F75: 0 | P75: 0 | Q75: 0 | R75: 0 | S75: 0 | T75: 0 | U75: 0 | V75: 0 | W75: 0 | X75: 0 | Y75: 0 | Z75: 2353671.38 | AA75: 0 | AB75: 2353671.38
A76: 1040158 | B76: Dates | C76: TC-06B5 | D76: 0 | E76: 0 | F76: 0 | P76: 0 | Q76: 0 | R76: 0 | S76: 0 | T76: 0 | U76: 0 | V76: 0 | W76: 0 | X76: 0 | Y76: 0 | Z76: 326512.93 | AA76: 0 | AB76: 326512.93
A77: 1040159 | B77: Dates | C77: TC-06B7 | D77: 0 | E77: 0 | F77: 0 | P77: 0 | Q77: 0 | R77: 0 | S77: 0 | T77: 0 | U77: 0 | V77: 0 | W77: 0 | X77: 0 | Y77: 0 | Z77: 0 | AA77: 0 | AB77: 0
A78: 1040160 | B78: Support for marketing activities | C78: TC-05A-C | D78: 0 | E78: 172194.51 | F78: 172194.51 | G78: 0 | H78: 0 | I78: 0 | J78: 0 | K78: 0 | L78: 0 | M78: 0 | N78: 0 | O78: 0 | P78: 0 | Q78: 26170.11 | R78: 15797.06 | S78: 1855.66 | T78: 37986.47 | U78: 20333.25 | V78: 34483.03 | W78: 21941.16 | X78: 13627.77 | Y78: 56208.88 | Z78: 171762.18 | AA78: 2.604494398e-11 | AB78: 400165.57
A79: 1040161 | B79: Olives, Almonds, and Figs | C79: TC-05A2 | D79: -14.84 | E79: 81116.07 | F79: 81101.23 | G79: 0 | H79: 0 | I79: 0 | J79: 0 | K79: 0 | L79: 0 | M79: 0 | N79: 0 | O79: 0 | P79: 0 | Q79: 26170.11 | R79: 15797.06 | S79: 927.83 | T79: 0 | U79: 2115.85 | V79: 22477.45 | W79: 0 | X79: 13627.77 | Y79: 4294.97 | Z79: 163112.53 | AA79: 3.2596148e-11 | AB79: 248508.73
A80: 1040162 | B80: Dates | C80: TC-05B2 | D80: -36.3 | E80: 23280.91 | F80: 23244.61 | G80: 0 | H80: 0 | I80: 0 | J80: 0 | K80: 0 | L80: 0 | M80: 0 | N80: 0 | O80: 0 | P80: 0 | Q80: 0 | R80: 0 | S80: 927.83 | T80: 22353.08 | U80: 0 | V80: 0 | W80: 0 | X80: 0 | Y80: 20503.27 | Z80: 0 | AA80: 7.247535905e-13 | AB80: 43747.88
A81: 1040170 | B81: Marketing & Investment Promotion Expert | C81: TC-05C | D81: 0 | E81: 67797.53 | F81: 67797.53 | P81: 0 | Q81: 0 | R81: 0 | S81: 0 | T81: 15633.39 | U81: 18217.4 | V81: 12005.58 | W81: 21941.16 | X81: 0 | Y81: 31410.64 | Z81: 8649.65 | AA81: -7.275957614e-12 | AB81: 107857.82
A82: 1040200 | B82: Training needs assessment of different actors (plans and training activities) | C82: TC-02A | D82: 0 | E82: 143687.44 | F82: 143687.44 | G82: 0 | H82: 0 | I82: 0 | J82: 0 | K82: 0 | L82: 143687.44 | M82: 0 | N82: 0 | O82: 0 | P82: 0 | Q82: 0 | R82: 0 | S82: 0 | T82: 0 | U82: 0 | V82: 0 | W82: 0 | X82: 0 | Y82: 0 | Z82: 0 | AA82: -0.36 | AB82: 143687.44
A83: 1040300 | B83: Strengthening the environmental and social (assessment and management) capacities (MinAg) | C83: TC-02B | D83: 0 | E83: 2262474.08 | F83: 2262474.08 | G83: 0 | H83: 0 | I83: 0 | J83: 0 | K83: 0 | L83: 0 | M83: 0 | N83: 0 | O83: 0 | P83: 300400.42 | Q83: 287895.13 | R83: 75041.09 | S83: 349914.16 | T83: 412592.63 | U83: 836630.65 | V83: 0 | W83: 0 | X83: 0 | Y83: 0 | Z83: 0 | AA83: 0 | AB83: 2262474.08
A84: 1040400 | B84: Research /Scientific Support | C84: TC-04A,07A | D84: 0 | E84: 5585165.43 | F84: 5585165.43 | G84: 0 | H84: 0 | I84: 0 | J84: 0 | K84: 14758.88 | L84: 0 | M84: 3993.43 | N84: 2665482.05 | O84: 0 | P84: 0 | Q84: 324844.15 | R84: 105453.83 | S84: 3736.43 | T84: 17000 | U84: 2449896.66 | V84: 0 | W84: 0 | X84: 0 | Y84: 1464032.57 | Z84: 108529.33 | AA84: -6.98491931e-10 | AB84: 7157727.33
A85: 1040410 | B85: Applied research | C85: TC-04A | D85: 0 | E85: 5585165.43 | F85: 5585165.43 | G85: 0 | H85: 0 | I85: 0 | J85: 0 | K85: 14758.88 | L85: 0 | M85: 3993.43 | N85: 2665482.05 | O85: 0 | P85: 0 | Q85: 324844.15 | R85: 105453.83 | S85: 3736.43 | T85: 17000 | U85: 2449896.66 | V85: 0 | W85: 0 | X85: 0 | Y85: 1464032.57 | Z85: 0 | AA85: -6.98491931e-10 | AB85: 7049198
A86: 1040411 | B86: Applied research | C86: TC-G-04.A1 | D86: 0 | E86: 5544596.69 | F86: 5544596.69 | G86: 0 | H86: 0 | I86: 0 | J86: 0 | K86: 0 | L86: 0 | M86: 0 | N86: 2665482.05 | O86: 0 | P86: 0 | Q86: 324844.15 | R86: 105453.83 | S86: 0 | T86: 0 | U86: 2448816.66 | V86: 0 | W86: 0 | X86: 0 | Y86: 1464032.57 | Z86: 0 | AA86: -6.98491931e-10 | AB86: 7008629.26
A87: 1040412 | B87: Applied research (ST Consultants) | C87: TC-04A.2 | D87: 0 | E87: 0 | F87: 0 | G87: 0 | H87: 0 | I87: 0 | J87: 0 | K87: 0 | L87: 0 | M87: 0 | N87: 0 | O87: 0 | P87: 0 | Q87: 0 | R87: 0 | S87: 0 | T87: 0 | U87: 0 | V87: 0 | W87: 0 | X87: 0 | Y87: 0 | Z87: 0 | AA87: 0 | AB87: 0
A88: 1040413 | B88: Applied research (Conferences & Seminars) | C88: TC-04A.3 | D88: 0 | E88: 40568.74 | F88: 40568.74 | G88: 0 | H88: 0 | I88: 0 | J88: 0 | K88: 14758.88 | L88: 0 | M88: 3993.43 | N88: 0 | O88: 0 | P88: 0 | Q88: 0 | R88: 0 | S88: 3736.43 | T88: 17000 | U88: 1080 | V88: 0 | W88: 0 | X88: 0 | Y88: 0 | Z88: 0 | AA88: 0 | AB88: 40568.74
A89: 1040440 | B89: Carbon financing assessment | C89: TC-07 | D89: 0 | E89: 0 | F89: 0 | G89: 0 | H89: 0 | I89: 0 | J89: 0 | K89: 0 | L89: 0 | M89: 0 | N89: 0 | O89: 0 | P89: 0 | Q89: 0 | R89: 0 | S89: 0 | T89: 0 | U89: 0 | V89: 0 | W89: 0 | X89: 0 | Y89: 0 | Z89: 108529.33 | AA89: 0 | AB89: 108529.33
A90: 1040500 | B90: Strengthening women's organizations (assessment and integration plan) | C90: TC-G-05A3,05B3 | D90: 0 | E90: 0 | F90: 0 | G90: 0 | H90: 0 | I90: 0 | J90: 0 | K90: 0 | L90: 0 | M90: 0 | N90: 0 | O90: 0 | P90: 0 | Q90: 0 | R90: 0 | S90: 0 | T90: 0 | U90: 0 | V90: 0 | W90: 0 | X90: 0 | Y90: 3909.45 | Z90: 2872383.37 | AA90: 849126.47 | AB90: 2876292.82
A91: 1040501 | B91: Strengthening women's organizations (assessment and integration plan for Olives, Almonds, and Figs) | C91: TC-G-05A3 | D91: 0 | E91: 0 | F91: 0 | G91: 0 | H91: 0 | I91: 0 | J91: 0 | K91: 0 | L91: 0 | M91: 0 | N91: 0 | O91: 0 | P91: 0 | Q91: 0 | R91: 0 | S91: 0 | T91: 0 | U91: 0 | V91: 0 | W91: 0 | X91: 0 | Y91: 2137.8 | Z91: 1635589.355 | AA91: 665359.6448 | AB91: 1637727.155
A92: 1040502 | B92: Strengthening women's organizations (assessment and integration plan for Dates) | C92: TC-G-05B3 | D92: 0 | E92: 0 | F92: 0 | G92: 0 | H92: 0 | I92: 0 | J92: 0 | K92: 0 | L92: 0 | M92: 0 | N92: 0 | O92: 0 | P92: 0 | Q92: 0 | R92: 0 | S92: 0 | T92: 0 | U92: 0 | V92: 0 | W92: 0 | X92: 0 | Y92: 1771.65 | Z92: 1236794.015 | AA92: 183766.8252 | AB92: 1238565.665
A93: 1040810 | B93: Contract Revaluation Balance | C93: 0 | D93: 0 | E93: 0 | F93: 0 | G93: 0 | H93: 0 | I93: 0 | J93: 0 | K93: 0 | L93: 0 | M93: 0 | N93: 0 | O93: 0 | P93: 0 | Q93: 0 | R93: 0 | S93: 0 | T93: 0 | U93: 0 | V93: 0 | W93: 0 | X93: 0 | Y93: 0 | Z93: 0 | AB93: 0
A94: 1040910 | B94: Budget not committed (to achieve full Comact budget) | C94: 0 | D94: 0 | E94: 0 | F94: 0 | G94: 0 | H94: 0 | I94: 0 | J94: 0 | K94: 0 | L94: 0 | M94: 0 | N94: 0 | O94: 0 | P94: 0 | Q94: 0 | R94: 0 | S94: 0 | T94: 0 | U94: 0 | V94: 0 | W94: 0 | X94: 0 | Y94: 0 | Z94: 0 | AA94: 66362.32906 | AB94: 0
A95: 1040950 | B95: Cost Contingency & Non-contracted expenses | D95: 0 | E95: 0 | F95: 0 | G95: 0 | H95: 0 | I95: 0 | J95: 0 | K95: 0 | L95: 0 | M95: 0 | N95: 0 | O95: 0 | P95: 0 | Q95: 0 | R95: 0 | S95: 0 | T95: 0 | U95: 0 | V95: 0 | W95: 0 | X95: 0 | Y95: 0 | Z95: 264353.89 | AB95: 264353.89
A96: 1050000 | B96: E. Catalyst Fund | C96: TC-09/TC-G | D96: -29.3 | E96: 19301537.41 | F96: 19301508.11 | R96: 57762.95 | S96: 46536.18 | T96: 0 | U96: 2105.29 | V96: 223911.14 | W96: 318820.48 | X96: 18652401.37 | Y96: 40238.77 | Z96: 1332835.67 | AA96: 90385.18 | AB96: 20674582.55
A97: 1050110 | B97: Investment Fund | C97: TC-G-09.3 | D97: 0 | E97: 18603262.52 | F97: 18603262.52 | R97: 0 | S97: 0 | T97: 0 | U97: 0 | V97: 0 | W97: 0 | X97: 18603262.52 | Y97: 0 | Z97: 0 | AA97: 0 | AB97: 18603262.52
A98: 1050210 | B98: Consultant on the Public-Private Partnership | C98: TC-09.1 | D98: 0 | E98: 175586.66 | F98: 175586.66 | P98: 0 | Q98: 0 | R98: 57762.95 | S98: 46536.18 | T98: 0 | U98: 0 | V98: 0 | W98: 34516.11 | X98: 36771.42 | Y98: 8217.81 | Z98: 37495.85 | AA98: 7.275957614e-12 | AB98: 221300.32
A99: 1050215 | B99: Avenant TC-5A | C99: TC-05A | D99: 0 | E99: 520257.85 | F99: 520257.85 | P99: 0 | Q99: 0 | R99: 0 | S99: 0 | T99: 0 | U99: 0 | V99: 223911.14 | W99: 284304.37 | X99: 12042.34 | Y99: 0 | Z99: 1184090.05 | AA99: 0 | AB99: 1704347.9
A100: 1050220 | B100: Etuof, suivi et contrôle | C100: TC-09.4 | D100: 0 | E100: 0 | F100: 0 | P100: 0 | Q100: 0 | R100: 0 | S100: 0 | T100: 0 | U100: 0 | V100: 0 | W100: 0 | X100: 0 | Y100: 0 | Z100: 107590 | AA100: 90385.18 | AB100: 107590
A101: 1050310 | B101: Salaries & Per Diem | C101: TC-? | D101: 0 | E101: 0 | F101: 0 | R101: 0 | S101: 0 | T101: 0 | U101: 0 | V101: 0 | W101: 0 | X101: 0 | Y101: 0 | Z101: 0 | AA101: 0 | AB101: 0
A102: 1050320 | B102: Admin | C102: TC-? | D102: -29.3 | E102: 2430.38 | F102: 2401.08 | R102: 0 | S102: 0 | T102: 0 | U102: 2105.29 | V102: 0 | W102: 0 | X102: 325.09 | Y102: 0 | Z102: 0 | AA102: -1.811883976e-13 | AB102: 2401.08
A103: 1050330 | B103: Equipment | C103: TC-? | D103: 0 | E103: 0 | F103: 0 | R103: 0 | S103: 0 | T103: 0 | U103: 0 | V103: 0 | W103: 0 | X103: 0 | Y103: 0 | Z103: 0 | AA103: 0 | AB103: 0
A104: 1050340 | B104: Travel | C104: TC-? | D104: 0 | E104: 0 | F104: 0 | R104: 0 | S104: 0 | T104: 0 | U104: 0 | V104: 0 | W104: 0 | X104: 0 | Y104: 32020.96 | Z104: 0 | AA104: 0 | AB104: 32020.96
A105: 1050350 | B105: Events | C105: TC-? | D105: 0 | E105: 0 | F105: 0 | R105: 0 | S105: 0 | T105: 0 | U105: 0 | V105: 0 | W105: 0 | X105: 0 | Y105: 0 | Z105: 3659.77 | AA105: 0 | AB105: 3659.77
A106: 1050910 | B106: Budget not committed (to achieve full Comact budget) | E106: 0 | Y106: 0 | Z106: 0 | AA106: 0 | AB106: 0
A107: 1050950 | B107: Cost Contingency & Non-contracted expenses | D107: 0 | E107: 0 | F107: 0 | R107: 0 | S107: 0 | T107: 0 | U107: 0 | V107: 0 | W107: 0 | X107: 0 | Y107: 0 | Z107: 0 | AB107: 0
A108: 1060000 | B108: F. MAPM Admin | C108: ADMIN | D108: -8591.62 | E108: 1227283.46 | F108: 1218691.84 | G108: 0 | H108: 0 | I108: 0 | J108: 0 | K108: 0 | L108: 0 | M108: 0 | N108: 0 | O108: 0 | P108: 0 | Q108: 0 | R108: 0 | S108: 0 | T108: 185936.34 | U108: 231126.31 | V108: 227044.6 | W108: 315739.53 | X108: 267436.68 | Y108: 209471.43 | Z108: 724699.7507 | AA108: 182522.7743 | AB108: 2152863.021
A109: 1060110 | B109: Salaries | D109: 0 | E109: 634568.99 | F109: 634568.99 | H109: 0 | I109: 0 | J109: 0 | K109: 0 | L109: 0 | M109: 0 | N109: 0 | O109: 0 | P109: 0 | Q109: 0 | R109: 0 | S109: 0 | T109: 94685.02 | U109: 136063.11 | V109: 130638.36 | W109: 167146.61 | X109: 106035.89 | Y109: 135334.37 | Z109: 258796.6044 | AA109: -0.3799999999 | AB109: 1028699.964
A110: 1060210 | B110: Admin Expenses | D110: -8591.62 | E110: 592714.47 | F110: 584122.85 | H110: 0 | I110: 0 | J110: 0 | K110: 0 | L110: 0 | M110: 0 | N110: 0 | O110: 0 | P110: 0 | Q110: 0 | R110: 0 | S110: 0 | T110: 91251.32 | U110: 95063.2 | V110: 96406.24 | W110: 148592.92 | X110: 161400.79 | Y110: 74137.06 | Z110: 441267.1664 | AA110: 0 | AB110: 1099527.076
A111: 1060910 | B111: Budget not committed (to achieve full Comact budget) | E111: 0 | Y111: 0 | Z111: 0 | AA111: 182523.1543 | AB111: 0
A112: 1069999 | B112: Cost Contingency & Non-contracted expenses | D112: 0 | E112: 0 | F112: 0 | N112: 0 | O112: 0 | P112: 0 | Q112: 0 | R112: 0 | S112: 0 | T112: 0 | U112: 0 | V112: 0 | W112: 0 | X112: 0 | Y112: 0 | Z112: 24635.98 | AB112: 24635.98
B113: TOTAL - Fruit Tree Productivity | C113: 0 | D113: -8672.06 | E113: 242959858.3 | F113: 242951186.2 | G113: 0 | H113: 0 | I113: 1070796 | J113: 3192034.17 | K113: 3315364.75 | L113: 6240855.45 | M113: 6118960.9 | N113: 9093977.7 | O113: 11522921.27 | P113: 21978921.28 | Q113: 32008732.47 | R113: 14956832.55 | S113: 18752648.31 | T113: 25684596.36 | U113: 25876100.38 | V113: 16720750 | W113: 11994066.94 | X113: 34432299.78 | Y113: 24179101.95 | Z113: 55957258.59 | AA113: 14625721.51 | AB113: 323087546.8 | AC113: =AB113/$AB$566 -> 0.5573828879
A114: 2000000 | B114: 2. Small-scale Fisheries Project | D114: 0 | E114: 0 | F114: 0 | O114: 0 | P114: 0 | Q114: 0 | R114: 0 | S114: 0 | T114: 0 | U114: 0 | V114: 0 | W114: 0 | X114: 0 | Y114: 0 | Z114: 0 | AC114: =AB114/$AB$566 -> 0
A115: 2010000 | B115: A. Development of Fish Landing Sites and Port Facilities | C115: AF-1-3,7-10,20-22 | D115: -12000044.3 | E115: 43549989.56 | F115: 31549945.26 | G115: 0 | H115: 0 | I115: 400271.8866 | J115: 389878.51 | K115: 7733 | L115: 1223873.17 | M115: 1000880.35 | N115: 1121759.28 | O115: 539448.28 | P115: 2406972.82 | Q115: 1025856.35 | R115: 4012452.07 | S115: 578674.02 | T115: 3984280.83 | U115: 5323351.98 | V115: 4610914.73 | W115: 7569584.57 | X115: 9354057.71 | Y115: 10467201.06 | Z115: 24691908.25 | AA115: 4185352.923 | AB115: 66709054.57 | AC115: 0.1150848612
A116: 2010200 | B116: Construction of 20 fish landing sites (PDA's) and 13 ports | C116: AF-01,08,10 | D116: 0 | E116: 36742607.59 | F116: 36742607.59 | G116: 0 | H116: 0 | I116: 315306.1932 | J116: 326273.25 | K116: 5862 | L116: 266475.39 | M116: 745302.04 | N116: 131442.54 | O116: 529767.56 | P116: 1580683.62 | Q116: 1025856.35 | R116: 2956820.14 | S116: 577487.53 | T116: 3110749.65 | U116: 4764451.64 | V116: 4418798.87 | W116: 6839831.47 | X116: 9147499.35 | Y116: 9084733.11 | Z116: 20386878.93 | AA116: 3401661.684 | AB116: 66214219.63 | AC116: 0.1142311839
A117: 2010201 | B117: Studies | C117: AF-01 | D117: 0 | E117: 7166748.25 | F117: 7166748.25 | G117: 0 | H117: 0 | I117: 315306.1932 | J117: 326273.25 | K117: 5862 | L117: 238685.39 | M117: 745475.02 | N117: 140320.56 | O117: 529767.56 | P117: 1033136.31 | Q117: 13446.65 | R117: 1943226.3 | S117: 313546.68 | T117: 149577.47 | U117: 269786.87 | V117: 474401.74 | W117: 217392.9 | X117: 450543.36 | Y117: 1868719.66 | Z117: 2391256.465 | AA117: 450922.4655 | AB117: 11426724.38 | AC117: 0.01971311087
A118: 2010202 | B118: Contrôle of étuof et travaux | C118: AF-01.2 | D118: 0 | E118: 190972.28 | F118: 190972.28 | G118: 0 | H118: 0 | I118: 0 | J118: 0 | K118: 0 | L118: 27790 | M118: -172.98 | N118: -8878.02 | O118: 0 | P118: 0 | Q118: 0 | R118: 0 | S118: 55932 | T118: 0 | U118: 66036.42 | V118: 0 | W118: 50264.86 | X118: 0 | Y118: 44232.1 | Z118: 97218.36 | AA118: 20756.17 | AB118: 332422.74 | AC118: 0.0005734877394
A119: 2010203 | B119: Construction - QS | C119: AF-08.1 | D119: 0 | E119: 4701499.92 | F119: 4701499.92 | G119: 0 | H119: 0 | I119: 0 | J119: 0 | K119: 0 | L119: 0 | M119: 0 | N119: 0 | O119: 0 | P119: 547547.31 | Q119: 1012409.7 | R119: 1013593.84 | S119: 208008.81 | T119: 883028.59 | U119: 1036911.67 | V119: 0 | W119: 0 | X119: 0 | Y119: 0 | Z119: 532795.4312 | AA119: 447113.3588 | AB119: 5234295.351 | AC119: 0.009030080819
A120: 2010220 | B120: Construction -Tranche 1 | C120: AF-08.2 | D120: 0 | E120: 10344682.85 | F120: 10344682.85 | G120: 0 | H120: 0 | I120: 0 | J120: 0 | K120: 0 | L120: 0 | M120: 0 | N120: 0 | O120: 0 | P120: 0 | Q120: 0 | R120: 0 | S120: 0.38 | T120: 696238.87 | U120: 1934585.71 | V120: 1317890.82 | W120: 3226324.21 | X120: 3169642.86 | Y120: 63717.99 | Z120: 2310451.072 | AA120: 1270255.138 | AB120: 12718851.91 | AC120: 0.02194225831
A121: 2010230 | B121: Construction -Tranche 2 | C121: AF-08.3 | D121: 0 | E121: 3988832.42 | F121: 3988832.42 | G121: 0 | H121: 0 | I121: 0 | J121: 0 | K121: 0 | L121: 0 | M121: 0 | N121: 0 | O121: 0 | P121: 0 | Q121: 0 | R121: 0 | S121: -0.34 | T121: 1052169.41 | U121: 357310.23 | V121: 849969.6 | W121: 589982.92 | X121: 1139400.6 | Y121: 658439.02 | Z121: 1601550.035 | AA121: 458934.4845 | AB121: 6248821.475 | AC121: 0.01078031696
A122: 2010240 | B122: Construction -Tranche 3 | C122: AF-08.4 | D122: 0 | E122: 745442.84 | F122: 745442.84 | G122: 0 | H122: 0 | I122: 0 | J122: 0 | K122: 0 | L122: 0 | M122: 0 | N122: 0 | O122: 0 | P122: 0 | Q122: 0 | R122: 0 | S122: 0 | T122: 0 | U122: 0 | V122: 0 | W122: 303708.66 | X122: 441734.18 | Y122: 462527.09 | Z122: 917587.4 | AA122: 269435.72 | AB122: 2125557.33 | AC122: 0.003666960534
A123: 2010250 | B123: Construction -Tranche 4 | C123: AF-08.5 | D123: 0 | E123: 4216567.45 | F123: 4216567.45 | T123: 329735.31 | U123: 1099820.74 | V123: 689434.76 | W123: 603689.61 | X123: 1493887.03 | Y123: 3541650.8 | Z123: 2783729.501 | AA123: -0.3906060606 | AB123: 10541947.75 | AC123: 0.01818671546
A124: 2010255 | B124: Construction -Tranche 5 | C124: AF-08.6 | D124: 0 | E124: 3960134.89 | F124: 3960134.89 | T124: 0 | U124: 0 | V124: 792955.33 | W124: 1380030.46 | X124: 1787149.1 | Y124: 1506518.14 | Z124: 5561672.998 | AA124: 147495.9415 | AB124: 11028326.03 | AC124: 0.0190258036
A125: 2010256 | B125: Construction -Tranche 6 | C125: AF-08.7 | D125: 0 | E125: 1038590.51 | F125: 1038590.51 | T125: 0 | U125: 0 | V125: 294146.62 | W125: 291199.66 | X125: 453244.23 | Y125: 573240.26 | Z125: 701359.2042 | AA125: 396825.4258 | AB125: 2313189.974 | AC125: 0.003990659872
A126: 2010257 | B126: Construction mur clôture | C126: AF-08.8 | D126: 0 | E126: 0 | F126: 0 | G126: 0 | H126: 0 | I126: 0 | J126: 0 | K126: 0 | L126: 0 | M126: 0 | N126: 0 | O126: 0 | P126: 0 | Q126: 0 | R126: 0 | S126: 0 | T126: 0 | U126: 0 | V126: 0 | W126: 0 | X126: 0 | Y126: 0 | Z126: 51958.91 | AA126: 0.1 | AB126: 51958.91 | AC126: 8.963826553e-05
A127: 2010260 | B127: Sites Equipment QS | C127: AF-10.1 | D127: 0 | E127: 387353.46 | F127: 387353.46 | G127: 0 | H127: 0 | I127: 0 | J127: 0 | K127: 0 | L127: 0 | M127: 0 | N127: 0 | O127: 0 | P127: 0 | Q127: 0 | R127: 0 | S127: 0 | T127: 0 | U127: 0 | V127: 0 | W127: 175455.47 | X127: 211897.99 | Y127: 132114.51 | Z127: 131756.15 | AA127: -60078.79 | AB127: 651224.12 | AC127: 0.001123476235
A128: 2010270 | B128: Sites Equipment - Tranche 1 | C128: AF-10.2 | D128: 0 | E128: 1782.72 | F128: 1782.72 | G128: 0 | H128: 0 | I128: 0 | J128: 0 | K128: 0 | L128: 0 | M128: 0 | N128: 0 | O128: 0 | P128: 0 | Q128: 0 | R128: 0 | S128: 0 | T128: 0 | U128: 0 | V128: 0 | W128: 1782.72 | X128: 0 | Y128: 233573.54 | Z128: 3206148.69 | AA128: 2.51 | AB128: 3441504.95 | AC128: 0.005937201811
A129: 2010275 | B129: Telephone Equipment | C129: AF-10,4 | E129: 0 | X129: 0 | Y129: 0 | Z129: 23246.44 | AA129: -0.45 | AB129: 23246.44 | AC129: 4.010420083e-05
A130: 2010280 | B130: Equipment for compliance to Quality centers | C130: AF-10,5 | E130: 0 | X130: 0 | Y130: 0 | Z130: 76148.27 | AA130: 0 | AB130: 76148.27 | AC130: 0.0001313691693
A131: 2010285 | B131: Communication material | C131: AF-10,6 | E131: 0 | X131: 0 | Y131: 0 | Z131: 0 | AA131: 0 | AB131: 0 | AC131: 0
A132: 2010300 | B132: Construction of facilities at 13 ports | C132: AF-01;08;10 | D132: 0 | E132: 416467.02 | F132: 416467.02 | G132: 0 | H132: 0 | I132: 84965.69342 | J132: 63605.26 | K132: 1871 | L132: 73791.76 | M132: 192233.31 | N132: 0 | O132: 0 | P132: 0 | Q132: 0 | R132: 0 | S132: 0 | T132: 0 | U132: 0 | V132: 0 | W132: 0 | X132: 0 | Y132: 0 | Z132: 0 | AA132: -0.02000000002 | AB132: 416467.02 | AC132: 0.0007184789158
A133: 2010310 | B133: Studies | C133: AF-01 | D133: 0 | E133: 416467.02 | F133: 416467.02 | G133: 0 | H133: 0 | I133: 84965.69342 | J133: 63605.26 | K133: 1871 | L133: 73791.76 | M133: 192233.31 | N133: 0 | O133: 0 | P133: 0 | Q133: 0 | R133: 0 | S133: 0 | T133: 0 | U133: 0 | V133: 0 | W133: 0 | X133: 0 | Y133: 0 | Z133: 0 | AA133: -0.02000000002 | AB133: 416467.02 | AC133: 0.0007184789158
A134: 2010400 | B134: Training fishers at PDA sites and ports | C134: AF-20,22 | D134: 0 | E134: 2690645.29 | F134: 2690645.29 | G134: 0 | H134: 0 | I134: 0 | J134: 0 | K134: 0 | L134: 0 | M134: 0 | N134: 8102.77 | O134: 9680.72 | P134: 10540.87 | Q134: 0 | R134: 1055631.93 | S134: 0.32 | T134: 620946.09 | U134: 371079 | V134: 0 | W134: 614663.59 | X134: 0 | Y134: 847692.8 | Z134: 583825.72 | AA134: 0.1399999999 | AB134: 4122163.81 | AC134: 0.007111458154
A135: 2010401 | B135: Development of TOR for training | C135: AF-20 | D135: 0 | E135: 28324.36 | F135: 28324.36 | G135: 0 | H135: 0 | I135: 0 | J135: 0 | K135: 0 | L135: 0 | M135: 0 | N135: 8102.77 | O135: 9680.72 | P135: 10540.87 | Q135: 0 | R135: 0 | S135: 0 | T135: 0 | U135: 0 | V135: 0 | W135: 0 | X135: 0 | Y135: 0 | Z135: 0 | AA135: 0 | AB135: 28324.36 | AC135: 4.886450664e-05
A136: 2010402 | B136: Training fishers at PDA sites and ports | C136: AF-G-22 | D136: 0 | E136: 2662320.93 | F136: 2662320.93 | G136: 0 | H136: 0 | I136: 0 | J136: 0 | K136: 0 | L136: 0 | M136: 0 | N136: 0 | O136: 0 | P136: 0 | Q136: 0 | R136: 1055631.93 | S136: 0.32 | T136: 620946.09 | U136: 371079 | V136: 0 | W136: 614663.59 | X136: 0 | Y136: 847692.8 | Z136: 583825.72 | AA136: 0.1399999999 | AB136: 4093839.45 | AC136: 0.007062593647
A137: 2010403 | B137: Acquisition caisson hyper bar | C137: AF-G-23 | E137: 0 | Y137: 0 | Z137: 0 | AA137: 0 | AB137: 0 | AC137: 0
A138: 2010500 | B138: Gender Assessment and Integration Plan | C138: AF-G-09 | D138: 0 | E138: 143647.23 | F138: 143647.23 | G138: 0 | H138: 0 | I138: 0 | J138: 0 | K138: 0 | L138: 0 | M138: 0 | N138: 0 | O138: 0 | P138: 0 | Q138: 0 | R138: 0 | S138: 0 | T138: 14296.31 | U138: 43110.67 | V138: 0 | W138: 86240.25 | X138: 0 | Y138: 201978.12 | Z138: 1768941.256 | AA138: 333801.8539 | AB138: 2114566.606 | AC138: 0.0036479996
A139: 2010510 | B139: Technical Assistance | C139: AF-G-09.1 | D139: 0 | E139: 143647.23 | F139: 143647.23 | G139: 0 | H139: 0 | I139: 0 | J139: 0 | K139: 0 | L139: 0 | M139: 0 | N139: 0 | O139: 0 | P139: 0 | Q139: 0 | R139: 0 | S139: 0 | T139: 14296.31 | U139: 43110.67 | V139: 0 | W139: 86240.25 | X139: 0 | Y139: 0 | Z139: 0 | AA139: 143376.77 | AB139: 143647.23 | AC139: 0.0002478167565
A140: 2010520 | B140: Fonds disponible pour démarrage of projects genre | C140: AF-09.2.C | D140: 0 | E140: 0 | F140: 0 | G140: 0 | H140: 0 | I140: 0 | J140: 0 | K140: 0 | L140: 0 | M140: 0 | N140: 0 | O140: 0 | P140: 0 | Q140: 0 | R140: 0 | S140: 0 | T140: 0 | U140: 0 | V140: 0 | W140: 0 | X140: 0 | Y140: 0 | Z140: 13543.65 | AA140: 0 | AB140: 13543.65 | AC140: 2.33651802e-05
A141: 2010530 | B141: Construction works of gender unit in Sidi Ifni | C141: AF-09.2.A | E141: 0 | X141: 0 | Y141: 201978.12 | Z141: 1209777.39 | AA141: 65019.98 | AB141: 1411755.51 | AC141: 0.002435526751
A142: 2010540 | B142: Equipment of gender units in Sidi Ifni and Sidi Abed | C142: AF-09.2.B | E142: 0 | X142: 0 | Y142: 0 | Z142: 545620.2161 | AA142: 125405.1039 | AB142: 545620.2161 | AC142: 0.0009412909125
A143: 2010550 | B143: Awarness Campaign on HIV/AIDS | C143: AF-G-11 | D143: 0 | E143: 78290.31 | F143: 78290.31 | G143: 0 | H143: 0 | I143: 0 | J143: 0 | K143: 0 | L143: 0 | M143: 0 | N143: 0 | O143: 0 | P143: 0 | Q143: 0 | R143: 0 | S143: 0 | T143: 0 | U143: 21654.05 | V143: 27787 | W143: 28849.26 | X143: 0 | Y143: 0 | Z143: 63104.69 | AA143: 0 | AB143: 141395 | AC143: 0.0002439312633
A144: 2010552 | B144: Implementation | C144: AF-G-11 | D144: 0 | E144: 78290.31 | F144: 78290.31 | G144: 0 | H144: 0 | I144: 0 | J144: 0 | K144: 0 | L144: 0 | M144: 0 | N144: 0 | O144: 0 | P144: 0 | Q144: 0 | R144: 0 | S144: 0 | T144: 0 | U144: 21654.05 | V144: 27787 | W144: 28849.26 | X144: 0 | Y144: 0 | Z144: 63104.69 | AA144: 0 | AB144: 141395 | AC144: 0.0002439312633
A145: 2010600 | B145: Resource Sustainability | C145: AF-07,21 | D145: -44.3 | E145: 3478332.11 | F145: 3478287.81 | G145: 0 | H145: 0 | I145: 0 | J145: 0 | K145: 0 | L145: 883606.02 | M145: 63345 | N145: 982213.97 | O145: 0 | P145: 815748.33 | Q145: 0 | R145: 0 | S145: 1186.17 | T145: 238288.78 | U145: 123056.62 | V145: 164328.86 | W145: 0 | X145: 206558.36 | Y145: 332797.03 | Z145: 1230389.945 | AA145: 284150.4255 | AB145: 5041474.785 | AC145: 0.008697431401
A146: 2010601 | B146: MPA - Service Providers | C146: AF-07.1 | D146: 0 | E146: 826905.07 | F146: 826905.07 | G146: 0 | H146: 0 | I146: 0 | J146: 0 | K146: 0 | L146: 0 | M146: 0 | N146: 0 | O146: 0 | P146: 218390.18 | Q146: 0 | R146: 0 | S146: 0 | T146: 178155.54 | U146: 122608.61 | V146: 101192.38 | W146: 0 | X146: 206558.36 | Y146: 196941.79 | Z146: 490369.5833 | AA146: -0.02333333332 | AB146: 1514216.443 | AC146: 0.002612289896
A147: 2010610 | B147: MPA Implementation | C147: AF-07.11 | D147: -44.3 | E147: 61550.38 | F147: 61506.08 | G147: 0 | H147: 0 | I147: 0 | J147: 0 | K147: 0 | L147: 0 | M147: 0 | N147: 0 | O147: 0 | P147: 0 | Q147: 0 | R147: 0 | S147: 1186.17 | T147: 60133.24 | U147: 448.01 | V147: -217.04 | W147: 0 | X147: 0 | Y147: 135855.24 | Z147: 740020.3612 | AA147: 104650.3188 | AB147: 937381.6812 | AC147: 0.001617148398
A148: 2010611 | B148: Development of TOR for research | C148: AF-21 | D148: 0 | E148: 63345 | F148: 63345 | G148: 0 | H148: 0 | I148: 0 | J148: 0 | K148: 0 | L148: 0 | M148: 63345 | N148: 0 | O148: 0 | P148: 0 | Q148: 0 | R148: 0 | S148: 0 | T148: 0 | U148: 0 | V148: 0 | W148: 0 | X148: 0 | Y148: 0 | Z148: 0 | AA148: 0 | AB148: 63345 | AC148: 0.000109281275
A149: 2010620 | B149: Fisheries Research (INRH) | C149: AF-G-07.2 | D149: 0 | E149: 2526531.66 | F149: 2526531.66 | G149: 0 | H149: 0 | I149: 0 | J149: 0 | K149: 0 | L149: 883606.02 | M149: 0 | N149: 982213.97 | O149: 0 | P149: 597358.15 | Q149: 0 | R149: 0 | S149: 0 | T149: 0 | U149: 0 | V149: 63353.52 | W149: 0 | X149: 0 | Y149: 0 | Z149: 0 | AA149: 179500.13 | AB149: 2526531.66 | AC149: 0.004358711832
A150: 2010810 | B150: Contract Revaluation Balance | C150: 0 | D150: -12000000 | E150: 0 | F150: -12000000 | G150: 0 | H150: 0 | I150: 0 | J150: 0 | K150: 0 | L150: 0 | M150: 0 | N150: 0 | O150: 0 | P150: 0 | Q150: 0 | R150: 0 | S150: 0 | T150: 0 | U150: 0 | V150: 0 | W150: 0 | X150: 0 | Y150: 0 | Z150: 0 | AB150: -12000000 | AC150: -0.02070211223
A151: 2010910 | B151: Budget not committed (to achieve full Comact budget) | C151: 0 | D151: 0 | E151: 0 | F151: 0 | G151: 0 | H151: 0 | I151: 0 | J151: 0 | K151: 0 | L151: 0 | M151: 0 | N151: 0 | O151: 0 | P151: 0 | Q151: 0 | R151: 0 | S151: 0 | T151: 0 | U151: 0 | V151: 0 | W151: 0 | X151: 0 | Y151: 0 | Z151: 0 | AA151: 165738.84 | AB151: 0 | AC151: 0
A152: 2010950 | B152: Cost Contingency & Non-contracted expenses | C152: 0 | D152: 0 | E152: 0 | F152: 0 | G152: 0 | H152: 0 | I152: 0 | J152: 0 | K152: 0 | L152: 0 | M152: 0 | N152: 0 | O152: 0 | P152: 0 | Q152: 0 | R152: 0 | S152: 0 | T152: 0 | U152: 0 | V152: 0 | W152: 0 | X152: 0 | Y152: 0 | Z152: 658767.71 | AB152: 658767.71 | AC152: 0.001136490256
A153: 2020000 | B153: B. Development of Wholesale Fish Markets | C153: AF-1,2,5,6,8,10 | D153: 0 | E153: 21926410.1 | F153: 21926410.1 | G153: 0 | H153: 0 | I153: 140934.1134 | J153: 137003.18 | K153: 2717 | L153: 150790.03 | M153: 354360.6 | N153: 325682.68 | O153: 253675.6 | P153: 356730.21 | Q153: 4640.7 | R153: 886393.74 | S153: 1994928.62 | T153: 4370057.48 | U153: 2968987.78 | V153: 2032754.28 | W153: 3124824.95 | X153: 4821929.14 | Y153: 4631605.69 | Z153: 13570495.22 | AA153: 3833440.064 | AB153: 40128511.01 | AC153: 0.06922874489
A154: 2020100 | B154: Construction of 6 wholesale fish markets | C154: AF-1/AF-1.2/AF-2 | D154: 0 | E154: 21606611.6 | F154: 21606611.6 | G154: 0 | H154: 0 | I154: 140934.1134 | J154: 137003.18 | K154: 2717 | L154: 150790.03 | M154: 354360.6 | N154: 325682.68 | O154: 182528.82 | P154: 356730.21 | Q154: 4640.7 | R154: 886393.74 | S154: 1994928.62 | T154: 4309260.88 | U154: 2897789.34 | V154: 1975603.72 | W154: 3107414.6 | X154: 4779833.37 | Y154: 4605808.01 | Z154: 13128751.82 | AA154: 713091.8236 | AB154: 39341171.43 | AC154: 0.06787044553
A155: 2020101 | B155: Studies | C155: AF-01 | D155: 0 | E155: 3649073.71 | F155: 3649073.71 | G155: 0 | H155: 0 | I155: 140934.1134 | J155: 137003.18 | K155: 2717 | L155: 150790.03 | M155: 354360.6 | N155: 316804.66 | O155: 182528.82 | P155: 356730.21 | Q155: 4640.7 | R155: 886393.74 | S155: 118090.31 | T155: 377712.34 | U155: 238301.44 | V155: 115637.19 | W155: 208258.3 | X155: 58171.08 | Y155: 216427.88 | Z155: 782422.3346 | AA155: 246151.3145 | AB155: 4647923.925 | AC155: 0.008018486895
A156: 2020102 | B156: Contrôle of étuof et travaux | C156: AF-01.2 | D156: 0 | E156: 73979.07 | F156: 73979.07 | G156: 0 | H156: 0 | I156: 0 | J156: 0 | K156: 0 | L156: 0 | M156: 0 | N156: 8878.02 | O156: 0 | P156: 0 | Q156: 0 | R156: 0 | S156: 26320.93 | T156: 0 | U156: 31075.98 | V156: 0 | W156: 7704.14 | X156: 0 | Y156: 6744.64 | Z156: 19709.44 | AA156: 3927.54 | AB156: 100433.15 | AC156: 0.0001732648619
A157: 2020150 | B157: Construction - QS | C157: AF-08.1 | D157: 0 | E157: 4706582.97 | F157: 4706582.97 | G157: 0 | H157: 0 | I157: 0 | J157: 0 | K157: 0 | L157: 0 | M157: 0 | N157: 0 | O157: 0 | P157: 0 | Q157: 0 | R157: 0 | S157: 548781.7 | T157: 1893901.7 | U157: 722867.56 | V157: 634324.33 | W157: 906707.68 | X157: 0 | Y157: 0 | Z157: 1028324.547 | AA157: 50920.42515 | AB157: 5734907.517 | AC157: 0.009893724922
A158: 2020151 | B158: Construction -Tranche 1 | C158: AF-08.2 | D158: 0 | E158: 7910848.71 | F158: 7910848.71 | G158: 0 | H158: 0 | I158: 0 | J158: 0 | K158: 0 | L158: 0 | M158: 0 | N158: 0 | O158: 0 | P158: 0 | Q158: 0 | R158: 0 | S158: 1301736.01 | T158: 1391331.69 | U158: 832307.74 | V158: 740437.1 | W158: 915602.41 | X158: 2729433.76 | Y158: 2305204.97 | Z158: 3193285.952 | AA158: 201894.9985 | AB158: 13409339.63 | AC158: 0.02313347117
A159: 2020152 | B159: Construction -Tranche 2 | C159: AF-08.3 | D159: 0 | E159: 2788982.01 | F159: 2788982.01 | G159: 0 | H159: 0 | I159: 0 | J159: 0 | K159: 0 | L159: 0 | M159: 0 | N159: 0 | O159: 0 | P159: 0 | Q159: 0 | R159: 0 | S159: -0.33 | T159: 646315.15 | U159: 374323.95 | V159: 168574.75 | W159: 317217.32 | X159: 1282551.17 | Y159: 781313.01 | Z159: 1316895.41 | AA159: 150120.5103 | AB159: 4887190.43 | AC159: 0.008431263732
A160: 2020153 | B160: Construction -Tranche 3 | C160: AF-08.4 | D160: 0 | E160: 2119588.08 | F160: 2119588.08 | G160: 0 | H160: 0 | I160: 0 | J160: 0 | K160: 0 | L160: 0 | M160: 0 | N160: 0 | O160: 0 | P160: 0 | Q160: 0 | R160: 0 | S160: 0 | T160: 0 | U160: 698912.67 | V160: 316630.35 | W160: 751924.75 | X160: 352120.31 | Y160: 1089676.53 | Z160: 3810733.095 | AA160: 0.1451515146 | AB160: 7019997.705 | AC160: 0.0121107317
A161: 2020154 | B161: Construction - Tranche 7 | C161: AF-08.8 | D161: 0 | E161: 0 | F161: 0 | G161: 0 | H161: 0 | I161: 0 | J161: 0 | K161: 0 | L161: 0 | M161: 0 | N161: 0 | O161: 0 | P161: 0 | Q161: 0 | R161: 0 | S161: 0 | T161: 0 | U161: 0 | V161: 0 | W161: 0 | X161: 0 | Y161: 0 | Z161: 0 | AA161: 0 | AB161: 0 | AC161: 0
A162: 2020160 | B162: Sites Equipment QS | C162: AF-10.1 | D162: 0 | E162: 357557.05 | F162: 357557.05 | G162: 0 | H162: 0 | I162: 0 | J162: 0 | K162: 0 | L162: 0 | M162: 0 | N162: 0 | O162: 0 | P162: 0 | Q162: 0 | R162: 0 | S162: 0 | T162: 0 | U162: 0 | V162: 0 | W162: 0 | X162: 357557.05 | Y162: 42683.88 | Z162: 32007.29 | AA162: 60078.55 | AB162: 432248.22 | AC162: 0.0007457042636
A163: 2020161 | B163: Sites Equipment - Tranche 1 | C163: AF-10.2 | D163: 0 | E163: 0 | F163: 0 | G163: 0 | H163: 0 | I163: 0 | J163: 0 | K163: 0 | L163: 0 | M163: 0 | N163: 0 | O163: 0 | P163: 0 | Q163: 0 | R163: 0 | S163: 0 | T163: 0 | U163: 0 | V163: 0 | W163: 0 | X163: 0 | Y163: 163757.1 | Z163: 1777189.68 | AA163: -1.19 | AB163: 1940946.78 | AC163: 0.00334847484
A164: 2020171 | B164: Washing Tunnels | C164: AF-10,3 | E164: 0 | X164: 0 | Y164: 0 | Z164: 1050000 | AA164: 0 | AB164: 1050000 | AC164: 0.001811434821
A165: 2020175 | B165: Telephone Equipment | C165: AF-10,4 | E165: 0 | X165: 0 | Y165: 0 | Z165: 11919.16 | AA165: -0.47 | AB165: 11919.16 | AC165: 2.0562649e-05
A166: 2020180 | B166: Equipment for compliance to Quality centers | C166: AF-10,5 | E166: 0 | X166: 0 | Y166: 0 | Z166: 106264.91 | AA166: 0 | AB166: 106264.91 | AC166: 0.0001833256744
A167: 2020185 | B167: Communication material | C167: AF-10,6 | E167: 0 | X167: 0 | Y167: 0 | Z167: 0 | AA167: 0 | AB167: 0 | AC167: 0
A168: 2020200 | B168: Training wholesale market managers and users | C168: AF-06 | D168: 0 | E168: 319798.5 | F168: 319798.5 | G168: 0 | H168: 0 | I168: 0 | J168: 0 | K168: 0 | L168: 0 | M168: 0 | N168: 0 | O168: 71146.78 | P168: 0 | Q168: 0 | R168: 0 | S168: 0 | T168: 60796.6 | U168: 71198.44 | V168: 57150.56 | W168: 17410.35 | X168: 42095.77 | Y168: 25797.68 | Z168: 87641.52 | AA168: -70720.12 | AB168: 433237.7 | AC168: 0.0007474112908
A169: 2020220 | B169: Training support and training | C169: AF-06 | D169: 0 | E169: 319798.5 | F169: 319798.5 | G169: 0 | H169: 0 | I169: 0 | J169: 0 | K169: 0 | L169: 0 | M169: 0 | N169: 0 | O169: 71146.78 | P169: 0 | Q169: 0 | R169: 0 | S169: 0 | T169: 60796.6 | U169: 71198.44 | V169: 57150.56 | W169: 17410.35 | X169: 42095.77 | Y169: 25797.68 | Z169: 87641.52 | AA169: -70720.12 | AB169: 433237.7 | AC169: 0.0007474112908
A170: 2020910 | B170: Budget not committed (to achieve full Comact budget) | C170: 0 | D170: 0 | E170: 0 | F170: 0 | G170: 0 | H170: 0 | I170: 0 | J170: 0 | K170: 0 | L170: 0 | M170: 0 | N170: 0 | O170: 0 | P170: 0 | Q170: 0 | R170: 0 | S170: 0 | T170: 0 | U170: 0 | V170: 0 | W170: 0 | X170: 0 | Y170: 0 | Z170: 0 | AA170: 3191068.36 | AB170: 0 | AC170: 0
A171: 2020950 | B171: Cost Contingency & Non-contracted expenses | D171: 0 | E171: 0 | F171: 0 | G171: 0 | H171: 0 | I171: 0 | J171: 0 | K171: 0 | L171: 0 | M171: 0 | N171: 0 | O171: 0 | P171: 0 | Q171: 0 | R171: 0 | S171: 0 | T171: 0 | U171: 0 | V171: 0 | W171: 0 | X171: 0 | Y171: 0 | Z171: 354101.88 | AB171: 354101.88 | AC171: 0.0006108880718
A172: 2030000 | B172: C. Support to Mobile Fish Vendors | C172: AF-04 - 06 | D172: 0 | E172: 1818520.22 | F172: 1818520.22 | G172: 0 | H172: 0 | I172: 0 | J172: 0 | K172: 76432.4 | L172: 0 | M172: 0 | N172: 187954.32 | O172: 361884.13 | P172: 34171.33 | Q172: 0 | R172: 64546.18 | S172: -1773.42 | T172: 231111.66 | U172: 143801.43 | V172: 88537.14 | W172: 296739.12 | X172: 335115.93 | Y172: 153056.21 | Z172: 1273664.052 | AA172: 143345.4185 | AB172: 3245240.482 | AC172: 0.005598611056
A173: 2030100 | B173: Technical Assistance to Mobile Fish Vendors and Market Managers | C173: AF-04 - 06 | D173: 0 | E173: 1818520.22 | F173: 1818520.22 | G173: 0 | H173: 0 | I173: 0 | J173: 0 | K173: 76432.4 | L173: 0 | M173: 0 | N173: 187954.32 | O173: 361884.13 | P173: 34171.33 | Q173: 0 | R173: 64546.18 | S173: -1773.42 | T173: 231111.66 | U173: 143801.43 | V173: 88537.14 | W173: 296739.12 | X173: 335115.93 | Y173: 153056.21 | Z173: 1229727.932 | AA173: 119061.5185 | AB173: 3201304.362 | AC173: 0.005522813516
A174: 2030110 | B174: Program ofign and baseline studies | C174: AF-05 | D174: 0 | E174: 649593.32 | F174: 649593.32 | G174: 0 | H174: 0 | I174: 0 | J174: 0 | K174: 76432.4 | L174: 0 | M174: 0 | N174: 187954.32 | O174: 11834.54 | P174: 33288.38 | Q174: 0 | R174: 64546.18 | S174: -1773.42 | T174: 0 | U174: 56220.85 | V174: 0 | W174: 129041.57 | X174: 92048.5 | Y174: 73557.21 | Z174: 0 | AA174: -0.3599999999 | AB174: 723150.53 | AC174: 0.001247561953
A175: 2030111 | B175: Training support and training | C175: AF-06 | D175: 0 | E175: 766094.76 | F175: 766094.76 | G175: 0 | H175: 0 | I175: 0 | J175: 0 | K175: 0 | L175: 0 | M175: 0 | N175: 0 | O175: 219248.22 | P175: 0 | Q175: 0 | R175: 0 | S175: 0 | T175: 187352.8 | U175: 87580.58 | V175: 88537.14 | W175: 53652.32 | X175: 129723.7 | Y175: 79499 | Z175: 291156.16 | AA175: 35726.26 | AB175: 1136749.92 | AC175: 0.001961093702
A176: 2030120 | B176: Acquisition of Equipment | C176: AF-G-04 | D176: 0 | E176: 402832.14 | F176: 402832.14 | G176: 0 | H176: 0 | I176: 0 | J176: 0 | K176: 0 | L176: 0 | M176: 0 | N176: 0 | O176: 130801.37 | P176: 882.95 | Q176: 0 | R176: 0 | S176: 0 | T176: 43758.86 | U176: 0 | V176: 0 | W176: 114045.23 | X176: 113343.73 | Y176: 0 | Z176: 938571.7715 | AA176: 83335.61848 | AB176: 1341403.912 | AC176: 0.002314157861
A177: 2030810 | B177: Contract Revaluation Balance | C177: 0 | D177: 0 | E177: 0 | F177: 0 | G177: 0 | H177: 0 | I177: 0 | J177: 0 | K177: 0 | L177: 0 | M177: 0 | N177: 0 | O177: 0 | P177: 0 | Q177: 0 | R177: 0 | S177: 0 | T177: 0 | U177: 0 | V177: 0 | W177: 0 | X177: 0 | Y177: 0 | Z177: 0 | AA177: 0 | AB177: 0 | AC177: 0
A178: 2030910 | B178: Budget not committed (to achieve full Comact budget) | C178: 0 | D178: 0 | E178: 0 | F178: 0 | G178: 0 | H178: 0 | I178: 0 | J178: 0 | K178: 0 | L178: 0 | M178: 0 | N178: 0 | O178: 0 | P178: 0 | Q178: 0 | R178: 0 | S178: 0 | T178: 0 | U178: 0 | V178: 0 | W178: 0 | X178: 0 | Y178: 0 | Z178: 0 | AA178: 24283.9 | AB178: 0 | AC178: =AB178/$AB$566 -> 0
